Workbook

Sheet CV Rotina <2A - procedência
E1: AO NASCER | I1: MENOR DE 1 ANO | U1: 1 ANO | AB1: MENOR DE 1 ANO
A2: Regional | B2: Município | C2: ¹População < 1 ano e 1 ano anual | D2: ²População < 1 ano e 1 ano proporcional | E2: Doses Aplicadas HB < 30 dias | F2: Cobertura Vacinal HB até 30 dias | G2: Doses Aplicadas BCG | H2: Cobertura Vacinal BCG | I2: Doses Aplicadas Pentavalente | J2: Cobertura Vacinal Pentavalente | K2: Doses Aplicadas Poliomielite | L2: Cobertura Vacinal Poliomielite | M2: Doses Aplicadas Pneumo 10 | N2: Cobertura Vacinal Pneumo 10 | O2: Doses Aplicadas Rotavírus | P2: Cobertura Vacinal Rotavírus | Q2: Doses Aplicadas Meningo C | R2: Cobertura Vacinal Meningo C | S2: Doses Aplicadas Febre Amarela | T2: Cobertura Vacinal Febre Amarela | U2: Doses Aplicadas Hepatite A | V2: Cobertura Vacinal Hepatite A | W2: Doses Aplicadas de Tríplice Viral | X2: Cobertura Vacinal Tríplice Viral | Y2: Doses Aplicadas Varicela | Z2: Cobertura Varicela | AB2: Doses Aplicadas COVID-19 | AC2: Cobertura Vacinal COVID-19 | AE2: VACINAS QUE ATINGIRAM A META DE CV | AF2: HOMOGENEIDADE ENTRE AS 10 VACINAS | AG2: VACINAS DO PQA-VS QUE ATINGIRAM A META DE CV | AH2: HOMOGENEIDADE ENTRE AS VACINAS DO PQA-VS
A3: Metropolitana | B3: Afonso Cláudio | C3: 357 | D3: 357 | E3: 313 | F3: =E3/D3 -> 0.8767507003 | G3: 307 | H3: =G3/D3 -> 0.8599439776 | I3: 348 | J3: =I3/D3 -> 0.974789916 | K3: 346 | L3: =K3/D3 -> 0.9691876751 | M3: 357 | N3: =M3/D3 -> 1 | O3: 348 | P3: =O3/D3 -> 0.974789916 | Q3: 345 | R3: =Q3/D3 -> 0.9663865546 | S3: 335 | T3: =S3/D3 -> 0.9383753501 | U3: 364 | V3: =U3/D3 -> 1.019607843 | W3: 374 | X3: =W3/D3 -> 1.047619048 | Y3: 259 | Z3: =Y3/D3 -> 0.7254901961 | AB3: 3 | AC3: =AB3/D3 -> 0.008403361345 | AE3: =cálculos1!O3 -> 7 | AF3: =AE3*0.1 -> 0.7 | AG3: =cálculos1!P3 -> 4 | AH3: =AG3*0.25 -> 1 | AJ3: LEGENDA / HOMOGENEIDADE PQA-VS
A4: Norte | B4: Água Doce do Norte | C4: 146 | D4: 146 | E4: 81 | F4: 0.5547945205 | G4: 91 | H4: 0.6232876712 | I4: 179 | J4: 1.226027397 | K4: 176 | L4: 1.205479452 | M4: 184 | N4: 1.260273973 | O4: 180 | P4: 1.232876712 | Q4: 168 | R4: 1.150684932 | S4: 124 | T4: 0.8493150685 | U4: 150 | V4: 1.02739726 | W4: 146 | X4: 1 | Y4: 82 | Z4: 0.5616438356 | AB4: 2 | AC4: =AB4/D4 -> 0.01369863014 | AE4: =cálculos1!O4 -> 7 | AF4: =AE4*0.1 -> 0.7 | AG4: =cálculos1!P4 -> 4 | AH4: =AG4*0.25 -> 1 | AJ4: PERCENTUAL | AK4: Nº DE MUNICÍPIOS
A5: Central | B5: Águia Branca | C5: 193 | D5: 193 | E5: 84 | F5: 0.4352331606 | G5: 95 | H5: 0.4922279793 | I5: 161 | J5: 0.8341968912 | K5: 160 | L5: 0.829015544 | M5: 157 | N5: 0.8134715026 | O5: 164 | P5: 0.8497409326 | Q5: 159 | R5: 0.8238341969 | S5: 136 | T5: 0.7046632124 | U5: 138 | V5: 0.7150259067 | W5: 148 | X5: 0.7668393782 | Y5: 84 | Z5: 0.4352331606 | AB5: 0 | AC5: 0 | AE5: =cálculos1!O5 -> 0 | AF5: 0 | AG5: =cálculos1!P5 -> 0 | AH5: 0 | AJ5: 0 | AK5: =COUNTIF($AH$3:$AH$80,"=0") -> 11
A6: Sul | B6: Alegre | C6: 278 | D6: 278 | E6: 181 | F6: 0.6510791367 | G6: 187 | H6: 0.6726618705 | I6: 352 | J6: 1.26618705 | K6: 351 | L6: 1.262589928 | M6: 327 | N6: 1.176258993 | O6: 315 | P6: 1.133093525 | Q6: 324 | R6: 1.165467626 | S6: 304 | T6: 1.09352518 | U6: 300 | V6: 1.079136691 | W6: 317 | X6: 1.14028777 | Y6: 173 | Z6: 0.6223021583 | AB6: 19 | AC6: 0.06834532374 | AE6: =cálculos1!O6 -> 8 | AF6: 0.8 | AG6: =cálculos1!P6 -> 4 | AH6: 1 | AJ6: 0.25 | AK6: =COUNTIF($AH$3:$AH$80,"=0,25") -> 8
A7: Sul | B7: Alfredo Chaves | C7: 119 | D7: 119 | E7: 22 | F7: 0.1848739496 | G7: 60 | H7: 0.5042016807 | I7: 141 | J7: 1.18487395 | K7: 138 | L7: 1.159663866 | M7: 139 | N7: 1.168067227 | O7: 142 | P7: 1.193277311 | Q7: 142 | R7: 1.193277311 | S7: 135 | T7: 1.134453782 | U7: 140 | V7: 1.176470588 | W7: 150 | X7: 1.260504202 | Y7: 112 | Z7: 0.9411764706 | AB7: 4 | AC7: 0.03361344538 | AE7: =cálculos1!O7 -> 8 | AF7: 0.8 | AG7: =cálculos1!P7 -> 4 | AH7: 1 | AJ7: 0.5 | AK7: =COUNTIF($AH$3:$AH$80,"=0,5") -> 8
A8: Central | B8: Alto Rio Novo | C8: 89 | D8: 89 | E8: 18 | F8: 0.202247191 | G8: 37 | H8: 0.4157303371 | I8: 93 | J8: 1.04494382 | K8: 91 | L8: 1.02247191 | M8: 98 | N8: 1.101123596 | O8: 99 | P8: 1.112359551 | Q8: 97 | R8: 1.08988764 | S8: 79 | T8: 0.8876404494 | U8: 103 | V8: 1.157303371 | W8: 97 | X8: 1.08988764 | Y8: 71 | Z8: 0.797752809 | AB8: 0 | AC8: 0 | AE8: =cálculos1!O8 -> 7 | AF8: 0.7 | AG8: =cálculos1!P8 -> 4 | AH8: 1 | AJ8: 0.75 | AK8: =COUNTIF($AH$3:$AH$80,"=0,75") -> 6
A9: Sul | B9: Anchieta | C9: 338 | D9: 338 | E9: 25 | F9: 0.07396449704 | G9: 204 | H9: 0.6035502959 | I9: 363 | J9: 1.073964497 | K9: 367 | L9: 1.085798817 | M9: 364 | N9: 1.076923077 | O9: 359 | P9: 1.062130178 | Q9: 358 | R9: 1.059171598 | S9: 278 | T9: 0.8224852071 | U9: 406 | V9: 1.201183432 | W9: 377 | X9: 1.115384615 | Y9: 243 | Z9: 0.7189349112 | AB9: 15 | AC9: 0.04437869822 | AE9: =cálculos1!O9 -> 7 | AF9: 0.7 | AG9: =cálculos1!P9 -> 4 | AH9: 1 | AJ9: 1 | AK9: =COUNTIF($AH$3:$AH$80,"=1,0") -> 45
A10: Sul | B10: Apiacá | C10: 74 | D10: 74 | E10: 29 | F10: 0.3918918919 | G10: 58 | H10: 0.7837837838 | I10: 65 | J10: 0.8783783784 | K10: 66 | L10: 0.8918918919 | M10: 70 | N10: 0.9459459459 | O10: 71 | P10: 0.9594594595 | Q10: 68 | R10: 0.9189189189 | S10: 62 | T10: 0.8378378378 | U10: 68 | V10: 0.9189189189 | W10: 74 | X10: 1 | Y10: 22 | Z10: 0.2972972973 | AB10: 0 | AC10: 0 | AE10: =cálculos1!O10 -> 2 | AF10: 0.2 | AG10: =cálculos1!P10 -> 1 | AH10: 0.25
A11: Metropolitana | B11: Aracruz | C11: 1365 | D11: 1365 | E11: 1314 | F11: 0.9626373626 | G11: 1343 | H11: 0.9838827839 | I11: 1359 | J11: 0.9956043956 | K11: 1355 | L11: 0.9926739927 | M11: 1383 | N11: 1.013186813 | O11: 1358 | P11: 0.9948717949 | Q11: 1348 | R11: 0.9875457875 | S11: 1120 | T11: 0.8205128205 | U11: 1468 | V11: 1.075457875 | W11: 1464 | X11: 1.072527473 | Y11: 885 | Z11: 0.6483516484 | AB11: 80 | AC11: 0.05860805861 | AE11: =cálculos1!O11 -> 8 | AF11: 0.8 | AG11: =cálculos1!P11 -> 4 | AH11: 1
A12: Sul | B12: Atilio Vivacqua | C12: 140 | D12: 140 | E12: 2 | F12: 0.01428571429 | G12: 7 | H12: 0.05 | I12: 136 | J12: 0.9714285714 | K12: 135 | L12: 0.9642857143 | M12: 142 | N12: 1.014285714 | O12: 140 | P12: 1 | Q12: 129 | R12: 0.9214285714 | S12: 108 | T12: 0.7714285714 | U12: 151 | V12: 1.078571429 | W12: 158 | X12: 1.128571429 | Y12: 87 | Z12: 0.6214285714 | AB12: 3 | AC12: 0.02142857143 | AE12: =cálculos1!O12 -> 6 | AF12: 0.6 | AG12: =cálculos1!P12 -> 4 | AH12: 1 | AJ12: LEGENDA / HOMOGENEIDADE 10 VACINAS
A13: Central | B13: Baixo Guandu | C13: 345 | D13: 345 | E13: 87 | F13: 0.252173913 | G13: 190 | H13: 0.5507246377 | I13: 404 | J13: 1.171014493 | K13: 406 | L13: 1.176811594 | M13: 403 | N13: 1.168115942 | O13: 389 | P13: 1.127536232 | Q13: 402 | R13: 1.165217391 | S13: 301 | T13: 0.8724637681 | U13: 369 | V13: 1.069565217 | W13: 379 | X13: 1.098550725 | Y13: 245 | Z13: 0.7101449275 | AB13: 2 | AC13: 0.005797101449 | AE13: =cálculos1!O13 -> 7 | AF13: 0.7 | AG13: =cálculos1!P13 -> 4 | AH13: 1 | AJ13: PERCENTUAL | AK13: Nº DE MUNICÍPIOS
A14: Norte | B14: Barra de São Francisco | C14: 584 | D14: 584 | E14: 452 | F14: 0.7739726027 | G14: 486 | H14: 0.8321917808 | I14: 515 | J14: 0.8818493151 | K14: 505 | L14: 0.8647260274 | M14: 561 | N14: 0.9606164384 | O14: 542 | P14: 0.9280821918 | Q14: 539 | R14: 0.9229452055 | S14: 452 | T14: 0.7739726027 | U14: 504 | V14: 0.8630136986 | W14: 552 | X14: 0.9452054795 | Y14: 391 | Z14: 0.6695205479 | AB14: 3 | AC14: 0.005136986301 | AE14: =cálculos1!O14 -> 2 | AF14: 0.2 | AG14: =cálculos1!P14 -> 1 | AH14: 0.25 | AJ14: 0 | AK14: =COUNTIF($AF$3:$AF$80,"=0") -> 8
A15: Norte | B15: Boa Esperança | C15: 204 | D15: 204 | E15: 10 | F15: 0.04901960784 | G15: 67 | H15: 0.3284313725 | I15: 187 | J15: 0.9166666667 | K15: 191 | L15: 0.9362745098 | M15: 202 | N15: 0.9901960784 | O15: 208 | P15: 1.019607843 | Q15: 193 | R15: 0.9460784314 | S15: 157 | T15: 0.7696078431 | U15: 173 | V15: 0.8480392157 | W15: 202 | X15: 0.9901960784 | Y15: 137 | Z15: 0.6715686275 | AB15: 4 | AC15: 0.01960784314 | AE15: =cálculos1!O15 -> 3 | AF15: 0.3 | AG15: =cálculos1!P15 -> 2 | AH15: 0.5 | AJ15: 0.1 | AK15: =COUNTIFS($AF$3:$AF$80,">=0,10",$AF$3:$AF$80,"<0,20") -> 3
A16: Sul | B16: Bom Jesus do Norte | C16: 78 | D16: 78 | E16: 36 | F16: 0.4615384615 | G16: 84 | H16: 1.076923077 | I16: 120 | J16: 1.538461538 | K16: 120 | L16: 1.538461538 | M16: 114 | N16: 1.461538462 | O16: 111 | P16: 1.423076923 | Q16: 117 | R16: 1.5 | S16: 85 | T16: 1.08974359 | U16: 106 | V16: 1.358974359 | W16: 141 | X16: 1.807692308 | Y16: 61 | Z16: 0.7820512821 | AB16: 14 | AC16: 0.1794871795 | AE16: =cálculos1!O16 -> 9 | AF16: 0.9 | AG16: =cálculos1!P16 -> 4 | AH16: 1 | AJ16: 0.2 | AK16: =COUNTIFS($AF$3:$AF$80,">=0,20",$AF$3:$AF$80,"<0,30") -> 5
A17: Metropolitana | B17: Brejetuba | C17: 209 | D17: 209 | E17: 30 | F17: 0.1435406699 | G17: 164 | H17: 0.7846889952 | I17: 202 | J17: 0.966507177 | K17: 202 | L17: 0.966507177 | M17: 191 | N17: 0.9138755981 | O17: 198 | P17: 0.9473684211 | Q17: 187 | R17: 0.8947368421 | S17: 203 | T17: 0.971291866 | U17: 189 | V17: 0.9043062201 | W17: 194 | X17: 0.9282296651 | Y17: 114 | Z17: 0.5454545455 | AB17: 0 | AC17: 0 | AE17: =cálculos1!O17 -> 4 | AF17: 0.4 | AG17: =cálculos1!P17 -> 2 | AH17: 0.5 | AJ17: 0.3 | AK17: =COUNTIFS($AF$3:$AF$80,">=0,30",$AF$3:$AF$80,"<0,40") -> 7
A18: Sul | B18: Cachoeiro de Itapemirim | C18: 2142 | D18: 2142 | E18: 5195 | F18: 2.425303455 | G18: 5125 | H18: 2.392623716 | I18: 2274 | J18: 1.06162465 | K18: 2251 | L18: 1.050887021 | M18: 2318 | N18: 1.0821662 | O18: 2250 | P18: 1.050420168 | Q18: 2225 | R18: 1.038748833 | S18: 1568 | T18: 0.7320261438 | U18: 2096 | V18: 0.9785247432 | W18: 2184 | X18: 1.019607843 | Y18: 1278 | Z18: 0.5966386555 | AB18: 29 | AC18: 0.01353874883 | AE18: =cálculos1!O18 -> 8 | AF18: 0.8 | AG18: =cálculos1!P18 -> 4 | AH18: 1 | AJ18: 0.4 | AK18: =COUNTIFS($AF$3:$AF$80,">=0,40",$AF$3:$AF$80,"<0,50") -> 6
A19: Metropolitana | B19: Cariacica | C19: 4758 | D19: 4758 | E19: 2496 | F19: 0.5245901639 | G19: 2458 | H19: 0.516603615 | I19: 4157 | J19: 0.8736864229 | K19: 4126 | L19: 0.8671710803 | M19: 4407 | N19: 0.9262295082 | O19: 4254 | P19: 0.89407314 | Q19: 4206 | R19: 0.8839848676 | S19: 3207 | T19: 0.6740226986 | U19: 3576 | V19: 0.7515762926 | W19: 4271 | X19: 0.8976460698 | Y19: 2495 | Z19: 0.5243799916 | AB19: 153 | AC19: 0.03215636822 | AE19: =cálculos1!O19 -> 0 | AF19: 0 | AG19: =cálculos1!P19 -> 0 | AH19: 0 | AJ19: 0.5 | AK19: =COUNTIFS($AF$3:$AF$80,">=0,50",$AF$3:$AF$80,"<0,60") -> 3
A20: Sul | B20: Castelo | C20: 390 | D20: 390 | E20: 222 | F20: 0.5692307692 | G20: 244 | H20: 0.6256410256 | I20: 433 | J20: 1.11025641 | K20: 435 | L20: 1.115384615 | M20: 430 | N20: 1.102564103 | O20: 423 | P20: 1.084615385 | Q20: 415 | R20: 1.064102564 | S20: 376 | T20: 0.9641025641 | U20: 401 | V20: 1.028205128 | W20: 460 | X20: 1.179487179 | Y20: 311 | Z20: 0.7974358974 | AB20: 9 | AC20: 0.02307692308 | AE20: =cálculos1!O20 -> 8 | AF20: 0.8 | AG20: =cálculos1!P20 -> 4 | AH20: 1 | AJ20: 0.6 | AK20: =COUNTIFS($AF$3:$AF$80,">=0,60",$AF$3:$AF$80,"<0,70") -> 8
A21: Central | B21: Colatina | C21: 1503 | D21: 1503 | E21: 3471 | F21: 2.309381238 | G21: 3218 | H21: 2.141051231 | I21: 1511 | J21: 1.005322688 | K21: 1495 | L21: 0.994677312 | M21: 1570 | N21: 1.044577512 | O21: 1484 | P21: 0.9873586161 | Q21: 1409 | R21: 0.9374584165 | S21: 1173 | T21: 0.7804391218 | U21: 1289 | V21: 0.8576180971 | W21: 1512 | X21: 1.005988024 | Y21: 1104 | Z21: 0.7345309381 | AB21: 22 | AC21: 0.01463739188 | AE21: =cálculos1!O21 -> 6 | AF21: 0.6 | AG21: =cálculos1!P21 -> 4 | AH21: 1 | AJ21: 0.7 | AK21: =COUNTIFS($AF$3:$AF$80,">=0,70",$AF$3:$AF$80,"<0,80") -> 18
A22: Norte | B22: Conceição da Barra | C22: 357 | D22: 357 | E22: 11 | F22: 0.03081232493 | G22: 18 | H22: 0.05042016807 | I22: 376 | J22: 1.053221289 | K22: 376 | L22: 1.053221289 | M22: 392 | N22: 1.098039216 | O22: 385 | P22: 1.078431373 | Q22: 382 | R22: 1.070028011 | S22: 336 | T22: 0.9411764706 | U22: 338 | V22: 0.9467787115 | W22: 366 | X22: 1.025210084 | Y22: 274 | Z22: 0.7675070028 | AB22: 3 | AC22: 0.008403361345 | AE22: =cálculos1!O22 -> 6 | AF22: 0.6 | AG22: =cálculos1!P22 -> 4 | AH22: 1 | AJ22: 0.8 | AK22: =COUNTIFS($AF$3:$AF$80,">=0,80",$AF$3:$AF$80,"<0,90") -> 14
A23: Metropolitana | B23: Conceição do Castelo | C23: 171 | D23: 171 | E23: 1 | F23: 0.005847953216 | G23: 0 | H23: 0 | I23: 134 | J23: 0.783625731 | K23: 132 | L23: 0.7719298246 | M23: 129 | N23: 0.7543859649 | O23: 127 | P23: 0.7426900585 | Q23: 134 | R23: 0.783625731 | S23: 118 | T23: 0.6900584795 | U23: 156 | V23: 0.9122807018 | W23: 146 | X23: 0.8538011696 | Y23: 95 | Z23: 0.5555555556 | AB23: 0 | AC23: 0 | AE23: =cálculos1!O23 -> 0 | AF23: 0 | AG23: =cálculos1!P23 -> 0 | AH23: 0 | AJ23: 0.9 | AK23: =COUNTIFS($AF$3:$AF$80,">=0,90",$AF$3:$AF$80,"<1,0") -> 5
A24: Sul | B24: Divino de São Lourenço | C24: 57 | D24: 57 | E24: 44 | F24: 0.7719298246 | G24: 49 | H24: 0.8596491228 | I24: 87 | J24: 1.526315789 | K24: 86 | L24: 1.50877193 | M24: 84 | N24: 1.473684211 | O24: 83 | P24: 1.456140351 | Q24: 84 | R24: 1.473684211 | S24: 61 | T24: 1.070175439 | U24: 56 | V24: 0.9824561404 | W24: 61 | X24: 1.070175439 | Y24: 46 | Z24: 0.8070175439 | AB24: 1 | AC24: 0.01754385965 | AE24: =cálculos1!O24 -> 8 | AF24: 0.8 | AG24: =cálculos1!P24 -> 4 | AH24: 1 | AJ24: 1 | AK24: =COUNTIF($AF$3:$AF$80,">=1,0") -> 1
A25: Metropolitana | B25: Domingos Martins | C25: 424 | D25: 424 | E25: 36 | F25: 0.08490566038 | G25: 78 | H25: 0.1839622642 | I25: 385 | J25: 0.9080188679 | K25: 388 | L25: 0.9150943396 | M25: 409 | N25: 0.9646226415 | O25: 410 | P25: 0.9669811321 | Q25: 393 | R25: 0.9268867925 | S25: 352 | T25: 0.8301886792 | U25: 394 | V25: 0.929245283 | W25: 403 | X25: 0.9504716981 | Y25: 313 | Z25: 0.7382075472 | AB25: 23 | AC25: 0.05424528302 | AE25: =cálculos1!O25 -> 3 | AF25: 0.3 | AG25: =cálculos1!P25 -> 2 | AH25: 0.5
A26: Sul | B26: Dores do Rio Preto | C26: 94 | D26: 94 | E26: 38 | F26: 0.4042553191 | G26: 65 | H26: 0.6914893617 | I26: 102 | J26: 1.085106383 | K26: 105 | L26: 1.117021277 | M26: 111 | N26: 1.180851064 | O26: 108 | P26: 1.14893617 | Q26: 107 | R26: 1.138297872 | S26: 83 | T26: 0.8829787234 | U26: 95 | V26: 1.010638298 | W26: 115 | X26: 1.223404255 | Y26: 56 | Z26: 0.5957446809 | AB26: 6 | AC26: 0.06382978723 | AE26: =cálculos1!O26 -> 7 | AF26: 0.7 | AG26: =cálculos1!P26 -> 4 | AH26: 1
A27: Norte | B27: Ecoporanga | C27: 261 | D27: 261 | E27: 125 | F27: 0.4789272031 | G27: 128 | H27: 0.4904214559 | I27: 252 | J27: 0.9655172414 | K27: 250 | L27: 0.9578544061 | M27: 260 | N27: 0.9961685824 | O27: 250 | P27: 0.9578544061 | Q27: 257 | R27: 0.9846743295 | S27: 210 | T27: 0.8045977011 | U27: 255 | V27: 0.9770114943 | W27: 252 | X27: 0.9655172414 | Y27: 193 | Z27: 0.7394636015 | AB27: 1 | AC27: 0.003831417625 | AE27: =cálculos1!O27 -> 7 | AF27: 0.7 | AG27: =cálculos1!P27 -> 4 | AH27: 1
A28: Metropolitana | B28: Fundão | C28: 223 | D28: 223 | E28: 20 | F28: 0.08968609865 | G28: 100 | H28: 0.4484304933 | I28: 228 | J28: 1.022421525 | K28: 227 | L28: 1.01793722 | M28: 228 | N28: 1.022421525 | O28: 230 | P28: 1.031390135 | Q28: 219 | R28: 0.9820627803 | S28: 178 | T28: 0.798206278 | U28: 240 | V28: 1.076233184 | W28: 193 | X28: 0.865470852 | Y28: 176 | Z28: 0.7892376682 | AB28: 5 | AC28: 0.02242152466 | AE28: =cálculos1!O28 -> 6 | AF28: 0.6 | AG28: =cálculos1!P28 -> 3 | AH28: 0.75
A29: Central | B29: Governador Lindenberg | C29: 117 | D29: 117 | E29: 27 | F29: 0.2307692308 | G29: 23 | H29: 0.1965811966 | I29: 111 | J29: 0.9487179487 | K29: 108 | L29: 0.9230769231 | M29: 109 | N29: 0.9316239316 | O29: 112 | P29: 0.9572649573 | Q29: 121 | R29: 1.034188034 | S29: 120 | T29: 1.025641026 | U29: 143 | V29: 1.222222222 | W29: 138 | X29: 1.179487179 | Y29: 85 | Z29: 0.7264957265 | AB29: 2 | AC29: 0.01709401709 | AE29: =cálculos1!O29 -> 5 | AF29: 0.5 | AG29: =cálculos1!P29 -> 1 | AH29: 0.25
A30: Sul | B30: Guaçuí | C30: 383 | D30: 383 | E30: 212 | F30: 0.5535248042 | G30: 249 | H30: 0.6501305483 | I30: 370 | J30: 0.9660574413 | K30: 362 | L30: 0.9451697128 | M30: 357 | N30: 0.9321148825 | O30: 338 | P30: 0.8825065274 | Q30: 342 | R30: 0.8929503916 | S30: 288 | T30: 0.7519582245 | U30: 375 | V30: 0.9791122715 | W30: 404 | X30: 1.054830287 | Y30: 199 | Z30: 0.5195822454 | AB30: 12 | AC30: 0.03133159269 | AE30: =cálculos1!O30 -> 3 | AF30: 0.3 | AG30: =cálculos1!P30 -> 2 | AH30: 0.5
A31: Metropolitana | B31: Guarapari | C31: 1709 | D31: 1709 | E31: 1334 | F31: 0.7805734348 | G31: 1413 | H31: 0.8267992978 | I31: 1401 | J31: 0.8197776477 | K31: 1379 | L31: 0.8069046226 | M31: 1536 | N31: 0.8987712112 | O31: 1469 | P31: 0.8595669982 | Q31: 1446 | R31: 0.8461088356 | S31: 982 | T31: 0.5746050322 | U31: 1313 | V31: 0.7682855471 | W31: 1384 | X31: 0.8098303101 | Y31: 958 | Z31: 0.560561732 | AB31: 24 | AC31: 0.01404330018 | AE31: =cálculos1!O31 -> 0 | AF31: 0 | AG31: =cálculos1!P31 -> 0 | AH31: 0
A32: Metropolitana | B32: Ibatiba | C32: 380 | D32: 380 | E32: 211 | F32: 0.5552631579 | G32: 319 | H32: 0.8394736842 | I32: 379 | J32: 0.9973684211 | K32: 378 | L32: 0.9947368421 | M32: 387 | N32: 1.018421053 | O32: 377 | P32: 0.9921052632 | Q32: 375 | R32: 0.9868421053 | S32: 332 | T32: 0.8736842105 | U32: 370 | V32: 0.9736842105 | W32: 383 | X32: 1.007894737 | Y32: 90 | Z32: 0.2368421053 | AB32: 18 | AC32: 0.04736842105 | AE32: =cálculos1!O32 -> 7 | AF32: 0.7 | AG32: =cálculos1!P32 -> 4 | AH32: 1
A33: Metropolitana | B33: Ibiraçu | C33: 158 | D33: 158 | E33: 29 | F33: 0.1835443038 | G33: 27 | H33: 0.1708860759 | I33: 134 | J33: 0.8481012658 | K33: 133 | L33: 0.8417721519 | M33: 136 | N33: 0.8607594937 | O33: 135 | P33: 0.8544303797 | Q33: 143 | R33: 0.9050632911 | S33: 124 | T33: 0.7848101266 | U33: 124 | V33: 0.7848101266 | W33: 137 | X33: 0.8670886076 | Y33: 105 | Z33: 0.664556962 | AB33: 7 | AC33: 0.04430379747 | AE33: =cálculos1!O33 -> 0 | AF33: 0 | AG33: =cálculos1!P33 -> 0 | AH33: 0
A34: Sul | B34: Ibitirama | C34: 144 | D34: 144 | E34: 66 | F34: 0.4583333333 | G34: 96 | H34: 0.6666666667 | I34: 128 | J34: 0.8888888889 | K34: 133 | L34: 0.9236111111 | M34: 130 | N34: 0.9027777778 | O34: 129 | P34: 0.8958333333 | Q34: 99 | R34: 0.6875 | S34: 101 | T34: 0.7013888889 | U34: 139 | V34: 0.9652777778 | W34: 148 | X34: 1.027777778 | Y34: 92 | Z34: 0.6388888889 | AB34: 12 | AC34: 0.08333333333 | AE34: =cálculos1!O34 -> 2 | AF34: 0.2 | AG34: =cálculos1!P34 -> 1 | AH34: 0.25
A35: Sul | B35: Iconha | C35: 112 | D35: 112 | E35: 9 | F35: =E35/D35 -> 0.08035714286 | G35: 39 | H35: =G35/D35 -> 0.3482142857 | I35: 104 | J35: =I35/D35 -> 0.9285714286 | K35: 102 | L35: =K35/D35 -> 0.9107142857 | M35: 108 | N35: =M35/D35 -> 0.9642857143 | O35: 114 | P35: =O35/D35 -> 1.017857143 | Q35: 104 | R35: =Q35/D35 -> 0.9285714286 | S35: 116 | T35: =S35/D35 -> 1.035714286 | U35: 141 | V35: =U35/D35 -> 1.258928571 | W35: 137 | X35: =W35/D35 -> 1.223214286 | Y35: 71 | Z35: =Y35/D35 -> 0.6339285714 | AB35: 4 | AC35: 0.03571428571 | AE35: =cálculos1!O35 -> 5 | AF35: 0.5 | AG35: =cálculos1!P35 -> 2 | AH35: 0.5
A36: Sul | B36: Irupi | C36: 174 | D36: 174 | E36: 102 | F36: 0.5862068966 | G36: 126 | H36: 0.724137931 | I36: 206 | J36: 1.183908046 | K36: 204 | L36: 1.172413793 | M36: 216 | N36: 1.24137931 | O36: 218 | P36: 1.252873563 | Q36: 215 | R36: 1.235632184 | S36: 169 | T36: 0.9712643678 | U36: 204 | V36: 1.172413793 | W36: 226 | X36: 1.298850575 | Y36: 83 | Z36: 0.4770114943 | AB36: 27 | AC36: 0.1551724138 | AE36: =cálculos1!O36 -> 8 | AF36: 0.8 | AG36: =cálculos1!P36 -> 4 | AH36: 1
A37: Metropolitana | B37: Itaguaçu | C37: 131 | D37: 131 | E37: 18 | F37: 0.1374045802 | G37: 88 | H37: 0.6717557252 | I37: 135 | J37: 1.030534351 | K37: 135 | L37: 1.030534351 | M37: 142 | N37: 1.083969466 | O37: 143 | P37: 1.091603053 | Q37: 140 | R37: 1.06870229 | S37: 133 | T37: 1.015267176 | U37: 154 | V37: 1.175572519 | W37: 144 | X37: 1.099236641 | Y37: 130 | Z37: 0.9923664122 | AB37: 5 | AC37: 0.03816793893 | AE37: =cálculos1!O37 -> 9 | AF37: 0.9 | AG37: =cálculos1!P37 -> 4 | AH37: 1
A38: Sul | B38: Itapemirim | C38: 474 | D38: 474 | E38: 908 | F38: 1.915611814 | G38: 230 | H38: 0.4852320675 | I38: 451 | J38: 0.9514767932 | K38: 448 | L38: 0.9451476793 | M38: 471 | N38: 0.9936708861 | O38: 424 | P38: 0.8945147679 | Q38: 428 | R38: 0.9029535865 | S38: 280 | T38: 0.5907172996 | U38: 418 | V38: 0.8818565401 | W38: 457 | X38: 0.9641350211 | Y38: 260 | Z38: 0.5485232068 | AB38: 3 | AC38: 0.006329113924 | AE38: =cálculos1!O38 -> 3 | AF38: 0.3 | AG38: =cálculos1!P38 -> 3 | AH38: 0.75
A39: Metropolitana | B39: Itarana | C39: 134 | D39: 134 | E39: 17 | F39: 0.1268656716 | G39: 119 | H39: 0.8880597015 | I39: 128 | J39: 0.9552238806 | K39: 129 | L39: 0.9626865672 | M39: 128 | N39: 0.9552238806 | O39: 129 | P39: 0.9626865672 | Q39: 128 | R39: 0.9552238806 | S39: 132 | T39: 0.9850746269 | U39: 125 | V39: 0.9328358209 | W39: 142 | X39: 1.059701493 | Y39: 125 | Z39: 0.9328358209 | AB39: 5 | AC39: 0.03731343284 | AE39: =cálculos1!O39 -> 7 | AF39: 0.7 | AG39: =cálculos1!P39 -> 4 | AH39: 1
A40: Sul | B40: Iúna | C40: 420 | D40: 420 | E40: 265 | F40: 0.630952381 | G40: 294 | H40: 0.7 | I40: 407 | J40: 0.969047619 | K40: 407 | L40: 0.969047619 | M40: 410 | N40: 0.9761904762 | O40: 406 | P40: 0.9666666667 | Q40: 402 | R40: 0.9571428571 | S40: 385 | T40: 0.9166666667 | U40: 364 | V40: 0.8666666667 | W40: 429 | X40: 1.021428571 | Y40: 282 | Z40: 0.6714285714 | AB40: 7 | AC40: 0.01666666667 | AE40: =cálculos1!O40 -> 6 | AF40: 0.6 | AG40: =cálculos1!P40 -> 4 | AH40: 1
A41: Norte | B41: Jaguaré | C41: 463 | D41: 463 | E41: 346 | F41: 0.747300216 | G41: 343 | H41: 0.7408207343 | I41: 464 | J41: 1.002159827 | K41: 457 | L41: 0.9870410367 | M41: 448 | N41: 0.9676025918 | O41: 441 | P41: 0.9524838013 | Q41: 446 | R41: 0.9632829374 | S41: 373 | T41: 0.8056155508 | U41: 422 | V41: 0.9114470842 | W41: 468 | X41: 1.010799136 | Y41: 262 | Z41: 0.56587473 | AB41: 4 | AC41: 0.008639308855 | AE41: =cálculos1!O41 -> 6 | AF41: 0.6 | AG41: =cálculos1!P41 -> 4 | AH41: 1
A42: Sul | B42: Jerônimo Monteiro | C42: 129 | D42: 129 | E42: 12 | F42: 0.09302325581 | G42: 15 | H42: 0.1162790698 | I42: 155 | J42: 1.201550388 | K42: 156 | L42: 1.209302326 | M42: 146 | N42: 1.131782946 | O42: 145 | P42: 1.124031008 | Q42: 146 | R42: 1.131782946 | S42: 145 | T42: 1.124031008 | U42: 164 | V42: 1.271317829 | W42: 152 | X42: 1.178294574 | Y42: 86 | Z42: 0.6666666667 | AB42: 21 | AC42: 0.1627906977 | AE42: =cálculos1!O42 -> 8 | AF42: 0.8 | AG42: =cálculos1!P42 -> 4 | AH42: 1
A43: Metropolitana | B43: João Neiva | C43: 158 | D43: 158 | E43: 30 | F43: 0.1898734177 | G43: 41 | H43: 0.2594936709 | I43: 158 | J43: 1 | K43: 159 | L43: 1.006329114 | M43: 161 | N43: 1.018987342 | O43: 163 | P43: 1.03164557 | Q43: 155 | R43: 0.9810126582 | S43: 146 | T43: 0.9240506329 | U43: 169 | V43: 1.069620253 | W43: 184 | X43: 1.164556962 | Y43: 128 | Z43: 0.8101265823 | AB43: 3 | AC43: 0.01898734177 | AE43: =cálculos1!O43 -> 7 | AF43: 0.7 | AG43: =cálculos1!P43 -> 4 | AH43: 1
A44: Metropolitana | B44: Laranja da Terra | C44: 97 | D44: 97 | E44: 4 | F44: 0.0412371134 | G44: 93 | H44: 0.9587628866 | I44: 101 | J44: 1.041237113 | K44: 101 | L44: 1.041237113 | M44: 94 | N44: 0.9690721649 | O44: 94 | P44: 0.9690721649 | Q44: 95 | R44: 0.9793814433 | S44: 107 | T44: 1.103092784 | U44: 129 | V44: 1.329896907 | W44: 130 | X44: 1.340206186 | Y44: 104 | Z44: 1.072164948 | AB44: 10 | AC44: 0.1030927835 | AE44: =cálculos1!O44 -> 10 | AF44: 1 | AG44: =cálculos1!P44 -> 4 | AH44: 1
A45: Central | B45: Linhares | C45: 2627 | D45: 2627 | E45: 2566 | F45: 0.9767795965 | G45: 2642 | H45: 1.005709935 | I45: 2214 | J45: 0.8427864484 | K45: 2201 | L45: 0.8378378378 | M45: 2400 | N45: 0.913589646 | O45: 2358 | P45: 0.8976018272 | Q45: 2305 | R45: 0.8774267225 | S45: 1787 | T45: 0.6802436239 | U45: 2219 | V45: 0.8446897602 | W45: 2268 | X45: 0.8633422155 | Y45: 1587 | Z45: 0.6041111534 | AB45: 7 | AC45: 0.002664636467 | AE45: =cálculos1!O45 -> 1 | AF45: 0.1 | AG45: =cálculos1!P45 -> 0 | AH45: 0
A46: Central | B46: Mantenópolis | C46: 138 | D46: 138 | E46: 53 | F46: 0.384057971 | G46: 65 | H46: 0.4710144928 | I46: 151 | J46: 1.094202899 | K46: 153 | L46: 1.108695652 | M46: 141 | N46: 1.02173913 | O46: 136 | P46: 0.9855072464 | Q46: 137 | R46: 0.9927536232 | S46: 131 | T46: 0.9492753623 | U46: 156 | V46: 1.130434783 | W46: 159 | X46: 1.152173913 | Y46: 84 | Z46: 0.6086956522 | AB46: 5 | AC46: 0.03623188406 | AE46: =cálculos1!O46 -> 7 | AF46: 0.7 | AG46: =cálculos1!P46 -> 4 | AH46: 1
A47: Sul | B47: Marataízes | C47: 536 | D47: 536 | E47: 15 | F47: 0.02798507463 | G47: 235 | H47: 0.4384328358 | I47: 568 | J47: 1.059701493 | K47: 569 | L47: 1.061567164 | M47: 565 | N47: 1.054104478 | O47: 548 | P47: 1.02238806 | Q47: 569 | R47: 1.061567164 | S47: 366 | T47: 0.6828358209 | U47: 550 | V47: 1.026119403 | W47: 533 | X47: 0.9944029851 | Y47: 345 | Z47: 0.6436567164 | AB47: 3 | AC47: 0.005597014925 | AE47: =cálculos1!O47 -> 7 | AF47: 0.7 | AG47: =cálculos1!P47 -> 4 | AH47: 1
A48: Metropolitana | B48: Marechal Floriano | C48: 197 | D48: 197 | E48: 37 | F48: 0.1878172589 | G48: 41 | H48: 0.2081218274 | I48: 203 | J48: 1.030456853 | K48: 203 | L48: 1.030456853 | M48: 218 | N48: 1.106598985 | O48: 216 | P48: 1.096446701 | Q48: 208 | R48: 1.055837563 | S48: 171 | T48: 0.8680203046 | U48: 214 | V48: 1.086294416 | W48: 228 | X48: 1.157360406 | Y48: 167 | Z48: 0.847715736 | AB48: 10 | AC48: 0.05076142132 | AE48: =cálculos1!O48 -> 7 | AF48: 0.7 | AG48: =cálculos1!P48 -> 4 | AH48: 1
A49: Central | B49: Marilândia | C49: 144 | D49: 144 | E49: 58 | F49: 0.4027777778 | G49: 72 | H49: 0.5 | I49: 133 | J49: 0.9236111111 | K49: 134 | L49: 0.9305555556 | M49: 123 | N49: 0.8541666667 | O49: 138 | P49: 0.9583333333 | Q49: 129 | R49: 0.8958333333 | S49: 133 | T49: 0.9236111111 | U49: 148 | V49: 1.027777778 | W49: 143 | X49: 0.9930555556 | Y49: 134 | Z49: 0.9305555556 | AB49: 9 | AC49: 0.0625 | AE49: =cálculos1!O49 -> 3 | AF49: 0.3 | AG49: =cálculos1!P49 -> 1 | AH49: 0.25
A50: Sul | B50: Mimoso do Sul | C50: 233 | D50: 233 | E50: 30 | F50: 0.1287553648 | G50: 43 | H50: 0.1845493562 | I50: 195 | J50: 0.8369098712 | K50: 193 | L50: 0.8283261803 | M50: 198 | N50: 0.8497854077 | O50: 193 | P50: 0.8283261803 | Q50: 189 | R50: 0.8111587983 | S50: 164 | T50: 0.7038626609 | U50: 186 | V50: 0.7982832618 | W50: 210 | X50: 0.9012875536 | Y50: 155 | Z50: 0.6652360515 | AB50: 2 | AC50: 0.008583690987 | AE50: =cálculos1!O50 -> 0 | AF50: 0 | AG50: =cálculos1!P50 -> 0 | AH50: 0
A51: Norte | B51: Montanha | C51: 227 | D51: 227 | E51: 83 | F51: 0.3656387665 | G51: 102 | H51: 0.449339207 | I51: 279 | J51: 1.22907489 | K51: 282 | L51: 1.242290749 | M51: 260 | N51: 1.145374449 | O51: 251 | P51: 1.105726872 | Q51: 257 | R51: 1.13215859 | S51: 249 | T51: 1.0969163 | U51: 283 | V51: 1.246696035 | W51: 275 | X51: 1.211453744 | Y51: 215 | Z51: 0.9471365639 | AB51: 17 | AC51: 0.07488986784 | AE51: =cálculos1!O51 -> 8 | AF51: 0.8 | AG51: =cálculos1!P51 -> 4 | AH51: 1
A52: Norte | B52: Mucurici | C52: 69 | D52: 69 | E52: 11 | F52: 0.1594202899 | G52: 10 | H52: 0.1449275362 | I52: 79 | J52: 1.144927536 | K52: 78 | L52: 1.130434783 | M52: 79 | N52: 1.144927536 | O52: 78 | P52: 1.130434783 | Q52: 76 | R52: 1.101449275 | S52: 77 | T52: 1.115942029 | U52: 65 | V52: 0.9420289855 | W52: 85 | X52: 1.231884058 | Y52: 60 | Z52: 0.8695652174 | AB52: 6 | AC52: 0.08695652174 | AE52: =cálculos1!O52 -> 7 | AF52: 0.7 | AG52: =cálculos1!P52 -> 4 | AH52: 1
A53: Sul | B53: Muniz Freire | C53: 207 | D53: 207 | E53: 107 | F53: 0.5169082126 | G53: 125 | H53: 0.6038647343 | I53: 229 | J53: 1.106280193 | K53: 224 | L53: 1.082125604 | M53: 230 | N53: 1.111111111 | O53: 231 | P53: 1.115942029 | Q53: 226 | R53: 1.09178744 | S53: 212 | T53: 1.024154589 | U53: 241 | V53: 1.164251208 | W53: 247 | X53: 1.193236715 | Y53: 160 | Z53: 0.7729468599 | AB53: 4 | AC53: 0.0193236715 | AE53: =cálculos1!O53 -> 8 | AF53: 0.8 | AG53: =cálculos1!P53 -> 4 | AH53: 1
A54: Sul | B54: Muqui | C54: 131 | D54: 131 | E54: 15 | F54: 0.1145038168 | G54: 22 | H54: 0.1679389313 | I54: 176 | J54: 1.34351145 | K54: 176 | L54: 1.34351145 | M54: 158 | N54: 1.20610687 | O54: 159 | P54: 1.213740458 | Q54: 169 | R54: 1.290076336 | S54: 147 | T54: 1.122137405 | U54: 156 | V54: 1.190839695 | W54: 167 | X54: 1.27480916 | Y54: 120 | Z54: 0.9160305344 | AB54: 16 | AC54: 0.1221374046 | AE54: =cálculos1!O54 -> 8 | AF54: 0.8 | AG54: =cálculos1!P54 -> 4 | AH54: 1
A55: Norte | B55: Nova Venécia | C55: 658 | D55: 658 | E55: 516 | F55: 0.7841945289 | G55: 429 | H55: 0.6519756839 | I55: 635 | J55: 0.9650455927 | K55: 632 | L55: 0.9604863222 | M55: 584 | N55: 0.8875379939 | O55: 592 | P55: 0.8996960486 | Q55: 623 | R55: 0.9468085106 | S55: 573 | T55: 0.8708206687 | U55: 611 | V55: 0.9285714286 | W55: 666 | X55: 1.012158055 | Y55: 414 | Z55: 0.6291793313 | AB55: 3 | AC55: 0.004559270517 | AE55: =cálculos1!O55 -> 3 | AF55: 0.3 | AG55: =cálculos1!P55 -> 3 | AH55: 0.75
A56: Central | B56: Pancas | C56: 200 | D56: 200 | E56: 66 | F56: 0.33 | G56: 113 | H56: 0.565 | I56: 207 | J56: 1.035 | K56: 207 | L56: 1.035 | M56: 204 | N56: 1.02 | O56: 203 | P56: 1.015 | Q56: 202 | R56: 1.01 | S56: 202 | T56: 1.01 | U56: 208 | V56: 1.04 | W56: 209 | X56: 1.045 | Y56: 194 | Z56: 0.97 | AB56: 2 | AC56: 0.01 | AE56: =cálculos1!O56 -> 9 | AF56: 0.9 | AG56: =cálculos1!P56 -> 4 | AH56: 1
A57: Norte | B57: Pedro Canário | C57: 328 | D57: 328 | E57: 30 | F57: 0.09146341463 | G57: 29 | H57: 0.08841463415 | I57: 314 | J57: 0.9573170732 | K57: 311 | L57: 0.9481707317 | M57: 314 | N57: 0.9573170732 | O57: 312 | P57: 0.9512195122 | Q57: 315 | R57: 0.9603658537 | S57: 275 | T57: 0.8384146341 | U57: 257 | V57: 0.7835365854 | W57: 336 | X57: 1.024390244 | Y57: 245 | Z57: 0.7469512195 | AB57: 4 | AC57: 0.01219512195 | AE57: =cálculos1!O57 -> 5 | AF57: 0.5 | AG57: =cálculos1!P57 -> 3 | AH57: 0.75
A58: Norte | B58: Pinheiros | C58: 314 | D58: 314 | E58: 14 | F58: 0.04458598726 | G58: 18 | H58: 0.05732484076 | I58: 327 | J58: 1.041401274 | K58: 326 | L58: 1.038216561 | M58: 314 | N58: 1 | O58: 312 | P58: 0.9936305732 | Q58: 309 | R58: 0.9840764331 | S58: 259 | T58: 0.8248407643 | U58: 289 | V58: 0.9203821656 | W58: 329 | X58: 1.047770701 | Y58: 167 | Z58: 0.5318471338 | AB58: 2 | AC58: 0.006369426752 | AE58: =cálculos1!O58 -> 6 | AF58: 0.6 | AG58: =cálculos1!P58 -> 4 | AH58: 1
A59: Sul | B59: Piúma | C59: 277 | D59: 277 | E59: 11 | F59: 0.03971119134 | G59: 164 | H59: 0.5920577617 | I59: 266 | J59: 0.9602888087 | K59: 265 | L59: 0.9566787004 | M59: 272 | N59: 0.9819494585 | O59: 258 | P59: 0.9314079422 | Q59: 248 | R59: 0.8953068592 | S59: 167 | T59: 0.6028880866 | U59: 215 | V59: 0.7761732852 | W59: 256 | X59: 0.9241877256 | Y59: 147 | Z59: 0.5306859206 | AB59: 11 | AC59: 0.03971119134 | AE59: =cálculos1!O59 -> 4 | AF59: 0.4 | AG59: =cálculos1!P59 -> 3 | AH59: 0.75
A60: Norte | B60: Ponto Belo | C60: 81 | D60: 81 | E60: 20 | F60: 0.2469135802 | G60: 12 | H60: 0.1481481481 | I60: 72 | J60: 0.8888888889 | K60: 71 | L60: 0.8765432099 | M60: 79 | N60: 0.975308642 | O60: 79 | P60: 0.975308642 | Q60: 80 | R60: 0.987654321 | S60: 68 | T60: 0.8395061728 | U60: 74 | V60: 0.9135802469 | W60: 93 | X60: 1.148148148 | Y60: 63 | Z60: 0.7777777778 | AB60: 8 | AC60: 0.0987654321 | AE60: =cálculos1!O60 -> 4 | AF60: 0.4 | AG60: =cálculos1!P60 -> 2 | AH60: 0.5
A61: Sul | B61: Presidente Kennedy | C61: 185 | D61: 185 | E61: 5 | F61: 0.02702702703 | G61: 15 | H61: 0.08108108108 | I61: 179 | J61: 0.9675675676 | K61: 181 | L61: 0.9783783784 | M61: 178 | N61: 0.9621621622 | O61: 176 | P61: 0.9513513514 | Q61: 187 | R61: 1.010810811 | S61: 153 | T61: 0.827027027 | U61: 205 | V61: 1.108108108 | W61: 196 | X61: 1.059459459 | Y61: 142 | Z61: 0.7675675676 | AB61: 2 | AC61: 0.01081081081 | AE61: =cálculos1!O61 -> 7 | AF61: 0.7 | AG61: =cálculos1!P61 -> 4 | AH61: 1
A62: Central | B62: Rio Bananal | C62: 303 | D62: 303 | E62: 74 | F62: 0.2442244224 | G62: 54 | H62: 0.1782178218 | I62: 280 | J62: 0.9240924092 | K62: 279 | L62: 0.9207920792 | M62: 266 | N62: 0.8778877888 | O62: 272 | P62: 0.897689769 | Q62: 251 | R62: 0.8283828383 | S62: 271 | T62: 0.8943894389 | U62: 311 | V62: 1.02640264 | W62: 310 | X62: 1.02310231 | Y62: 204 | Z62: 0.6732673267 | AB62: 13 | AC62: 0.04290429043 | AE62: =cálculos1!O62 -> 2 | AF62: 0.2 | AG62: =cálculos1!P62 -> 1 | AH62: 0.25
A63: Sul | B63: Rio Novo do Sul | C63: 96 | D63: 96 | E63: 6 | F63: 0.0625 | G63: 34 | H63: 0.3541666667 | I63: 105 | J63: 1.09375 | K63: 103 | L63: 1.072916667 | M63: 100 | N63: 1.041666667 | O63: 102 | P63: 1.0625 | Q63: 104 | R63: 1.083333333 | S63: 93 | T63: 0.96875 | U63: 134 | V63: 1.395833333 | W63: 119 | X63: 1.239583333 | Y63: 110 | Z63: 1.145833333 | AB63: 2 | AC63: 0.02083333333 | AE63: =cálculos1!O63 -> 9 | AF63: 0.9 | AG63: =cálculos1!P63 -> 4 | AH63: 1
A64: Metropolitana | B64: Santa Leopoldina | C64: 81 | D64: 81 | E64: 5 | F64: 0.06172839506 | G64: 23 | H64: 0.2839506173 | I64: 113 | J64: 1.395061728 | K64: 114 | L64: 1.407407407 | M64: 97 | N64: 1.197530864 | O64: 100 | P64: 1.234567901 | Q64: 104 | R64: 1.283950617 | S64: 92 | T64: 1.135802469 | U64: 118 | V64: 1.456790123 | W64: 116 | X64: 1.432098765 | Y64: 34 | Z64: 0.4197530864 | AB64: 0 | AC64: 0 | AE64: =cálculos1!O64 -> 8 | AF64: 0.8 | AG64: =cálculos1!P64 -> 4 | AH64: 1
A65: Metropolitana | B65: Santa Maria de Jetibá | C65: 673 | D65: 673 | E65: 458 | F65: 0.6805349183 | G65: 533 | H65: 0.7919762259 | I65: 570 | J65: 0.8469539376 | K65: 567 | L65: 0.8424962853 | M65: 579 | N65: 0.8603268945 | O65: 593 | P65: 0.8811292719 | Q65: 579 | R65: 0.8603268945 | S65: 496 | T65: 0.7369985141 | U65: 627 | V65: 0.9316493314 | W65: 608 | X65: 0.9034175334 | Y65: 390 | Z65: 0.5794947994 | AB65: 11 | AC65: 0.01634472511 | AE65: =cálculos1!O65 -> 0 | AF65: 0 | AG65: =cálculos1!P65 -> 0 | AH65: 0
A66: Metropolitana | B66: Santa Teresa | C66: 294 | D66: 294 | E66: 659 | F66: 2.241496599 | G66: 213 | H66: 0.7244897959 | I66: 289 | J66: 0.9829931973 | K66: 289 | L66: 0.9829931973 | M66: 294 | N66: 1 | O66: 279 | P66: 0.9489795918 | Q66: 267 | R66: 0.9081632653 | S66: 230 | T66: 0.7823129252 | U66: 253 | V66: 0.8605442177 | W66: 264 | X66: 0.8979591837 | Y66: 224 | Z66: 0.7619047619 | AB66: 0 | AC66: 0 | AE66: =cálculos1!O66 -> 4 | AF66: 0.4 | AG66: =cálculos1!P66 -> 3 | AH66: 0.75
A67: Central | B67: São Domingos do Norte | C67: 117 | D67: 117 | E67: 29 | F67: =E67/D67 -> 0.2478632479 | G67: 48 | H67: =G67/D67 -> 0.4102564103 | I67: 107 | J67: =I67/D67 -> 0.9145299145 | K67: 107 | L67: =K67/D67 -> 0.9145299145 | M67: 112 | N67: =M67/D67 -> 0.9572649573 | O67: 112 | P67: =O67/D67 -> 0.9572649573 | Q67: 114 | R67: =Q67/D67 -> 0.9743589744 | S67: 107 | T67: =S67/D67 -> 0.9145299145 | U67: 91 | V67: =U67/D67 -> 0.7777777778 | W67: 112 | X67: =W67/D67 -> 0.9572649573 | Y67: 70 | Z67: =Y67/D67 -> 0.5982905983 | AB67: 0 | AC67: 0 | AE67: =cálculos1!O67 -> 4 | AF67: 0.4 | AG67: =cálculos1!P67 -> 2 | AH67: 0.5
A68: Central | B68: São Gabriel da Palha | C68: 415 | D68: 415 | E68: 156 | F68: 0.3759036145 | G68: 253 | H68: 0.6096385542 | I68: 433 | J68: 1.043373494 | K68: 434 | L68: 1.045783133 | M68: 450 | N68: 1.084337349 | O68: 429 | P68: 1.03373494 | Q68: 437 | R68: 1.053012048 | S68: 344 | T68: 0.8289156627 | U68: 371 | V68: 0.8939759036 | W68: 404 | X68: 0.9734939759 | Y68: 290 | Z68: 0.6987951807 | AB68: 3 | AC68: =AB68/D68 -> 0.007228915663 | AE68: =cálculos1!O68 -> 6 | AF68: =AE68*0.1 -> 0.6 | AG68: =cálculos1!P68 -> 4 | AH68: =AG68*0.25 -> 1
A69: Sul | B69: São José do Calçado | C69: 104 | D69: 104 | E69: 84 | F69: 0.8076923077 | G69: 86 | H69: 0.8269230769 | I69: 115 | J69: 1.105769231 | K69: 115 | L69: 1.105769231 | M69: 112 | N69: 1.076923077 | O69: 102 | P69: 0.9807692308 | Q69: 119 | R69: 1.144230769 | S69: 95 | T69: 0.9134615385 | U69: 107 | V69: 1.028846154 | W69: 128 | X69: 1.230769231 | Y69: 69 | Z69: 0.6634615385 | AB69: 0 | AC69: 0 | AE69: =cálculos1!O69 -> 7 | AF69: 0.7 | AG69: =cálculos1!P69 -> 4 | AH69: 1
A70: Norte | B70: São Mateus | C70: 1824 | D70: 1824 | E70: 2869 | F70: 1.572916667 | G70: 2751 | H70: 1.508223684 | I70: 1695 | J70: 0.9292763158 | K70: 1674 | L70: 0.9177631579 | M70: 1762 | N70: 0.9660087719 | O70: 1648 | P70: 0.9035087719 | Q70: 1617 | R70: 0.8865131579 | S70: 1195 | T70: 0.6551535088 | U70: 1463 | V70: 0.8020833333 | W70: 1579 | X70: 0.8656798246 | Y70: 1011 | Z70: 0.5542763158 | AB70: 59 | AC70: 0.03234649123 | AE70: =cálculos1!O70 -> 3 | AF70: 0.3 | AG70: =cálculos1!P70 -> 1 | AH70: 0.25
A71: Central | B71: São Roque do Canaã | C71: 132 | D71: 132 | E71: 39 | F71: 0.2954545455 | G71: 39 | H71: 0.2954545455 | I71: 111 | J71: 0.8409090909 | K71: 112 | L71: 0.8484848485 | M71: 102 | N71: 0.7727272727 | O71: 114 | P71: 0.8636363636 | Q71: 115 | R71: 0.8712121212 | S71: 119 | T71: 0.9015151515 | U71: 134 | V71: 1.015151515 | W71: 128 | X71: 0.9696969697 | Y71: 96 | Z71: 0.7272727273 | AB71: 6 | AC71: 0.04545454545 | AE71: =cálculos1!O71 -> 2 | AF71: 0.2 | AG71: =cálculos1!P71 -> 1 | AH71: 0.25
A72: Metropolitana | B72: Serra | C72: 7327 | D72: 7327 | E72: 8759 | F72: 1.195441518 | G72: 8431 | H72: 1.150675583 | I72: 6180 | J72: 0.8434557118 | K72: 6136 | L72: 0.8374505255 | M72: 6490 | N72: 0.8857649788 | O72: 6308 | P72: 0.8609253446 | Q72: 6212 | R72: 0.84782312 | S72: 4656 | T72: 0.6354578955 | U72: 4345 | V72: 0.5930121469 | W72: 6111 | X72: 0.8340384878 | Y72: 3286 | Z72: 0.4484782312 | AB72: 170 | AC72: 0.02320185615 | AE72: =cálculos1!O72 -> 1 | AF72: 0.1 | AG72: =cálculos1!P72 -> 0 | AH72: 0
A73: Central | B73: Sooretama | C73: 448 | D73: 448 | E73: 36 | F73: 0.08035714286 | G73: 40 | H73: 0.08928571429 | I73: 421 | J73: 0.9397321429 | K73: 423 | L73: 0.9441964286 | M73: 422 | N73: 0.9419642857 | O73: 418 | P73: 0.9330357143 | Q73: 372 | R73: 0.8303571429 | S73: 356 | T73: 0.7946428571 | U73: 412 | V73: 0.9196428571 | W73: 410 | X73: 0.9151785714 | Y73: 246 | Z73: 0.5491071429 | AB73: 3 | AC73: 0.006696428571 | AE73: =cálculos1!O73 -> 1 | AF73: 0.1 | AG73: =cálculos1!P73 -> 0 | AH73: 0
A74: Sul | B74: Vargem Alta | C74: 233 | D74: 233 | E74: 10 | F74: 0.04291845494 | G74: 26 | H74: 0.1115879828 | I74: 238 | J74: 1.021459227 | K74: 238 | L74: 1.021459227 | M74: 237 | N74: 1.017167382 | O74: 246 | P74: 1.055793991 | Q74: 228 | R74: 0.9785407725 | S74: 215 | T74: 0.9227467811 | U74: 249 | V74: 1.068669528 | W74: 265 | X74: 1.137339056 | Y74: 180 | Z74: 0.7725321888 | AB74: 6 | AC74: 0.02575107296 | AE74: =cálculos1!O74 -> 7 | AF74: 0.7 | AG74: =cálculos1!P74 -> 4 | AH74: 1
A75: Metropolitana | B75: Venda Nova do Imigrante | C75: 345 | D75: 345 | E75: 260 | F75: 0.7536231884 | G75: 429 | H75: 1.243478261 | I75: 367 | J75: 1.063768116 | K75: 367 | L75: 1.063768116 | M75: 332 | N75: 0.9623188406 | O75: 326 | P75: 0.9449275362 | Q75: 349 | R75: 1.011594203 | S75: 361 | T75: 1.046376812 | U75: 349 | V75: 1.011594203 | W75: 442 | X75: 1.28115942 | Y75: 284 | Z75: 0.8231884058 | AB75: 21 | AC75: 0.06086956522 | AE75: =cálculos1!O75 -> 9 | AF75: 0.9 | AG75: =cálculos1!P75 -> 4 | AH75: 1
A76: Metropolitana | B76: Viana | C76: 906 | D76: 906 | E76: 183 | F76: 0.201986755 | G76: 173 | H76: 0.1909492274 | I76: 862 | J76: 0.9514348786 | K76: 848 | L76: 0.93598234 | M76: 917 | N76: 1.01214128 | O76: 882 | P76: 0.9735099338 | Q76: 899 | R76: 0.9922737307 | S76: 582 | T76: 0.642384106 | U76: 823 | V76: 0.908388521 | W76: 845 | X76: 0.9326710817 | Y76: 418 | Z76: 0.4613686534 | AB76: 29 | AC76: 0.03200883002 | AE76: =cálculos1!O76 -> 4 | AF76: 0.4 | AG76: =cálculos1!P76 -> 2 | AH76: 0.5
A77: Norte | B77: Vila Pavão | C77: 104 | D77: 104 | E77: 27 | F77: 0.2596153846 | G77: 55 | H77: 0.5288461538 | I77: 101 | J77: 0.9711538462 | K77: 99 | L77: 0.9519230769 | M77: 106 | N77: 1.019230769 | O77: 108 | P77: 1.038461538 | Q77: 104 | R77: 1 | S77: 100 | T77: 0.9615384615 | U77: 131 | V77: 1.259615385 | W77: 119 | X77: 1.144230769 | Y77: 79 | Z77: 0.7596153846 | AB77: 1 | AC77: 0.009615384615 | AE77: =cálculos1!O77 -> 8 | AF77: 0.8 | AG77: =cálculos1!P77 -> 4 | AH77: 1
A78: Central | B78: Vila Valério | C78: 237 | D78: 237 | E78: 28 | F78: 0.1181434599 | G78: 67 | H78: 0.2827004219 | I78: 235 | J78: 0.9915611814 | K78: 230 | L78: 0.970464135 | M78: 239 | N78: 1.008438819 | O78: 240 | P78: 1.012658228 | Q78: 242 | R78: 1.021097046 | S78: 199 | T78: 0.8396624473 | U78: 234 | V78: 0.9873417722 | W78: 250 | X78: 1.054852321 | Y78: 133 | Z78: 0.5611814346 | AB78: 2 | AC78: 0.008438818565 | AE78: =cálculos1!O78 -> 7 | AF78: 0.7 | AG78: =cálculos1!P78 -> 4 | AH78: 1
A79: Metropolitana | B79: Vila Velha | C79: 5438 | D79: 5438 | E79: 4223 | F79: 0.7765722692 | G79: 4143 | H79: 0.7618609783 | I79: 4525 | J79: 0.8321073924 | K79: 4531 | L79: 0.8332107392 | M79: 4919 | N79: 0.9045605002 | O79: 4798 | P79: 0.8823096727 | Q79: 4724 | R79: 0.8687017286 | S79: 3560 | T79: 0.6546524458 | U79: 4422 | V79: 0.8131666054 | W79: 4735 | X79: 0.8707245311 | Y79: 3080 | Z79: 0.5663847003 | AB79: 188 | AC79: 0.03457153365 | AE79: =cálculos1!O79 -> 0 | AF79: 0 | AG79: =cálculos1!P79 -> 0 | AH79: 0
A80: Metropolitana | B80: Vitória | C80: 3496 | D80: 3496 | E80: 6566 | F80: 1.878146453 | G80: 7232 | H80: 2.068649886 | I80: 4180 | J80: 1.195652174 | K80: 4180 | L80: 1.195652174 | M80: 4138 | N80: 1.183638444 | O80: 3869 | P80: 1.106693364 | Q80: 3958 | R80: 1.13215103 | S80: 2397 | T80: 0.6856407323 | U80: 3980 | V80: 1.138443936 | W80: 3814 | X80: 1.090961098 | Y80: 2859 | Z80: 0.817791762 | AB80: 278 | AC80: 0.0795194508 | AE80: =cálculos1!O80 -> 8 | AF80: 0.8 | AG80: =cálculos1!P80 -> 4 | AH80: 1
B82: Total Norte | C82: =SUMIF($A$3:$A$80,"Norte",C$3:C$80) -> 5620 | D82: =SUMIF($A$3:$A$80,"Norte",D$3:D$80) -> 5620 | E82: =SUMIF($A$3:$A$80,"Norte",E$3:E$80) -> 4595 | F82: =E82/D82 -> 0.8176156584 | G82: =SUMIF($A$3:$A$80,"Norte",G$3:G$80) -> 4539 | H82: =G82/D82 -> 0.8076512456 | I82: =SUMIF($A$3:$A$80,"Norte",I$3:I$80) -> 5475 | J82: =I82/D82 -> 0.9741992883 | K82: =SUMIF($A$3:$A$80,"Norte",K$3:K$80) -> 5428 | L82: =K82/D82 -> 0.9658362989 | M82: =SUMIF($A$3:$A$80,"Norte",M$3:M$80) -> 5545 | N82: =M82/D82 -> 0.9866548043 | O82: =SUMIF($A$3:$A$80,"Norte",O$3:O$80) -> 5386 | P82: =O82/D82 -> 0.9583629893 | Q82: =SUMIF($A$3:$A$80,"Norte",Q$3:Q$80) -> 5366 | R82: =Q82/D82 -> 0.9548042705 | S82: =SUMIF($A$3:$A$80,"Norte",S$3:S$80) -> 4448 | T82: =S82/D82 -> 0.7914590747 | U82: =SUMIF($A$3:$A$80,"Norte",U$3:U$80) -> 5015 | V82: =U82/D82 -> 0.8923487544 | W82: =SUMIF($A$3:$A$80,"Norte",W$3:W$80) -> 5468 | X82: =W82/D82 -> 0.9729537367 | Y82: =SUMIF($A$3:$A$80,"Norte",Y$3:Y$80) -> 3593 | Z82: =Y82/D82 -> 0.6393238434 | AB82: =SUMIF($A$3:$A$80,"Norte",AB$3:AB$80) -> 117 | AC82: =AB82/D82 -> 0.02081850534 | AE82: =cálculos1!O82 -> 6 | AF82: =AE82*0.1 -> 0.6 | AG82: =cálculos1!P82 -> 4 | AH82: 1
B83: Total Central | C83: =SUMIF($A$3:$A$80,"Central",C$3:C$80) -> 7008 | D83: =SUMIF($A$3:$A$80,"Central",D$3:D$80) -> 7008 | E83: =SUMIF($A$3:$A$80,"Central",E$3:E$80) -> 6792 | F83: =E83/D83 -> 0.9691780822 | G83: =SUMIF($A$3:$A$80,"Central",G$3:G$80) -> 6956 | H83: =G83/D83 -> 0.9925799087 | I83: =SUMIF($A$3:$A$80,"Central",I$3:I$80) -> 6572 | J83: =I83/D83 -> 0.9377853881 | K83: =SUMIF($A$3:$A$80,"Central",K$3:K$80) -> 6540 | L83: =K83/D83 -> 0.9332191781 | M83: =SUMIF($A$3:$A$80,"Central",M$3:M$80) -> 6796 | N83: =M83/D83 -> 0.9697488584 | O83: =SUMIF($A$3:$A$80,"Central",O$3:O$80) -> 6668 | P83: =O83/D83 -> 0.9514840183 | Q83: =SUMIF($A$3:$A$80,"Central",Q$3:Q$80) -> 6492 | R83: =Q83/D83 -> 0.926369863 | S83: =SUMIF($A$3:$A$80,"Central",S$3:S$80) -> 5458 | T83: =S83/D83 -> 0.7788242009 | U83: =SUMIF($A$3:$A$80,"Central",U$3:U$80) -> 6326 | V83: =U83/D83 -> 0.9026826484 | W83: =SUMIF($A$3:$A$80,"Central",W$3:W$80) -> 6667 | X83: =W83/D83 -> 0.9513413242 | Y83: =SUMIF($A$3:$A$80,"Central",Y$3:Y$80) -> 4627 | Z83: =Y83/D83 -> 0.6602454338 | AB83: =SUMIF($A$3:$A$80,"Central",AB$3:AB$80) -> 76 | AC83: =AB83/D83 -> 0.01084474886 | AE83: =cálculos1!O83 -> 4 | AF83: =AE83*0.1 -> 0.4 | AG83: =cálculos1!P83 -> 2 | AH83: 0.5
B84: Total Metropolitana | C84: =SUMIF($A$3:$A$80,"Metropolitana",C$3:C$80) -> 29031 | D84: =SUMIF($A$3:$A$80,"Metropolitana",D$3:D$80) -> 29031 | E84: =SUMIF($A$3:$A$80,"Metropolitana",E$3:E$80) -> 27003 | F84: =E84/D84 -> 0.9301436396 | G84: =SUMIF($A$3:$A$80,"Metropolitana",G$3:G$80) -> 27768 | H84: =G84/D84 -> 0.9564947814 | I84: =SUMIF($A$3:$A$80,"Metropolitana",I$3:I$80) -> 26538 | J84: =I84/D84 -> 0.9141262788 | K84: =SUMIF($A$3:$A$80,"Metropolitana",K$3:K$80) -> 26425 | L84: =K84/D84 -> 0.9102338879 | M84: =SUMIF($A$3:$A$80,"Metropolitana",M$3:M$80) -> 27672 | N84: =M84/D84 -> 0.9531879715 | O84: =SUMIF($A$3:$A$80,"Metropolitana",O$3:O$80) -> 26806 | P84: =O84/D84 -> 0.9233577899 | Q84: =SUMIF($A$3:$A$80,"Metropolitana",Q$3:Q$80) -> 26614 | R84: =Q84/D84 -> 0.91674417 | S84: =SUMIF($A$3:$A$80,"Metropolitana",S$3:S$80) -> 20014 | T84: =S84/D84 -> 0.6894009852 | U84: =SUMIF($A$3:$A$80,"Metropolitana",U$3:U$80) -> 23902 | V84: =U84/D84 -> 0.8233267886 | W84: =SUMIF($A$3:$A$80,"Metropolitana",W$3:W$80) -> 26712 | X84: =W84/D84 -> 0.9201198719 | Y84: =SUMIF($A$3:$A$80,"Metropolitana",Y$3:Y$80) -> 16719 | Z84: =Y84/D84 -> 0.5759016224 | AB84: =SUMIF($A$3:$A$80,"Metropolitana",AB$3:AB$80) -> 1043 | AC84: 0.0359271124 | AE84: =cálculos1!O84 -> 3 | AF84: 0.3 | AG84: =cálculos1!P84 -> 1 | AH84: 0.25
B85: Total Sul | C85: =SUMIF($A$3:$A$80,"sul",C$3:C$80) -> 7548 | D85: =SUMIF($A$3:$A$80,"sul",D$3:D$80) -> 7548 | E85: =SUMIF($A$3:$A$80,"Sul",E$3:E$80) -> 7651 | F85: =E85/D85 -> 1.013645999 | G85: =SUMIF($A$3:$A$80,"Sul",G$3:G$80) -> 7882 | H85: =G85/D85 -> 1.044250132 | I85: =SUMIF($A$3:$A$80,"Sul",I$3:I$80) -> 7965 | J85: =I85/D85 -> 1.055246423 | K85: =SUMIF($A$3:$A$80,"Sul",K$3:K$80) -> 7930 | L85: =K85/D85 -> 1.050609433 | M85: =SUMIF($A$3:$A$80,"Sul",M$3:M$80) -> 7987 | N85: =M85/D85 -> 1.058161102 | O85: =SUMIF($A$3:$A$80,"Sul",O$3:O$80) -> 7791 | P85: =O85/D85 -> 1.032193959 | Q85: =SUMIF($A$3:$A$80,"Sul",Q$3:Q$80) -> 7744 | R85: =Q85/D85 -> 1.025967144 | S85: =SUMIF($A$3:$A$80,"Sul",S$3:S$80) -> 6156 | T85: =S85/D85 -> 0.8155802862 | U85: =SUMIF($A$3:$A$80,"Sul",U$3:U$80) -> 7667 | V85: =U85/D85 -> 1.015765766 | W85: =SUMIF($A$3:$A$80,"Sul",W$3:W$80) -> 8111 | X85: =W85/D85 -> 1.074589295 | Y85: =SUMIF($A$3:$A$80,"Sul",Y$3:Y$80) -> 4890 | Z85: =Y85/D85 -> 0.6478537361 | AB85: =SUMIF($A$3:$A$80,"Sul",AB$3:AB$80) -> 232 | AC85: 0.03073661897 | AE85: =cálculos1!O85 -> 8 | AF85: 0.8 | AG85: =cálculos1!P85 -> 4 | AH85: 1
B86: Total Espírito Santo | C86: =SUM(C3:C80) -> 49207 | D86: =SUM(D3:D80) -> 49207 | E86: =SUM(E82:E85) -> 46041 | F86: =E86/D86 -> 0.9356595606 | G86: =SUM(G82:G85) -> 47145 | H86: =G86/D86 -> 0.9580953929 | I86: =SUM(I82:I85) -> 46550 | J86: =I86/D86 -> 0.9460036174 | K86: =SUM(K82:K85) -> 46323 | L86: =K86/D86 -> 0.9413904526 | M86: =SUM(M82:M85) -> 48000 | N86: =M86/D86 -> 0.9754709696 | O86: =SUM(O82:O85) -> 46651 | P86: =O86/D86 -> 0.9480561709 | Q86: =SUM(Q82:Q85) -> 46216 | R86: =Q86/D86 -> 0.9392159652 | S86: =SUM(S82:S85) -> 36076 | T86: =S86/D86 -> 0.7331477229 | U86: =SUM(U82:U85) -> 42910 | V86: =U86/D86 -> 0.8720304022 | W86: =SUM(W82:W85) -> 46958 | X86: =W86/D86 -> 0.9542951206 | Y86: =SUM(Y82:Y85) -> 29829 | Z86: =Y86/D86 -> 0.6061942407 | AB86: =SUM(AB82:AB85) -> 1468 | AC86: 0.02983315382 | AE86: =cálculos1!O86 -> 4 | AF86: 0.4 | AG86: =cálculos1!P86 -> 2 | AH86: 0.5
E87: =COUNTIF(F3:F80,">=0,95") -> 9 | G87: =COUNTIF(H3:H80,">=0,9") -> 10 | I87: =COUNTIF(J3:J80,">=0,95") -> 54 | K87: =COUNTIF(L3:L80,">=0,95") -> 50 | M87: =COUNTIF(N3:N80,">=0,95") -> 58 | O87: =COUNTIF(P3:P80,">=0,9") -> 62 | Q87: =COUNTIF(R3:R80,">=0,95") -> 49 | S87: =COUNTIF(T3:T80,">=0,95") -> 22 | U87: =COUNTIF(V3:V80,">=0,95") -> 45 | W87: =COUNTIF(X3:X80,">=0,95") -> 60 | Y87: =COUNTIF(Z3:Z80,">=0,95") -> 4 | AB87: =COUNTIF(AC3:AC80,">=0,9") -> 0
B88: HOMOGENEIDADE ENTRE MUNICÍPIOS | E88: =E87/78 -> 0.1153846154 | G88: =G87/78 -> 0.1282051282 | I88: =I87/78 -> 0.6923076923 | K88: =K87/78 -> 0.641025641 | M88: =M87/78 -> 0.7435897436 | O88: =O87/78 -> 0.7948717949 | Q88: =Q87/78 -> 0.6282051282 | S88: =S87/78 -> 0.2820512821 | U88: =U87/78 -> 0.5769230769 | W88: =W87/78 -> 0.7692307692 | Y88: =Y87/78 -> 0.05128205128 | AB88: =AB87/78 -> 0
A90: Fonte: Vacina e Confia, em 10, 11 e 14 abril de 2025.**
A91: **Dados referente às doses aplicadas no período de Janeiro a Dezembro de 2024
A92: Cobertura Calculada por município de procedência/ocorrência da vacinação
A93: 1 População anual extraída do MS/SVS/DASIS - SINASC/DASIS/SVS/MS 2024 referente ao período de janeiro a Dezembro de 2024.
A94: ² População proporcional extraída do MS/SVS/DASIS - SINASC/DASIS/SVS/MS 2024 referente ao período de janeiro e Dezembro de 2024.
A95: Sinasc, atualizado em 09 de Abril de 2025.
A96: Homogeineidade: O cálculo da Homogeineidade entre vacinas é feito de acordo com a pactuação estabelecida no Plano Plurianual (PPA) vigente no período 2024-2027.
A97: Observações:
A98: Imunobiológicos que foram recebidos parcialmente pelo estado no mês da análise, sendo distribuídos em quantidades reduzidas às regionais e municípios: Soro Antirábico Humano, Vacina tríplice viral, Vacina COVID-19Monovalente (XBB)-Frasco, Vacina tetraviral, Imunoglobulina Antirrábica Humana, Vacina Tríplice Bacteriana (DTP), Febre Amarela
A99: Imunobiológicos indisponíveis no mês da análise, não sendo possível a distribuição às regionais e municípios: Vacina contra varicela, vacina tríplice acelular (DTPa) - CRIE, vacina COVID-19 MONOVALENTE (XBB) -SERINGA

Sheet CV Rotina <2A - residência
E1: AO NASCER | I1: MENOR DE 1 ANO | U1: 1 ANO | AB1: MENOR DE 1 ANO
A2: Regional | B2: Município | C2: ¹População < 1 ano e 1 ano anual | D2: ²População < 1 ano e 1 ano proporcional | E2: Doses Aplicadas HB < 30 dias | F2: Cobertura Vacinal HB até 30 dias | G2: Doses Aplicadas BCG | H2: Cobertura Vacinal BCG | I2: Doses Aplicadas Pentavalente | J2: Cobertura Vacinal Pentavalente | K2: Doses Aplicadas Poliomielite | L2: Cobertura Vacinal Poliomielite | M2: Doses Aplicadas Pneumo 10 | N2: Cobertura Vacinal Pneumo 10 | O2: Doses Aplicadas Rotavírus | P2: Cobertura Vacinal Rotavírus | Q2: Doses Aplicadas Meningo C | R2: Cobertura Vacinal Meningo C | S2: Doses Aplicadas Febre Amarela | T2: Cobertura Vacinal Febre Amarela | U2: Doses Aplicadas Hepatite A | V2: Cobertura Vacinal Hepatite A | W2: Doses Aplicadas de Tríplice Viral | X2: Cobertura Vacinal Tríplice Viral | Y2: Doses Aplicadas Varicela | Z2: Cobertura Varicela | AB2: Doses Aplicadas COVID-19 | AC2: Cobertura Vacinal COVID-19 | AE2: VACINAS QUE ATINGIRAM A META DE CV | AF2: HOMOGENEIDADE ENTRE AS 10 VACINAS | AG2: VACINAS DO PQA-VS QUE ATINGIRAM A META DE CV | AH2: HOMOGENEIDADE ENTRE AS VACINAS DO PQA-VS
A3: Metropolitana | B3: Afonso Cláudio | C3: 357 | D3: 357 | E3: 336 | F3: =E3/D3 -> 0.9411764706 | G3: 344 | H3: =G3/D3 -> 0.9635854342 | I3: 370 | J3: =I3/D3 -> 1.036414566 | K3: 368 | L3: =K3/D3 -> 1.030812325 | M3: 371 | N3: =M3/D3 -> 1.039215686 | O3: 363 | P3: =O3/D3 -> 1.016806723 | Q3: 361 | R3: =Q3/D3 -> 1.011204482 | S3: 355 | T3: =S3/D3 -> 0.9943977591 | U3: 385 | V3: =U3/D3 -> 1.078431373 | W3: 401 | X3: =W3/D3 -> 1.1232493 | Y3: 261 | Z3: =Y3/D3 -> 0.731092437 | AB3: 3 | AC3: =AB3/D3 -> 0.008403361345 | AE3: =cálculos2!O3 -> 9 | AF3: =AE3*0.1 -> 0.9 | AG3: =cálculos2!P3 -> 4 | AH3: =AG3*0.25 -> 1 | AJ3: LEGENDA / HOMOGENEIDADE PQA-VS
A4: Norte | B4: Água Doce do Norte | C4: 146 | D4: 146 | E4: 175 | F4: 1.198630137 | G4: 178 | H4: =G4/D4 -> 1.219178082 | I4: 178 | J4: 1.219178082 | K4: 175 | L4: 1.198630137 | M4: 185 | N4: 1.267123288 | O4: 181 | P4: 1.239726027 | Q4: 168 | R4: 1.150684932 | S4: 123 | T4: 0.8424657534 | U4: 139 | V4: 0.9520547945 | W4: 145 | X4: 0.9931506849 | Y4: 78 | Z4: 0.5342465753 | AB4: 2 | AC4: =AB4/D4 -> 0.01369863014 | AE4: =cálculos2!O4 -> 8 | AF4: =AE4*0.1 -> 0.8 | AG4: =cálculos2!P4 -> 4 | AH4: =AG4*0.25 -> 1 | AJ4: PERCENTUAL | AK4: Nº DE MUNICÍPIOS
A5: Central | B5: Águia Branca | C5: 193 | D5: 193 | E5: 146 | F5: 0.7564766839 | G5: 151 | H5: 0.7823834197 | I5: 165 | J5: 0.8549222798 | K5: 164 | L5: 0.8497409326 | M5: 169 | N5: 0.8756476684 | O5: 167 | P5: 0.8652849741 | Q5: 164 | R5: 0.8497409326 | S5: 135 | T5: 0.6994818653 | U5: 138 | V5: 0.7150259067 | W5: 150 | X5: 0.7772020725 | Y5: 87 | Z5: 0.4507772021 | AB5: 0 | AC5: 0 | AE5: =cálculos2!O5 -> 0 | AF5: 0 | AG5: =cálculos2!P5 -> 0 | AH5: 0 | AJ5: 0 | AK5: =COUNTIF($AH$3:$AH$80,"=0") -> 13
A6: Sul | B6: Alegre | C6: 278 | D6: 278 | E6: 286 | F6: 1.028776978 | G6: 288 | H6: 1.035971223 | I6: 326 | J6: 1.172661871 | K6: 325 | L6: 1.169064748 | M6: 316 | N6: 1.136690647 | O6: 308 | P6: 1.107913669 | Q6: 308 | R6: 1.107913669 | S6: 299 | T6: 1.075539568 | U6: 287 | V6: 1.032374101 | W6: 310 | X6: 1.115107914 | Y6: 158 | Z6: 0.5683453237 | AB6: 19 | AC6: 0.06834532374 | AE6: =cálculos2!O6 -> 9 | AF6: 0.9 | AG6: =cálculos2!P6 -> 4 | AH6: 1 | AJ6: 0.25 | AK6: =COUNTIF($AH$3:$AH$80,"=0,25") -> 4
A7: Sul | B7: Alfredo Chaves | C7: 119 | D7: 119 | E7: 92 | F7: 0.7731092437 | G7: 111 | H7: 0.9327731092 | I7: 139 | J7: 1.168067227 | K7: 137 | L7: 1.151260504 | M7: 144 | N7: 1.210084034 | O7: 145 | P7: 1.218487395 | Q7: 141 | R7: 1.18487395 | S7: 131 | T7: 1.100840336 | U7: 136 | V7: 1.142857143 | W7: 140 | X7: 1.176470588 | Y7: 110 | Z7: 0.9243697479 | AB7: 3 | AC7: 0.02521008403 | AE7: =cálculos2!O7 -> 9 | AF7: 0.9 | AG7: =cálculos2!P7 -> 4 | AH7: 1 | AJ7: 0.5 | AK7: =COUNTIF($AH$3:$AH$80,"=0,5") -> 3
A8: Central | B8: Alto Rio Novo | C8: 89 | D8: 89 | E8: 79 | F8: 0.8876404494 | G8: 87 | H8: 0.9775280899 | I8: 91 | J8: 1.02247191 | K8: 90 | L8: 1.011235955 | M8: 90 | N8: 1.011235955 | O8: 90 | P8: 1.011235955 | Q8: 89 | R8: 1 | S8: 75 | T8: 0.8426966292 | U8: 85 | V8: 0.9550561798 | W8: 89 | X8: 1 | Y8: 59 | Z8: 0.6629213483 | AB8: 0 | AC8: 0 | AE8: =cálculos2!O8 -> 8 | AF8: 0.8 | AG8: =cálculos2!P8 -> 4 | AH8: 1 | AJ8: 0.75 | AK8: =COUNTIF($AH$3:$AH$80,"=0,75") -> 8
A9: Sul | B9: Anchieta | C9: 338 | D9: 338 | E9: 339 | F9: 1.00295858 | G9: 361 | H9: 1.068047337 | I9: 390 | J9: 1.153846154 | K9: 394 | L9: 1.165680473 | M9: 388 | N9: 1.147928994 | O9: 378 | P9: 1.118343195 | Q9: 385 | R9: 1.139053254 | S9: 296 | T9: 0.875739645 | U9: 405 | V9: 1.198224852 | W9: 408 | X9: 1.207100592 | Y9: 262 | Z9: 0.775147929 | AB9: 14 | AC9: 0.04142011834 | AE9: =cálculos2!O9 -> 8 | AF9: 0.8 | AG9: =cálculos2!P9 -> 4 | AH9: 1 | AJ9: 1 | AK9: =COUNTIF($AH$3:$AH$80,"=1,0") -> 50
A10: Sul | B10: Apiacá | C10: 74 | D10: 74 | E10: 37 | F10: 0.5 | G10: 68 | H10: 0.9189189189 | I10: 67 | J10: 0.9054054054 | K10: 67 | L10: 0.9054054054 | M10: 69 | N10: 0.9324324324 | O10: 69 | P10: 0.9324324324 | Q10: 69 | R10: 0.9324324324 | S10: 60 | T10: 0.8108108108 | U10: 63 | V10: 0.8513513514 | W10: 66 | X10: 0.8918918919 | Y10: 22 | Z10: 0.2972972973 | AB10: 0 | AC10: 0 | AE10: =cálculos2!O10 -> 2 | AF10: 0.2 | AG10: =cálculos2!P10 -> 0 | AH10: 0
A11: Metropolitana | B11: Aracruz | C11: 1365 | D11: 1365 | E11: 1324 | F11: 0.96996337 | G11: 1326 | H11: 0.9714285714 | I11: 1353 | J11: 0.9912087912 | K11: 1349 | L11: 0.9882783883 | M11: 1393 | N11: 1.020512821 | O11: 1360 | P11: 0.9963369963 | Q11: 1351 | R11: 0.9897435897 | S11: 1091 | T11: 0.7992673993 | U11: 1400 | V11: 1.025641026 | W11: 1406 | X11: 1.03003663 | Y11: 856 | Z11: 0.6271062271 | AB11: 72 | AC11: 0.05274725275 | AE11: =cálculos2!O11 -> 8 | AF11: 0.8 | AG11: =cálculos2!P11 -> 4 | AH11: 1
A12: Sul | B12: Atilio Vivacqua | C12: 140 | D12: 140 | E12: 155 | F12: 1.107142857 | G12: 151 | H12: 1.078571429 | I12: 142 | J12: 1.014285714 | K12: 142 | L12: 1.014285714 | M12: 149 | N12: 1.064285714 | O12: 146 | P12: 1.042857143 | Q12: 140 | R12: 1 | S12: 107 | T12: 0.7642857143 | U12: 151 | V12: 1.078571429 | W12: 148 | X12: 1.057142857 | Y12: 89 | Z12: 0.6357142857 | AB12: 4 | AC12: 0.02857142857 | AE12: =cálculos2!O12 -> 8 | AF12: 0.8 | AG12: =cálculos2!P12 -> 4 | AH12: 1 | AJ12: LEGENDA / HOMOGENEIDADE 10 VACINAS
A13: Central | B13: Baixo Guandu | C13: 345 | D13: 345 | E13: 274 | F13: 0.7942028986 | G13: 345 | H13: 1 | I13: 387 | J13: 1.12173913 | K13: 389 | L13: 1.127536232 | M13: 387 | N13: 1.12173913 | O13: 378 | P13: 1.095652174 | Q13: 385 | R13: 1.115942029 | S13: 298 | T13: 0.8637681159 | U13: 359 | V13: 1.04057971 | W13: 363 | X13: 1.052173913 | Y13: 249 | Z13: 0.7217391304 | AB13: 2 | AC13: 0.005797101449 | AE13: =cálculos2!O13 -> 8 | AF13: 0.8 | AG13: =cálculos2!P13 -> 4 | AH13: 1 | AJ13: PERCENTUAL | AK13: Nº DE MUNICÍPIOS
A14: Norte | B14: Barra de São Francisco | C14: 584 | D14: 584 | E14: 537 | F14: 0.9195205479 | G14: 548 | H14: 0.9383561644 | I14: 516 | J14: 0.8835616438 | K14: 505 | L14: 0.8647260274 | M14: 551 | N14: 0.9434931507 | O14: 528 | P14: 0.904109589 | Q14: 542 | R14: 0.9280821918 | S14: 450 | T14: 0.7705479452 | U14: 503 | V14: 0.8613013699 | W14: 538 | X14: 0.9212328767 | Y14: 382 | Z14: 0.654109589 | AB14: 3 | AC14: 0.005136986301 | AE14: =cálculos2!O14 -> 2 | AF14: 0.2 | AG14: =cálculos2!P14 -> 0 | AH14: 0 | AJ14: 0 | AK14: =COUNTIF($AF$3:$AF$80,"=0") -> 4
A15: Norte | B15: Boa Esperança | C15: 204 | D15: 204 | E15: 174 | F15: 0.8529411765 | G15: 172 | H15: 0.8431372549 | I15: 193 | J15: 0.9460784314 | K15: 198 | L15: 0.9705882353 | M15: 215 | N15: 1.053921569 | O15: 213 | P15: 1.044117647 | Q15: 199 | R15: 0.9754901961 | S15: 164 | T15: 0.8039215686 | U15: 171 | V15: 0.8382352941 | W15: 197 | X15: 0.9656862745 | Y15: 141 | Z15: 0.6911764706 | AB15: 4 | AC15: 0.01960784314 | AE15: =cálculos2!O15 -> 5 | AF15: 0.5 | AG15: =cálculos2!P15 -> 3 | AH15: 0.75 | AJ15: 0.1 | AK15: =COUNTIFS($AF$3:$AF$80,">=0,10",$AF$3:$AF$80,"<0,20") -> 6
A16: Sul | B16: Bom Jesus do Norte | C16: 78 | D16: 78 | E16: 39 | F16: 0.5 | G16: 75 | H16: 0.9615384615 | I16: 105 | J16: 1.346153846 | K16: 104 | L16: 1.333333333 | M16: 98 | N16: 1.256410256 | O16: 96 | P16: 1.230769231 | Q16: 101 | R16: 1.294871795 | S16: 80 | T16: 1.025641026 | U16: 76 | V16: 0.9743589744 | W16: 105 | X16: 1.346153846 | Y16: 44 | Z16: 0.5641025641 | AB16: 14 | AC16: 0.1794871795 | AE16: =cálculos2!O16 -> 9 | AF16: 0.9 | AG16: =cálculos2!P16 -> 4 | AH16: 1 | AJ16: 0.2 | AK16: =COUNTIFS($AF$3:$AF$80,">=0,20",$AF$3:$AF$80,"<0,30") -> 3
A17: Metropolitana | B17: Brejetuba | C17: 209 | D17: 209 | E17: 106 | F17: 0.5071770335 | G17: 198 | H17: 0.9473684211 | I17: 202 | J17: 0.966507177 | K17: 202 | L17: 0.966507177 | M17: 192 | N17: 0.9186602871 | O17: 198 | P17: 0.9473684211 | Q17: 191 | R17: 0.9138755981 | S17: 203 | T17: 0.971291866 | U17: 188 | V17: 0.8995215311 | W17: 189 | X17: 0.9043062201 | Y17: 115 | Z17: 0.5502392344 | AB17: 1 | AC17: 0.004784688995 | AE17: =cálculos2!O17 -> 5 | AF17: 0.5 | AG17: =cálculos2!P17 -> 2 | AH17: 0.5 | AJ17: 0.3 | AK17: =COUNTIFS($AF$3:$AF$80,">=0,30",$AF$3:$AF$80,"<0,40") -> 3
A18: Sul | B18: Cachoeiro de Itapemirim | C18: 2142 | D18: 2142 | E18: 2721 | F18: 1.270308123 | G18: 2707 | H18: 1.263772176 | I18: 2253 | J18: 1.051820728 | K18: 2226 | L18: 1.039215686 | M18: 2275 | N18: 1.062091503 | O18: 2228 | P18: 1.040149393 | Q18: 2185 | R18: 1.020074697 | S18: 1598 | T18: 0.746031746 | U18: 2135 | V18: 0.9967320261 | W18: 2191 | X18: 1.022875817 | Y18: 1290 | Z18: 0.6022408964 | AB18: 29 | AC18: 0.01353874883 | AE18: =cálculos2!O18 -> 8 | AF18: 0.8 | AG18: =cálculos2!P18 -> 4 | AH18: 1 | AJ18: 0.4 | AK18: =COUNTIFS($AF$3:$AF$80,">=0,40",$AF$3:$AF$80,"<0,50") -> 2
A19: Metropolitana | B19: Cariacica | C19: 4758 | D19: 4758 | E19: 4361 | F19: 0.9165615805 | G19: 4399 | H19: 0.9245481295 | I19: 4260 | J19: 0.895334174 | K19: 4231 | L19: 0.8892391761 | M19: 4489 | N19: 0.9434636402 | O19: 4286 | P19: 0.9007986549 | Q19: 4232 | R19: 0.8894493485 | S19: 3154 | T19: 0.6628835645 | U19: 3704 | V19: 0.7784783522 | W19: 4258 | X19: 0.8949138293 | Y19: 2564 | Z19: 0.5388818831 | AB19: 156 | AC19: 0.03278688525 | AE19: =cálculos2!O19 -> 2 | AF19: 0.2 | AG19: =cálculos2!P19 -> 0 | AH19: 0 | AJ19: 0.5 | AK19: =COUNTIFS($AF$3:$AF$80,">=0,50",$AF$3:$AF$80,"<0,60") -> 6
A20: Sul | B20: Castelo | C20: 390 | D20: 390 | E20: 347 | F20: 0.8897435897 | G20: 356 | H20: 0.9128205128 | I20: 427 | J20: 1.094871795 | K20: 429 | L20: 1.1 | M20: 424 | N20: 1.087179487 | O20: 416 | P20: 1.066666667 | Q20: 405 | R20: 1.038461538 | S20: 370 | T20: 0.9487179487 | U20: 392 | V20: 1.005128205 | W20: 433 | X20: 1.11025641 | Y20: 294 | Z20: 0.7538461538 | AB20: 12 | AC20: 0.03076923077 | AE20: =cálculos2!O20 -> 8 | AF20: 0.8 | AG20: =cálculos2!P20 -> 4 | AH20: 1 | AJ20: 0.6 | AK20: =COUNTIFS($AF$3:$AF$80,">=0,60",$AF$3:$AF$80,"<0,70") -> 7
A21: Central | B21: Colatina | C21: 1503 | D21: 1503 | E21: 1490 | F21: 0.9913506321 | G21: 1501 | H21: 0.998669328 | I21: 1432 | J21: 0.9527611444 | K21: 1416 | L21: 0.9421157685 | M21: 1466 | N21: 0.9753825682 | O21: 1444 | P21: 0.9607451763 | Q21: 1371 | R21: 0.9121756487 | S21: 1175 | T21: 0.7817697937 | U21: 1328 | V21: 0.8835662009 | W21: 1491 | X21: 0.9920159681 | Y21: 1076 | Z21: 0.7159015303 | AB21: 21 | AC21: 0.01397205589 | AE21: =cálculos2!O21 -> 5 | AF21: 0.5 | AG21: =cálculos2!P21 -> 3 | AH21: 0.75 | AJ21: 0.7 | AK21: =COUNTIFS($AF$3:$AF$80,">=0,70",$AF$3:$AF$80,"<0,80") -> 10
A22: Norte | B22: Conceição da Barra | C22: 357 | D22: 357 | E22: 274 | F22: 0.7675070028 | G22: 283 | H22: 0.7927170868 | I22: 392 | J22: 1.098039216 | K22: 395 | L22: 1.106442577 | M22: 413 | N22: 1.156862745 | O22: 401 | P22: 1.1232493 | Q22: 400 | R22: 1.120448179 | S22: 344 | T22: 0.9635854342 | U22: 353 | V22: 0.9887955182 | W22: 375 | X22: 1.050420168 | Y22: 288 | Z22: 0.8067226891 | AB22: 3 | AC22: 0.008403361345 | AE22: =cálculos2!O22 -> 8 | AF22: 0.8 | AG22: =cálculos2!P22 -> 4 | AH22: 1 | AJ22: 0.8 | AK22: =COUNTIFS($AF$3:$AF$80,">=0,80",$AF$3:$AF$80,"<0,90") -> 25
A23: Metropolitana | B23: Conceição do Castelo | C23: 171 | D23: 171 | E23: 77 | F23: 0.4502923977 | G23: 147 | H23: 0.8596491228 | I23: 119 | J23: 0.6959064327 | K23: 116 | L23: 0.6783625731 | M23: 120 | N23: 0.701754386 | O23: 119 | P23: 0.6959064327 | Q23: 121 | R23: 0.7076023392 | S23: 105 | T23: 0.6140350877 | U23: 136 | V23: 0.7953216374 | W23: 135 | X23: 0.7894736842 | Y23: 90 | Z23: 0.5263157895 | AB23: 0 | AC23: 0 | AE23: =cálculos2!O23 -> 0 | AF23: 0 | AG23: =cálculos2!P23 -> 0 | AH23: 0 | AJ23: 0.9 | AK23: =COUNTIFS($AF$3:$AF$80,">=0,90",$AF$3:$AF$80,"<1,0") -> 9
A24: Sul | B24: Divino de São Lourenço | C24: 57 | D24: 57 | E24: 55 | F24: 0.9649122807 | G24: 58 | H24: 1.01754386 | I24: 82 | J24: 1.438596491 | K24: 82 | L24: 1.438596491 | M24: 77 | N24: 1.350877193 | O24: 76 | P24: 1.333333333 | Q24: 79 | R24: 1.385964912 | S24: 58 | T24: 1.01754386 | U24: 50 | V24: 0.8771929825 | W24: 60 | X24: 1.052631579 | Y24: 38 | Z24: 0.6666666667 | AB24: 2 | AC24: 0.0350877193 | AE24: =cálculos2!O24 -> 8 | AF24: 0.8 | AG24: =cálculos2!P24 -> 4 | AH24: 1 | AJ24: 1 | AK24: =COUNTIF($AF$3:$AF$80,">=1,0") -> 3
A25: Metropolitana | B25: Domingos Martins | C25: 424 | D25: 424 | E25: 345 | F25: 0.8136792453 | G25: 399 | H25: 0.9410377358 | I25: 389 | J25: 0.9174528302 | K25: 390 | L25: 0.9198113208 | M25: 424 | N25: 1 | O25: 420 | P25: 0.9905660377 | Q25: 403 | R25: 0.9504716981 | S25: 336 | T25: 0.7924528302 | U25: 385 | V25: 0.9080188679 | W25: 389 | X25: 0.9174528302 | Y25: 315 | Z25: 0.7429245283 | AB25: 22 | AC25: 0.05188679245 | AE25: =cálculos2!O25 -> 4 | AF25: 0.4 | AG25: =cálculos2!P25 -> 1 | AH25: 0.25
A26: Sul | B26: Dores do Rio Preto | C26: 94 | D26: 94 | E26: 58 | F26: 0.6170212766 | G26: 67 | H26: 0.7127659574 | I26: 87 | J26: 0.9255319149 | K26: 90 | L26: 0.9574468085 | M26: 101 | N26: 1.074468085 | O26: 97 | P26: 1.031914894 | Q26: 96 | R26: 1.021276596 | S26: 70 | T26: 0.7446808511 | U26: 84 | V26: 0.8936170213 | W26: 84 | X26: 0.8936170213 | Y26: 47 | Z26: 0.5 | AB26: 5 | AC26: 0.05319148936 | AE26: =cálculos2!O26 -> 4 | AF26: 0.4 | AG26: =cálculos2!P26 -> 2 | AH26: 0.5
A27: Norte | B27: Ecoporanga | C27: 261 | D27: 261 | E27: 274 | F27: 1.049808429 | G27: 279 | H27: 1.068965517 | I27: 264 | J27: 1.011494253 | K27: 263 | L27: 1.007662835 | M27: 272 | N27: 1.042145594 | O27: 261 | P27: 1 | Q27: 267 | R27: 1.022988506 | S27: 221 | T27: 0.846743295 | U27: 261 | V27: 1 | W27: 248 | X27: 0.9501915709 | Y27: 202 | Z27: 0.7739463602 | AB27: 1 | AC27: 0.003831417625 | AE27: =cálculos2!O27 -> 8 | AF27: 0.8 | AG27: =cálculos2!P27 -> 4 | AH27: 1
A28: Metropolitana | B28: Fundão | C28: 223 | D28: 223 | E28: 212 | F28: 0.9506726457 | G28: 204 | H28: 0.9147982063 | I28: 223 | J28: 1 | K28: 221 | L28: 0.9910313901 | M28: 215 | N28: 0.9641255605 | O28: 216 | P28: 0.9686098655 | Q28: 208 | R28: 0.932735426 | S28: 169 | T28: 0.7578475336 | U28: 226 | V28: 1.013452915 | W28: 198 | X28: 0.8878923767 | Y28: 174 | Z28: 0.7802690583 | AB28: 4 | AC28: 0.01793721973 | AE28: =cálculos2!O28 -> 6 | AF28: 0.6 | AG28: =cálculos2!P28 -> 3 | AH28: 0.75
A29: Central | B29: Governador Lindenberg | C29: 117 | D29: 117 | E29: 106 | F29: 0.905982906 | G29: 105 | H29: 0.8974358974 | I29: 116 | J29: 0.9914529915 | K29: 114 | L29: 0.9743589744 | M29: 122 | N29: 1.042735043 | O29: 121 | P29: 1.034188034 | Q29: 120 | R29: 1.025641026 | S29: 123 | T29: 1.051282051 | U29: 141 | V29: 1.205128205 | W29: 137 | X29: 1.170940171 | Y29: 97 | Z29: 0.8290598291 | AB29: 2 | AC29: 0.01709401709 | AE29: =cálculos2!O29 -> 8 | AF29: 0.8 | AG29: =cálculos2!P29 -> 4 | AH29: 1
A30: Sul | B30: Guaçuí | C30: 383 | D30: 383 | E30: 314 | F30: 0.819843342 | G30: 336 | H30: 0.8772845953 | I30: 390 | J30: 1.018276762 | K30: 385 | L30: 1.005221932 | M30: 369 | N30: 0.9634464752 | O30: 348 | P30: 0.908616188 | Q30: 358 | R30: 0.9347258486 | S30: 295 | T30: 0.7702349869 | U30: 390 | V30: 1.018276762 | W30: 313 | X30: 0.817232376 | Y30: 223 | Z30: 0.5822454308 | AB30: 12 | AC30: 0.03133159269 | AE30: =cálculos2!O30 -> 5 | AF30: 0.5 | AG30: =cálculos2!P30 -> 3 | AH30: 0.75
A31: Metropolitana | B31: Guarapari | C31: 1709 | D31: 1709 | E31: 1570 | F31: 0.9186658865 | G31: 1636 | H31: 0.957284962 | I31: 1455 | J31: 0.8513750731 | K31: 1433 | L31: 0.838502048 | M31: 1591 | N31: 0.9309537741 | O31: 1531 | P31: 0.8958455237 | Q31: 1496 | R31: 0.8753657109 | S31: 1027 | T31: 0.60093622 | U31: 1355 | V31: 0.7928613224 | W31: 1423 | X31: 0.8326506729 | Y31: 979 | Z31: 0.5728496197 | AB31: 29 | AC31: 0.01696898771 | AE31: =cálculos2!O31 -> 1 | AF31: 0.1 | AG31: =cálculos2!P31 -> 0 | AH31: 0
A32: Metropolitana | B32: Ibatiba | C32: 380 | D32: 380 | E32: 272 | F32: 0.7157894737 | G32: 379 | H32: 0.9973684211 | I32: 368 | J32: 0.9684210526 | K32: 366 | L32: 0.9631578947 | M32: 379 | N32: 0.9973684211 | O32: 368 | P32: 0.9684210526 | Q32: 369 | R32: 0.9710526316 | S32: 323 | T32: 0.85 | U32: 357 | V32: 0.9394736842 | W32: 361 | X32: 0.95 | Y32: 106 | Z32: 0.2789473684 | AB32: 14 | AC32: 0.03684210526 | AE32: =cálculos2!O32 -> 7 | AF32: 0.7 | AG32: =cálculos2!P32 -> 4 | AH32: 1
A33: Metropolitana | B33: Ibiraçu | C33: 158 | D33: 158 | E33: 144 | F33: 0.9113924051 | G33: 142 | H33: 0.8987341772 | I33: 137 | J33: 0.8670886076 | K33: 136 | L33: 0.8607594937 | M33: 139 | N33: 0.8797468354 | O33: 137 | P33: 0.8670886076 | Q33: 136 | R33: 0.8607594937 | S33: 119 | T33: 0.753164557 | U33: 120 | V33: 0.7594936709 | W33: 128 | X33: 0.8101265823 | Y33: 93 | Z33: 0.5886075949 | AB33: 7 | AC33: 0.04430379747 | AE33: =cálculos2!O33 -> 0 | AF33: 0 | AG33: =cálculos2!P33 -> 0 | AH33: 0
A34: Sul | B34: Ibitirama | C34: 144 | D34: 144 | E34: 113 | F34: 0.7847222222 | G34: 148 | H34: 1.027777778 | I34: 138 | J34: 0.9583333333 | K34: 140 | L34: 0.9722222222 | M34: 141 | N34: 0.9791666667 | O34: 140 | P34: 0.9722222222 | Q34: 114 | R34: 0.7916666667 | S34: 109 | T34: 0.7569444444 | U34: 132 | V34: 0.9166666667 | W34: 139 | X34: 0.9652777778 | Y34: 83 | Z34: 0.5763888889 | AB34: 11 | AC34: 0.07638888889 | AE34: =cálculos2!O34 -> 6 | AF34: 0.6 | AG34: =cálculos2!P34 -> 4 | AH34: 1
A35: Sul | B35: Iconha | C35: 112 | D35: 112 | E35: 97 | F35: =E35/D35 -> 0.8660714286 | G35: 92 | H35: 0.8214285714 | I35: 111 | J35: =I35/D35 -> 0.9910714286 | K35: 107 | L35: =K35/D35 -> 0.9553571429 | M35: 111 | N35: =M35/D35 -> 0.9910714286 | O35: 112 | P35: =O35/D35 -> 1 | Q35: 102 | R35: =Q35/D35 -> 0.9107142857 | S35: 108 | T35: =S35/D35 -> 0.9642857143 | U35: 137 | V35: =U35/D35 -> 1.223214286 | W35: 139 | X35: =W35/D35 -> 1.241071429 | Y35: 93 | Z35: =Y35/D35 -> 0.8303571429 | AB35: 3 | AC35: 0.02678571429 | AE35: =cálculos2!O35 -> 7 | AF35: 0.7 | AG35: =cálculos2!P35 -> 4 | AH35: 1
A36: Sul | B36: Irupi | C36: 174 | D36: 174 | E36: 131 | F36: 0.7528735632 | G36: 148 | H36: 0.8505747126 | I36: 198 | J36: 1.137931034 | K36: 194 | L36: 1.114942529 | M36: 206 | N36: 1.183908046 | O36: 206 | P36: 1.183908046 | Q36: 203 | R36: 1.166666667 | S36: 166 | T36: 0.9540229885 | U36: 195 | V36: 1.120689655 | W36: 212 | X36: 1.218390805 | Y36: 89 | Z36: 0.5114942529 | AB36: 26 | AC36: 0.1494252874 | AE36: =cálculos2!O36 -> 8 | AF36: 0.8 | AG36: =cálculos2!P36 -> 4 | AH36: 1
A37: Metropolitana | B37: Itaguaçu | C37: 131 | D37: 131 | E37: 131 | F37: 1 | G37: 137 | H37: 1.045801527 | I37: 144 | J37: 1.099236641 | K37: 143 | L37: 1.091603053 | M37: 144 | N37: 1.099236641 | O37: 144 | P37: 1.099236641 | Q37: 147 | R37: 1.122137405 | S37: 128 | T37: 0.9770992366 | U37: 151 | V37: 1.152671756 | W37: 142 | X37: 1.083969466 | Y37: 127 | Z37: 0.9694656489 | AB37: 5 | AC37: 0.03816793893 | AE37: =cálculos2!O37 -> 10 | AF37: 1 | AG37: =cálculos2!P37 -> 4 | AH37: 1
A38: Sul | B38: Itapemirim | C38: 474 | D38: 474 | E38: 467 | F38: 0.9852320675 | G38: 451 | H38: 0.9514767932 | I38: 454 | J38: 0.9578059072 | K38: 454 | L38: 0.9578059072 | M38: 469 | N38: 0.9894514768 | O38: 418 | P38: 0.8818565401 | Q38: 430 | R38: 0.9071729958 | S38: 290 | T38: 0.611814346 | U38: 437 | V38: 0.9219409283 | W38: 454 | X38: 0.9578059072 | Y38: 272 | Z38: 0.5738396624 | AB38: 5 | AC38: 0.01054852321 | AE38: =cálculos2!O38 -> 5 | AF38: 0.5 | AG38: =cálculos2!P38 -> 4 | AH38: 1
A39: Metropolitana | B39: Itarana | C39: 134 | D39: 134 | E39: 139 | F39: 1.037313433 | G39: 146 | H39: 1.089552239 | I39: 141 | J39: 1.052238806 | K39: 142 | L39: 1.059701493 | M39: 152 | N39: 1.134328358 | O39: 143 | P39: 1.067164179 | Q39: 143 | R39: 1.067164179 | S39: 134 | T39: 1 | U39: 127 | V39: 0.947761194 | W39: 136 | X39: 1.014925373 | Y39: 121 | Z39: 0.9029850746 | AB39: 4 | AC39: 0.02985074627 | AE39: =cálculos2!O39 -> 8 | AF39: 0.8 | AG39: =cálculos2!P39 -> 4 | AH39: 1
A40: Sul | B40: Iúna | C40: 420 | D40: 420 | E40: 317 | F40: 0.7547619048 | G40: 327 | H40: 0.7785714286 | I40: 403 | J40: 0.9595238095 | K40: 404 | L40: 0.9619047619 | M40: 409 | N40: 0.9738095238 | O40: 405 | P40: 0.9642857143 | Q40: 399 | R40: 0.95 | S40: 376 | T40: 0.8952380952 | U40: 384 | V40: 0.9142857143 | W40: 436 | X40: 1.038095238 | Y40: 271 | Z40: 0.6452380952 | AB40: 10 | AC40: 0.02380952381 | AE40: =cálculos2!O40 -> 6 | AF40: 0.6 | AG40: =cálculos2!P40 -> 4 | AH40: 1
A41: Norte | B41: Jaguaré | C41: 463 | D41: 463 | E41: 429 | F41: 0.9265658747 | G41: 428 | H41: 0.9244060475 | I41: 487 | J41: 1.051835853 | K41: 478 | L41: 1.032397408 | M41: 488 | N41: 1.05399568 | O41: 473 | P41: 1.021598272 | Q41: 460 | R41: 0.9935205184 | S41: 380 | T41: 0.8207343413 | U41: 433 | V41: 0.9352051836 | W41: 471 | X41: 1.017278618 | Y41: 282 | Z41: 0.6090712743 | AB41: 5 | AC41: 0.01079913607 | AE41: =cálculos2!O41 -> 7 | AF41: 0.7 | AG41: =cálculos2!P41 -> 4 | AH41: 1
A42: Sul | B42: Jerônimo Monteiro | C42: 129 | D42: 129 | E42: 128 | F42: 0.992248062 | G42: 128 | H42: 0.992248062 | I42: 160 | J42: 1.240310078 | K42: 160 | L42: 1.240310078 | M42: 153 | N42: 1.186046512 | O42: 149 | P42: 1.15503876 | Q42: 150 | R42: 1.162790698 | S42: 149 | T42: 1.15503876 | U42: 157 | V42: 1.217054264 | W42: 143 | X42: 1.108527132 | Y42: 89 | Z42: 0.6899224806 | AB42: 15 | AC42: 0.1162790698 | AE42: =cálculos2!O42 -> 9 | AF42: 0.9 | AG42: =cálculos2!P42 -> 4 | AH42: 1
A43: Metropolitana | B43: João Neiva | C43: 158 | D43: 158 | E43: 154 | F43: 0.9746835443 | G43: 155 | H43: 0.9810126582 | I43: 152 | J43: 0.9620253165 | K43: 149 | L43: 0.9430379747 | M43: 156 | N43: 0.9873417722 | O43: 157 | P43: 0.9936708861 | Q43: 150 | R43: 0.9493670886 | S43: 139 | T43: 0.8797468354 | U43: 167 | V43: 1.056962025 | W43: 180 | X43: 1.139240506 | Y43: 126 | Z43: 0.7974683544 | AB43: 2 | AC43: 0.01265822785 | AE43: =cálculos2!O43 -> 6 | AF43: 0.6 | AG43: =cálculos2!P43 -> 3 | AH43: 0.75
A44: Metropolitana | B44: Laranja da Terra | C44: 97 | D44: 97 | E44: 102 | F44: 1.051546392 | G44: 109 | H44: 1.12371134 | I44: 93 | J44: 0.9587628866 | K44: 93 | L44: 0.9587628866 | M44: 91 | N44: 0.9381443299 | O44: 90 | P44: 0.9278350515 | Q44: 89 | R44: 0.9175257732 | S44: 93 | T44: 0.9587628866 | U44: 117 | V44: 1.206185567 | W44: 119 | X44: 1.226804124 | Y44: 95 | Z44: 0.9793814433 | AB44: 10 | AC44: 0.1030927835 | AE44: =cálculos2!O44 -> 8 | AF44: 0.8 | AG44: =cálculos2!P44 -> 3 | AH44: 0.75
A45: Central | B45: Linhares | C45: 2627 | D45: 2627 | E45: 2044 | F45: 0.7780738485 | G45: 2077 | H45: 0.7906357061 | I45: 2220 | J45: 0.8450704225 | K45: 2208 | L45: 0.8405024743 | M45: 2351 | N45: 0.8949371907 | O45: 2333 | P45: 0.8880852684 | Q45: 2276 | R45: 0.8663875143 | S45: 1792 | T45: 0.6821469357 | U45: 2230 | V45: 0.8488770461 | W45: 2246 | X45: 0.8549676437 | Y45: 1558 | Z45: 0.5930719452 | AB45: 8 | AC45: 0.00304529882 | AE45: =cálculos2!O45 -> 0 | AF45: 0 | AG45: =cálculos2!P45 -> 0 | AH45: 0
A46: Central | B46: Mantenópolis | C46: 138 | D46: 138 | E46: 132 | F46: 0.9565217391 | G46: 142 | H46: 1.028985507 | I46: 150 | J46: 1.086956522 | K46: 150 | L46: 1.086956522 | M46: 147 | N46: 1.065217391 | O46: 140 | P46: 1.014492754 | Q46: 137 | R46: 0.9927536232 | S46: 131 | T46: 0.9492753623 | U46: 150 | V46: 1.086956522 | W46: 157 | X46: 1.137681159 | Y46: 83 | Z46: 0.6014492754 | AB46: 5 | AC46: 0.03623188406 | AE46: =cálculos2!O46 -> 8 | AF46: 0.8 | AG46: =cálculos2!P46 -> 4 | AH46: 1
A47: Sul | B47: Marataízes | C47: 536 | D47: 536 | E47: 515 | F47: 0.9608208955 | G47: 517 | H47: 0.9645522388 | I47: 552 | J47: 1.029850746 | K47: 553 | L47: 1.031716418 | M47: 556 | N47: 1.037313433 | O47: 542 | P47: 1.01119403 | Q47: 556 | R47: 1.037313433 | S47: 358 | T47: 0.6679104478 | U47: 515 | V47: 0.9608208955 | W47: 518 | X47: 0.9664179104 | Y47: 325 | Z47: 0.6063432836 | AB47: 2 | AC47: 0.003731343284 | AE47: =cálculos2!O47 -> 8 | AF47: 0.8 | AG47: =cálculos2!P47 -> 4 | AH47: 1
A48: Metropolitana | B48: Marechal Floriano | C48: 197 | D48: 197 | E48: 174 | F48: 0.883248731 | G48: 186 | H48: 0.9441624365 | I48: 206 | J48: 1.045685279 | K48: 206 | L48: 1.045685279 | M48: 219 | N48: 1.111675127 | O48: 215 | P48: 1.091370558 | Q48: 206 | R48: 1.045685279 | S48: 164 | T48: 0.8324873096 | U48: 210 | V48: 1.065989848 | W48: 217 | X48: 1.101522843 | Y48: 158 | Z48: 0.8020304569 | AB48: 10 | AC48: 0.05076142132 | AE48: =cálculos2!O48 -> 8 | AF48: 0.8 | AG48: =cálculos2!P48 -> 4 | AH48: 1
A49: Central | B49: Marilândia | C49: 144 | D49: 144 | E49: 144 | F49: 1 | G49: 144 | H49: 1 | I49: 161 | J49: 1.118055556 | K49: 160 | L49: 1.111111111 | M49: 143 | N49: 0.9930555556 | O49: 144 | P49: 1 | Q49: 152 | R49: 1.055555556 | S49: 137 | T49: 0.9513888889 | U49: 156 | V49: 1.083333333 | W49: 151 | X49: 1.048611111 | Y49: 141 | Z49: 0.9791666667 | AB49: 9 | AC49: 0.0625 | AE49: =cálculos2!O49 -> 10 | AF49: 1 | AG49: =cálculos2!P49 -> 4 | AH49: 1
A50: Sul | B50: Mimoso do Sul | C50: 233 | D50: 233 | E50: 232 | F50: 0.9957081545 | G50: 243 | H50: 1.042918455 | I50: 228 | J50: 0.9785407725 | K50: 226 | L50: 0.9699570815 | M50: 227 | N50: 0.974248927 | O50: 224 | P50: 0.9613733906 | Q50: 222 | R50: 0.9527896996 | S50: 178 | T50: 0.7639484979 | U50: 205 | V50: 0.8798283262 | W50: 231 | X50: 0.991416309 | Y50: 161 | Z50: 0.6909871245 | AB50: 2 | AC50: 0.008583690987 | AE50: =cálculos2!O50 -> 7 | AF50: 0.7 | AG50: =cálculos2!P50 -> 4 | AH50: 1
A51: Norte | B51: Montanha | C51: 227 | D51: 227 | E51: 204 | F51: 0.8986784141 | G51: 207 | H51: 0.9118942731 | I51: 256 | J51: 1.127753304 | K51: 258 | L51: 1.136563877 | M51: 248 | N51: 1.092511013 | O51: 247 | P51: 1.088105727 | Q51: 240 | R51: 1.057268722 | S51: 234 | T51: 1.030837004 | U51: 275 | V51: 1.211453744 | W51: 257 | X51: 1.13215859 | Y51: 204 | Z51: 0.8986784141 | AB51: 16 | AC51: 0.0704845815 | AE51: =cálculos2!O51 -> 9 | AF51: 0.9 | AG51: =cálculos2!P51 -> 4 | AH51: 1
A52: Norte | B52: Mucurici | C52: 69 | D52: 69 | E52: 51 | F52: 0.7391304348 | G52: 53 | H52: 0.768115942 | I52: 79 | J52: 1.144927536 | K52: 78 | L52: 1.130434783 | M52: 77 | N52: 1.115942029 | O52: 76 | P52: 1.101449275 | Q52: 78 | R52: 1.130434783 | S52: 75 | T52: 1.086956522 | U52: 63 | V52: 0.9130434783 | W52: 77 | X52: 1.115942029 | Y52: 57 | Z52: 0.8260869565 | AB52: 6 | AC52: 0.08695652174 | AE52: =cálculos2!O52 -> 7 | AF52: 0.7 | AG52: =cálculos2!P52 -> 4 | AH52: 1
A53: Sul | B53: Muniz Freire | C53: 207 | D53: 207 | E53: 213 | F53: 1.028985507 | G53: 224 | H53: 1.082125604 | I53: 227 | J53: 1.096618357 | K53: 223 | L53: 1.077294686 | M53: 229 | N53: 1.106280193 | O53: 225 | P53: 1.086956522 | Q53: 225 | R53: 1.086956522 | S53: 206 | T53: 0.9951690821 | U53: 224 | V53: 1.082125604 | W53: 228 | X53: 1.101449275 | Y53: 152 | Z53: 0.7342995169 | AB53: 4 | AC53: 0.0193236715 | AE53: =cálculos2!O53 -> 9 | AF53: 0.9 | AG53: =cálculos2!P53 -> 4 | AH53: 1
A54: Sul | B54: Muqui | C54: 131 | D54: 131 | E54: 134 | F54: 1.022900763 | G54: 133 | H54: 1.015267176 | I54: 153 | J54: 1.167938931 | K54: 153 | L54: 1.167938931 | M54: 137 | N54: 1.045801527 | O54: 138 | P54: 1.053435115 | Q54: 147 | R54: 1.122137405 | S54: 136 | T54: 1.038167939 | U54: 157 | V54: 1.198473282 | W54: 142 | X54: 1.083969466 | Y54: 121 | Z54: 0.9236641221 | AB54: 16 | AC54: 0.1221374046 | AE54: =cálculos2!O54 -> 9 | AF54: 0.9 | AG54: =cálculos2!P54 -> 4 | AH54: 1
A55: Norte | B55: Nova Venécia | C55: 658 | D55: 658 | E55: 619 | F55: 0.9407294833 | G55: 622 | H55: 0.9452887538 | I55: 662 | J55: 1.006079027 | K55: 659 | L55: 1.001519757 | M55: 628 | N55: 0.9544072948 | O55: 607 | P55: 0.9224924012 | Q55: 642 | R55: 0.9756838906 | S55: 562 | T55: 0.8541033435 | U55: 597 | V55: 0.9072948328 | W55: 657 | X55: 0.9984802432 | Y55: 430 | Z55: 0.6534954407 | AB55: 3 | AC55: 0.004559270517 | AE55: =cálculos2!O55 -> 7 | AF55: 0.7 | AG55: =cálculos2!P55 -> 4 | AH55: 1
A56: Central | B56: Pancas | C56: 200 | D56: 200 | E56: 194 | F56: 0.97 | G56: 204 | H56: 1.02 | I56: 224 | J56: 1.12 | K56: 224 | L56: 1.12 | M56: 215 | N56: 1.075 | O56: 214 | P56: 1.07 | Q56: 212 | R56: 1.06 | S56: 201 | T56: 1.005 | U56: 218 | V56: 1.09 | W56: 223 | X56: 1.115 | Y56: 197 | Z56: 0.985 | AB56: 2 | AC56: 0.01 | AE56: =cálculos2!O56 -> 10 | AF56: 1 | AG56: =cálculos2!P56 -> 4 | AH56: 1
A57: Norte | B57: Pedro Canário | C57: 328 | D57: 328 | E57: 242 | F57: 0.737804878 | G57: 235 | H57: 0.7164634146 | I57: 293 | J57: 0.8932926829 | K57: 289 | L57: 0.881097561 | M57: 283 | N57: 0.862804878 | O57: 280 | P57: 0.8536585366 | Q57: 282 | R57: 0.8597560976 | S57: 269 | T57: 0.8201219512 | U57: 272 | V57: 0.8292682927 | W57: 342 | X57: 1.042682927 | Y57: 249 | Z57: 0.7591463415 | AB57: 3 | AC57: 0.009146341463 | AE57: =cálculos2!O57 -> 1 | AF57: 0.1 | AG57: =cálculos2!P57 -> 1 | AH57: 0.25
A58: Norte | B58: Pinheiros | C58: 314 | D58: 314 | E58: 197 | F58: 0.627388535 | G58: 262 | H58: 0.8343949045 | I58: 371 | J58: 1.181528662 | K58: 370 | L58: 1.178343949 | M58: 354 | N58: 1.127388535 | O58: 348 | P58: 1.108280255 | Q58: 351 | R58: 1.117834395 | S58: 288 | T58: 0.9171974522 | U58: 333 | V58: 1.060509554 | W58: 374 | X58: 1.191082803 | Y58: 210 | Z58: 0.6687898089 | AB58: 3 | AC58: 0.009554140127 | AE58: =cálculos2!O58 -> 7 | AF58: 0.7 | AG58: =cálculos2!P58 -> 4 | AH58: 1
A59: Sul | B59: Piúma | C59: 277 | D59: 277 | E59: 258 | F59: 0.9314079422 | G59: 249 | H59: 0.8989169675 | I59: 267 | J59: 0.963898917 | K59: 266 | L59: 0.9602888087 | M59: 272 | N59: 0.9819494585 | O59: 258 | P59: 0.9314079422 | Q59: 253 | R59: 0.9133574007 | S59: 170 | T59: 0.6137184116 | U59: 220 | V59: 0.7942238267 | W59: 264 | X59: 0.9530685921 | Y59: 156 | Z59: 0.5631768953 | AB59: 12 | AC59: 0.04332129964 | AE59: =cálculos2!O59 -> 5 | AF59: 0.5 | AG59: =cálculos2!P59 -> 4 | AH59: 1
A60: Norte | B60: Ponto Belo | C60: 81 | D60: 81 | E60: 66 | F60: 0.8148148148 | G60: 65 | H60: 0.8024691358 | I60: 77 | J60: 0.950617284 | K60: 77 | L60: 0.950617284 | M60: 83 | N60: 1.024691358 | O60: 82 | P60: 1.012345679 | Q60: 84 | R60: 1.037037037 | S60: 69 | T60: 0.8518518519 | U60: 83 | V60: 1.024691358 | W60: 85 | X60: 1.049382716 | Y60: 67 | Z60: 0.8271604938 | AB60: 8 | AC60: 0.0987654321 | AE60: =cálculos2!O60 -> 7 | AF60: 0.7 | AG60: =cálculos2!P60 -> 4 | AH60: 1
A61: Sul | B61: Presidente Kennedy | C61: 185 | D61: 185 | E61: 203 | F61: 1.097297297 | G61: 208 | H61: 1.124324324 | I61: 194 | J61: 1.048648649 | K61: 197 | L61: 1.064864865 | M61: 194 | N61: 1.048648649 | O61: 192 | P61: 1.037837838 | Q61: 193 | R61: 1.043243243 | S61: 151 | T61: 0.8162162162 | U61: 213 | V61: 1.151351351 | W61: 202 | X61: 1.091891892 | Y61: 147 | Z61: 0.7945945946 | AB61: 2 | AC61: 0.01081081081 | AE61: =cálculos2!O61 -> 8 | AF61: 0.8 | AG61: =cálculos2!P61 -> 4 | AH61: 1
A62: Central | B62: Rio Bananal | C62: 303 | D62: 303 | E62: 251 | F62: 0.8283828383 | G62: 256 | H62: 0.8448844884 | I62: 271 | J62: 0.8943894389 | K62: 269 | L62: 0.8877887789 | M62: 282 | N62: 0.9306930693 | O62: 279 | P62: 0.9207920792 | Q62: 262 | R62: 0.8646864686 | S62: 267 | T62: 0.8811881188 | U62: 302 | V62: 0.99669967 | W62: 300 | X62: 0.9900990099 | Y62: 232 | Z62: 0.7656765677 | AB62: 13 | AC62: 0.04290429043 | AE62: =cálculos2!O62 -> 3 | AF62: 0.3 | AG62: =cálculos2!P62 -> 1 | AH62: 0.25
A63: Sul | B63: Rio Novo do Sul | C63: 96 | D63: 96 | E63: 82 | F63: 0.8541666667 | G63: 80 | H63: 0.8333333333 | I63: 99 | J63: 1.03125 | K63: 96 | L63: 1 | M63: 106 | N63: 1.104166667 | O63: 108 | P63: 1.125 | Q63: 104 | R63: 1.083333333 | S63: 96 | T63: 1 | U63: 120 | V63: 1.25 | W63: 117 | X63: 1.21875 | Y63: 93 | Z63: 0.96875 | AB63: 2 | AC63: 0.02083333333 | AE63: =cálculos2!O63 -> 9 | AF63: 0.9 | AG63: =cálculos2!P63 -> 4 | AH63: 1
A64: Metropolitana | B64: Santa Leopoldina | C64: 81 | D64: 81 | E64: 76 | F64: 0.9382716049 | G64: 70 | H64: 0.8641975309 | I64: 105 | J64: 1.296296296 | K64: 105 | L64: 1.296296296 | M64: 95 | N64: 1.172839506 | O64: 94 | P64: 1.160493827 | Q64: 97 | R64: 1.197530864 | S64: 88 | T64: 1.086419753 | U64: 113 | V64: 1.395061728 | W64: 122 | X64: 1.50617284 | Y64: 38 | Z64: 0.4691358025 | AB64: 0 | AC64: 0 | AE64: =cálculos2!O64 -> 8 | AF64: 0.8 | AG64: =cálculos2!P64 -> 4 | AH64: 1
A65: Metropolitana | B65: Santa Maria de Jetibá | C65: 673 | D65: 673 | E65: 610 | F65: 0.9063893016 | G65: 611 | H65: 0.9078751857 | I65: 553 | J65: 0.8216939079 | K65: 551 | L65: 0.8187221397 | M65: 586 | N65: 0.8707280832 | O65: 585 | P65: 0.8692421991 | Q65: 563 | R65: 0.8365527489 | S65: 479 | T65: 0.7117384844 | U65: 602 | V65: 0.8945022288 | W65: 587 | X65: 0.8722139673 | Y65: 393 | Z65: 0.5839524517 | AB65: 12 | AC65: 0.01783060921 | AE65: =cálculos2!O65 -> 1 | AF65: 0.1 | AG65: =cálculos2!P65 -> 0 | AH65: 0
A66: Metropolitana | B66: Santa Teresa | C66: 294 | D66: 294 | E66: 271 | F66: 0.9217687075 | G66: 278 | H66: 0.9455782313 | I66: 305 | J66: 1.037414966 | K66: 305 | L66: 1.037414966 | M66: 305 | N66: 1.037414966 | O66: 303 | P66: 1.030612245 | Q66: 290 | R66: 0.9863945578 | S66: 258 | T66: 0.8775510204 | U66: 268 | V66: 0.9115646259 | W66: 277 | X66: 0.9421768707 | Y66: 225 | Z66: 0.7653061224 | AB66: 0 | AC66: 0 | AE66: =cálculos2!O66 -> 6 | AF66: 0.6 | AG66: =cálculos2!P66 -> 3 | AH66: 0.75
A67: Central | B67: São Domingos do Norte | C67: 117 | D67: 117 | E67: 122 | F67: =E67/D67 -> 1.042735043 | G67: 126 | H67: 1.076923077 | I67: 128 | J67: =I67/D67 -> 1.094017094 | K67: 128 | L67: =K67/D67 -> 1.094017094 | M67: 129 | N67: =M67/D67 -> 1.102564103 | O67: 125 | P67: =O67/D67 -> 1.068376068 | Q67: 128 | R67: =Q67/D67 -> 1.094017094 | S67: 117 | T67: =S67/D67 -> 1 | U67: 101 | V67: =U67/D67 -> 0.8632478632 | W67: 117 | X67: =W67/D67 -> 1 | Y67: 80 | Z67: =Y67/D67 -> 0.6837606838 | AB67: 1 | AC67: 0.008547008547 | AE67: =cálculos2!O67 -> 8 | AF67: 0.8 | AG67: =cálculos2!P67 -> 4 | AH67: 1
A68: Central | B68: São Gabriel da Palha | C68: 415 | D68: 415 | E68: 384 | F68: 0.9253012048 | G68: 400 | H68: =G68/D68 -> 0.9638554217 | I68: 415 | J68: 1 | K68: 414 | L68: 0.9975903614 | M68: 433 | N68: 1.043373494 | O68: 421 | P68: 1.014457831 | Q68: 419 | R68: 1.009638554 | S68: 332 | T68: 0.8 | U68: 354 | V68: 0.8530120482 | W68: 394 | X68: 0.9493975904 | Y68: 268 | Z68: 0.6457831325 | AB68: 2 | AC68: =AB68/D68 -> 0.004819277108 | AE68: =cálculos2!O68 -> 6 | AF68: =AE68*0.1 -> 0.6 | AG68: =cálculos2!P68 -> 3 | AH68: =AG68*0.25 -> 0.75
A69: Sul | B69: São José do Calçado | C69: 104 | D69: 104 | E69: 108 | F69: 1.038461538 | G69: 108 | H69: 1.038461538 | I69: 107 | J69: 1.028846154 | K69: 107 | L69: 1.028846154 | M69: 108 | N69: 1.038461538 | O69: 98 | P69: 0.9423076923 | Q69: 114 | R69: 1.096153846 | S69: 92 | T69: 0.8846153846 | U69: 110 | V69: 1.057692308 | W69: 121 | X69: 1.163461538 | Y69: 71 | Z69: 0.6826923077 | AB69: 0 | AC69: 0 | AE69: =cálculos2!O69 -> 8 | AF69: 0.8 | AG69: =cálculos2!P69 -> 4 | AH69: 1
A70: Norte | B70: São Mateus | C70: 1824 | D70: 1824 | E70: 1940 | F70: 1.063596491 | G70: 1805 | H70: 0.9895833333 | I70: 1689 | J70: 0.9259868421 | K70: 1666 | L70: 0.913377193 | M70: 1742 | N70: 0.9550438596 | O70: 1654 | P70: 0.9067982456 | Q70: 1635 | R70: 0.8963815789 | S70: 1204 | T70: 0.6600877193 | U70: 1430 | V70: 0.7839912281 | W70: 1518 | X70: 0.8322368421 | Y70: 945 | Z70: 0.5180921053 | AB70: 58 | AC70: 0.03179824561 | AE70: =cálculos2!O70 -> 3 | AF70: 0.3 | AG70: =cálculos2!P70 -> 1 | AH70: 0.25
A71: Central | B71: São Roque do Canaã | C71: 132 | D71: 132 | E71: 128 | F71: 0.9696969697 | G71: 130 | H71: 0.9848484848 | I71: 119 | J71: 0.9015151515 | K71: 120 | L71: 0.9090909091 | M71: 121 | N71: 0.9166666667 | O71: 123 | P71: 0.9318181818 | Q71: 119 | R71: 0.9015151515 | S71: 115 | T71: 0.8712121212 | U71: 129 | V71: 0.9772727273 | W71: 114 | X71: 0.8636363636 | Y71: 101 | Z71: 0.7651515152 | AB71: 7 | AC71: 0.05303030303 | AE71: =cálculos2!O71 -> 3 | AF71: 0.3 | AG71: =cálculos2!P71 -> 0 | AH71: 0
A72: Metropolitana | B72: Serra | C72: 7327 | D72: 7327 | E72: 7068 | F72: 0.9646512898 | G72: 7111 | H72: 0.9705199945 | I72: 6434 | J72: 0.8781220145 | K72: 6393 | L72: 0.8725262727 | M72: 6735 | N72: 0.919202948 | O72: 6502 | P72: 0.8874027569 | Q72: 6420 | R72: 0.8762112734 | S72: 4682 | T72: 0.6390064146 | U72: 4674 | V72: 0.6379145626 | W72: 6234 | X72: 0.8508257131 | Y72: 3502 | Z72: 0.4779582367 | AB72: 183 | AC72: 0.02497611574 | AE72: =cálculos2!O72 -> 1 | AF72: 0.1 | AG72: =cálculos2!P72 -> 0 | AH72: 0
A73: Central | B73: Sooretama | C73: 448 | D73: 448 | E73: 336 | F73: 0.75 | G73: 351 | H73: 0.7834821429 | I73: 405 | J73: 0.9040178571 | K73: 409 | L73: 0.9129464286 | M73: 418 | N73: 0.9330357143 | O73: 407 | P73: 0.9084821429 | Q73: 370 | R73: 0.8258928571 | S73: 336 | T73: 0.75 | U73: 391 | V73: 0.8727678571 | W73: 397 | X73: 0.8861607143 | Y73: 254 | Z73: 0.5669642857 | AB73: 4 | AC73: 0.008928571429 | AE73: =cálculos2!O73 -> 1 | AF73: 0.1 | AG73: =cálculos2!P73 -> 0 | AH73: 0
A74: Sul | B74: Vargem Alta | C74: 233 | D74: 233 | E74: 259 | F74: 1.111587983 | G74: 272 | H74: 1.167381974 | I74: 271 | J74: 1.163090129 | K74: 271 | L74: 1.163090129 | M74: 260 | N74: 1.115879828 | O74: 259 | P74: 1.111587983 | Q74: 255 | R74: 1.094420601 | S74: 220 | T74: 0.9442060086 | U74: 251 | V74: 1.077253219 | W74: 261 | X74: 1.120171674 | Y74: 183 | Z74: 0.7854077253 | AB74: 6 | AC74: 0.02575107296 | AE74: =cálculos2!O74 -> 8 | AF74: 0.8 | AG74: =cálculos2!P74 -> 4 | AH74: 1
A75: Metropolitana | B75: Venda Nova do Imigrante | C75: 345 | D75: 345 | E75: 173 | F75: 0.5014492754 | G75: 309 | H75: 0.8956521739 | I75: 375 | J75: 1.086956522 | K75: 376 | L75: 1.089855072 | M75: 341 | N75: 0.9884057971 | O75: 338 | P75: 0.9797101449 | Q75: 358 | R75: 1.037681159 | S75: 360 | T75: 1.043478261 | U75: 377 | V75: 1.092753623 | W75: 436 | X75: 1.263768116 | Y75: 290 | Z75: 0.8405797101 | AB75: 22 | AC75: 0.06376811594 | AE75: =cálculos2!O75 -> 8 | AF75: 0.8 | AG75: =cálculos2!P75 -> 4 | AH75: 1
A76: Metropolitana | B76: Viana | C76: 906 | D76: 906 | E76: 881 | F76: 0.972406181 | G76: 896 | H76: 0.9889624724 | I76: 876 | J76: 0.9668874172 | K76: 866 | L76: 0.9558498896 | M76: 922 | N76: 1.017660044 | O76: 881 | P76: 0.972406181 | Q76: 878 | R76: 0.9690949227 | S76: 586 | T76: 0.646799117 | U76: 836 | V76: 0.9227373068 | W76: 870 | X76: 0.9602649007 | Y76: 451 | Z76: 0.4977924945 | AB76: 25 | AC76: 0.02759381898 | AE76: =cálculos2!O76 -> 7 | AF76: 0.7 | AG76: =cálculos2!P76 -> 4 | AH76: 1
A77: Norte | B77: Vila Pavão | C77: 104 | D77: 104 | E77: 113 | F77: 1.086538462 | G77: 112 | H77: 1.076923077 | I77: 98 | J77: 0.9423076923 | K77: 97 | L77: 0.9326923077 | M77: 111 | N77: 1.067307692 | O77: 110 | P77: 1.057692308 | Q77: 102 | R77: 0.9807692308 | S77: 96 | T77: 0.9230769231 | U77: 130 | V77: 1.25 | W77: 118 | X77: 1.134615385 | Y77: 77 | Z77: 0.7403846154 | AB77: 1 | AC77: 0.009615384615 | AE77: =cálculos2!O77 -> 6 | AF77: 0.6 | AG77: =cálculos2!P77 -> 2 | AH77: 0.5
A78: Central | B78: Vila Valério | C78: 237 | D78: 237 | E78: 212 | F78: 0.8945147679 | G78: 224 | H78: 0.9451476793 | I78: 253 | J78: 1.067510549 | K78: 251 | L78: 1.05907173 | M78: 254 | N78: 1.071729958 | O78: 246 | P78: 1.037974684 | Q78: 257 | R78: 1.084388186 | S78: 201 | T78: 0.8481012658 | U78: 221 | V78: 0.9324894515 | W78: 228 | X78: 0.9620253165 | Y78: 141 | Z78: 0.5949367089 | AB78: 2 | AC78: 0.008438818565 | AE78: =cálculos2!O78 -> 7 | AF78: 0.7 | AG78: =cálculos2!P78 -> 4 | AH78: 1
A79: Metropolitana | B79: Vila Velha | C79: 5438 | D79: 5438 | E79: 5081 | F79: 0.9343508643 | G79: 5089 | H79: 0.9358219934 | I79: 4648 | J79: 0.8547260022 | K79: 4656 | L79: 0.8561971313 | M79: 4963 | N79: 0.9126517102 | O79: 4820 | P79: 0.8863552777 | Q79: 4778 | R79: 0.8786318499 | S79: 3551 | T79: 0.6529974255 | U79: 4469 | V79: 0.8218094888 | W79: 4763 | X79: 0.8758734829 | Y79: 3102 | Z79: 0.5704303053 | AB79: 182 | AC79: 0.03346818683 | AE79: =cálculos2!O79 -> 1 | AF79: 0.1 | AG79: =cálculos2!P79 -> 0 | AH79: 0
A80: Metropolitana | B80: Vitória | C80: 3496 | D80: 3496 | E80: 3247 | F80: 0.9287757437 | G80: 3301 | H80: 0.944221968 | I80: 3434 | J80: 0.9822654462 | K80: 3437 | L80: 0.9831235698 | M80: 3458 | N80: 0.9891304348 | O80: 3363 | P80: 0.9619565217 | Q80: 3437 | R80: 0.9831235698 | S80: 2351 | T80: 0.6724828375 | U80: 3384 | V80: 0.9679633867 | W80: 3390 | X80: 0.9696796339 | Y80: 2379 | Z80: 0.6804919908 | AB80: 272 | AC80: 0.07780320366 | AE80: =cálculos2!O80 -> 8 | AF80: 0.8 | AG80: =cálculos2!P80 -> 4 | AH80: 1
B82: Total Norte | C82: =SUMIF($A$3:$A$80,"Norte",C$3:C$80) -> 5620 | D82: =SUMIF($A$3:$A$80,"Norte",D$3:D$80) -> 5620 | E82: =SUMIF($A$3:$A$80,"Norte",E$3:E$80) -> 5295 | F82: =E82/D82 -> 0.9421708185 | G82: =SUMIF($A$3:$A$80,"Norte",G$3:G$80) -> 5249 | H82: =G82/D82 -> 0.9339857651 | I82: =SUMIF($A$3:$A$80,"Norte",I$3:I$80) -> 5555 | J82: =I82/D82 -> 0.9884341637 | K82: =SUMIF($A$3:$A$80,"Norte",K$3:K$80) -> 5508 | L82: =K82/D82 -> 0.9800711744 | M82: =SUMIF($A$3:$A$80,"Norte",M$3:M$80) -> 5650 | N82: =M82/D82 -> 1.005338078 | O82: =SUMIF($A$3:$A$80,"Norte",O$3:O$80) -> 5461 | P82: =O82/D82 -> 0.9717081851 | Q82: =SUMIF($A$3:$A$80,"Norte",Q$3:Q$80) -> 5450 | R82: =Q82/D82 -> 0.9697508897 | S82: =SUMIF($A$3:$A$80,"Norte",S$3:S$80) -> 4479 | T82: =S82/D82 -> 0.796975089 | U82: =SUMIF($A$3:$A$80,"Norte",U$3:U$80) -> 5043 | V82: =U82/D82 -> 0.8973309609 | W82: =SUMIF($A$3:$A$80,"Norte",W$3:W$80) -> 5402 | X82: =W82/D82 -> 0.9612099644 | Y82: =SUMIF($A$3:$A$80,"Norte",Y$3:Y$80) -> 3612 | Z82: =Y82/D82 -> 0.6427046263 | AB82: =SUMIF($A$3:$A$80,"Norte",AB$3:AB$80) -> 116 | AC82: =AB82/D82 -> 0.0206405694 | AE82: =cálculos2!O82 -> 7 | AF82: =AE82*0.1 -> 0.7 | AG82: =cálculos2!P82 -> 4 | AH82: 1
B83: Total Central | C83: =SUMIF($A$3:$A$80,"Central",C$3:C$80) -> 7008 | D83: =SUMIF($A$3:$A$80,"Central",D$3:D$80) -> 7008 | E83: =SUMIF($A$3:$A$80,"Central",E$3:E$80) -> 6042 | F83: =E83/D83 -> 0.8621575342 | G83: =SUMIF($A$3:$A$80,"Central",G$3:G$80) -> 6243 | H83: =G83/D83 -> 0.8908390411 | I83: =SUMIF($A$3:$A$80,"Central",I$3:I$80) -> 6537 | J83: =I83/D83 -> 0.9327910959 | K83: =SUMIF($A$3:$A$80,"Central",K$3:K$80) -> 6506 | L83: =K83/D83 -> 0.9283675799 | M83: =SUMIF($A$3:$A$80,"Central",M$3:M$80) -> 6727 | N83: =M83/D83 -> 0.959902968 | O83: =SUMIF($A$3:$A$80,"Central",O$3:O$80) -> 6632 | P83: =O83/D83 -> 0.946347032 | Q83: =SUMIF($A$3:$A$80,"Central",Q$3:Q$80) -> 6461 | R83: =Q83/D83 -> 0.921946347 | S83: =SUMIF($A$3:$A$80,"Central",S$3:S$80) -> 5435 | T83: =S83/D83 -> 0.7755422374 | U83: =SUMIF($A$3:$A$80,"Central",U$3:U$80) -> 6303 | V83: =U83/D83 -> 0.8994006849 | W83: =SUMIF($A$3:$A$80,"Central",W$3:W$80) -> 6557 | X83: =W83/D83 -> 0.9356449772 | Y83: =SUMIF($A$3:$A$80,"Central",Y$3:Y$80) -> 4623 | Z83: =Y83/D83 -> 0.6596746575 | AB83: =SUMIF($A$3:$A$80,"Central",AB$3:AB$80) -> 78 | AC83: =AB83/D83 -> 0.01113013699 | AE83: =cálculos2!O83 -> 2 | AF83: =AE83*0.1 -> 0.2 | AG83: =cálculos2!P83 -> 1 | AH83: 0.25
B84: Total Metropolitana | C84: =SUMIF($A$3:$A$80,"Metropolitana",C$3:C$80) -> 29031 | D84: =SUMIF($A$3:$A$80,"Metropolitana",D$3:D$80) -> 29031 | E84: =SUMIF($A$3:$A$80,"Metropolitana",E$3:E$80) -> 26854 | F84: =E84/D84 -> 0.9250111949 | G84: =SUMIF($A$3:$A$80,"Metropolitana",G$3:G$80) -> 27572 | H84: =G84/D84 -> 0.9497433778 | I84: =SUMIF($A$3:$A$80,"Metropolitana",I$3:I$80) -> 26342 | J84: =I84/D84 -> 0.9073748751 | K84: =SUMIF($A$3:$A$80,"Metropolitana",K$3:K$80) -> 26234 | L84: =K84/D84 -> 0.9036547139 | M84: =SUMIF($A$3:$A$80,"Metropolitana",M$3:M$80) -> 27480 | N84: =M84/D84 -> 0.9465743516 | O84: =SUMIF($A$3:$A$80,"Metropolitana",O$3:O$80) -> 26633 | P84: =O84/D84 -> 0.9173986428 | Q84: =SUMIF($A$3:$A$80,"Metropolitana",Q$3:Q$80) -> 26424 | R84: =Q84/D84 -> 0.910199442 | S84: =SUMIF($A$3:$A$80,"Metropolitana",S$3:S$80) -> 19895 | T84: =S84/D84 -> 0.6853019186 | U84: =SUMIF($A$3:$A$80,"Metropolitana",U$3:U$80) -> 23751 | V84: =U84/D84 -> 0.8181254521 | W84: =SUMIF($A$3:$A$80,"Metropolitana",W$3:W$80) -> 26361 | X84: =W84/D84 -> 0.9080293479 | Y84: =SUMIF($A$3:$A$80,"Metropolitana",Y$3:Y$80) -> 16560 | Z84: =Y84/D84 -> 0.5704247184 | AB84: =SUMIF($A$3:$A$80,"Metropolitana",AB$3:AB$80) -> 1035 | AC84: 0.0356515449 | AE84: =cálculos2!O84 -> 2 | AF84: 0.2 | AG84: =cálculos2!P84 -> 0 | AH84: 0
B85: Total Sul | C85: =SUMIF($A$3:$A$80,"sul",C$3:C$80) -> 7548 | D85: =SUMIF($A$3:$A$80,"sul",D$3:D$80) -> 7548 | E85: =SUMIF($A$3:$A$80,"Sul",E$3:E$80) -> 7700 | F85: =E85/D85 -> 1.020137785 | G85: =SUMIF($A$3:$A$80,"Sul",G$3:G$80) -> 7906 | H85: =G85/D85 -> 1.047429783 | I85: =SUMIF($A$3:$A$80,"Sul",I$3:I$80) -> 7970 | J85: =I85/D85 -> 1.05590885 | K85: =SUMIF($A$3:$A$80,"Sul",K$3:K$80) -> 7932 | L85: =K85/D85 -> 1.050874404 | M85: =SUMIF($A$3:$A$80,"Sul",M$3:M$80) -> 7988 | N85: =M85/D85 -> 1.058293588 | O85: =SUMIF($A$3:$A$80,"Sul",O$3:O$80) -> 7781 | P85: =O85/D85 -> 1.030869104 | Q85: =SUMIF($A$3:$A$80,"Sul",Q$3:Q$80) -> 7734 | R85: =Q85/D85 -> 1.024642289 | S85: =SUMIF($A$3:$A$80,"Sul",S$3:S$80) -> 6169 | T85: =S85/D85 -> 0.8173025967 | U85: =SUMIF($A$3:$A$80,"Sul",U$3:U$80) -> 7626 | V85: =U85/D85 -> 1.010333863 | W85: =SUMIF($A$3:$A$80,"Sul",W$3:W$80) -> 7865 | X85: =W85/D85 -> 1.04199788 | Y85: =SUMIF($A$3:$A$80,"Sul",Y$3:Y$80) -> 4883 | Z85: =Y85/D85 -> 0.6469263381 | AB85: =SUMIF($A$3:$A$80,"Sul",AB$3:AB$80) -> 230 | AC85: 0.03047164812 | AE85: =cálculos2!O85 -> 8 | AF85: 0.8 | AG85: =cálculos2!P85 -> 4 | AH85: 1
B86: Total Espírito Santo | C86: =SUM(C3:C80) -> 49207 | D86: =SUM(D3:D80) -> 49207 | E86: =SUM(E82:E85) -> 45891 | F86: =E86/D86 -> 0.9326112139 | G86: =SUM(G82:G85) -> 46970 | H86: =G86/D86 -> 0.9545389884 | I86: =SUM(I82:I85) -> 46404 | J86: =I86/D86 -> 0.9430365598 | K86: =SUM(K82:K85) -> 46180 | L86: =K86/D86 -> 0.938484362 | M86: =SUM(M82:M85) -> 47845 | N86: =M86/D86 -> 0.9723210112 | O86: =SUM(O82:O85) -> 46507 | P86: =O86/D86 -> 0.945129758 | Q86: =SUM(Q82:Q85) -> 46069 | R86: =Q86/D86 -> 0.9362285854 | S86: =SUM(S82:S85) -> 35978 | T86: =S86/D86 -> 0.7311561363 | U86: =SUM(U82:U85) -> 42723 | V86: =U86/D86 -> 0.8682301299 | W86: =SUM(W82:W85) -> 46185 | X86: =W86/D86 -> 0.9385859735 | Y86: =SUM(Y82:Y85) -> 29678 | Z86: =Y86/D86 -> 0.6031255716 | AB86: =SUM(AB82:AB85) -> 1459 | AC86: 0.02965025301 | AE86: =cálculos2!O86 -> 3 | AF86: 0.3 | AG86: =cálculos2!P86 -> 1 | AH86: 0.25
E87: =COUNTIF(F3:F80,">=0,95") -> 32 | G87: =COUNTIF(H3:H80,">=0,9") -> 56 | I87: =COUNTIF(J3:J80,">=0,95") -> 58 | K87: =COUNTIF(L3:L80,">=0,95") -> 58 | M87: =COUNTIF(N3:N80,">=0,95") -> 61 | O87: =COUNTIF(P3:P80,">=0,9") -> 68 | Q87: =COUNTIF(R3:R80,">=0,95") -> 52 | S87: =COUNTIF(T3:T80,">=0,95") -> 24 | U87: =COUNTIF(V3:V80,">=0,95") -> 43 | W87: =COUNTIF(X3:X80,">=0,95") -> 57 | Y87: =COUNTIF(Z3:Z80,">=0,95") -> 5 | AB87: =COUNTIF(AC3:AC80,">=0,9") -> 0
B88: HOMOGENEIDADE ENTRE MUNICÍPIOS | E88: =E87/78 -> 0.4102564103 | G88: =G87/78 -> 0.7179487179 | I88: =I87/78 -> 0.7435897436 | K88: =K87/78 -> 0.7435897436 | M88: =M87/78 -> 0.7820512821 | O88: =O87/78 -> 0.8717948718 | Q88: =Q87/78 -> 0.6666666667 | S88: =S87/78 -> 0.3076923077 | U88: =U87/78 -> 0.5512820513 | W88: =W87/78 -> 0.7307692308 | Y88: =Y87/78 -> 0.0641025641 | AB88: =AB87/78 -> 0
A90: Fonte: Vacina e Confia, em 10, 11 e 14 abril de 2025.**
A91: **Dados referente às doses aplicadas no período de Janeiro a Dezembro de 2024
A92: Cobertura Calculada por município de residência do cidadão (no Vacina e Confia, a origem da informação é o endereço que consta no cadastro do cidadão preenchido manualmente por meio do autocadastro ou pelo cadastro realizado por um profissional de saúde no momento do atendimento).
A93: 1 População anual extraída do MS/SVS/DASIS - SINASC/DASIS/SVS/MS 2024 referente ao período de janeiro a Dezembro de 2024.
A94: ² População proporcional extraída do MS/SVS/DASIS - SINASC/DASIS/SVS/MS 2024 referente ao período de janeiro e Dezembro de 2024.
A95: Sinasc, atualizado em 09 de Abril de 2025.
A96: Homogeineidade: O cálculo da Homogeineidade entre vacinas é feito de acordo com a pactuação estabelecida no Plano Plurianual (PPA) vigente no período 2024-2027.
A97: Observações:
A98: Imunobiológicos que foram recebidos parcialmente pelo estado no mês da análise, sendo distribuídos em quantidades reduzidas às regionais e municípios: Soro Antirábico Humano, Vacina tríplice viral, Vacina COVID-19Monovalente (XBB)-Frasco, Vacina tetraviral, Imunoglobulina Antirrábica Humana, Vacina Tríplice Bacteriana (DTP), Febre Amarela
A99: Imunobiológicos indisponíveis no mês da análise, não sendo possível a distribuição às regionais e municípios: Vacina contra varicela, vacina tríplice acelular (DTPa) - CRIE, vacina COVID-19 MONOVALENTE (XBB) -SERINGA

Sheet CV REF 1A e 4A - procedência
G1: D2 | K1: REFORÇOS 1 ANO | S1: REFORÇOS 4 ANOS
A2: Regional | B2: Município | C2: ¹População 1 ano anual | D2: ²População 1 ano proporcional | E2: ³População 4 anos anual | F2: ³População 4 anos proporcional | G2: DOSES APLICADAS D2 TRÍPLICE VIRAL | H2: COBERTURA D2 TRÍPLICE VIRAL | I2: DOSES APLICADAS D2 VARICELA | J2: COBERTURA D2 VARICELA | K2: DOSES APLICADAS REF PNEUMO | L2: COBERTURA REF PNEUMO | M2: DOSES APLICADAS REF MENINGO | N2: COBERTURA REF MENINGO | O2: DOSES APLICADAS R1 POLIO | P2: COBERTURA R1 POLIO | Q2: DOSES APLICADAS R1 TRÍPLICE BACTERIANA | R2: COBERTURA R1 TRÍPLICE BACTERIANA | S2: DOSES APLICADAS REF FEBRE AMARELA | T2: COBERTURA REF FEBRE AMARELA | U2: DOSES APLICADAS R2 POLIO | V2: COBERTURA R2 POLIO | W2: DOSES APLICADAS R2 TRÍPLICE BACTERIANA | X2: COBERTURA R2 TRÍPLICE BACTERIANA
A3: Metropolitana | B3: Afonso Cláudio | C3: 357 | D3: 357 | E3: 416 | F3: =E3/12*12 -> 416 | G3: 416 | H3: =G3/D3 -> 1.165266106 | I3: 86 | J3: =I3/F3 -> 0.2067307692 | K3: 339 | L3: =K3/D3 -> 0.9495798319 | M3: 350 | N3: =M3/D3 -> 0.9803921569 | O3: 761 | P3: =O3/D3 -> 2.131652661 | Q3: 353 | R3: =Q3/D3 -> 0.9887955182 | S3: 324 | T3: =S3/F3 -> 0.7788461538 | U3: 503 | V3: =U3/F3 -> 1.209134615 | W3: 343 | X3: =W3/F3 -> 0.8245192308
A4: Norte | B4: Água Doce do Norte | C4: 146 | D4: 146 | E4: 151 | F4: 151 | G4: 142 | H4: 0.9726027397 | I4: 42 | J4: 0.2781456954 | K4: 144 | L4: 0.9863013699 | M4: 147 | N4: 1.006849315 | O4: 213 | P4: 1.45890411 | Q4: 144 | R4: 0.9863013699 | S4: 127 | T4: 0.8410596026 | U4: 153 | V4: 1.013245033 | W4: 150 | X4: 0.9933774834
A5: Central | B5: Águia Branca | C5: 193 | D5: 193 | E5: 129 | F5: 129 | G5: 123 | H5: 0.6373056995 | I5: 33 | J5: 0.2558139535 | K5: 135 | L5: 0.6994818653 | M5: 142 | N5: 0.7357512953 | O5: 160 | P5: 0.829015544 | Q5: 133 | R5: 0.689119171 | S5: 110 | T5: 0.8527131783 | U5: 121 | V5: 0.9379844961 | W5: 121 | X5: 0.9379844961
A6: Sul | B6: Alegre | C6: 278 | D6: 278 | E6: 372 | F6: 372 | G6: 329 | H6: 1.183453237 | I6: 126 | J6: 0.3387096774 | K6: 326 | L6: 1.172661871 | M6: 324 | N6: 1.165467626 | O6: 567 | P6: 2.039568345 | Q6: 309 | R6: 1.111510791 | S6: 293 | T6: 0.7876344086 | U6: 477 | V6: 1.282258065 | W6: 318 | X6: 0.8548387097
A7: Sul | B7: Alfredo Chaves | C7: 119 | D7: 119 | E7: 138 | F7: 138 | G7: 131 | H7: 1.100840336 | I7: 50 | J7: 0.3623188406 | K7: 148 | L7: 1.243697479 | M7: 156 | N7: 1.31092437 | O7: 265 | P7: 2.226890756 | Q7: 134 | R7: 1.12605042 | S7: 130 | T7: 0.9420289855 | U7: 246 | V7: 1.782608696 | W7: 131 | X7: 0.9492753623
A8: Central | B8: Alto Rio Novo | C8: 89 | D8: 89 | E8: 102 | F8: 102 | G8: 103 | H8: 1.157303371 | I8: 26 | J8: 0.2549019608 | K8: 93 | L8: 1.04494382 | M8: 93 | N8: 1.04494382 | O8: 183 | P8: 2.056179775 | Q8: 95 | R8: 1.06741573 | S8: 73 | T8: 0.7156862745 | U8: 100 | V8: 0.9803921569 | W8: 78 | X8: 0.7647058824
A9: Sul | B9: Anchieta | C9: 338 | D9: 338 | E9: 390 | F9: 390 | G9: 393 | H9: 1.162721893 | I9: 115 | J9: 0.2948717949 | K9: 408 | L9: 1.207100592 | M9: 406 | N9: 1.201183432 | O9: 655 | P9: 1.937869822 | Q9: 401 | R9: 1.186390533 | S9: 340 | T9: 0.8717948718 | U9: 521 | V9: 1.335897436 | W9: 428 | X9: 1.097435897
A10: Sul | B10: Apiacá | C10: 74 | D10: 74 | E10: 90 | F10: 90 | G10: 60 | H10: 0.8108108108 | I10: 23 | J10: 0.2555555556 | K10: 72 | L10: 0.972972973 | M10: 74 | N10: 1 | O10: 91 | P10: 1.22972973 | Q10: 66 | R10: 0.8918918919 | S10: 5 | T10: 0.05555555556 | U10: 94 | V10: 1.044444444 | W10: 65 | X10: 0.7222222222
A11: Metropolitana | B11: Aracruz | C11: 1365 | D11: 1365 | E11: 1420 | F11: 1420 | G11: 1407 | H11: 1.030769231 | I11: 624 | J11: 0.4394366197 | K11: 1464 | L11: 1.072527473 | M11: 1482 | N11: 1.085714286 | O11: 2112 | P11: 1.547252747 | Q11: 1448 | R11: 1.060805861 | S11: 1109 | T11: 0.7809859155 | U11: 1482 | V11: 1.043661972 | W11: 1407 | X11: 0.9908450704
A12: Sul | B12: Atilio Vivacqua | C12: 140 | D12: 140 | E12: 138 | F12: 138 | G12: 155 | H12: 1.107142857 | I12: 40 | J12: 0.2898550725 | K12: 158 | L12: 1.128571429 | M12: 158 | N12: 1.128571429 | O12: 261 | P12: 1.864285714 | Q12: 154 | R12: 1.1 | S12: 135 | T12: 0.9782608696 | U12: 152 | V12: 1.101449275 | W12: 153 | X12: 1.108695652
A13: Central | B13: Baixo Guandu | C13: 345 | D13: 345 | E13: 427 | F13: 427 | G13: 368 | H13: 1.066666667 | I13: 117 | J13: 0.2740046838 | K13: 361 | L13: 1.046376812 | M13: 364 | N13: 1.055072464 | O13: 640 | P13: 1.855072464 | Q13: 364 | R13: 1.055072464 | S13: 309 | T13: 0.7236533958 | U13: 486 | V13: 1.138173302 | W13: 368 | X13: 0.8618266979
A14: Norte | B14: Barra de São Francisco | C14: 584 | D14: 584 | E14: 589 | F14: 589 | G14: 560 | H14: 0.9589041096 | I14: 178 | J14: 0.3022071307 | K14: 535 | L14: 0.9160958904 | M14: 539 | N14: 0.9229452055 | O14: 710 | P14: 1.215753425 | Q14: 512 | R14: 0.8767123288 | S14: 475 | T14: 0.8064516129 | U14: 478 | V14: 0.8115449915 | W14: 505 | X14: 0.857385399
A15: Norte | B15: Boa Esperança | C15: 204 | D15: 204 | E15: 200 | F15: 200 | G15: 156 | H15: 0.7647058824 | I15: 55 | J15: 0.275 | K15: 191 | L15: 0.9362745098 | M15: 194 | N15: 0.9509803922 | O15: 304 | P15: 1.490196078 | Q15: 193 | R15: 0.9460784314 | S15: 142 | T15: 0.71 | U15: 229 | V15: 1.145 | W15: 191 | X15: 0.955
A16: Sul | B16: Bom Jesus do Norte | C16: 78 | D16: 78 | E16: 146 | F16: 146 | G16: 95 | H16: 1.217948718 | I16: 37 | J16: 0.2534246575 | K16: 144 | L16: 1.846153846 | M16: 146 | N16: 1.871794872 | O16: 205 | P16: 2.628205128 | Q16: 133 | R16: 1.705128205 | S16: 106 | T16: 0.7260273973 | U16: 151 | V16: 1.034246575 | W16: 118 | X16: 0.8082191781
A17: Metropolitana | B17: Brejetuba | C17: 209 | D17: 209 | E17: 169 | F17: 169 | G17: 204 | H17: 0.976076555 | I17: 61 | J17: 0.3609467456 | K17: 188 | L17: 0.8995215311 | M17: 193 | N17: 0.9234449761 | O17: 332 | P17: 1.588516746 | Q17: 205 | R17: 0.980861244 | S17: 212 | T17: 1.25443787 | U17: 311 | V17: 1.840236686 | W17: 223 | X17: 1.319526627
A18: Sul | B18: Cachoeiro de Itapemirim | C18: 2142 | D18: 2142 | E18: 2417 | F18: 2417 | G18: 2091 | H18: 0.9761904762 | I18: 624 | J18: 0.2581712867 | K18: 2224 | L18: 1.038281979 | M18: 2322 | N18: 1.084033613 | O18: 3026 | P18: 1.412698413 | Q18: 2189 | R18: 1.02194211 | S18: 1489 | T18: 0.6160529582 | U18: 1872 | V18: 0.7745138602 | W18: 1888 | X18: 0.7811336367
A19: Metropolitana | B19: Cariacica | C19: 4758 | D19: 4758 | E19: 5005 | F19: 5005 | G19: 3791 | H19: 0.7967633459 | I19: 1301 | J19: 0.2599400599 | K19: 4364 | L19: 0.9171920975 | M19: 4447 | N19: 0.9346364018 | O19: 5279 | P19: 1.10949979 | Q19: 4058 | R19: 0.8528793611 | S19: 3611 | T19: 0.7214785215 | U19: 4251 | V19: 0.8493506494 | W19: 4474 | X19: 0.8939060939
A20: Sul | B20: Castelo | C20: 390 | D20: 390 | E20: 399 | F20: 399 | G20: 446 | H20: 1.143589744 | I20: 113 | J20: 0.2832080201 | K20: 438 | L20: 1.123076923 | M20: 438 | N20: 1.123076923 | O20: 689 | P20: 1.766666667 | Q20: 431 | R20: 1.105128205 | S20: 346 | T20: 0.8671679198 | U20: 499 | V20: 1.250626566 | W20: 396 | X20: 0.992481203
A21: Central | B21: Colatina | C21: 1503 | D21: 1503 | E21: 1561 | F21: 1561 | G21: 1391 | H21: 0.9254823686 | I21: 314 | J21: 0.201153107 | K21: 1462 | L21: 0.9727212242 | M21: 1508 | N21: 1.00332668 | O21: 1689 | P21: 1.123752495 | Q21: 1361 | R21: 0.9055222888 | S21: 947 | T21: 0.6066623959 | U21: 1083 | V21: 0.6937860346 | W21: 1171 | X21: 0.7501601537
A22: Norte | B22: Conceição da Barra | C22: 357 | D22: 357 | E22: 391 | F22: 391 | G22: 384 | H22: 1.075630252 | I22: 120 | J22: 0.3069053708 | K22: 365 | L22: 1.022408964 | M22: 376 | N22: 1.053221289 | O22: 730 | P22: 2.044817927 | Q22: 373 | R22: 1.044817927 | S22: 349 | T22: 0.8925831202 | U22: 573 | V22: 1.465473146 | W22: 435 | X22: 1.112531969
A23: Metropolitana | B23: Conceição do Castelo | C23: 171 | D23: 171 | E23: 144 | F23: 144 | G23: 177 | H23: 1.035087719 | I23: 53 | J23: 0.3680555556 | K23: 130 | L23: 0.7602339181 | M23: 137 | N23: 0.8011695906 | O23: 249 | P23: 1.456140351 | Q23: 149 | R23: 0.8713450292 | S23: 143 | T23: 0.9930555556 | U23: 214 | V23: 1.486111111 | W23: 140 | X23: 0.9722222222
A24: Sul | B24: Divino de São Lourenço | C24: 57 | D24: 57 | E24: 68 | F24: 68 | G24: 65 | H24: 1.140350877 | I24: 30 | J24: 0.4411764706 | K24: 60 | L24: 1.052631579 | M24: 60 | N24: 1.052631579 | O24: 90 | P24: 1.578947368 | Q24: 56 | R24: 0.9824561404 | S24: 82 | T24: 1.205882353 | U24: 80 | V24: 1.176470588 | W24: 75 | X24: 1.102941176
A25: Metropolitana | B25: Domingos Martins | C25: 424 | D25: 424 | E25: 411 | F25: 411 | G25: 417 | H25: 0.983490566 | I25: 163 | J25: 0.396593674 | K25: 401 | L25: 0.945754717 | M25: 391 | N25: 0.9221698113 | O25: 711 | P25: 1.676886792 | Q25: 414 | R25: 0.9764150943 | S25: 367 | T25: 0.8929440389 | U25: 523 | V25: 1.272506083 | W25: 439 | X25: 1.068126521
A26: Sul | B26: Dores do Rio Preto | C26: 94 | D26: 94 | E26: 92 | F26: 92 | G26: 74 | H26: 0.7872340426 | I26: 24 | J26: 0.2608695652 | K26: 118 | L26: 1.255319149 | M26: 119 | N26: 1.265957447 | O26: 148 | P26: 1.574468085 | Q26: 95 | R26: 1.010638298 | S26: 76 | T26: 0.8260869565 | U26: 91 | V26: 0.9891304348 | W26: 78 | X26: 0.847826087
A27: Norte | B27: Ecoporanga | C27: 261 | D27: 261 | E27: 283 | F27: 283 | G27: 274 | H27: 1.049808429 | I27: 92 | J27: 0.3250883392 | K27: 245 | L27: 0.938697318 | M27: 252 | N27: 0.9655172414 | O27: 386 | P27: 1.478927203 | Q27: 243 | R27: 0.9310344828 | S27: 244 | T27: 0.8621908127 | U27: 274 | V27: 0.9681978799 | W27: 247 | X27: 0.8727915194
A28: Metropolitana | B28: Fundão | C28: 223 | D28: 223 | E28: 218 | F28: 218 | G28: 227 | H28: 1.01793722 | I28: 98 | J28: 0.4495412844 | K28: 211 | L28: 0.9461883408 | M28: 213 | N28: 0.9551569507 | O28: 337 | P28: 1.511210762 | Q28: 215 | R28: 0.9641255605 | S28: 155 | T28: 0.7110091743 | U28: 220 | V28: 1.009174312 | W28: 212 | X28: 0.9724770642
A29: Central | B29: Governador Lindenberg | C29: 117 | D29: 117 | E29: 142 | F29: 142 | G29: 138 | H29: 1.179487179 | I29: 54 | J29: 0.3802816901 | K29: 138 | L29: 1.179487179 | M29: 141 | N29: 1.205128205 | O29: 263 | P29: 2.247863248 | Q29: 136 | R29: 1.162393162 | S29: 118 | T29: 0.8309859155 | U29: 154 | V29: 1.084507042 | W29: 132 | X29: 0.9295774648
A30: Sul | B30: Guaçuí | C30: 383 | D30: 383 | E30: 407 | F30: 407 | G30: 311 | H30: 0.8120104439 | I30: 76 | J30: 0.1867321867 | K30: 390 | L30: 1.018276762 | M30: 401 | N30: 1.046997389 | O30: 584 | P30: 1.524804178 | Q30: 373 | R30: 0.9738903394 | S30: 295 | T30: 0.7248157248 | U30: 393 | V30: 0.9656019656 | W30: 353 | X30: 0.8673218673
A31: Metropolitana | B31: Guarapari | C31: 1709 | D31: 1709 | E31: 1557 | F31: 1557 | G31: 1242 | H31: 0.7267407841 | I31: 431 | J31: 0.2768143866 | K31: 1531 | L31: 0.8958455237 | M31: 1512 | N31: 0.8847279111 | O31: 1745 | P31: 1.02106495 | Q31: 1389 | R31: 0.8127559977 | S31: 1000 | T31: 0.6422607579 | U31: 1290 | V31: 0.8285163776 | W31: 1429 | X31: 0.917790623
A32: Metropolitana | B32: Ibatiba | C32: 380 | D32: 380 | E32: 354 | F32: 354 | G32: 353 | H32: 0.9289473684 | I32: 98 | J32: 0.2768361582 | K32: 382 | L32: 1.005263158 | M32: 388 | N32: 1.021052632 | O32: 558 | P32: 1.468421053 | Q32: 374 | R32: 0.9842105263 | S32: 310 | T32: 0.8757062147 | U32: 286 | V32: 0.8079096045 | W32: 340 | X32: 0.9604519774
A33: Metropolitana | B33: Ibiraçu | C33: 158 | D33: 158 | E33: 160 | F33: 160 | G33: 120 | H33: 0.7594936709 | I33: 50 | J33: 0.3125 | K33: 128 | L33: 0.8101265823 | M33: 129 | N33: 0.8164556962 | O33: 263 | P33: 1.664556962 | Q33: 118 | R33: 0.746835443 | S33: 133 | T33: 0.83125 | U33: 241 | V33: 1.50625 | W33: 151 | X33: 0.94375
A34: Sul | B34: Ibitirama | C34: 144 | D34: 144 | E34: 148 | F34: 148 | G34: 134 | H34: 0.9305555556 | I34: 25 | J34: 0.1689189189 | K34: 135 | L34: 0.9375 | M34: 142 | N34: 0.9861111111 | O34: 234 | P34: 1.625 | Q34: 142 | R34: 0.9861111111 | S34: 63 | T34: 0.4256756757 | U34: 130 | V34: 0.8783783784 | W34: 72 | X34: 0.4864864865
A35: Sul | B35: Iconha | C35: 112 | D35: 112 | E35: 156 | F35: =E35/12*12 -> 156 | G35: 181 | H35: =G35/D35 -> 1.616071429 | I35: 37 | J35: =I35/F35 -> 0.2371794872 | K35: 129 | L35: =K35/D35 -> 1.151785714 | M35: 136 | N35: =M35/D35 -> 1.214285714 | O35: 233 | P35: =O35/D35 -> 2.080357143 | Q35: 132 | R35: =Q35/D35 -> 1.178571429 | S35: 149 | T35: =S35/F35 -> 0.9551282051 | U35: 153 | V35: =U35/F35 -> 0.9807692308 | W35: 148 | X35: =W35/F35 -> 0.9487179487
A36: Sul | B36: Irupi | C36: 174 | D36: 174 | E36: 200 | F36: 200 | G36: 185 | H36: 1.063218391 | I36: 48 | J36: 0.24 | K36: 227 | L36: 1.304597701 | M36: 231 | N36: 1.327586207 | O36: 278 | P36: 1.597701149 | Q36: 205 | R36: 1.17816092 | S36: 197 | T36: 0.985 | U36: 236 | V36: 1.18 | W36: 212 | X36: 1.06
A37: Metropolitana | B37: Itaguaçu | C37: 131 | D37: 131 | E37: 154 | F37: 154 | G37: 190 | H37: 1.450381679 | I37: 44 | J37: 0.2857142857 | K37: 136 | L37: 1.038167939 | M37: 143 | N37: 1.091603053 | O37: 276 | P37: 2.106870229 | Q37: 148 | R37: 1.129770992 | S37: 126 | T37: 0.8181818182 | U37: 178 | V37: 1.155844156 | W37: 141 | X37: 0.9155844156
A38: Sul | B38: Itapemirim | C38: 474 | D38: 474 | E38: 556 | F38: 556 | G38: 400 | H38: 0.8438818565 | I38: 138 | J38: 0.2482014388 | K38: 459 | L38: 0.9683544304 | M38: 470 | N38: 0.9915611814 | O38: 645 | P38: 1.360759494 | Q38: 447 | R38: 0.9430379747 | S38: 258 | T38: 0.464028777 | U38: 519 | V38: 0.9334532374 | W38: 460 | X38: 0.8273381295
A39: Metropolitana | B39: Itarana | C39: 134 | D39: 134 | E39: 128 | F39: 128 | G39: 145 | H39: 1.082089552 | I39: 52 | J39: 0.40625 | K39: 135 | L39: 1.007462687 | M39: 139 | N39: 1.037313433 | O39: 270 | P39: 2.014925373 | Q39: 125 | R39: 0.9328358209 | S39: 118 | T39: 0.921875 | U39: 184 | V39: 1.4375 | W39: 128 | X39: 1
A40: Sul | B40: Iúna | C40: 420 | D40: 420 | E40: 410 | F40: 410 | G40: 402 | H40: 0.9571428571 | I40: 101 | J40: 0.2463414634 | K40: 428 | L40: 1.019047619 | M40: 445 | N40: 1.05952381 | O40: 579 | P40: 1.378571429 | Q40: 382 | R40: 0.9095238095 | S40: 297 | T40: 0.7243902439 | U40: 435 | V40: 1.06097561 | W40: 330 | X40: 0.8048780488
A41: Norte | B41: Jaguaré | C41: 463 | D41: 463 | E41: 445 | F41: 445 | G41: 427 | H41: 0.9222462203 | I41: 127 | J41: 0.2853932584 | K41: 488 | L41: 1.05399568 | M41: 494 | N41: 1.066954644 | O41: 749 | P41: 1.617710583 | Q41: 465 | R41: 1.004319654 | S41: 420 | T41: 0.9438202247 | U41: 569 | V41: 1.278651685 | W41: 511 | X41: 1.148314607
A42: Sul | B42: Jerônimo Monteiro | C42: 129 | D42: 129 | E42: 157 | F42: 157 | G42: 168 | H42: 1.302325581 | I42: 22 | J42: 0.1401273885 | K42: 156 | L42: 1.209302326 | M42: 158 | N42: 1.224806202 | O42: 273 | P42: 2.11627907 | Q42: 166 | R42: 1.286821705 | S42: 114 | T42: 0.7261146497 | U42: 158 | V42: 1.006369427 | W42: 129 | X42: 0.821656051
A43: Metropolitana | B43: João Neiva | C43: 158 | D43: 158 | E43: 142 | F43: 142 | G43: 173 | H43: 1.094936709 | I43: 39 | J43: 0.2746478873 | K43: 174 | L43: 1.101265823 | M43: 184 | N43: 1.164556962 | O43: 241 | P43: 1.525316456 | Q43: 156 | R43: 0.9873417722 | S43: 133 | T43: 0.9366197183 | U43: 158 | V43: 1.112676056 | W43: 144 | X43: 1.014084507
A44: Metropolitana | B44: Laranja da Terra | C44: 97 | D44: 97 | E44: 133 | F44: 133 | G44: 140 | H44: 1.443298969 | I44: 65 | J44: 0.4887218045 | K44: 121 | L44: 1.24742268 | M44: 128 | N44: 1.319587629 | O44: 231 | P44: 2.381443299 | Q44: 132 | R44: 1.360824742 | S44: 110 | T44: 0.8270676692 | U44: 187 | V44: 1.406015038 | W44: 110 | X44: 0.8270676692
A45: Central | B45: Linhares | C45: 2627 | D45: 2627 | E45: 2452 | F45: 2452 | G45: 2246 | H45: 0.8549676437 | I45: 637 | J45: 0.2597879282 | K45: 2106 | L45: 0.8016749144 | M45: 2265 | N45: 0.8622002284 | O45: 3159 | P45: 1.202512372 | Q45: 2269 | R45: 0.8637228778 | S45: 1559 | T45: 0.6358075041 | U45: 2273 | V45: 0.9269983687 | W45: 2240 | X45: 0.9135399674
A46: Central | B46: Mantenópolis | C46: 138 | D46: 138 | E46: 166 | F46: 166 | G46: 147 | H46: 1.065217391 | I46: 52 | J46: 0.313253012 | K46: 161 | L46: 1.166666667 | M46: 161 | N46: 1.166666667 | O46: 220 | P46: 1.594202899 | Q46: 163 | R46: 1.18115942 | S46: 159 | T46: 0.9578313253 | U46: 180 | V46: 1.084337349 | W46: 158 | X46: 0.9518072289
A47: Sul | B47: Marataízes | C47: 536 | D47: 536 | E47: 579 | F47: 579 | G47: 524 | H47: 0.9776119403 | I47: 152 | J47: 0.2625215889 | K47: 580 | L47: 1.082089552 | M47: 580 | N47: 1.082089552 | O47: 731 | P47: 1.36380597 | Q47: 565 | R47: 1.054104478 | S47: 371 | T47: 0.6407599309 | U47: 564 | V47: 0.9740932642 | W47: 595 | X47: 1.027633851
A48: Metropolitana | B48: Marechal Floriano | C48: 197 | D48: 197 | E48: 236 | F48: 236 | G48: 198 | H48: 1.005076142 | I48: 101 | J48: 0.4279661017 | K48: 222 | L48: 1.126903553 | M48: 220 | N48: 1.116751269 | O48: 350 | P48: 1.776649746 | Q48: 206 | R48: 1.045685279 | S48: 182 | T48: 0.7711864407 | U48: 253 | V48: 1.072033898 | W48: 202 | X48: 0.8559322034
A49: Central | B49: Marilândia | C49: 144 | D49: 144 | E49: 164 | F49: 164 | G49: 162 | H49: 1.125 | I49: 50 | J49: 0.3048780488 | K49: 128 | L49: 0.8888888889 | M49: 128 | N49: 0.8888888889 | O49: 268 | P49: 1.861111111 | Q49: 139 | R49: 0.9652777778 | S49: 138 | T49: 0.8414634146 | U49: 210 | V49: 1.280487805 | W49: 150 | X49: 0.9146341463
A50: Sul | B50: Mimoso do Sul | C50: 233 | D50: 233 | E50: 276 | F50: 276 | G50: 193 | H50: 0.8283261803 | I50: 98 | J50: 0.3550724638 | K50: 206 | L50: 0.8841201717 | M50: 217 | N50: 0.9313304721 | O50: 259 | P50: 1.111587983 | Q50: 181 | R50: 0.7768240343 | S50: 198 | T50: 0.7173913043 | U50: 239 | V50: 0.865942029 | W50: 199 | X50: 0.7210144928
A51: Norte | B51: Montanha | C51: 227 | D51: 227 | E51: 278 | F51: 278 | G51: 329 | H51: 1.449339207 | I51: 102 | J51: 0.3669064748 | K51: 276 | L51: 1.215859031 | M51: 276 | N51: 1.215859031 | O51: 521 | P51: 2.295154185 | Q51: 272 | R51: 1.198237885 | S51: 249 | T51: 0.8956834532 | U51: 352 | V51: 1.26618705 | W51: 270 | X51: 0.9712230216
A52: Norte | B52: Mucurici | C52: 69 | D52: 69 | E52: 97 | F52: 97 | G52: 80 | H52: 1.15942029 | I52: 29 | J52: 0.2989690722 | K52: 85 | L52: 1.231884058 | M52: 87 | N52: 1.260869565 | O52: 87 | P52: 1.260869565 | Q52: 63 | R52: 0.9130434783 | S52: 70 | T52: 0.7216494845 | U52: 78 | V52: 0.8041237113 | W52: 75 | X52: 0.7731958763
A53: Sul | B53: Muniz Freire | C53: 207 | D53: 207 | E53: 275 | F53: 275 | G53: 305 | H53: 1.473429952 | I53: 29 | J53: 0.1054545455 | K53: 239 | L53: 1.154589372 | M53: 242 | N53: 1.169082126 | O53: 464 | P53: 2.241545894 | Q53: 242 | R53: 1.169082126 | S53: 241 | T53: 0.8763636364 | U53: 358 | V53: 1.301818182 | W53: 244 | X53: 0.8872727273
A54: Sul | B54: Muqui | C54: 131 | D54: 131 | E54: 152 | F54: 152 | G54: 171 | H54: 1.305343511 | I54: 66 | J54: 0.4342105263 | K54: 164 | L54: 1.251908397 | M54: 164 | N54: 1.251908397 | O54: 297 | P54: 2.267175573 | Q54: 154 | R54: 1.175572519 | S54: 135 | T54: 0.8881578947 | U54: 221 | V54: 1.453947368 | W54: 135 | X54: 0.8881578947
A55: Norte | B55: Nova Venécia | C55: 658 | D55: 658 | E55: 656 | F55: 656 | G55: 666 | H55: 1.012158055 | I55: 155 | J55: 0.2362804878 | K55: 620 | L55: 0.9422492401 | M55: 653 | N55: 0.9924012158 | O55: 925 | P55: 1.405775076 | Q55: 630 | R55: 0.9574468085 | S55: 562 | T55: 0.8567073171 | U55: 602 | V55: 0.9176829268 | W55: 655 | X55: 0.9984756098
A56: Central | B56: Pancas | C56: 200 | D56: 200 | E56: 244 | F56: 244 | G56: 237 | H56: 1.185 | I56: 54 | J56: 0.2213114754 | K56: 208 | L56: 1.04 | M56: 220 | N56: 1.1 | O56: 379 | P56: 1.895 | Q56: 205 | R56: 1.025 | S56: 191 | T56: 0.7827868852 | U56: 263 | V56: 1.077868852 | W56: 214 | X56: 0.8770491803
A57: Norte | B57: Pedro Canário | C57: 328 | D57: 328 | E57: 338 | F57: 338 | G57: 334 | H57: 1.018292683 | I57: 119 | J57: 0.3520710059 | K57: 335 | L57: 1.021341463 | M57: 337 | N57: 1.027439024 | O57: 510 | P57: 1.554878049 | Q57: 350 | R57: 1.067073171 | S57: 237 | T57: 0.701183432 | U57: 368 | V57: 1.088757396 | W57: 292 | X57: 0.8639053254
A58: Norte | B58: Pinheiros | C58: 314 | D58: 314 | E58: 383 | F58: 383 | G58: 257 | H58: 0.8184713376 | I58: 145 | J58: 0.3785900783 | K58: 315 | L58: 1.003184713 | M58: 321 | N58: 1.022292994 | O58: 382 | P58: 1.21656051 | Q58: 277 | R58: 0.8821656051 | S58: 238 | T58: 0.6214099217 | U58: 294 | V58: 0.7676240209 | W58: 281 | X58: 0.7336814621
A59: Sul | B59: Piúma | C59: 277 | D59: 277 | E59: 311 | F59: 311 | G59: 205 | H59: 0.7400722022 | I59: 72 | J59: 0.231511254 | K59: 261 | L59: 0.9422382671 | M59: 259 | N59: 0.9350180505 | O59: 357 | P59: 1.288808664 | Q59: 239 | R59: 0.8628158845 | S59: 197 | T59: 0.6334405145 | U59: 311 | V59: 1 | W59: 289 | X59: 0.9292604502
A60: Norte | B60: Ponto Belo | C60: 81 | D60: 81 | E60: 85 | F60: 85 | G60: 98 | H60: 1.209876543 | I60: 26 | J60: 0.3058823529 | K60: 88 | L60: 1.086419753 | M60: 91 | N60: 1.12345679 | O60: 204 | P60: 2.518518519 | Q60: 89 | R60: 1.098765432 | S60: 92 | T60: 1.082352941 | U60: 115 | V60: 1.352941176 | W60: 90 | X60: 1.058823529
A61: Sul | B61: Presidente Kennedy | C61: 185 | D61: 185 | E61: 239 | F61: 239 | G61: 234 | H61: 1.264864865 | I61: 66 | J61: 0.2761506276 | K61: 207 | L61: 1.118918919 | M61: 208 | N61: 1.124324324 | O61: 409 | P61: 2.210810811 | Q61: 205 | R61: 1.108108108 | S61: 192 | T61: 0.8033472803 | U61: 255 | V61: 1.066945607 | W61: 215 | X61: 0.89958159
A62: Central | B62: Rio Bananal | C62: 303 | D62: 303 | E62: 229 | F62: 229 | G62: 362 | H62: 1.194719472 | I62: 69 | J62: 0.3013100437 | K62: 296 | L62: 0.9768976898 | M62: 311 | N62: 1.02640264 | O62: 685 | P62: 2.260726073 | Q62: 301 | R62: 0.9933993399 | S62: 271 | T62: 1.183406114 | U62: 397 | V62: 1.733624454 | W62: 268 | X62: 1.170305677
A63: Sul | B63: Rio Novo do Sul | C63: 96 | D63: 96 | E63: 144 | F63: 144 | G63: 140 | H63: 1.458333333 | I63: 54 | J63: 0.375 | K63: 124 | L63: 1.291666667 | M63: 125 | N63: 1.302083333 | O63: 217 | P63: 2.260416667 | Q63: 132 | R63: 1.375 | S63: 97 | T63: 0.6736111111 | U63: 159 | V63: 1.104166667 | W63: 126 | X63: 0.875
A64: Metropolitana | B64: Santa Leopoldina | C64: 81 | D64: 81 | E64: 155 | F64: 155 | G64: 89 | H64: 1.098765432 | I64: 42 | J64: 0.2709677419 | K64: 114 | L64: 1.407407407 | M64: 118 | N64: 1.456790123 | O64: 181 | P64: 2.234567901 | Q64: 110 | R64: 1.358024691 | S64: 95 | T64: 0.6129032258 | U64: 174 | V64: 1.122580645 | W64: 122 | X64: 0.7870967742
A65: Metropolitana | B65: Santa Maria de Jetibá | C65: 673 | D65: 673 | E65: 685 | F65: 685 | G65: 636 | H65: 0.9450222883 | I65: 149 | J65: 0.2175182482 | K65: 613 | L65: 0.9108469539 | M65: 639 | N65: 0.9494799406 | O65: 944 | P65: 1.402674591 | Q65: 626 | R65: 0.9301634473 | S65: 463 | T65: 0.6759124088 | U65: 626 | V65: 0.9138686131 | W65: 580 | X65: 0.8467153285
A66: Metropolitana | B66: Santa Teresa | C66: 294 | D66: 294 | E66: 260 | F66: 260 | G66: 259 | H66: 0.880952381 | I66: 121 | J66: 0.4653846154 | K66: 274 | L66: 0.9319727891 | M66: 265 | N66: 0.9013605442 | O66: 414 | P66: 1.408163265 | Q66: 234 | R66: 0.7959183673 | S66: 264 | T66: 1.015384615 | U66: 293 | V66: 1.126923077 | W66: 271 | X66: 1.042307692
A67: Central | B67: São Domingos do Norte | C67: 117 | D67: 117 | E67: 117 | F67: =E67/12*12 -> 117 | G67: 107 | H67: =G67/D67 -> 0.9145299145 | I67: 29 | J67: =I67/F67 -> 0.2478632479 | K67: 112 | L67: =K67/D67 -> 0.9572649573 | M67: 115 | N67: =M67/D67 -> 0.9829059829 | O67: 152 | P67: =O67/D67 -> 1.299145299 | Q67: 97 | R67: =Q67/D67 -> 0.8290598291 | S67: 104 | T67: =S67/F67 -> 0.8888888889 | U67: 100 | V67: =U67/F67 -> 0.8547008547 | W67: 102 | X67: =W67/F67 -> 0.8717948718
A68: Central | B68: São Gabriel da Palha | C68: 415 | D68: 415 | E68: 426 | F68: 426 | G68: 452 | H68: 1.089156627 | I68: 134 | J68: 0.3145539906 | K68: 406 | L68: 0.978313253 | M68: 403 | N68: 0.9710843373 | O68: 524 | P68: 1.262650602 | Q68: 379 | R68: 0.913253012 | S68: 439 | T68: 1.030516432 | U68: 473 | V68: 1.110328638 | W68: 432 | X68: 1.014084507
A69: Sul | B69: São José do Calçado | C69: 104 | D69: 104 | E69: 150 | F69: 150 | G69: 110 | H69: 1.057692308 | I69: 35 | J69: 0.2333333333 | K69: 130 | L69: 1.25 | M69: 130 | N69: 1.25 | O69: 138 | P69: 1.326923077 | Q69: 112 | R69: 1.076923077 | S69: 116 | T69: 0.7733333333 | U69: 153 | V69: 1.02 | W69: 120 | X69: 0.8
A70: Norte | B70: São Mateus | C70: 1824 | D70: 1824 | E70: 1766 | F70: 1766 | G70: 1371 | H70: 0.7516447368 | I70: 540 | J70: 0.3057757644 | K70: 1668 | L70: 0.9144736842 | M70: 1631 | N70: 0.8941885965 | O70: 2092 | P70: 1.146929825 | Q70: 1504 | R70: 0.8245614035 | S70: 1119 | T70: 0.6336353341 | U70: 1439 | V70: 0.8148357871 | W70: 1463 | X70: 0.8284258211
A71: Central | B71: São Roque do Canaã | C71: 132 | D71: 132 | E71: 100 | F71: 100 | G71: 145 | H71: 1.098484848 | I71: 47 | J71: 0.47 | K71: 114 | L71: 0.8636363636 | M71: 117 | N71: 0.8863636364 | O71: 247 | P71: 1.871212121 | Q71: 128 | R71: 0.9696969697 | S71: 101 | T71: 1.01 | U71: 164 | V71: 1.64 | W71: 104 | X71: 1.04
A72: Metropolitana | B72: Serra | C72: 7327 | D72: 7327 | E72: 7550 | F72: 7550 | G72: 5573 | H72: 0.7606114372 | I72: 1485 | J72: 0.1966887417 | K72: 6258 | L72: 0.8541012693 | M72: 6261 | N72: 0.8545107138 | O72: 7258 | P72: 0.990582776 | Q72: 5853 | R72: 0.798826259 | S72: 4975 | T72: 0.6589403974 | U72: 5711 | V72: 0.7564238411 | W72: 6010 | X72: 0.7960264901
A73: Central | B73: Sooretama | C73: 448 | D73: 448 | E73: 415 | F73: 415 | G73: 381 | H73: 0.8504464286 | I73: 123 | J73: 0.2963855422 | K73: 406 | L73: 0.90625 | M73: 415 | N73: 0.9263392857 | O73: 687 | P73: 1.533482143 | Q73: 408 | R73: 0.9107142857 | S73: 445 | T73: 1.072289157 | U73: 679 | V73: 1.636144578 | W73: 440 | X73: 1.060240964
A74: Sul | B74: Vargem Alta | C74: 233 | D74: 233 | E74: 278 | F74: 278 | G74: 279 | H74: 1.197424893 | I74: 72 | J74: 0.2589928058 | K74: 261 | L74: 1.120171674 | M74: 259 | N74: 1.111587983 | O74: 443 | P74: 1.901287554 | Q74: 237 | R74: 1.017167382 | S74: 227 | T74: 0.8165467626 | U74: 340 | V74: 1.223021583 | W74: 246 | X74: 0.8848920863
A75: Metropolitana | B75: Venda Nova do Imigrante | C75: 345 | D75: 345 | E75: 328 | F75: 328 | G75: 470 | H75: 1.362318841 | I75: 84 | J75: 0.256097561 | K75: 412 | L75: 1.194202899 | M75: 400 | N75: 1.15942029 | O75: 816 | P75: 2.365217391 | Q75: 395 | R75: 1.144927536 | S75: 278 | T75: 0.8475609756 | U75: 395 | V75: 1.204268293 | W75: 298 | X75: 0.9085365854
A76: Metropolitana | B76: Viana | C76: 906 | D76: 906 | E76: 1064 | F76: 1064 | G76: 530 | H76: 0.5849889625 | I76: 222 | J76: 0.2086466165 | K76: 933 | L76: 1.029801325 | M76: 948 | N76: 1.046357616 | O76: 1089 | P76: 1.201986755 | Q76: 848 | R76: 0.93598234 | S76: 704 | T76: 0.6616541353 | U76: 965 | V76: 0.9069548872 | W76: 893 | X76: 0.8392857143
A77: Norte | B77: Vila Pavão | C77: 104 | D77: 104 | E77: 127 | F77: 127 | G77: 133 | H77: 1.278846154 | I77: 24 | J77: 0.188976378 | K77: 110 | L77: 1.057692308 | M77: 116 | N77: 1.115384615 | O77: 222 | P77: 2.134615385 | Q77: 120 | R77: 1.153846154 | S77: 114 | T77: 0.8976377953 | U77: 180 | V77: 1.417322835 | W77: 111 | X77: 0.874015748
A78: Central | B78: Vila Valério | C78: 237 | D78: 237 | E78: 169 | F78: 169 | G78: 242 | H78: 1.021097046 | I78: 90 | J78: 0.5325443787 | K78: 233 | L78: 0.9831223629 | M78: 219 | N78: 0.9240506329 | O78: 395 | P78: 1.666666667 | Q78: 212 | R78: 0.8945147679 | S78: 192 | T78: 1.136094675 | U78: 312 | V78: 1.846153846 | W78: 251 | X78: 1.485207101
A79: Metropolitana | B79: Vila Velha | C79: 5438 | D79: 5438 | E79: 5675 | F79: 5675 | G79: 4360 | H79: 0.8017653549 | I79: 1371 | J79: 0.2415859031 | K79: 4776 | L79: 0.8782640677 | M79: 4659 | N79: 0.8567488047 | O79: 5596 | P79: 1.0290548 | Q79: 4401 | R79: 0.8093048915 | S79: 4143 | T79: 0.7300440529 | U79: 4305 | V79: 0.7585903084 | W79: 4623 | X79: 0.8146255507
A80: Metropolitana | B80: Vitória | C80: 3496 | D80: 3496 | E80: 3833 | F80: 3833 | G80: 3380 | H80: 0.966819222 | I80: 1012 | J80: 0.2640229585 | K80: 3677 | L80: 1.051773455 | M80: 3281 | N80: 0.9385011442 | O80: 4694 | P80: 1.342677346 | Q80: 3771 | R80: 1.078661327 | S80: 2296 | T80: 0.5990086094 | U80: 3114 | V80: 0.8124184712 | W80: 3108 | X80: 0.8108531177
B82: Total Norte | C82: =SUMIF($A$3:$A$80,"Norte",C$3:C$80) -> 5620 | D82: =SUMIF($A$3:$A$80,"Norte",D$3:D$80) -> 5620 | E82: =SUMIF($A$3:$A$80,"Norte",E$3:E$80) -> 5789 | F82: =SUMIF($A$3:$A$80,"Norte",F$3:F$80) -> 5789 | G82: =SUMIF($A$3:$A$80,"Norte",G$3:G$80) -> 5211 | H82: =G82/D82 -> 0.9272241993 | I82: =SUMIF($A$3:$A$80,"Norte",I$3:I$80) -> 1754 | J82: =I82/F82 -> 0.3029884263 | K82: =SUMIF($A$3:$A$80,"Norte",K$3:K$80) -> 5465 | L82: =K82/D82 -> 0.9724199288 | M82: =SUMIF($A$3:$A$80,"Norte",M$3:M$80) -> 5514 | N82: =M82/D82 -> 0.98113879 | O82: =SUMIF($A$3:$A$80,"Norte",O$3:O$80) -> 8035 | P82: =O82/D82 -> 1.429715302 | Q82: =SUMIF($A$3:$A$80,"Norte",Q$3:Q$80) -> 5235 | R82: =Q82/D82 -> 0.9314946619 | S82: =SUMIF($A$3:$A$80,"Norte",S$3:S$80) -> 4438 | T82: =S82/F82 -> 0.7666263603 | U82: =SUMIF($A$3:$A$80,"Norte",U$3:U$80) -> 5704 | V82: =U82/F82 -> 0.9853169805 | W82: =SUMIF($A$3:$A$80,"Norte",W$3:W$80) -> 5276 | X82: =W82/F82 -> 0.9113836587
B83: Total Central | C83: =SUMIF($A$3:$A$80,"Central",C$3:C$80) -> 7008 | D83: =SUMIF($A$3:$A$80,"Central",D$3:D$80) -> 7008 | E83: =SUMIF($A$3:$A$80,"Central",E$3:E$80) -> 6843 | F83: =SUMIF($A$3:$A$80,"Central",F$3:F$80) -> 6843 | G83: =SUMIF($A$3:$A$80,"Central",G$3:G$80) -> 6604 | H83: =G83/D83 -> 0.9423515982 | I83: =SUMIF($A$3:$A$80,"Central",I$3:I$80) -> 1829 | J83: =I83/F83 -> 0.2672804326 | K83: =SUMIF($A$3:$A$80,"Central",K$3:K$80) -> 6359 | L83: =K83/D83 -> 0.9073915525 | M83: =SUMIF($A$3:$A$80,"Central",M$3:M$80) -> 6602 | N83: =M83/D83 -> 0.94206621 | O83: =SUMIF($A$3:$A$80,"Central",O$3:O$80) -> 9651 | P83: =O83/D83 -> 1.377140411 | Q83: =SUMIF($A$3:$A$80,"Central",Q$3:Q$80) -> 6390 | R83: =Q83/D83 -> 0.9118150685 | S83: =SUMIF($A$3:$A$80,"Central",S$3:S$80) -> 5156 | T83: =S83/F83 -> 0.7534707 | U83: =SUMIF($A$3:$A$80,"Central",U$3:U$80) -> 6995 | V83: =U83/F83 -> 1.02221248 | W83: =SUMIF($A$3:$A$80,"Central",W$3:W$80) -> 6229 | X83: =W83/F83 -> 0.910273272
B84: Total Metropolitana | C84: =SUMIF($A$3:$A$80,"Metropolitana",C$3:C$80) -> 29031 | D84: =SUMIF($A$3:$A$80,"Metropolitana",D$3:D$80) -> 29031 | E84: =SUMIF($A$3:$A$80,"Metropolitana",E$3:E$80) -> 30197 | F84: =SUMIF($A$3:$A$80,"Metropolitana",F$3:F$80) -> 30197 | G84: =SUMIF($A$3:$A$80,"Metropolitana",G$3:G$80) -> 24497 | H84: =G84/D84 -> 0.8438221212 | I84: =SUMIF($A$3:$A$80,"Metropolitana",I$3:I$80) -> 7752 | J84: =I84/F84 -> 0.2567142431 | K84: =SUMIF($A$3:$A$80,"Metropolitana",K$3:K$80) -> 26983 | L84: =K84/D84 -> 0.9294547208 | M84: =SUMIF($A$3:$A$80,"Metropolitana",M$3:M$80) -> 26627 | N84: =M84/D84 -> 0.9171919672 | O84: =SUMIF($A$3:$A$80,"Metropolitana",O$3:O$80) -> 34707 | P84: =O84/D84 -> 1.195515139 | Q84: =SUMIF($A$3:$A$80,"Metropolitana",Q$3:Q$80) -> 25728 | R84: =Q84/D84 -> 0.8862250698 | S84: =SUMIF($A$3:$A$80,"Metropolitana",S$3:S$80) -> 21251 | T84: =S84/F84 -> 0.7037454052 | U84: =SUMIF($A$3:$A$80,"Metropolitana",U$3:U$80) -> 25864 | V84: =U84/F84 -> 0.8565089247 | W84: =SUMIF($A$3:$A$80,"Metropolitana",W$3:W$80) -> 25788 | X84: =W84/F84 -> 0.8539921184
B85: Total Sul | C85: =SUMIF($A$3:$A$80,"sul",C$3:C$80) -> 7548 | D85: =SUMIF($A$3:$A$80,"sul",D$3:D$80) -> 7548 | E85: =SUMIF($A$3:$A$80,"sul",E$3:E$80) -> 8688 | F85: =SUMIF($A$3:$A$80,"sul",F$3:F$80) -> 8688 | G85: =SUMIF($A$3:$A$80,"sul",G$3:G$80) -> 7781 | H85: =G85/D85 -> 1.030869104 | I85: =SUMIF($A$3:$A$80,"sul",I$3:I$80) -> 2273 | J85: =I85/F85 -> 0.2616252302 | K85: =SUMIF($A$3:$A$80,"sul",K$3:K$80) -> 8192 | L85: =K85/D85 -> 1.085320615 | M85: =SUMIF($A$3:$A$80,"sul",M$3:M$80) -> 8370 | N85: =M85/D85 -> 1.108903021 | O85: =SUMIF($A$3:$A$80,"sul",O$3:O$80) -> 12138 | P85: =O85/D85 -> 1.608108108 | Q85: =SUMIF($A$3:$A$80,"sul",Q$3:Q$80) -> 7882 | R85: =Q85/D85 -> 1.044250132 | S85: =SUMIF($A$3:$A$80,"sul",S$3:S$80) -> 6149 | T85: =S85/F85 -> 0.7077578269 | U85: =SUMIF($A$3:$A$80,"sul",U$3:U$80) -> 8807 | V85: =U85/F85 -> 1.013697053 | W85: =SUMIF($A$3:$A$80,"sul",W$3:W$80) -> 7523 | X85: =W85/F85 -> 0.8659069982
B86: Total Espírito Santo | C86: =SUM(C3:C80) -> 49207 | D86: =SUM(D3:D80) -> 49207 | E86: =SUM(E3:E80) -> 51517 | F86: =SUM(F3:F80) -> 51517 | G86: =SUM(G3:G80) -> 44093 | H86: =G86/D86 -> 0.8960716971 | I86: =SUM(I3:I80) -> 13608 | J86: =I86/F86 -> 0.2641458159 | K86: =SUM(K3:K80) -> 46999 | L86: =K86/D86 -> 0.9551283354 | M86: =SUM(M3:M80) -> 47113 | N86: =M86/D86 -> 0.957445079 | O86: =SUM(O3:O80) -> 64531 | P86: =O86/D86 -> 1.311419107 | Q86: =SUM(Q3:Q80) -> 45235 | R86: =Q86/D86 -> 0.9192797773 | S86: =SUM(S3:S80) -> 36994 | T86: =S86/F86 -> 0.7180930567 | U86: =SUM(U3:U80) -> 47370 | V86: =U86/F86 -> 0.9195023002 | W86: =SUM(W3:W80) -> 44816 | X86: =W86/F86 -> 0.8699264321
A90: Fonte: Vacina e Confia, em 10, 11 e 14 abril de 2025.**
A91: **Dados referente às doses aplicadas no período de Janeiro a Dezembro de 2024
A92: Cobertura Calculada por município de procedência da vacinação
A93: 1 População anual extraída do MS/SVS/DASIS - SINASC/DASIS/SVS/MS 2024 referente ao período de janeiro a Dezembro de 2024.
A94: ² População proporcional extraída do MS/SVS/DASIS - SINASC/DASIS/SVS/MS 2024 referente ao período de janeiro e Dezembro de 2024.
A95: Sinasc, atualizado em 09 de Abril de 2025.
A96: ³ População anual e proporcional extraída do Censo IBGE 2022.
A97: Observações:
A98: Imunobiológicos que foram recebidos parcialmente pelo estado no mês da análise, sendo distribuídos em quantidades reduzidas às regionais e municípios: Soro Antirábico Humano, Vacina tríplice viral, Vacina COVID-19Monovalente (XBB)-Frasco, Vacina tetraviral, Imunoglobulina Antirrábica Humana, Vacina Tríplice Bacteriana (DTP), Febre Amarela
A99: Imunobiológicos indisponíveis no mês da análise, não sendo possível a distribuição às regionais e municípios: Vacina contra varicela, vacina tríplice acelular (DTPa) - CRIE, vacina COVID-19 MONOVALENTE (XBB) -SERINGA

Sheet CV REF 1A e 4A - residência
G1: D2 | K1: REFORÇOS 1 ANO | S1: REFORÇOS 4 ANOS
A2: Regional | B2: Município | C2: ¹População 1 ano anual | D2: ²População 1 ano proporcional | E2: ³População 4 anos anual | F2: ³População 4 anos proporcional | G2: DOSES APLICADAS D2 TRÍPLICE VIRAL | H2: COBERTURA D2 TRÍPLICE VIRAL | I2: DOSES APLICADAS D2 VARICELA | J2: COBERTURA D2 VARICELA | K2: DOSES APLICADAS REF PNEUMO | L2: COBERTURA REF PNEUMO | M2: DOSES APLICADAS REF MENINGO | N2: COBERTURA REF MENINGO | O2: DOSES APLICADAS R1 POLIO | P2: COBERTURA R1 POLIO | Q2: DOSES APLICADAS R1 TRÍPLICE BACTERIANA | R2: COBERTURA R1 TRÍPLICE BACTERIANA | S2: DOSES APLICADAS REF FEBRE AMARELA | T2: COBERTURA REF FEBRE AMARELA | U2: DOSES APLICADAS R2 POLIO | V2: COBERTURA R2 POLIO | W2: DOSES APLICADAS R2 TRÍPLICE BACTERIANA | X2: COBERTURA R2 TRÍPLICE BACTERIANA
A3: Metropolitana | B3: Afonso Cláudio | C3: 357 | D3: 357 | E3: 416 | F3: 416 | G3: 440 | H3: =G3/D3 -> 1.232492997 | I3: 95 | J3: =I3/F3 -> 0.2283653846 | K3: 372 | L3: =K3/D3 -> 1.042016807 | M3: 378 | N3: =M3/D3 -> 1.058823529 | O3: 798 | P3: =O3/D3 -> 2.235294118 | Q3: 385 | R3: =Q3/D3 -> 1.078431373 | S3: 337 | T3: =S3/F3 -> 0.8100961538 | U3: 531 | V3: =U3/F3 -> 1.276442308 | W3: 364 | X3: =W3/F3 -> 0.875
A4: Norte | B4: Água Doce do Norte | C4: 146 | D4: 146 | E4: 151 | F4: 151 | G4: 132 | H4: 0.904109589 | I4: 38 | J4: 0.2516556291 | K4: 145 | L4: 0.9931506849 | M4: 147 | N4: 1.006849315 | O4: 195 | P4: 1.335616438 | Q4: 134 | R4: 0.9178082192 | S4: 119 | T4: 0.7880794702 | U4: 147 | V4: 0.9735099338 | W4: 140 | X4: 0.9271523179
A5: Central | B5: Águia Branca | C5: 193 | D5: 193 | E5: 129 | F5: 129 | G5: 128 | H5: 0.6632124352 | I5: 30 | J5: 0.2325581395 | K5: 143 | L5: 0.7409326425 | M5: 147 | N5: 0.7616580311 | O5: 168 | P5: 0.8704663212 | Q5: 137 | R5: 0.7098445596 | S5: 97 | T5: 0.7519379845 | U5: 112 | V5: 0.8682170543 | W5: 111 | X5: 0.8604651163
A6: Sul | B6: Alegre | C6: 278 | D6: 278 | E6: 372 | F6: 372 | G6: 317 | H6: 1.14028777 | I6: 119 | J6: 0.3198924731 | K6: 321 | L6: 1.154676259 | M6: 324 | N6: 1.165467626 | O6: 549 | P6: 1.974820144 | Q6: 297 | R6: 1.068345324 | S6: 291 | T6: 0.7822580645 | U6: 475 | V6: 1.27688172 | W6: 318 | X6: 0.8548387097
A7: Sul | B7: Alfredo Chaves | C7: 119 | D7: 119 | E7: 138 | F7: 138 | G7: 120 | H7: 1.008403361 | I7: 57 | J7: 0.4130434783 | K7: 149 | L7: 1.25210084 | M7: 150 | N7: 1.260504202 | O7: 246 | P7: 2.067226891 | Q7: 136 | R7: 1.142857143 | S7: 138 | T7: 1 | U7: 259 | V7: 1.876811594 | W7: 142 | X7: 1.028985507
A8: Central | B8: Alto Rio Novo | C8: 89 | D8: 89 | E8: 102 | F8: 102 | G8: 87 | H8: 0.9775280899 | I8: 27 | J8: 0.2647058824 | K8: 91 | L8: 1.02247191 | M8: 91 | N8: 1.02247191 | O8: 152 | P8: 1.707865169 | Q8: 82 | R8: 0.9213483146 | S8: 68 | T8: 0.6666666667 | U8: 101 | V8: 0.9901960784 | W8: 80 | X8: 0.7843137255
A9: Sul | B9: Anchieta | C9: 338 | D9: 338 | E9: 390 | F9: 390 | G9: 401 | H9: 1.186390533 | I9: 123 | J9: 0.3153846154 | K9: 436 | L9: 1.289940828 | M9: 420 | N9: 1.24260355 | O9: 659 | P9: 1.949704142 | Q9: 407 | R9: 1.204142012 | S9: 331 | T9: 0.8487179487 | U9: 514 | V9: 1.317948718 | W9: 416 | X9: 1.066666667
A10: Sul | B10: Apiacá | C10: 74 | D10: 74 | E10: 90 | F10: 90 | G10: 54 | H10: 0.7297297297 | I10: 24 | J10: 0.2666666667 | K10: 66 | L10: 0.8918918919 | M10: 66 | N10: 0.8918918919 | O10: 79 | P10: 1.067567568 | Q10: 63 | R10: 0.8513513514 | S10: 15 | T10: 0.1666666667 | U10: 87 | V10: 0.9666666667 | W10: 67 | X10: 0.7444444444
A11: Metropolitana | B11: Aracruz | C11: 1365 | D11: 1365 | E11: 1420 | F11: 1420 | G11: 1357 | H11: 0.9941391941 | I11: 581 | J11: 0.4091549296 | K11: 1414 | L11: 1.035897436 | M11: 1443 | N11: 1.057142857 | O11: 2055 | P11: 1.505494505 | Q11: 1387 | R11: 1.016117216 | S11: 1059 | T11: 0.7457746479 | U11: 1413 | V11: 0.9950704225 | W11: 1342 | X11: 0.9450704225
A12: Sul | B12: Atilio Vivacqua | C12: 140 | D12: 140 | E12: 138 | F12: 138 | G12: 155 | H12: 1.107142857 | I12: 47 | J12: 0.3405797101 | K12: 156 | L12: 1.114285714 | M12: 156 | N12: 1.114285714 | O12: 258 | P12: 1.842857143 | Q12: 155 | R12: 1.107142857 | S12: 138 | T12: 1 | U12: 153 | V12: 1.108695652 | W12: 156 | X12: 1.130434783
A13: Central | B13: Baixo Guandu | C13: 345 | D13: 345 | E13: 427 | F13: 427 | G13: 372 | H13: 1.07826087 | I13: 114 | J13: 0.2669789227 | K13: 348 | L13: 1.008695652 | M13: 354 | N13: 1.026086957 | O13: 620 | P13: 1.797101449 | Q13: 355 | R13: 1.028985507 | S13: 310 | T13: 0.7259953162 | U13: 468 | V13: 1.096018735 | W13: 366 | X13: 0.8571428571
A14: Norte | B14: Barra de São Francisco | C14: 584 | D14: 584 | E14: 589 | F14: 589 | G14: 550 | H14: 0.9417808219 | I14: 166 | J14: 0.2818336163 | K14: 523 | L14: 0.8955479452 | M14: 527 | N14: 0.9023972603 | O14: 732 | P14: 1.253424658 | Q14: 508 | R14: 0.8698630137 | S14: 455 | T14: 0.7724957555 | U14: 465 | V14: 0.7894736842 | W14: 491 | X14: 0.8336162988
A15: Norte | B15: Boa Esperança | C15: 204 | D15: 204 | E15: 200 | F15: 200 | G15: 155 | H15: 0.7598039216 | I15: 59 | J15: 0.295 | K15: 202 | L15: 0.9901960784 | M15: 200 | N15: 0.9803921569 | O15: 300 | P15: 1.470588235 | Q15: 189 | R15: 0.9264705882 | S15: 145 | T15: 0.725 | U15: 225 | V15: 1.125 | W15: 192 | X15: 0.96
A16: Sul | B16: Bom Jesus do Norte | C16: 78 | D16: 78 | E16: 146 | F16: 146 | G16: 69 | H16: 0.8846153846 | I16: 18 | J16: 0.1232876712 | K16: 118 | L16: 1.512820513 | M16: 118 | N16: 1.512820513 | O16: 148 | P16: 1.897435897 | Q16: 92 | R16: 1.179487179 | S16: 61 | T16: 0.4178082192 | U16: 83 | V16: 0.5684931507 | W16: 62 | X16: 0.4246575342
A17: Metropolitana | B17: Brejetuba | C17: 209 | D17: 209 | E17: 169 | F17: 169 | G17: 207 | H17: 0.990430622 | I17: 55 | J17: 0.325443787 | K17: 189 | L17: 0.9043062201 | M17: 192 | N17: 0.9186602871 | O17: 328 | P17: 1.56937799 | Q17: 206 | R17: 0.985645933 | S17: 206 | T17: 1.218934911 | U17: 290 | V17: 1.715976331 | W17: 218 | X17: 1.289940828
A18: Sul | B18: Cachoeiro de Itapemirim | C18: 2142 | D18: 2142 | E18: 2417 | F18: 2417 | G18: 2114 | H18: 0.9869281046 | I18: 623 | J18: 0.2577575507 | K18: 2250 | L18: 1.050420168 | M18: 2320 | N18: 1.083099907 | O18: 3109 | P18: 1.451447246 | Q18: 2210 | R18: 1.031746032 | S18: 1502 | T18: 0.6214315267 | U18: 1947 | V18: 0.8055440629 | W18: 1918 | X18: 0.7935457178
A19: Metropolitana | B19: Cariacica | C19: 4758 | D19: 4758 | E19: 5005 | F19: 5005 | G19: 3806 | H19: 0.7999159311 | I19: 1318 | J19: 0.2633366633 | K19: 4398 | L19: 0.9243379571 | M19: 4395 | N19: 0.9237074401 | O19: 5386 | P19: 1.13198823 | Q19: 4130 | R19: 0.8680117697 | S19: 3589 | T19: 0.7170829171 | U19: 4244 | V19: 0.847952048 | W19: 4444 | X19: 0.8879120879
A20: Sul | B20: Castelo | C20: 390 | D20: 390 | E20: 399 | F20: 399 | G20: 429 | H20: 1.1 | I20: 112 | J20: 0.2807017544 | K20: 420 | L20: 1.076923077 | M20: 417 | N20: 1.069230769 | O20: 661 | P20: 1.694871795 | Q20: 411 | R20: 1.053846154 | S20: 330 | T20: 0.8270676692 | U20: 476 | V20: 1.192982456 | W20: 383 | X20: 0.9598997494
A21: Central | B21: Colatina | C21: 1503 | D21: 1503 | E21: 1561 | F21: 1561 | G21: 1411 | H21: 0.9387890885 | I21: 308 | J21: 0.197309417 | K21: 1407 | L21: 0.9361277445 | M21: 1475 | N21: 0.9813705921 | O21: 1762 | P21: 1.172322023 | Q21: 1363 | R21: 0.9068529607 | S21: 946 | T21: 0.6060217809 | U21: 1098 | V21: 0.7033952594 | W21: 1163 | X21: 0.7450352338
A22: Norte | B22: Conceição da Barra | C22: 357 | D22: 357 | E22: 391 | F22: 391 | G22: 398 | H22: 1.114845938 | I22: 120 | J22: 0.3069053708 | K22: 389 | L22: 1.089635854 | M22: 392 | N22: 1.098039216 | O22: 761 | P22: 2.131652661 | Q22: 398 | R22: 1.114845938 | S22: 347 | T22: 0.8874680307 | U22: 566 | V22: 1.447570332 | W22: 443 | X22: 1.132992327
A23: Metropolitana | B23: Conceição do Castelo | C23: 171 | D23: 171 | E23: 144 | F23: 144 | G23: 153 | H23: 0.8947368421 | I23: 48 | J23: 0.3333333333 | K23: 119 | L23: 0.6959064327 | M23: 126 | N23: 0.7368421053 | O23: 216 | P23: 1.263157895 | Q23: 134 | R23: 0.783625731 | S23: 134 | T23: 0.9305555556 | U23: 201 | V23: 1.395833333 | W23: 136 | X23: 0.9444444444
A24: Sul | B24: Divino de São Lourenço | C24: 57 | D24: 57 | E24: 68 | F24: 68 | G24: 55 | H24: 0.9649122807 | I24: 24 | J24: 0.3529411765 | K24: 60 | L24: 1.052631579 | M24: 60 | N24: 1.052631579 | O24: 81 | P24: 1.421052632 | Q24: 50 | R24: 0.8771929825 | S24: 74 | T24: 1.088235294 | U24: 78 | V24: 1.147058824 | W24: 70 | X24: 1.029411765
A25: Metropolitana | B25: Domingos Martins | C25: 424 | D25: 424 | E25: 411 | F25: 411 | G25: 404 | H25: 0.9528301887 | I25: 150 | J25: 0.3649635036 | K25: 398 | L25: 0.9386792453 | M25: 381 | N25: 0.8985849057 | O25: 701 | P25: 1.653301887 | Q25: 403 | R25: 0.9504716981 | S25: 351 | T25: 0.8540145985 | U25: 519 | V25: 1.262773723 | W25: 419 | X25: 1.01946472
A26: Sul | B26: Dores do Rio Preto | C26: 94 | D26: 94 | E26: 92 | F26: 92 | G26: 65 | H26: 0.6914893617 | I26: 20 | J26: 0.2173913043 | K26: 101 | L26: 1.074468085 | M26: 101 | N26: 1.074468085 | O26: 134 | P26: 1.425531915 | Q26: 84 | R26: 0.8936170213 | S26: 58 | T26: 0.6304347826 | U26: 70 | V26: 0.7608695652 | W26: 58 | X26: 0.6304347826
A27: Norte | B27: Ecoporanga | C27: 261 | D27: 261 | E27: 283 | F27: 283 | G27: 286 | H27: 1.095785441 | I27: 93 | J27: 0.3286219081 | K27: 254 | L27: 0.9731800766 | M27: 261 | N27: 1 | O27: 398 | P27: 1.524904215 | Q27: 257 | R27: 0.9846743295 | S27: 239 | T27: 0.8445229682 | U27: 267 | V27: 0.9434628975 | W27: 249 | X27: 0.8798586572
A28: Metropolitana | B28: Fundão | C28: 223 | D28: 223 | E28: 218 | F28: 218 | G28: 227 | H28: 1.01793722 | I28: 77 | J28: 0.3532110092 | K28: 214 | L28: 0.9596412556 | M28: 214 | N28: 0.9596412556 | O28: 324 | P28: 1.452914798 | Q28: 217 | R28: 0.9730941704 | S28: 133 | T28: 0.6100917431 | U28: 177 | V28: 0.8119266055 | W28: 175 | X28: 0.8027522936
A29: Central | B29: Governador Lindenberg | C29: 117 | D29: 117 | E29: 142 | F29: 142 | G29: 146 | H29: 1.247863248 | I29: 55 | J29: 0.3873239437 | K29: 139 | L29: 1.188034188 | M29: 142 | N29: 1.213675214 | O29: 248 | P29: 2.11965812 | Q29: 139 | R29: 1.188034188 | S29: 117 | T29: 0.823943662 | U29: 159 | V29: 1.11971831 | W29: 128 | X29: 0.9014084507
A30: Sul | B30: Guaçuí | C30: 383 | D30: 383 | E30: 407 | F30: 407 | G30: 336 | H30: 0.8772845953 | I30: 77 | J30: 0.1891891892 | K30: 412 | L30: 1.075718016 | M30: 420 | N30: 1.096605744 | O30: 634 | P30: 1.65535248 | Q30: 392 | R30: 1.023498695 | S30: 285 | T30: 0.7002457002 | U30: 386 | V30: 0.9484029484 | W30: 341 | X30: 0.8378378378
A31: Metropolitana | B31: Guarapari | C31: 1709 | D31: 1709 | E31: 1557 | F31: 1557 | G31: 1285 | H31: 0.7519016969 | I31: 408 | J31: 0.2620423892 | K31: 1555 | L31: 0.9098888239 | M31: 1547 | N31: 0.9052077238 | O31: 1809 | P31: 1.058513751 | Q31: 1418 | R31: 0.8297249854 | S31: 989 | T31: 0.6351958895 | U31: 1261 | V31: 0.8098908157 | W31: 1384 | X31: 0.8888888889
A32: Metropolitana | B32: Ibatiba | C32: 380 | D32: 380 | E32: 354 | F32: 354 | G32: 345 | H32: 0.9078947368 | I32: 96 | J32: 0.2711864407 | K32: 381 | L32: 1.002631579 | M32: 385 | N32: 1.013157895 | O32: 555 | P32: 1.460526316 | Q32: 360 | R32: 0.9473684211 | S32: 286 | T32: 0.8079096045 | U32: 284 | V32: 0.802259887 | W32: 327 | X32: 0.9237288136
A33: Metropolitana | B33: Ibiraçu | C33: 158 | D33: 158 | E33: 160 | F33: 160 | G33: 113 | H33: 0.7151898734 | I33: 49 | J33: 0.30625 | K33: 135 | L33: 0.8544303797 | M33: 134 | N33: 0.8481012658 | O33: 241 | P33: 1.525316456 | Q33: 116 | R33: 0.7341772152 | S33: 132 | T33: 0.825 | U33: 230 | V33: 1.4375 | W33: 144 | X33: 0.9
A34: Sul | B34: Ibitirama | C34: 144 | D34: 144 | E34: 148 | F34: 148 | G34: 127 | H34: 0.8819444444 | I34: 34 | J34: 0.2297297297 | K34: 135 | L34: 0.9375 | M34: 142 | N34: 0.9861111111 | O34: 217 | P34: 1.506944444 | Q34: 137 | R34: 0.9513888889 | S34: 79 | T34: 0.5337837838 | U34: 141 | V34: 0.9527027027 | W34: 89 | X34: 0.6013513514
A35: Sul | B35: Iconha | C35: 112 | D35: 112 | E35: 156 | F35: 156 | G35: 168 | H35: =G35/D35 -> 1.5 | I35: 36 | J35: =I35/F35 -> 0.2307692308 | K35: 132 | L35: =K35/D35 -> 1.178571429 | M35: 138 | N35: =M35/D35 -> 1.232142857 | O35: 226 | P35: =O35/D35 -> 2.017857143 | Q35: 132 | R35: =Q35/D35 -> 1.178571429 | S35: 137 | T35: =S35/F35 -> 0.8782051282 | U35: 135 | V35: =U35/F35 -> 0.8653846154 | W35: 137 | X35: =W35/F35 -> 0.8782051282
A36: Sul | B36: Irupi | C36: 174 | D36: 174 | E36: 200 | F36: 200 | G36: 184 | H36: 1.057471264 | I36: 52 | J36: 0.26 | K36: 215 | L36: 1.235632184 | M36: 218 | N36: 1.252873563 | O36: 281 | P36: 1.614942529 | Q36: 193 | R36: 1.109195402 | S36: 196 | T36: 0.98 | U36: 227 | V36: 1.135 | W36: 202 | X36: 1.01
A37: Metropolitana | B37: Itaguaçu | C37: 131 | D37: 131 | E37: 154 | F37: 154 | G37: 190 | H37: 1.450381679 | I37: 43 | J37: 0.2792207792 | K37: 140 | L37: 1.06870229 | M37: 143 | N37: 1.091603053 | O37: 274 | P37: 2.091603053 | Q37: 149 | R37: 1.13740458 | S37: 122 | T37: 0.7922077922 | U37: 174 | V37: 1.12987013 | W37: 134 | X37: 0.8701298701
A38: Sul | B38: Itapemirim | C38: 474 | D38: 474 | E38: 556 | F38: 556 | G38: 430 | H38: 0.9071729958 | I38: 144 | J38: 0.2589928058 | K38: 465 | L38: 0.9810126582 | M38: 473 | N38: 0.9978902954 | O38: 663 | P38: 1.398734177 | Q38: 464 | R38: 0.9789029536 | S38: 294 | T38: 0.5287769784 | U38: 546 | V38: 0.9820143885 | W38: 486 | X38: 0.8741007194
A39: Metropolitana | B39: Itarana | C39: 134 | D39: 134 | E39: 128 | F39: 128 | G39: 143 | H39: 1.067164179 | I39: 49 | J39: 0.3828125 | K39: 132 | L39: 0.9850746269 | M39: 133 | N39: 0.9925373134 | O39: 254 | P39: 1.895522388 | Q39: 128 | R39: 0.9552238806 | S39: 101 | T39: 0.7890625 | U39: 167 | V39: 1.3046875 | W39: 116 | X39: 0.90625
A40: Sul | B40: Iúna | C40: 420 | D40: 420 | E40: 410 | F40: 410 | G40: 406 | H40: 0.9666666667 | I40: 91 | J40: 0.2219512195 | K40: 430 | L40: 1.023809524 | M40: 450 | N40: 1.071428571 | O40: 597 | P40: 1.421428571 | Q40: 400 | R40: 0.9523809524 | S40: 278 | T40: 0.6780487805 | U40: 410 | V40: 1 | W40: 316 | X40: 0.7707317073
A41: Norte | B41: Jaguaré | C41: 463 | D41: 463 | E41: 445 | F41: 445 | G41: 439 | H41: 0.9481641469 | I41: 127 | J41: 0.2853932584 | K41: 495 | L41: 1.069114471 | M41: 504 | N41: 1.088552916 | O41: 772 | P41: 1.667386609 | Q41: 477 | R41: 1.030237581 | S41: 413 | T41: 0.9280898876 | U41: 559 | V41: 1.256179775 | W41: 499 | X41: 1.121348315
A42: Sul | B42: Jerônimo Monteiro | C42: 129 | D42: 129 | E42: 157 | F42: 157 | G42: 165 | H42: 1.279069767 | I42: 29 | J42: 0.1847133758 | K42: 159 | L42: 1.23255814 | M42: 166 | N42: 1.286821705 | O42: 258 | P42: 2 | Q42: 156 | R42: 1.209302326 | S42: 104 | T42: 0.6624203822 | U42: 148 | V42: 0.9426751592 | W42: 117 | X42: 0.7452229299
A43: Metropolitana | B43: João Neiva | C43: 158 | D43: 158 | E43: 142 | F43: 142 | G43: 164 | H43: 1.037974684 | I43: 44 | J43: 0.3098591549 | K43: 170 | L43: 1.075949367 | M43: 175 | N43: 1.107594937 | O43: 237 | P43: 1.5 | Q43: 157 | R43: 0.9936708861 | S43: 132 | T43: 0.9295774648 | U43: 158 | V43: 1.112676056 | W43: 143 | X43: 1.007042254
A44: Metropolitana | B44: Laranja da Terra | C44: 97 | D44: 97 | E44: 133 | F44: 133 | G44: 126 | H44: 1.298969072 | I44: 57 | J44: 0.4285714286 | K44: 114 | L44: 1.175257732 | M44: 117 | N44: 1.206185567 | O44: 212 | P44: 2.18556701 | Q44: 115 | R44: 1.18556701 | S44: 108 | T44: 0.8120300752 | U44: 177 | V44: 1.330827068 | W44: 110 | X44: 0.8270676692
A45: Central | B45: Linhares | C45: 2627 | D45: 2627 | E45: 2452 | F45: 2452 | G45: 2275 | H45: 0.8660068519 | I45: 677 | J45: 0.2761011419 | K45: 2147 | L45: 0.8172820708 | M45: 2260 | N45: 0.8602969166 | O45: 3202 | P45: 1.218880853 | Q45: 2275 | R45: 0.8660068519 | S45: 1649 | T45: 0.6725122349 | U45: 2401 | V45: 0.9792006525 | W45: 2349 | X45: 0.9579934747
A46: Central | B46: Mantenópolis | C46: 138 | D46: 138 | E46: 166 | F46: 166 | G46: 142 | H46: 1.028985507 | I46: 51 | J46: 0.3072289157 | K46: 158 | L46: 1.144927536 | M46: 158 | N46: 1.144927536 | O46: 228 | P46: 1.652173913 | Q46: 159 | R46: 1.152173913 | S46: 151 | T46: 0.9096385542 | U46: 165 | V46: 0.9939759036 | W46: 152 | X46: 0.9156626506
A47: Sul | B47: Marataízes | C47: 536 | D47: 536 | E47: 579 | F47: 579 | G47: 500 | H47: 0.9328358209 | I47: 141 | J47: 0.2435233161 | K47: 553 | L47: 1.031716418 | M47: 562 | N47: 1.048507463 | O47: 691 | P47: 1.289179104 | Q47: 535 | R47: 0.9981343284 | S47: 350 | T47: 0.6044905009 | U47: 520 | V47: 0.8981001727 | W47: 548 | X47: 0.9464594128
A48: Metropolitana | B48: Marechal Floriano | C48: 197 | D48: 197 | E48: 236 | F48: 236 | G48: 198 | H48: 1.005076142 | I48: 83 | J48: 0.3516949153 | K48: 217 | L48: 1.101522843 | M48: 215 | N48: 1.091370558 | O48: 341 | P48: 1.730964467 | Q48: 206 | R48: 1.045685279 | S48: 172 | T48: 0.7288135593 | U48: 221 | V48: 0.936440678 | W48: 186 | X48: 0.7881355932
A49: Central | B49: Marilândia | C49: 144 | D49: 144 | E49: 164 | F49: 164 | G49: 170 | H49: 1.180555556 | I49: 51 | J49: 0.3109756098 | K49: 146 | L49: 1.013888889 | M49: 148 | N49: 1.027777778 | O49: 280 | P49: 1.944444444 | Q49: 156 | R49: 1.083333333 | S49: 127 | T49: 0.7743902439 | U49: 188 | V49: 1.146341463 | W49: 139 | X49: 0.8475609756
A50: Sul | B50: Mimoso do Sul | C50: 233 | D50: 233 | E50: 276 | F50: 276 | G50: 211 | H50: 0.9055793991 | I50: 114 | J50: 0.4130434783 | K50: 226 | L50: 0.9699570815 | M50: 237 | N50: 1.017167382 | O50: 295 | P50: 1.266094421 | Q50: 202 | R50: 0.8669527897 | S50: 219 | T50: 0.7934782609 | U50: 272 | V50: 0.9855072464 | W50: 228 | X50: 0.8260869565
A51: Norte | B51: Montanha | C51: 227 | D51: 227 | E51: 278 | F51: 278 | G51: 328 | H51: 1.444933921 | I51: 102 | J51: 0.3669064748 | K51: 258 | L51: 1.136563877 | M51: 261 | N51: 1.149779736 | O51: 506 | P51: 2.22907489 | Q51: 270 | R51: 1.189427313 | S51: 253 | T51: 0.9100719424 | U51: 339 | V51: 1.21942446 | W51: 274 | X51: 0.9856115108
A52: Norte | B52: Mucurici | C52: 69 | D52: 69 | E52: 97 | F52: 97 | G52: 75 | H52: 1.086956522 | I52: 33 | J52: 0.3402061856 | K52: 86 | L52: 1.246376812 | M52: 86 | N52: 1.246376812 | O52: 84 | P52: 1.217391304 | Q52: 62 | R52: 0.8985507246 | S52: 73 | T52: 0.7525773196 | U52: 90 | V52: 0.9278350515 | W52: 81 | X52: 0.8350515464
A53: Sul | B53: Muniz Freire | C53: 207 | D53: 207 | E53: 275 | F53: 275 | G53: 286 | H53: 1.381642512 | I53: 39 | J53: 0.1418181818 | K53: 228 | L53: 1.101449275 | M53: 231 | N53: 1.115942029 | O53: 424 | P53: 2.048309179 | Q53: 233 | R53: 1.125603865 | S53: 242 | T53: 0.88 | U53: 346 | V53: 1.258181818 | W53: 239 | X53: 0.8690909091
A54: Sul | B54: Muqui | C54: 131 | D54: 131 | E54: 152 | F54: 152 | G54: 172 | H54: 1.312977099 | I54: 53 | J54: 0.3486842105 | K54: 155 | L54: 1.183206107 | M54: 158 | N54: 1.20610687 | O54: 287 | P54: 2.190839695 | Q54: 155 | R54: 1.183206107 | S54: 110 | T54: 0.7236842105 | U54: 184 | V54: 1.210526316 | W54: 121 | X54: 0.7960526316
A55: Norte | B55: Nova Venécia | C55: 658 | D55: 658 | E55: 656 | F55: 656 | G55: 629 | H55: 0.9559270517 | I55: 151 | J55: 0.2301829268 | K55: 644 | L55: 0.9787234043 | M55: 640 | N55: 0.9726443769 | O55: 882 | P55: 1.340425532 | Q55: 618 | R55: 0.9392097264 | S55: 537 | T55: 0.818597561 | U55: 587 | V55: 0.8948170732 | W55: 629 | X55: 0.9588414634
A56: Central | B56: Pancas | C56: 200 | D56: 200 | E56: 244 | F56: 244 | G56: 242 | H56: 1.21 | I56: 56 | J56: 0.2295081967 | K56: 233 | L56: 1.165 | M56: 240 | N56: 1.2 | O56: 385 | P56: 1.925 | Q56: 215 | R56: 1.075 | S56: 190 | T56: 0.7786885246 | U56: 262 | V56: 1.073770492 | W56: 210 | X56: 0.8606557377
A57: Norte | B57: Pedro Canário | C57: 328 | D57: 328 | E57: 338 | F57: 338 | G57: 335 | H57: 1.021341463 | I57: 113 | J57: 0.3343195266 | K57: 335 | L57: 1.021341463 | M57: 336 | N57: 1.024390244 | O57: 512 | P57: 1.56097561 | Q57: 354 | R57: 1.079268293 | S57: 234 | T57: 0.6923076923 | U57: 365 | V57: 1.079881657 | W57: 299 | X57: 0.8846153846
A58: Norte | B58: Pinheiros | C58: 314 | D58: 314 | E58: 383 | F58: 383 | G58: 307 | H58: 0.9777070064 | I58: 158 | J58: 0.4125326371 | K58: 375 | L58: 1.194267516 | M58: 370 | N58: 1.178343949 | O58: 459 | P58: 1.461783439 | Q58: 335 | R58: 1.066878981 | S58: 255 | T58: 0.6657963446 | U58: 316 | V58: 0.8250652742 | W58: 304 | X58: 0.7937336815
A59: Sul | B59: Piúma | C59: 277 | D59: 277 | E59: 311 | F59: 311 | G59: 211 | H59: 0.761732852 | I59: 69 | J59: 0.2218649518 | K59: 265 | L59: 0.9566787004 | M59: 263 | N59: 0.9494584838 | O59: 356 | P59: 1.285198556 | Q59: 245 | R59: 0.8844765343 | S59: 184 | T59: 0.5916398714 | U59: 279 | V59: 0.8971061093 | W59: 263 | X59: 0.845659164
A60: Norte | B60: Ponto Belo | C60: 81 | D60: 81 | E60: 85 | F60: 85 | G60: 103 | H60: 1.271604938 | I60: 21 | J60: 0.2470588235 | K60: 91 | L60: 1.12345679 | M60: 92 | N60: 1.135802469 | O60: 209 | P60: 2.580246914 | Q60: 93 | R60: 1.148148148 | S60: 76 | T60: 0.8941176471 | U60: 101 | V60: 1.188235294 | W60: 76 | X60: 0.8941176471
A61: Sul | B61: Presidente Kennedy | C61: 185 | D61: 185 | E61: 239 | F61: 239 | G61: 233 | H61: 1.259459459 | I61: 65 | J61: 0.2719665272 | K61: 215 | L61: 1.162162162 | M61: 218 | N61: 1.178378378 | O61: 415 | P61: 2.243243243 | Q61: 212 | R61: 1.145945946 | S61: 197 | T61: 0.8242677824 | U61: 255 | V61: 1.066945607 | W61: 216 | X61: 0.9037656904
A62: Central | B62: Rio Bananal | C62: 303 | D62: 303 | E62: 229 | F62: 229 | G62: 347 | H62: 1.145214521 | I62: 82 | J62: 0.3580786026 | K62: 272 | L62: 0.897689769 | M62: 294 | N62: 0.9702970297 | O62: 643 | P62: 2.122112211 | Q62: 292 | R62: 0.9636963696 | S62: 271 | T62: 1.183406114 | U62: 399 | V62: 1.742358079 | W62: 272 | X62: 1.187772926
A63: Sul | B63: Rio Novo do Sul | C63: 96 | D63: 96 | E63: 144 | F63: 144 | G63: 122 | H63: 1.270833333 | I63: 56 | J63: 0.3888888889 | K63: 117 | L63: 1.21875 | M63: 121 | N63: 1.260416667 | O63: 197 | P63: 2.052083333 | Q63: 117 | R63: 1.21875 | S63: 103 | T63: 0.7152777778 | U63: 160 | V63: 1.111111111 | W63: 125 | X63: 0.8680555556
A64: Metropolitana | B64: Santa Leopoldina | C64: 81 | D64: 81 | E64: 155 | F64: 155 | G64: 88 | H64: 1.086419753 | I64: 44 | J64: 0.2838709677 | K64: 122 | L64: 1.50617284 | M64: 124 | N64: 1.530864198 | O64: 171 | P64: 2.111111111 | Q64: 111 | R64: 1.37037037 | S64: 105 | T64: 0.6774193548 | U64: 170 | V64: 1.096774194 | W64: 133 | X64: 0.8580645161
A65: Metropolitana | B65: Santa Maria de Jetibá | C65: 673 | D65: 673 | E65: 685 | F65: 685 | G65: 614 | H65: 0.912332838 | I65: 156 | J65: 0.2277372263 | K65: 596 | L65: 0.8855869242 | M65: 609 | N65: 0.9049034175 | O65: 934 | P65: 1.38781575 | Q65: 601 | R65: 0.8930163447 | S65: 455 | T65: 0.6642335766 | U65: 608 | V65: 0.8875912409 | W65: 550 | X65: 0.802919708
A66: Metropolitana | B66: Santa Teresa | C66: 294 | D66: 294 | E66: 260 | F66: 260 | G66: 277 | H66: 0.9421768707 | I66: 117 | J66: 0.45 | K66: 284 | L66: 0.9659863946 | M66: 286 | N66: 0.9727891156 | O66: 434 | P66: 1.476190476 | Q66: 255 | R66: 0.8673469388 | S66: 274 | T66: 1.053846154 | U66: 313 | V66: 1.203846154 | W66: 285 | X66: 1.096153846
A67: Central | B67: São Domingos do Norte | C67: 117 | D67: 117 | E67: 117 | F67: 117 | G67: 118 | H67: =G67/D67 -> 1.008547009 | I67: 33 | J67: =I67/F67 -> 0.2820512821 | K67: 118 | L67: =K67/D67 -> 1.008547009 | M67: 122 | N67: =M67/D67 -> 1.042735043 | O67: 169 | P67: =O67/D67 -> 1.444444444 | Q67: 108 | R67: =Q67/D67 -> 0.9230769231 | S67: 119 | T67: =S67/F67 -> 1.017094017 | U67: 116 | V67: =U67/F67 -> 0.9914529915 | W67: 120 | X67: =W67/F67 -> 1.025641026
A68: Central | B68: São Gabriel da Palha | C68: 415 | D68: 415 | E68: 426 | F68: 426 | G68: 423 | H68: 1.019277108 | I68: 125 | J68: 0.29342723 | K68: 388 | L68: 0.934939759 | M68: 389 | N68: 0.9373493976 | O68: 494 | P68: 1.190361446 | Q68: 355 | R68: 0.8554216867 | S68: 403 | T68: 0.9460093897 | U68: 455 | V68: 1.068075117 | W68: 408 | X68: 0.9577464789
A69: Sul | B69: São José do Calçado | C69: 104 | D69: 104 | E69: 150 | F69: 150 | G69: 110 | H69: 1.057692308 | I69: 30 | J69: 0.2 | K69: 129 | L69: 1.240384615 | M69: 129 | N69: 1.240384615 | O69: 142 | P69: 1.365384615 | Q69: 116 | R69: 1.115384615 | S69: 105 | T69: 0.7 | U69: 144 | V69: 0.96 | W69: 112 | X69: 0.7466666667
A70: Norte | B70: São Mateus | C70: 1824 | D70: 1824 | E70: 1766 | F70: 1766 | G70: 1355 | H70: 0.742872807 | I70: 523 | J70: 0.2961494904 | K70: 1590 | L70: 0.8717105263 | M70: 1618 | N70: 0.8870614035 | O70: 2045 | P70: 1.121162281 | Q70: 1443 | R70: 0.7911184211 | S70: 1117 | T70: 0.6325028313 | U70: 1423 | V70: 0.8057757644 | W70: 1423 | X70: 0.8057757644
A71: Central | B71: São Roque do Canaã | C71: 132 | D71: 132 | E71: 100 | F71: 100 | G71: 138 | H71: 1.045454545 | I71: 42 | J71: 0.42 | K71: 121 | L71: 0.9166666667 | M71: 120 | N71: 0.9090909091 | O71: 237 | P71: 1.795454545 | Q71: 130 | R71: 0.9848484848 | S71: 101 | T71: 1.01 | U71: 154 | V71: 1.54 | W71: 104 | X71: 1.04
A72: Metropolitana | B72: Serra | C72: 7327 | D72: 7327 | E72: 7550 | F72: 7550 | G72: 5710 | H72: 0.7793094036 | I72: 1510 | J72: 0.2 | K72: 6399 | L72: 0.8733451617 | M72: 6339 | N72: 0.8651562713 | O72: 7505 | P72: 1.024293708 | Q72: 6061 | R72: 0.8272144124 | S72: 4931 | T72: 0.6531125828 | U72: 5701 | V72: 0.7550993377 | W72: 6030 | X72: 0.7986754967
A73: Central | B73: Sooretama | C73: 448 | D73: 448 | E73: 415 | F73: 415 | G73: 370 | H73: 0.8258928571 | I73: 127 | J73: 0.3060240964 | K73: 393 | L73: 0.8772321429 | M73: 401 | N73: 0.8950892857 | O73: 642 | P73: 1.433035714 | Q73: 390 | R73: 0.8705357143 | S73: 423 | T73: 1.019277108 | U73: 662 | V73: 1.595180723 | W73: 438 | X73: 1.055421687
A74: Sul | B74: Vargem Alta | C74: 233 | D74: 233 | E74: 278 | F74: 278 | G74: 286 | H74: 1.227467811 | I74: 74 | J74: 0.2661870504 | K74: 261 | L74: 1.120171674 | M74: 266 | N74: 1.141630901 | O74: 447 | P74: 1.918454936 | Q74: 251 | R74: 1.077253219 | S74: 227 | T74: 0.8165467626 | U74: 338 | V74: 1.215827338 | W74: 255 | X74: 0.9172661871
A75: Metropolitana | B75: Venda Nova do Imigrante | C75: 345 | D75: 345 | E75: 328 | F75: 328 | G75: 485 | H75: 1.405797101 | I75: 87 | J75: 0.2652439024 | K75: 400 | L75: 1.15942029 | M75: 393 | N75: 1.139130435 | O75: 834 | P75: 2.417391304 | Q75: 405 | R75: 1.173913043 | S75: 285 | T75: 0.868902439 | U75: 404 | V75: 1.231707317 | W75: 309 | X75: 0.9420731707
A76: Metropolitana | B76: Viana | C76: 906 | D76: 906 | E76: 1064 | F76: 1064 | G76: 586 | H76: 0.646799117 | I76: 249 | J76: 0.2340225564 | K76: 949 | L76: 1.047461369 | M76: 955 | N76: 1.054083885 | O76: 1107 | P76: 1.221854305 | Q76: 873 | R76: 0.9635761589 | S76: 750 | T76: 0.704887218 | U76: 998 | V76: 0.9379699248 | W76: 917 | X76: 0.8618421053
A77: Norte | B77: Vila Pavão | C77: 104 | D77: 104 | E77: 127 | F77: 127 | G77: 129 | H77: 1.240384615 | I77: 25 | J77: 0.1968503937 | K77: 113 | L77: 1.086538462 | M77: 114 | N77: 1.096153846 | O77: 222 | P77: 2.134615385 | Q77: 120 | R77: 1.153846154 | S77: 111 | T77: 0.874015748 | U77: 169 | V77: 1.330708661 | W77: 109 | X77: 0.8582677165
A78: Central | B78: Vila Valério | C78: 237 | D78: 237 | E78: 169 | F78: 169 | G78: 237 | H78: 1 | I78: 83 | J78: 0.4911242604 | K78: 237 | L78: 1 | M78: 219 | N78: 0.9240506329 | O78: 378 | P78: 1.594936709 | Q78: 214 | R78: 0.9029535865 | S78: 192 | T78: 1.136094675 | U78: 280 | V78: 1.656804734 | W78: 241 | X78: 1.426035503
A79: Metropolitana | B79: Vila Velha | C79: 5438 | D79: 5438 | E79: 5675 | F79: 5675 | G79: 4349 | H79: 0.7997425524 | I79: 1351 | J79: 0.238061674 | K79: 4805 | L79: 0.8835969106 | M79: 4709 | N79: 0.8659433615 | O79: 5671 | P79: 1.042846635 | Q79: 4455 | R79: 0.8192350129 | S79: 4060 | T79: 0.7154185022 | U79: 4320 | V79: 0.7612334802 | W79: 4627 | X79: 0.8153303965
A80: Metropolitana | B80: Vitória | C80: 3496 | D80: 3496 | E80: 3833 | F80: 3833 | G80: 3073 | H80: 0.8790045767 | I80: 915 | J80: 0.2387164101 | K80: 3304 | L80: 0.9450800915 | M80: 3109 | N80: 0.8893020595 | O80: 4153 | P80: 1.187929062 | Q80: 3262 | R80: 0.9330663616 | S80: 2202 | T80: 0.5744847378 | U80: 2907 | V80: 0.7584137751 | W80: 2840 | X80: 0.7409339943
B82: Total Norte | C82: =SUMIF($A$3:$A$80,"Norte",C$3:C$80) -> 5620 | D82: =SUMIF($A$3:$A$80,"Norte",D$3:D$80) -> 5620 | E82: =SUMIF($A$3:$A$80,"Norte",E$3:E$80) -> 5789 | F82: =SUMIF($A$3:$A$80,"Norte",F$3:F$80) -> 5789 | G82: =SUMIF($A$3:$A$80,"Norte",G$3:G$80) -> 5221 | H82: =G82/D82 -> 0.9290035587 | I82: =SUMIF($A$3:$A$80,"Norte",I$3:I$80) -> 1729 | J82: =I82/F82 -> 0.2986698912 | K82: =SUMIF($A$3:$A$80,"Norte",K$3:K$80) -> 5500 | L82: =K82/D82 -> 0.9786476868 | M82: =SUMIF($A$3:$A$80,"Norte",M$3:M$80) -> 5548 | N82: =M82/D82 -> 0.9871886121 | O82: =SUMIF($A$3:$A$80,"Norte",O$3:O$80) -> 8077 | P82: =O82/D82 -> 1.437188612 | Q82: =SUMIF($A$3:$A$80,"Norte",Q$3:Q$80) -> 5258 | R82: =Q82/D82 -> 0.9355871886 | S82: =SUMIF($A$3:$A$80,"Norte",S$3:S$80) -> 4374 | T82: =S82/F82 -> 0.7555709103 | U82: =SUMIF($A$3:$A$80,"Norte",U$3:U$80) -> 5619 | V82: =U82/F82 -> 0.970633961 | W82: =SUMIF($A$3:$A$80,"Norte",W$3:W$80) -> 5209 | X82: =W82/F82 -> 0.8998099845
B83: Total Central | C83: =SUMIF($A$3:$A$80,"Central",C$3:C$80) -> 7008 | D83: =SUMIF($A$3:$A$80,"Central",D$3:D$80) -> 7008 | E83: =SUMIF($A$3:$A$80,"Central",E$3:E$80) -> 6843 | F83: =SUMIF($A$3:$A$80,"Central",F$3:F$80) -> 6843 | G83: =SUMIF($A$3:$A$80,"Central",G$3:G$80) -> 6606 | H83: =G83/D83 -> 0.9426369863 | I83: =SUMIF($A$3:$A$80,"Central",I$3:I$80) -> 1861 | J83: =I83/F83 -> 0.2719567441 | K83: =SUMIF($A$3:$A$80,"Central",K$3:K$80) -> 6341 | L83: =K83/D83 -> 0.9048230594 | M83: =SUMIF($A$3:$A$80,"Central",M$3:M$80) -> 6560 | N83: =M83/D83 -> 0.9360730594 | O83: =SUMIF($A$3:$A$80,"Central",O$3:O$80) -> 9608 | P83: =O83/D83 -> 1.371004566 | Q83: =SUMIF($A$3:$A$80,"Central",Q$3:Q$80) -> 6370 | R83: =Q83/D83 -> 0.9089611872 | S83: =SUMIF($A$3:$A$80,"Central",S$3:S$80) -> 5164 | T83: =S83/F83 -> 0.7546397779 | U83: =SUMIF($A$3:$A$80,"Central",U$3:U$80) -> 7020 | V83: =U83/F83 -> 1.025865848 | W83: =SUMIF($A$3:$A$80,"Central",W$3:W$80) -> 6281 | X83: =W83/F83 -> 0.9178722782
B84: Total Metropolitana | C84: =SUMIF($A$3:$A$80,"Metropolitana",C$3:C$80) -> 29031 | D84: =SUMIF($A$3:$A$80,"Metropolitana",D$3:D$80) -> 29031 | E84: =SUMIF($A$3:$A$80,"Metropolitana",E$3:E$80) -> 30197 | F84: =SUMIF($A$3:$A$80,"Metropolitana",F$3:F$80) -> 30197 | G84: =SUMIF($A$3:$A$80,"Metropolitana",G$3:G$80) -> 24340 | H84: =G84/D84 -> 0.8384141091 | I84: =SUMIF($A$3:$A$80,"Metropolitana",I$3:I$80) -> 7582 | J84: =I84/F84 -> 0.2510845448 | K84: =SUMIF($A$3:$A$80,"Metropolitana",K$3:K$80) -> 26807 | L84: =K84/D84 -> 0.9233922359 | M84: =SUMIF($A$3:$A$80,"Metropolitana",M$3:M$80) -> 26502 | N84: =M84/D84 -> 0.9128862251 | O84: =SUMIF($A$3:$A$80,"Metropolitana",O$3:O$80) -> 34540 | P84: =O84/D84 -> 1.189762667 | Q84: =SUMIF($A$3:$A$80,"Metropolitana",Q$3:Q$80) -> 25534 | R84: =Q84/D84 -> 0.879542558 | S84: =SUMIF($A$3:$A$80,"Metropolitana",S$3:S$80) -> 20913 | T84: =S84/F84 -> 0.6925522403 | U84: =SUMIF($A$3:$A$80,"Metropolitana",U$3:U$80) -> 25468 | V84: =U84/F84 -> 0.8433950392 | W84: =SUMIF($A$3:$A$80,"Metropolitana",W$3:W$80) -> 25333 | X84: =W84/F84 -> 0.8389243965
B85: Total Sul | C85: =SUMIF($A$3:$A$80,"sul",C$3:C$80) -> 7548 | D85: =SUMIF($A$3:$A$80,"sul",D$3:D$80) -> 7548 | E85: =SUMIF($A$3:$A$80,"sul",E$3:E$80) -> 8688 | F85: =SUMIF($A$3:$A$80,"sul",F$3:F$80) -> 8688 | G85: =SUMIF($A$3:$A$80,"sul",G$3:G$80) -> 7726 | H85: =G85/D85 -> 1.023582406 | I85: =SUMIF($A$3:$A$80,"sul",I$3:I$80) -> 2271 | J85: =I85/F85 -> 0.2613950276 | K85: =SUMIF($A$3:$A$80,"sul",K$3:K$80) -> 8174 | L85: =K85/D85 -> 1.082935877 | M85: =SUMIF($A$3:$A$80,"sul",M$3:M$80) -> 8324 | N85: =M85/D85 -> 1.102808691 | O85: =SUMIF($A$3:$A$80,"sul",O$3:O$80) -> 12054 | P85: =O85/D85 -> 1.596979332 | Q85: =SUMIF($A$3:$A$80,"sul",Q$3:Q$80) -> 7845 | R85: =Q85/D85 -> 1.039348172 | S85: =SUMIF($A$3:$A$80,"sul",S$3:S$80) -> 6048 | T85: =S85/F85 -> 0.6961325967 | U85: =SUMIF($A$3:$A$80,"sul",U$3:U$80) -> 8633 | V85: =U85/F85 -> 0.9936694291 | W85: =SUMIF($A$3:$A$80,"sul",W$3:W$80) -> 7385 | X85: =W85/F85 -> 0.8500230203
B86: Total Espírito Santo | C86: =SUM(C3:C80) -> 49207 | D86: =SUM(D3:D80) -> 49207 | E86: =SUM(E3:E80) -> 51517 | F86: =SUM(F3:F80) -> 51517 | G86: =SUM(G3:G80) -> 43893 | H86: =G86/D86 -> 0.8920072347 | I86: =SUM(I3:I80) -> 13443 | J86: =I86/F86 -> 0.2609429897 | K86: =SUM(K3:K80) -> 46822 | L86: =K86/D86 -> 0.9515312862 | M86: =SUM(M3:M80) -> 46934 | N86: =M86/D86 -> 0.9538073851 | O86: =SUM(O3:O80) -> 64279 | P86: =O86/D86 -> 1.306297884 | Q86: =SUM(Q3:Q80) -> 45007 | R86: =Q86/D86 -> 0.9146462902 | S86: =SUM(S3:S80) -> 36499 | T86: =S86/F86 -> 0.7084845779 | U86: =SUM(U3:U80) -> 46740 | V86: =U86/F86 -> 0.9072733273 | W86: =SUM(W3:W80) -> 44208 | X86: =W86/F86 -> 0.8581245026
A90: Fonte: Vacina e Confia, em 10, 11 e 14 abril de 2025.**
A91: **Dados referente às doses aplicadas no período de Janeiro a Dezembro de 2024
A92: Cobertura Calculada por município de residência do cidadão (no Vacina e Confia, a origem da informação é o endereço que consta no cadastro do cidadão preenchido manualmente por meio do autocadastro ou pelo cadastro realizado por um profissional de saúde no momento do atendimento).
A93: 1 População anual extraída do MS/SVS/DASIS - SINASC/DASIS/SVS/MS 2024 referente ao período de janeiro a Dezembro de 2024.
A94: ² População proporcional extraída do MS/SVS/DASIS - SINASC/DASIS/SVS/MS 2024 referente ao período de janeiro e Dezembro de 2024.
A95: Sinasc, atualizado em 09 de Abril de 2025.
A96: ³ População anual e proporcional extraída do Censo IBGE 2022.
A97: Observações:
A98: Imunobiológicos que foram recebidos parcialmente pelo estado no mês da análise, sendo distribuídos em quantidades reduzidas às regionais e municípios: Soro Antirábico Humano, Vacina tríplice viral, Vacina COVID-19Monovalente (XBB)-Frasco, Vacina tetraviral, Imunoglobulina Antirrábica Humana, Vacina Tríplice Bacteriana (DTP), Febre Amarela
A99: Imunobiológicos indisponíveis no mês da análise, não sendo possível a distribuição às regionais e municípios: Vacina contra varicela, vacina tríplice acelular (DTPa) - CRIE, vacina COVID-19 MONOVALENTE (XBB) -SERINGA

Sheet Cobert. COVID-19 Menores 4 anos (hidden)
A1: Regional | B1: Município | C1: Série Histórica
A2: Região Metropolitana | B2: Afonso Cláudio
A3: Região Norte | B3: Água Doce do Norte
A4: Região Central | B4: Águia Branca
A5: Região Sul | B5: Alegre
A6: Região Sul | B6: Alfredo Chaves
A7: Região Central | B7: Alto Rio Novo
A8: Região Sul | B8: Anchieta
A9: Região Sul | B9: Apiacá
A10: Região Metropolitana | B10: Aracruz
A11: Região Sul | B11: Atilio Vivacqua
A12: Região Central | B12: Baixo Guandu
A13: Região Norte | B13: Barra de São Francisco
A14: Região Norte | B14: Boa Esperança
A15: Região Sul | B15: Bom Jesus do Norte
A16: Região Metropolitana | B16: Brejetuba
A17: Região Sul | B17: Cachoeiro de Itapemirim
A18: Região Metropolitana | B18: Cariacica
A19: Região Sul | B19: Castelo
A20: Região Central | B20: Colatina
A21: Região Norte | B21: Conceição da Barra
A22: Região Metropolitana | B22: Conceição do Castelo
A23: Região Sul | B23: Divino de São Lourenço
A24: Região Metropolitana | B24: Domingos Martins
A25: Região Sul | B25: Dores do Rio Preto
A26: Região Norte | B26: Ecoporanga
A27: Região Metropolitana | B27: Fundão
A28: Região Central | B28: Governador Lindenberg
A29: Região Sul | B29: Guaçuí
A30: Região Metropolitana | B30: Guarapari
A31: Região Metropolitana | B31: Ibatiba
A32: Região Metropolitana | B32: Ibiraçu
A33: Região Sul | B33: Ibitirama
A34: Região Sul | B34: Iconha
A35: Região Sul | B35: Irupi
A36: Região Metropolitana | B36: Itaguaçu
A37: Região Sul | B37: Itapemirim
A38: Região Metropolitana | B38: Itarana
A39: Região Sul | B39: Iúna
A40: Região Norte | B40: Jaguaré
A41: Região Sul | B41: Jerônimo Monteiro
A42: Região Metropolitana | B42: João Neiva
A43: Região Metropolitana | B43: Laranja da Terra
A44: Região Central | B44: Linhares
A45: Região Central | B45: Mantenópolis
A46: Região Sul | B46: Marataízes
A47: Região Metropolitana | B47: Marechal Floriano
A48: Região Central | B48: Marilândia
A49: Região Sul | B49: Mimoso do Sul
A50: Região Norte | B50: Montanha
A51: Região Norte | B51: Mucurici
A52: Região Sul | B52: Muniz Freire
A53: Região Sul | B53: Muqui
A54: Região Norte | B54: Nova Venécia
A55: Região Central | B55: Pancas
A56: Região Norte | B56: Pedro Canário
A57: Região Norte | B57: Pinheiros
A58: Região Sul | B58: Piúma
A59: Região Norte | B59: Ponto Belo
A60: Região Sul | B60: Presidente Kennedy
A61: Região Central | B61: Rio Bananal
A62: Região Sul | B62: Rio Novo do Sul
A63: Região Metropolitana | B63: Santa Leopoldina
A64: Região Metropolitana | B64: Santa Maria de Jetibá
A65: Região Metropolitana | B65: Santa Teresa
A66: Região Central | B66: São Domingos do Norte
A67: Região Central | B67: São Gabriel da Palha
A68: Região Sul | B68: São José do Calçado
A69: Região Norte | B69: São Mateus
A70: Região Central | B70: São Roque do Canaã
A71: Região Metropolitana | B71: Serra
A72: Região Central | B72: Sooretama
A73: Região Sul | B73: Vargem Alta
A74: Região Metropolitana | B74: Venda Nova do Imigrante
A75: Região Metropolitana | B75: Viana
A76: Região Norte | B76: Vila Pavão
A77: Região Central | B77: Vila Valério
A78: Região Metropolitana | B78: Vila Velha
A79: Região Metropolitana | B79: Vitória
B81: Espírito Santo
B82: Região Norte
B83: Região Central
B84: Região Metropolitana
B85: Região Sul
A87: Pfizer Pediátrica Menor de 5 anos e Coronavac
A88: Período avaliado: 2021-2024
A89: Fonte: https://www.vacinaeconfia.es.gov.br
A90: *Dados de janeiro/2024 extraídos do Vacina e Confia em 04/01/2024
A91: População proporcional extraída do SINASC 2022 (menores de 1 ano) e Censo IBGE 2022 (demais idades)
A92: Cobertura Calculada por município de procedência da vacinação

Sheet Cobert. Meningo C Adolescentes
A1: Regional | B1: Município | C1: Série Histórica
A2: Metropolitana | B2: Afonso Cláudio | C2: 62.75353411
A3: Central Norte | B3: Água Doce do Norte | C3: 77.40963855
A4: Central Norte | B4: Águia Branca | C4: 69.84126984
A5: Sul | B5: Alegre | C5: 78.38638046
A6: Sul | B6: Alfredo Chaves | C6: 52.53164557
A7: Central Norte | B7: Alto Rio Novo | C7: 101.2135922
A8: Sul | B8: Anchieta | C8: 89.61640212
A9: Sul | B9: Apiacá | C9: 33.24175824
A10: Metropolitana | B10: Aracruz | C10: 91.45979993
A11: Sul | B11: Atilio Vivacqua | C11: 94.53125
A12: Central Norte | B12: Baixo Guandu | C12: 73.65308804
A13: Central Norte | B13: Barra de São Francisco | C13: 76.40936687
A14: Central Norte | B14: Boa Esperança | C14: 69.56521739
A15: Sul | B15: Bom Jesus do Norte | C15: 61.22840691
A16: Metropolitana | B16: Brejetuba | C16: 95.35192563
A17: Sul | B17: Cachoeiro de Itapemirim | C17: 84.02831545
A18: Metropolitana | B18: Cariacica | C18: 82.4017401
A19: Sul | B19: Castelo | C19: 87.15365239
A20: Central Norte | B20: Colatina | C20: 73.64257461
A21: Central Norte | B21: Conceição da Barra | C21: 64.46613088
A22: Metropolitana | B22: Conceição do Castelo | C22: 93.41216216
A23: Sul | B23: Divino de São Lourenço | C23: 73.52941176
A24: Metropolitana | B24: Domingos Martins | C24: 90.18583043
A25: Sul | B25: Dores do Rio Preto | C25: 83.46456693
A26: Central Norte | B26: Ecoporanga | C26: 68.07387863
A27: Metropolitana | B27: Fundão | C27: 87.21174004
A28: Central Norte | B28: Governador Lindenberg | C28: 89.09090909
A29: Sul | B29: Guaçuí | C29: 73.07692308
A30: Metropolitana | B30: Guarapari | C30: 80.85203848
A31: Metropolitana | B31: Ibatiba | C31: 80.97982709
A32: Metropolitana | B32: Ibiraçu | C32: 84.66898955
A33: Sul | B33: Ibitirama | C33: 79.40663176
A34: Sul | B34: Iconha | C34: 88.38582677
A35: Sul | B35: Irupi | C35: 71.58034529
A36: Metropolitana | B36: Itaguaçu | C36: 73.37662338
A37: Sul | B37: Itapemirim | C37: 69.96148909
A38: Metropolitana | B38: Itarana | C38: 76.40186916
A39: Sul | B39: Iúna | C39: 73.08184143
A40: Central Norte | B40: Jaguaré | C40: 73.13266444
A41: Sul | B41: Jerônimo Monteiro | C41: 92.53996448
A42: Metropolitana | B42: João Neiva | C42: 83.91502276
A43: Metropolitana | B43: Laranja da Terra | C43: 77.04918033
A44: Central Norte | B44: Linhares | C44: 82.60776324
A45: Central Norte | B45: Mantenópolis | C45: 87.6056338
A46: Sul | B46: Marataízes | C46: 96.15899955
A47: Metropolitana | B47: Marechal Floriano | C47: 88.61171367
A48: Central Norte | B48: Marilândia | C48: 81.09090909
A49: Sul | B49: Mimoso do Sul | C49: 74.5470233
A50: Central Norte | B50: Montanha | C50: 86.38095238
A51: Central Norte | B51: Mucurici | C51: 71.93675889
A52: Sul | B52: Muniz Freire | C52: 77.05627706
A53: Sul | B53: Muqui | C53: 78.54984894
A54: Central Norte | B54: Nova Venécia | C54: 69.8556701
A55: Central Norte | B55: Pancas | C55: 76.00422833
A56: Central Norte | B56: Pedro Canário | C56: 77.73343974
A57: Central Norte | B57: Pinheiros | C57: 70.99505999
A58: Sul | B58: Piúma | C58: 77.44014733
A59: Central Norte | B59: Ponto Belo | C59: 68.43434343
A60: Sul | B60: Presidente Kennedy | C60: 97.53424658
A61: Central Norte | B61: Rio Bananal | C61: 94.64646465
A62: Sul | B62: Rio Novo do Sul | C62: 68.58237548
A63: Metropolitana | B63: Santa Leopoldina | C63: 56.22047244
A64: Metropolitana | B64: Santa Maria de Jetibá | C64: 85.21820741
A65: Metropolitana | B65: Santa Teresa | C65: 88.0455408
A66: Central Norte | B66: São Domingos do Norte | C66: 87.56097561
A67: Central Norte | B67: São Gabriel da Palha | C67: 68.06930693
A68: Sul | B68: São José do Calçado | C68: 72.46376812
A69: Central Norte | B69: São Mateus | C69: 70.5811138
A70: Central Norte | B70: São Roque do Canaã | C70: 90.75268817
A71: Metropolitana | B71: Serra | C71: 74.99054105
A72: Central Norte | B72: Sooretama | C72: 90.72886297
A73: Sul | B73: Vargem Alta | C73: 81.75675676
A74: Metropolitana | B74: Venda Nova do Imigrante | C74: 83.86809269
A75: Metropolitana | B75: Viana | C75: 80.59326295
A76: Central Norte | B76: Vila Pavão | C76: 100.4366812
A77: Central Norte | B77: Vila Valério | C77: 105.899705
A78: Metropolitana | B78: Vila Velha | C78: 87.09955923
A79: Metropolitana | B79: Vitória | C79: 86.42822146
A80: Total | C80: 83.61376828
A82: Meningocócica Conjudada C e Meningocócica ACWY
A83: Período avaliado: 2016-2024
A84: Fonte: http://tabnet.datasus.gov.br/ e https://www.vacinaeconfia.es.gov.br
A85: *Dados parciais. Dados de 2016 a 2022 extraídos do TABNET em 10/05/2024.
A86: *Dados de Janeiro/2023 a Dezembro/2024 extraídos do Vacina e Confia em Abril/2025
A87: População proporcional extraída do Censo IBGE 2022
A88: Cobertura Calculada por município de procedência da vacinação
A90: Observações:
A91: Imunobiológicos que foram recebidos parcialmente pelo estado no mês da análise, sendo distribuídos em quantidades reduzidas às regionais e municípios: Soro Antirábico Humano, Vacina tríplice viral, Vacina COVID-19Monovalente (XBB)-Frasco, Vacina tetraviral, Imunoglobulina Antirrábica Humana, Vacina Tríplice Bacteriana (DTP), Febre Amarela
A92: Imunobiológicos indisponíveis no mês da análise, não sendo possível a distribuição às regionais e municípios: Vacina contra varicela, vacina tríplice acelular (DTPa) - CRIE, vacina COVID-19 MONOVALENTE (XBB) -SERINGA

Sheet Cobert. HPV
A1: REGIONAL | B1: MUNICÍPIO | C1: HPV* Quadrivalente D1 Total - Feminino | D1: HPV* Quadrivalente D1 Total - Masculino
A2: METROPOLITANA | B2: Afonso Cláudio | C2: 97.93991416 | D2: 92.30769231
A3: CENTRAL-NORTE | B3: Água Doce do Norte | C3: 99.34354486 | D3: 90.36885246
A4: CENTRAL-NORTE | B4: Águia Branca | C4: 79.89276139 | D4: 86
A5: SUL | B5: Alegre | C5: 94.21965318 | D5: 78.80597015
A6: SUL | B6: Alfredo Chaves | C6: 95.44468547 | D6: 67.12871287
A7: CENTRAL-NORTE | B7: Alto Rio Novo | C7: 115.9322034 | D7: 110.3896104
A8: SUL | B8: Anchieta | C8: 104.3554007 | D8: 96.90987124
A9: SUL | B9: Apiacá | C9: 77.94117647 | D9: 64.36781609
A10: METROPOLITANA | B10: Aracruz | C10: 101.1122346 | D10: 101.1600379
A11: SUL | B11: Atílio Vivácqua | C11: 114.2493639 | D11: 104.9627792
A12: CENTRAL-NORTE | B12: Baixo Guandu | C12: 93.00518135 | D12: 90.92511013
A13: CENTRAL-NORTE | B13: Barra de São Francisco | C13: 89.36545241 | D13: 81.97183099
A14: CENTRAL-NORTE | B14: Boa Esperança | C14: 97.40740741 | D14: 63.06483301
A15: SUL | B15: Bom Jesus do Norte | C15: 88.04878049 | D15: 84.3575419
A16: METROPOLITANA | B16: Brejetuba | C16: 102.443281 | D16: 106.8541301
A17: SUL | B17: Cachoeiro de Itapemirim | C17: 97.00822737 | D17: 93.52226721
A18: METROPOLITANA | B18: Cariacica | C18: 97.11141678 | D18: 85.0286533
A19: SUL | B19: Castelo | C19: 101.8945634 | D19: 99.91596639
A20: CENTRAL-NORTE | B20: Colatina | C20: 65.96163305 | D20: 70.28159181
A21: CENTRAL-NORTE | B21: Conceição da Barra | C21: 89.92248062 | D21: 86.02825746
A22: METROPOLITANA | B22: Conceição do Castelo | C22: 112.2494432 | D22: 108.4051724
A23: SUL | B23: Divino de São Lourenço | C23: 97.8021978 | D23: 90.65420561
A24: METROPOLITANA | B24: Domingos Martins | C24: 106.6932271 | D24: 100.1485884
A25: SUL | B25: Dores do Rio Preto | C25: 118.0722892 | D25: 90.54054054
A26: CENTRAL-NORTE | B26: Ecoporanga | C26: 98.20282413 | D26: 82.65424913
A27: METROPOLITANA | B27: Fundão | C27: 92.26594301 | D27: 107.6811594
A28: CENTRAL-NORTE | B28: Governador Lindenberg | C28: 108.2887701 | D28: 97.94520548
A29: SUL | B29: Guaçuí | C29: 97.02702703 | D29: 79.19174549
A30: METROPOLITANA | B30: Guarapari | C30: 89.79676483 | D30: 85.16804186
A31: METROPOLITANA | B31: Ibatiba | C31: 106.7235859 | D31: 98.10640216
A32: METROPOLITANA | B32: Ibiraçu | C32: 107.3394495 | D32: 104.8565121
A33: SUL | B33: Ibitirama | C33: 65.04854369 | D33: 77.57437071
A34: SUL | B34: Iconha | C34: 106.9948187 | D34: 101.5306122
A35: SUL | B35: Irupi | C35: 79.96422182 | D35: 91.88712522
A36: METROPOLITANA | B36: Itaguaçu | C36: 100.9070295 | D36: 82.39277652
A37: SUL | B37: Itapemirim | C37: 83.82264829 | D37: 79.96623523
A38: METROPOLITANA | B38: Itarana | C38: 109.8976109 | D38: 95.72649573
A39: SUL | B39: Iúna | C39: 85.37005164 | D39: 91.20409906
A40: CENTRAL-NORTE | B40: Jaguaré | C40: 105.1262433 | D40: 98.03063457
A41: SUL | B41: Jerônimo Monteiro | C41: 104.5783133 | D41: 98.76847291
A42: METROPOLITANA | B42: João Neiva | C42: 101.5779093 | D42: 114.8796499
A43: METROPOLITANA | B43: Laranja da Terra | C43: 98.81305638 | D43: 88.64197531
A44: CENTRAL-NORTE | B44: Linhares | C44: 91.7826087 | D44: 91.71006334
A45: CENTRAL-NORTE | B45: Mantenópolis | C45: 96.8401487 | D45: 86.48111332
A46: SUL | B46: Marataízes | C46: 109.5384615 | D46: 111.5925059
A47: METROPOLITANA | B47: Marechal Floriano | C47: 112.6168224 | D47: 102.8653295
A48: CENTRAL-NORTE | B48: Marilândia | C48: 110.6888361 | D48: 129.9212598
A49: SUL | B49: Mimoso do Sul | C49: 92.44391972 | D49: 81.31736527
A50: CENTRAL-NORTE | B50: Montanha | C50: 109.6 | D50: 100.4926108
A51: CENTRAL-NORTE | B51: Mucurici | C51: 116.5644172 | D51: 85.12820513
A52: SUL | B52: Muniz Freire | C52: 106.4083458 | D52: 102.4113475
A53: SUL | B53: Muqui | C53: 95.951417 | D53: 87.8968254
A54: CENTRAL-NORTE | B54: Nova Venécia | C54: 107.7726218 | D54: 98.33938765
A55: CENTRAL-NORTE | B55: Pancas | C55: 102.5 | D55: 96.03825137
A56: CENTRAL-NORTE | B56: Pedro Canário | C56: 101.650165 | D56: 92.2513089
A57: CENTRAL-NORTE | B57: Pinheiros | C57: 89.60155491 | D57: 79.83193277
A58: SUL | B58: Piúma | C58: 81.57894737 | D58: 74.68643101
A59: CENTRAL-NORTE | B59: Ponto Belo | C59: 106.7567568 | D59: 103.2846715
A60: SUL | B60: Presidente Kennedy | C60: 100.1805054 | D60: 90.72847682
A61: CENTRAL-NORTE | B61: Rio Bananal | C61: 116.2125341 | D61: 121.4377407
A62: SUL | B62: Rio Novo do Sul | C62: 89.1598916 | D62: 89.02147971
A63: METROPOLITANA | B63: Santa Leopoldina | C63: 72.8285078 | D63: 59.87903226
A64: METROPOLITANA | B64: Santa Maria de Jetibá | C64: 109.0610637 | D64: 93.87755102
A65: METROPOLITANA | B65: Santa Teresa | C65: 116.6216216 | D65: 103.3290653
A66: CENTRAL-NORTE | B66: São Domingos do Norte | C66: 119.2567568 | D66: 110.0323625
A67: CENTRAL-NORTE | B67: São Gabriel da Palha | C67: 91.18869493 | D67: 91.83147034
A68: SUL | B68: São José do Calçado | C68: 93.61179361 | D68: 96.1352657
A69: CENTRAL-NORTE | B69: São Mateus | C69: 96.04000816 | D69: 83.2938856
A70: CENTRAL-NORTE | B70: São Roque do Canaã | C70: 111.7808219 | D70: 117.1253823
A71: METROPOLITANA | B71: Serra | C71: 91.68936701 | D71: 75.68084728
A72: CENTRAL-NORTE | B72: Sooretama | C72: 91.99066874 | D72: 101.9485581
A73: SUL | B73: Vargem Alta | C73: 105.065123 | D73: 90.79754601
A74: METROPOLITANA | B74: Venda Nova do Imigrante | C74: 115.7289003 | D74: 110.7947805
A75: METROPOLITANA | B75: Viana | C75: 105.5107055 | D75: 91.96515005
A76: CENTRAL-NORTE | B76: Vila Pavão | C76: 108.9595376 | D76: 95.97701149
A77: CENTRAL-NORTE | B77: Vila Valério | C77: 127.8508772 | D77: 99.45255474
A78: METROPOLITANA | B78: Vila Velha | C78: 101.0683629 | D78: 95.6765035
A79: METROPOLITANA | B79: Vitória | C79: 110.7135988 | D79: 99.25616836
A80: TOTAL | C80: 97.64 | D80: 89.03
A83: Cobertura Vacinal HPV 2024
A84: Período avaliado: 2013-2024
A85: Fonte: http://tabnet.datasus.gov.br/
A86: Fonte: https://www.vacinaeconfia.es.gov.br
A87: *Dados parciais. Dados de 2013 a 2022 extraídos do TABNET em 26/02/2025
A88: *Dados de Janeiro/2023 a Dezembro/2024 extraídos do Vacina e Confia em Abril/2025
A89: População proporcional extraída do Censo IBGE 2022
A90: Cobertura Calculada por município de procedência da vacinação
A92: Observações:
A93: Imunobiológicos que foram recebidos parcialmente pelo estado no mês da análise, sendo distribuídos em quantidades reduzidas às regionais e municípios: Soro Antirábico Humano, Vacina tríplice viral, Vacina COVID-19Monovalente (XBB)-Frasco, Vacina tetraviral, Imunoglobulina Antirrábica Humana, Vacina Tríplice Bacteriana (DTP), Febre Amarela
A94: Imunobiológicos indisponíveis no mês da análise, não sendo possível a distribuição às regionais e municípios: Vacina contra varicela, vacina tríplice acelular (DTPa) - CRIE, vacina COVID-19 MONOVALENTE (XBB) -SERINGA

Sheet dTpa gestantes - procedência
A1: REGIONAL | B1: MUNICÍPIO | C1: ¹POPULAÇÃO GESTANTE ANUAL | D1: ²POPULAÇÃO PROPORCIONAL | E1: DOSES APLICADAS dTpa GESTANTES | F1: COBERTURA VACINAL dTpa GESTANTES
A2: Metropolitana | B2: Afonso Cláudio | C2: 357 | D2: 357 | E2: 291 | F2: =E2/D2 -> 0.8151260504
A3: Norte | B3: Água Doce do Norte | C3: 146 | D3: 146 | E3: 136 | F3: =E3/D3 -> 0.9315068493
A4: Central | B4: Águia Branca | C4: 193 | D4: 193 | E4: 126 | F4: 0.6528497409
A5: Sul | B5: Alegre | C5: 278 | D5: 278 | E5: 291 | F5: 1.04676259
A6: Sul | B6: Alfredo Chaves | C6: 119 | D6: 119 | E6: 116 | F6: 0.974789916
A7: Central | B7: Alto Rio Novo | C7: 89 | D7: 89 | E7: 83 | F7: 0.9325842697
A8: Sul | B8: Anchieta | C8: 338 | D8: 338 | E8: 328 | F8: 0.9704142012
A9: Sul | B9: Apiacá | C9: 74 | D9: 74 | E9: 61 | F9: 0.8243243243
A10: Metropolitana | B10: Aracruz | C10: 1365 | D10: 1365 | E10: 1268 | F10: 0.9289377289
A11: Sul | B11: Atilio Vivacqua | C11: 140 | D11: 140 | E11: 147 | F11: 1.05
A12: Central | B12: Baixo Guandu | C12: 345 | D12: 345 | E12: 287 | F12: 0.831884058
A13: Norte | B13: Barra de São Francisco | C13: 584 | D13: 584 | E13: 434 | F13: 0.7431506849
A14: Norte | B14: Boa Esperança | C14: 204 | D14: 204 | E14: 173 | F14: 0.8480392157
A15: Sul | B15: Bom Jesus do Norte | C15: 78 | D15: 78 | E15: 80 | F15: 1.025641026
A16: Metropolitana | B16: Brejetuba | C16: 209 | D16: 209 | E16: 196 | F16: 0.9377990431
A17: Sul | B17: Cachoeiro de Itapemirim | C17: 2142 | D17: 2142 | E17: 1941 | F17: 0.906162465
A18: Metropolitana | B18: Cariacica | C18: 4758 | D18: 4758 | E18: 3742 | F18: 0.7864649012
A19: Sul | B19: Castelo | C19: 390 | D19: 390 | E19: 378 | F19: 0.9692307692
A20: Central | B20: Colatina | C20: 1503 | D20: 1503 | E20: 1318 | F20: 0.876912841
A21: Norte | B21: Conceição da Barra | C21: 357 | D21: 357 | E21: 346 | F21: 0.9691876751
A22: Metropolitana | B22: Conceição do Castelo | C22: 171 | D22: 171 | E22: 143 | F22: 0.8362573099
A23: Sul | B23: Divino de São Lourenço | C23: 57 | D23: 57 | E23: 40 | F23: 0.701754386
A24: Metropolitana | B24: Domingos Martins | C24: 424 | D24: 424 | E24: 436 | F24: 1.028301887
A25: Sul | B25: Dores do Rio Preto | C25: 94 | D25: 94 | E25: 98 | F25: 1.042553191
A26: Norte | B26: Ecoporanga | C26: 261 | D26: 261 | E26: 237 | F26: 0.908045977
A27: Metropolitana | B27: Fundão | C27: 223 | D27: 223 | E27: 197 | F27: 0.8834080717
A28: Central | B28: Governador Lindenberg | C28: 117 | D28: 117 | E28: 114 | F28: 0.9743589744
A29: Sul | B29: Guaçuí | C29: 383 | D29: 383 | E29: 279 | F29: 0.72845953
A30: Metropolitana | B30: Guarapari | C30: 1709 | D30: 1709 | E30: 1351 | F30: 0.7905207724
A31: Metropolitana | B31: Ibatiba | C31: 380 | D31: 380 | E31: 365 | F31: 0.9605263158
A32: Metropolitana | B32: Ibiraçu | C32: 158 | D32: 158 | E32: 137 | F32: 0.8670886076
A33: Sul | B33: Ibitirama | C33: 144 | D33: 144 | E33: 143 | F33: 0.9930555556
A34: Sul | B34: Iconha | C34: 112 | D34: 112 | E34: 120 | F34: 1.071428571
A35: Sul | B35: Irupi | C35: 174 | D35: 174 | E35: 177 | F35: 1.017241379
A36: Metropolitana | B36: Itaguaçu | C36: 131 | D36: 131 | E36: 128 | F36: 0.9770992366
A37: Sul | B37: Itapemirim | C37: 474 | D37: 474 | E37: 403 | F37: 0.8502109705
A38: Metropolitana | B38: Itarana | C38: 134 | D38: 134 | E38: 127 | F38: 0.947761194
A39: Sul | B39: Iúna | C39: 420 | D39: 420 | E39: 343 | F39: 0.8166666667
A40: Norte | B40: Jaguaré | C40: 463 | D40: 463 | E40: 441 | F40: 0.9524838013
A41: Sul | B41: Jerônimo Monteiro | C41: 129 | D41: 129 | E41: 125 | F41: 0.9689922481
A42: Metropolitana | B42: João Neiva | C42: 158 | D42: 158 | E42: 137 | F42: 0.8670886076
A43: Metropolitana | B43: Laranja da Terra | C43: 97 | D43: 97 | E43: 113 | F43: 1.164948454
A44: Central | B44: Linhares | C44: 2627 | D44: 2627 | E44: 2070 | F44: 0.7879710697
A45: Central | B45: Mantenópolis | C45: 138 | D45: 138 | E45: 123 | F45: 0.8913043478
A46: Sul | B46: Marataízes | C46: 536 | D46: 536 | E46: 513 | F46: 0.9570895522
A47: Metropolitana | B47: Marechal Floriano | C47: 197 | D47: 197 | E47: 191 | F47: 0.9695431472
A48: Central | B48: Marilândia | C48: 144 | D48: 144 | E48: 139 | F48: 0.9652777778
A49: Sul | B49: Mimoso do Sul | C49: 233 | D49: 233 | E49: 231 | F49: 0.991416309
A50: Norte | B50: Montanha | C50: 227 | D50: 227 | E50: 192 | F50: 0.845814978
A51: Norte | B51: Mucurici | C51: 69 | D51: 69 | E51: 63 | F51: 0.9130434783
A52: Sul | B52: Muniz Freire | C52: 207 | D52: 207 | E52: 212 | F52: 1.024154589
A53: Sul | B53: Muqui | C53: 131 | D53: 131 | E53: 144 | F53: 1.099236641
A54: Norte | B54: Nova Venécia | C54: 658 | D54: 658 | E54: 567 | F54: 0.8617021277
A55: Central | B55: Pancas | C55: 200 | D55: 200 | E55: 198 | F55: 0.99
A56: Norte | B56: Pedro Canário | C56: 328 | D56: 328 | E56: 292 | F56: 0.8902439024
A57: Norte | B57: Pinheiros | C57: 314 | D57: 314 | E57: 269 | F57: 0.8566878981
A58: Sul | B58: Piúma | C58: 277 | D58: 277 | E58: 297 | F58: 1.072202166
A59: Norte | B59: Ponto Belo | C59: 81 | D59: 81 | E59: 68 | F59: 0.8395061728
A60: Sul | B60: Presidente Kennedy | C60: 185 | D60: 185 | E60: 178 | F60: 0.9621621622
A61: Central | B61: Rio Bananal | C61: 303 | D61: 303 | E61: 259 | F61: 0.8547854785
A62: Sul | B62: Rio Novo do Sul | C62: 96 | D62: 96 | E62: 101 | F62: 1.052083333
A63: Metropolitana | B63: Santa Leopoldina | C63: 81 | D63: 81 | E63: 76 | F63: 0.9382716049
A64: Metropolitana | B64: Santa Maria de Jetibá | C64: 673 | D64: 673 | E64: 604 | F64: 0.897473997
A65: Metropolitana | B65: Santa Teresa | C65: 294 | D65: 294 | E65: 244 | F65: 0.8299319728
A66: Central | B66: São Domingos do Norte | C66: 117 | D66: 117 | E66: 94 | F66: 0.8034188034
A67: Central | B67: São Gabriel da Palha | C67: 415 | D67: 415 | E67: 378 | F67: =E67/D67 -> 0.9108433735
A68: Sul | B68: São José do Calçado | C68: 104 | D68: 104 | E68: 78 | F68: 0.75
A69: Norte | B69: São Mateus | C69: 1824 | D69: 1824 | E69: 1280 | F69: 0.701754386
A70: Central | B70: São Roque do Canaã | C70: 132 | D70: 132 | E70: 115 | F70: 0.8712121212
A71: Metropolitana | B71: Serra | C71: 7327 | D71: 7327 | E71: 5737 | F71: 0.7829944043
A72: Central | B72: Sooretama | C72: 448 | D72: 448 | E72: 390 | F72: 0.8705357143
A73: Sul | B73: Vargem Alta | C73: 233 | D73: 233 | E73: 229 | F73: 0.982832618
A74: Metropolitana | B74: Venda Nova do Imigrante | C74: 345 | D74: 345 | E74: 325 | F74: 0.9420289855
A75: Metropolitana | B75: Viana | C75: 906 | D75: 906 | E75: 853 | F75: 0.9415011038
A76: Norte | B76: Vila Pavão | C76: 104 | D76: 104 | E76: 114 | F76: 1.096153846
A77: Central | B77: Vila Valério | C77: 237 | D77: 237 | E77: 213 | F77: 0.8987341772
A78: Metropolitana | B78: Vila Velha | C78: 5438 | D78: 5438 | E78: 4206 | F78: 0.7734461199
A79: Metropolitana | B79: Vitória | C79: 3496 | D79: 3496 | E79: 3247 | F79: 0.9287757437
B81: Total Norte | C81: =SUMIF($A$2:$A$79,"Norte",C$2:C$79) -> 5620 | D81: =SUMIF($A$2:$A$79,"Norte",D$2:D$79) -> 5620 | E81: =SUMIF($A$2:$A$79,"Norte",E$2:E$79) -> 4612 | F81: 0.8206405694
B82: Total Central | C82: =SUMIF($A$2:$A$79,"CENTRAL",C$2:C$79) -> 7008 | D82: =SUMIF($A$2:$A$79,"CENTRAL",D$2:D$79) -> 7008 | E82: =SUMIF($A$2:$A$79,"CENTRAL",E$2:E$79) -> 5907 | F82: 0.8428938356
B83: Total Metropolitana | C83: =SUMIF($A$2:$A$79,"METROPOLITANA",C$2:C$79) -> 29031 | D83: =SUMIF($A$2:$A$79,"METROPOLITANA",D$2:D$79) -> 29031 | E83: =SUMIF($A$2:$A$79,"METROPOLITANA",E$2:E$79) -> 24114 | F83: 0.8306293273
B84: Total Sul | C84: =SUMIF($A$2:$A$79,"SUL",C$2:C$79) -> 7548 | D84: =SUMIF($A$2:$A$79,"SUL",D$2:D$79) -> 7548 | E84: =SUMIF($A$2:$A$79,"SUL",E$2:E$79) -> 7053 | F84: 0.9344197138
B85: TOTAL ES | C85: =SUM(C2:C79) -> 49207 | D85: =SUM(D2:D79) -> 49207 | E85: =SUM(E2:E79) -> 41686 | F85: =E85/D85 -> 0.8471558925
B86: HOMOGENEIDADE ENTRE MUNICÍPIOS | E86: =COUNTIF(F2:F79,">=0,95") -> 30 | F86: =E86/78 -> 0.3846153846
A89: Fonte: Vacina e Confia, em 10, 11 e 14 abril de 2025.**
A90: **Dados referente às doses aplicadas no período de Janeiro a Dezembro de 2024
A91: Cobertura Calculada por município de procedência/ocorrência da vacinação
A92: 1 População anual extraída do MS/SVS/DASIS - SINASC/DASIS/SVS/MS 2024 referente ao período de janeiro a Dezembro de 2024.
A93: ² População proporcional extraída do MS/SVS/DASIS - SINASC/DASIS/SVS/MS 2024 referente ao período de janeiro e Dezembro de 2024.
A94: Sinasc, atualizado em 09 de Abril de 2025.
A95: Homogeineidade: O cálculo da Homogeineidade entre vacinas é feito de acordo com a pactuação estabelecida no Plano Plurianual (PPA) vigente no período 2024-2027.
A97: Observações:
A98: Imunobiológicos que foram recebidos parcialmente pelo estado no mês da análise, sendo distribuídos em quantidades reduzidas às regionais e municípios: Soro Antirábico Humano, Vacina tríplice viral, Vacina COVID-19Monovalente (XBB)-Frasco, Vacina tetraviral, Imunoglobulina Antirrábica Humana, Vacina Tríplice Bacteriana (DTP), Febre Amarela
A99: Imunobiológicos indisponíveis no mês da análise, não sendo possível a distribuição às regionais e municípios: Vacina contra varicela, vacina tríplice acelular (DTPa) - CRIE, vacina COVID-19 MONOVALENTE (XBB) -SERINGA

Sheet dTpa gestantes - residência
A1: REGIONAL | B1: MUNICÍPIO | C1: ¹POPULAÇÃO GESTANTE ANUAL | D1: ¹POPULAÇÃO PROPORCIONAL | E1: DOSES APLICADAS dTpa GESTANTES | F1: COBERTURA VACINAL dTpa GESTANTES
A2: Metropolitana | B2: Afonso Cláudio | C2: 357 | D2: 357 | E2: 291 | F2: =E2/D2 -> 0.8151260504
A3: Norte | B3: Água Doce do Norte | C3: 146 | D3: 146 | E3: 136 | F3: =E3/D3 -> 0.9315068493
A4: Central | B4: Águia Branca | C4: 193 | D4: 193 | E4: 126 | F4: 0.6528497409
A5: Sul | B5: Alegre | C5: 278 | D5: 278 | E5: 291 | F5: 1.04676259
A6: Sul | B6: Alfredo Chaves | C6: 119 | D6: 119 | E6: 116 | F6: 0.974789916
A7: Central | B7: Alto Rio Novo | C7: 89 | D7: 89 | E7: 83 | F7: 0.9325842697
A8: Sul | B8: Anchieta | C8: 338 | D8: 338 | E8: 328 | F8: 0.9704142012
A9: Sul | B9: Apiacá | C9: 74 | D9: 74 | E9: 61 | F9: 0.8243243243
A10: Metropolitana | B10: Aracruz | C10: 1365 | D10: 1365 | E10: 1268 | F10: 0.9289377289
A11: Sul | B11: Atilio Vivacqua | C11: 140 | D11: 140 | E11: 147 | F11: 1.05
A12: Central | B12: Baixo Guandu | C12: 345 | D12: 345 | E12: 287 | F12: 0.831884058
A13: Norte | B13: Barra de São Francisco | C13: 584 | D13: 584 | E13: 434 | F13: 0.7431506849
A14: Norte | B14: Boa Esperança | C14: 204 | D14: 204 | E14: 173 | F14: 0.8480392157
A15: Sul | B15: Bom Jesus do Norte | C15: 78 | D15: 78 | E15: 80 | F15: 1.025641026
A16: Metropolitana | B16: Brejetuba | C16: 209 | D16: 209 | E16: 196 | F16: 0.9377990431
A17: Sul | B17: Cachoeiro de Itapemirim | C17: 2142 | D17: 2142 | E17: 1941 | F17: 0.906162465
A18: Metropolitana | B18: Cariacica | C18: 4758 | D18: 4758 | E18: 3742 | F18: 0.7864649012
A19: Sul | B19: Castelo | C19: 390 | D19: 390 | E19: 378 | F19: 0.9692307692
A20: Central | B20: Colatina | C20: 1503 | D20: 1503 | E20: 1318 | F20: 0.876912841
A21: Norte | B21: Conceição da Barra | C21: 357 | D21: 357 | E21: 346 | F21: 0.9691876751
A22: Metropolitana | B22: Conceição do Castelo | C22: 171 | D22: 171 | E22: 143 | F22: 0.8362573099
A23: Sul | B23: Divino de São Lourenço | C23: 57 | D23: 57 | E23: 40 | F23: 0.701754386
A24: Metropolitana | B24: Domingos Martins | C24: 424 | D24: 424 | E24: 436 | F24: 1.028301887
A25: Sul | B25: Dores do Rio Preto | C25: 94 | D25: 94 | E25: 98 | F25: 1.042553191
A26: Norte | B26: Ecoporanga | C26: 261 | D26: 261 | E26: 237 | F26: 0.908045977
A27: Metropolitana | B27: Fundão | C27: 223 | D27: 223 | E27: 197 | F27: 0.8834080717
A28: Central | B28: Governador Lindenberg | C28: 117 | D28: 117 | E28: 114 | F28: 0.9743589744
A29: Sul | B29: Guaçuí | C29: 383 | D29: 383 | E29: 279 | F29: 0.72845953
A30: Metropolitana | B30: Guarapari | C30: 1709 | D30: 1709 | E30: 1351 | F30: 0.7905207724
A31: Metropolitana | B31: Ibatiba | C31: 380 | D31: 380 | E31: 365 | F31: 0.9605263158
A32: Metropolitana | B32: Ibiraçu | C32: 158 | D32: 158 | E32: 137 | F32: 0.8670886076
A33: Sul | B33: Ibitirama | C33: 144 | D33: 144 | E33: 143 | F33: 0.9930555556
A34: Sul | B34: Iconha | C34: 112 | D34: 112 | E34: 120 | F34: 1.071428571
A35: Sul | B35: Irupi | C35: 174 | D35: 174 | E35: 177 | F35: 1.017241379
A36: Metropolitana | B36: Itaguaçu | C36: 131 | D36: 131 | E36: 128 | F36: 0.9770992366
A37: Sul | B37: Itapemirim | C37: 474 | D37: 474 | E37: 403 | F37: 0.8502109705
A38: Metropolitana | B38: Itarana | C38: 134 | D38: 134 | E38: 127 | F38: 0.947761194
A39: Sul | B39: Iúna | C39: 420 | D39: 420 | E39: 343 | F39: 0.8166666667
A40: Norte | B40: Jaguaré | C40: 463 | D40: 463 | E40: 441 | F40: 0.9524838013
A41: Sul | B41: Jerônimo Monteiro | C41: 129 | D41: 129 | E41: 125 | F41: 0.9689922481
A42: Metropolitana | B42: João Neiva | C42: 158 | D42: 158 | E42: 137 | F42: 0.8670886076
A43: Metropolitana | B43: Laranja da Terra | C43: 97 | D43: 97 | E43: 113 | F43: 1.164948454
A44: Central | B44: Linhares | C44: 2627 | D44: 2627 | E44: 2070 | F44: 0.7879710697
A45: Central | B45: Mantenópolis | C45: 138 | D45: 138 | E45: 123 | F45: 0.8913043478
A46: Sul | B46: Marataízes | C46: 536 | D46: 536 | E46: 513 | F46: 0.9570895522
A47: Metropolitana | B47: Marechal Floriano | C47: 197 | D47: 197 | E47: 191 | F47: 0.9695431472
A48: Central | B48: Marilândia | C48: 144 | D48: 144 | E48: 139 | F48: 0.9652777778
A49: Sul | B49: Mimoso do Sul | C49: 233 | D49: 233 | E49: 231 | F49: 0.991416309
A50: Norte | B50: Montanha | C50: 227 | D50: 227 | E50: 192 | F50: 0.845814978
A51: Norte | B51: Mucurici | C51: 69 | D51: 69 | E51: 63 | F51: 0.9130434783
A52: Sul | B52: Muniz Freire | C52: 207 | D52: 207 | E52: 212 | F52: 1.024154589
A53: Sul | B53: Muqui | C53: 131 | D53: 131 | E53: 144 | F53: 1.099236641
A54: Norte | B54: Nova Venécia | C54: 658 | D54: 658 | E54: 567 | F54: 0.8617021277
A55: Central | B55: Pancas | C55: 200 | D55: 200 | E55: 198 | F55: 0.99
A56: Norte | B56: Pedro Canário | C56: 328 | D56: 328 | E56: 292 | F56: 0.8902439024
A57: Norte | B57: Pinheiros | C57: 314 | D57: 314 | E57: 269 | F57: 0.8566878981
A58: Sul | B58: Piúma | C58: 277 | D58: 277 | E58: 297 | F58: 1.072202166
A59: Norte | B59: Ponto Belo | C59: 81 | D59: 81 | E59: 68 | F59: 0.8395061728
A60: Sul | B60: Presidente Kennedy | C60: 185 | D60: 185 | E60: 178 | F60: 0.9621621622
A61: Central | B61: Rio Bananal | C61: 303 | D61: 303 | E61: 259 | F61: 0.8547854785
A62: Sul | B62: Rio Novo do Sul | C62: 96 | D62: 96 | E62: 101 | F62: 1.052083333
A63: Metropolitana | B63: Santa Leopoldina | C63: 81 | D63: 81 | E63: 76 | F63: 0.9382716049
A64: Metropolitana | B64: Santa Maria de Jetibá | C64: 673 | D64: 673 | E64: 604 | F64: 0.897473997
A65: Metropolitana | B65: Santa Teresa | C65: 294 | D65: 294 | E65: 244 | F65: 0.8299319728
A66: Central | B66: São Domingos do Norte | C66: 117 | D66: 117 | E66: 94 | F66: 0.8034188034
A67: Central | B67: São Gabriel da Palha | C67: 415 | D67: 415 | E67: 378 | F67: =E67/D67 -> 0.9108433735
A68: Sul | B68: São José do Calçado | C68: 104 | D68: 104 | E68: 78 | F68: 0.75
A69: Norte | B69: São Mateus | C69: 1824 | D69: 1824 | E69: 1280 | F69: 0.701754386
A70: Central | B70: São Roque do Canaã | C70: 132 | D70: 132 | E70: 115 | F70: 0.8712121212
A71: Metropolitana | B71: Serra | C71: 7327 | D71: 7327 | E71: 5737 | F71: 0.7829944043
A72: Central | B72: Sooretama | C72: 448 | D72: 448 | E72: 390 | F72: 0.8705357143
A73: Sul | B73: Vargem Alta | C73: 233 | D73: 233 | E73: 229 | F73: 0.982832618
A74: Metropolitana | B74: Venda Nova do Imigrante | C74: 345 | D74: 345 | E74: 325 | F74: 0.9420289855
A75: Metropolitana | B75: Viana | C75: 906 | D75: 906 | E75: 853 | F75: 0.9415011038
A76: Norte | B76: Vila Pavão | C76: 104 | D76: 104 | E76: 114 | F76: 1.096153846
A77: Central | B77: Vila Valério | C77: 237 | D77: 237 | E77: 213 | F77: 0.8987341772
A78: Metropolitana | B78: Vila Velha | C78: 5438 | D78: 5438 | E78: 4206 | F78: 0.7734461199
A79: Metropolitana | B79: Vitória | C79: 3496 | D79: 3496 | E79: 3247 | F79: 0.9287757437
B81: Total Norte | C81: =SUMIF($A$2:$A$79,"Norte",C$2:C$79) -> 5620 | D81: =SUMIF($A$2:$A$79,"Norte",D$2:D$79) -> 5620 | E81: =SUMIF($A$2:$A$79,"Norte",E$2:E$79) -> 4612 | F81: 0.8206405694
B82: Total Central | C82: =SUMIF($A$2:$A$79,"CENTRAL",C$2:C$79) -> 7008 | D82: =SUMIF($A$2:$A$79,"CENTRAL",D$2:D$79) -> 7008 | E82: =SUMIF($A$2:$A$79,"CENTRAL",E$2:E$79) -> 5907 | F82: 0.8428938356
B83: Total Metropolitana | C83: =SUMIF($A$2:$A$79,"METROPOLITANA",C$2:C$79) -> 29031 | D83: =SUMIF($A$2:$A$79,"METROPOLITANA",D$2:D$79) -> 29031 | E83: =SUMIF($A$2:$A$79,"METROPOLITANA",E$2:E$79) -> 24114 | F83: 0.8306293273
B84: Total Sul | C84: =SUMIF($A$2:$A$79,"SUL",C$2:C$79) -> 7548 | D84: =SUMIF($A$2:$A$79,"SUL",D$2:D$79) -> 7548 | E84: =SUMIF($A$2:$A$79,"SUL",E$2:E$79) -> 7053 | F84: 0.9344197138
B85: TOTAL ES | C85: =SUM(C2:C79) -> 49207 | D85: =SUM(D2:D79) -> 49207 | E85: =SUM(E2:E79) -> 41686 | F85: =E85/D85 -> 0.8471558925
B86: HOMOGENEIDADE ENTRE MUNICÍPIOS | E86: =COUNTIF(F2:F79,">=0,95") -> 30 | F86: =E86/78 -> 0.3846153846
A89: Fonte: Vacina e Confia, em 10, 11 e 14 abril de 2025.**
A90: **Dados referente às doses aplicadas no período de Janeiro a Dezembro de 2024
A91: Cobertura Calculada por município de residência do cidadão (no Vacina e Confia, a origem da informação é o endereço que consta no cadastro do cidadão preenchido manualmente por meio do autocadastro ou pelo cadastro realizado por um profissional de saúde no momento do atendimento).
A92: 1 População anual extraída do MS/SVS/DASIS - SINASC/DASIS/SVS/MS 2024 referente ao período de janeiro a Dezembro de 2024.
A93: ² População proporcional extraída do MS/SVS/DASIS - SINASC/DASIS/SVS/MS 2024 referente ao período de janeiro e Dezembro de 2024.
A94: Sinasc, atualizado em 09 de Abril de 2025.
A95: Homogeineidade: O cálculo da Homogeineidade entre vacinas é feito de acordo com a pactuação estabelecida no Plano Plurianual (PPA) vigente no período 2024-2027.
A97: Observações:
A98: Imunobiológicos que foram recebidos parcialmente pelo estado no mês da análise, sendo distribuídos em quantidades reduzidas às regionais e municípios: Soro Antirábico Humano, Vacina tríplice viral, Vacina COVID-19Monovalente (XBB)-Frasco, Vacina tetraviral, Imunoglobulina Antirrábica Humana, Vacina Tríplice Bacteriana (DTP), Febre Amarela
A99: Imunobiológicos indisponíveis no mês da análise, não sendo possível a distribuição às regionais e municípios: Vacina contra varicela, vacina tríplice acelular (DTPa) - CRIE, vacina COVID-19 MONOVALENTE (XBB) -SERINGA

Sheet PROTEÇÃO

Sheet cálculos1 (hidden)
C1: 0.9 | E1: 0.95
A2: Regional | B2: Município | C2: Cobertura Vacinal BCG | D2: Cobertura Vacinal Rotavírus | E2: Cobertura Vacinal Pentavalente | F2: Cobertura Vacinal Poliomielite | G2: Cobertura Vacinal Pneumo 10 | H2: Cobertura Vacinal Tríplice Viral | I2: Cobertura Vacinal Meningo C | J2: Cobertura Vacinal Febre Amarela | K2: Cobertura Vacinal Hepatite A | L2: Cobertura Varicela | M2: META 90% | N2: META 95% | O2: ATINGIRAM META | P2: PQA-VS
A3: Metropolitana | B3: Afonso Cláudio | C3: ='CV Rotina <2A - procedência'!H3 -> 0.8599439776 | D3: ='CV Rotina <2A - procedência'!P3 -> 0.974789916 | E3: ='CV Rotina <2A - procedência'!J3 -> 0.974789916 | F3: ='CV Rotina <2A - procedência'!L3 -> 0.9691876751 | G3: ='CV Rotina <2A - procedência'!N3 -> 1 | H3: ='CV Rotina <2A - procedência'!X3 -> 1.047619048 | I3: ='CV Rotina <2A - procedência'!R3 -> 0.9663865546 | J3: ='CV Rotina <2A - procedência'!T3 -> 0.9383753501 | K3: ='CV Rotina <2A - procedência'!V3 -> 1.019607843 | L3: ='CV Rotina <2A - procedência'!Z3 -> 0.7254901961 | M3: =COUNTIF(C3:D3,">=0,9") -> 1 | N3: =COUNTIFS(E3:L3,">=0,95") -> 6 | O3: =SUM(M3:N3) -> 7 | P3: =COUNTIF(E3:H3,">=0,95") -> 4
A4: Norte | B4: Água Doce do Norte | C4: ='CV Rotina <2A - procedência'!H4 -> 0.6232876712 | D4: ='CV Rotina <2A - procedência'!P4 -> 1.232876712 | E4: ='CV Rotina <2A - procedência'!J4 -> 1.226027397 | F4: ='CV Rotina <2A - procedência'!L4 -> 1.205479452 | G4: ='CV Rotina <2A - procedência'!N4 -> 1.260273973 | H4: ='CV Rotina <2A - procedência'!X4 -> 1 | I4: ='CV Rotina <2A - procedência'!R4 -> 1.150684932 | J4: ='CV Rotina <2A - procedência'!T4 -> 0.8493150685 | K4: ='CV Rotina <2A - procedência'!V4 -> 1.02739726 | L4: ='CV Rotina <2A - procedência'!Z4 -> 0.5616438356 | M4: 1 | N4: 6 | O4: =SUM(M4:N4) -> 7 | P4: =COUNTIF(E4:H4,">=0,95") -> 4
A5: Central | B5: Águia Branca | C5: ='CV Rotina <2A - procedência'!H5 -> 0.4922279793 | D5: ='CV Rotina <2A - procedência'!P5 -> 0.8497409326 | E5: ='CV Rotina <2A - procedência'!J5 -> 0.8341968912 | F5: ='CV Rotina <2A - procedência'!L5 -> 0.829015544 | G5: ='CV Rotina <2A - procedência'!N5 -> 0.8134715026 | H5: ='CV Rotina <2A - procedência'!X5 -> 0.7668393782 | I5: ='CV Rotina <2A - procedência'!R5 -> 0.8238341969 | J5: ='CV Rotina <2A - procedência'!T5 -> 0.7046632124 | K5: ='CV Rotina <2A - procedência'!V5 -> 0.7150259067 | L5: ='CV Rotina <2A - procedência'!Z5 -> 0.4352331606 | M5: 0 | N5: 0 | O5: 0 | P5: 0
A6: Sul | B6: Alegre | C6: ='CV Rotina <2A - procedência'!H6 -> 0.6726618705 | D6: ='CV Rotina <2A - procedência'!P6 -> 1.133093525 | E6: ='CV Rotina <2A - procedência'!J6 -> 1.26618705 | F6: ='CV Rotina <2A - procedência'!L6 -> 1.262589928 | G6: ='CV Rotina <2A - procedência'!N6 -> 1.176258993 | H6: ='CV Rotina <2A - procedência'!X6 -> 1.14028777 | I6: ='CV Rotina <2A - procedência'!R6 -> 1.165467626 | J6: ='CV Rotina <2A - procedência'!T6 -> 1.09352518 | K6: ='CV Rotina <2A - procedência'!V6 -> 1.079136691 | L6: ='CV Rotina <2A - procedência'!Z6 -> 0.6223021583 | M6: 1 | N6: 7 | O6: 8 | P6: 4
A7: Sul | B7: Alfredo Chaves | C7: ='CV Rotina <2A - procedência'!H7 -> 0.5042016807 | D7: ='CV Rotina <2A - procedência'!P7 -> 1.193277311 | E7: ='CV Rotina <2A - procedência'!J7 -> 1.18487395 | F7: ='CV Rotina <2A - procedência'!L7 -> 1.159663866 | G7: ='CV Rotina <2A - procedência'!N7 -> 1.168067227 | H7: ='CV Rotina <2A - procedência'!X7 -> 1.260504202 | I7: ='CV Rotina <2A - procedência'!R7 -> 1.193277311 | J7: ='CV Rotina <2A - procedência'!T7 -> 1.134453782 | K7: ='CV Rotina <2A - procedência'!V7 -> 1.176470588 | L7: ='CV Rotina <2A - procedência'!Z7 -> 0.9411764706 | M7: 1 | N7: 7 | O7: 8 | P7: 4
A8: Central | B8: Alto Rio Novo | C8: ='CV Rotina <2A - procedência'!H8 -> 0.4157303371 | D8: ='CV Rotina <2A - procedência'!P8 -> 1.112359551 | E8: ='CV Rotina <2A - procedência'!J8 -> 1.04494382 | F8: ='CV Rotina <2A - procedência'!L8 -> 1.02247191 | G8: ='CV Rotina <2A - procedência'!N8 -> 1.101123596 | H8: ='CV Rotina <2A - procedência'!X8 -> 1.08988764 | I8: ='CV Rotina <2A - procedência'!R8 -> 1.08988764 | J8: ='CV Rotina <2A - procedência'!T8 -> 0.8876404494 | K8: ='CV Rotina <2A - procedência'!V8 -> 1.157303371 | L8: ='CV Rotina <2A - procedência'!Z8 -> 0.797752809 | M8: 1 | N8: 6 | O8: 7 | P8: 4
A9: Sul | B9: Anchieta | C9: ='CV Rotina <2A - procedência'!H9 -> 0.6035502959 | D9: ='CV Rotina <2A - procedência'!P9 -> 1.062130178 | E9: ='CV Rotina <2A - procedência'!J9 -> 1.073964497 | F9: ='CV Rotina <2A - procedência'!L9 -> 1.085798817 | G9: ='CV Rotina <2A - procedência'!N9 -> 1.076923077 | H9: ='CV Rotina <2A - procedência'!X9 -> 1.115384615 | I9: ='CV Rotina <2A - procedência'!R9 -> 1.059171598 | J9: ='CV Rotina <2A - procedência'!T9 -> 0.8224852071 | K9: ='CV Rotina <2A - procedência'!V9 -> 1.201183432 | L9: ='CV Rotina <2A - procedência'!Z9 -> 0.7189349112 | M9: 1 | N9: 6 | O9: 7 | P9: 4
A10: Sul | B10: Apiacá | C10: ='CV Rotina <2A - procedência'!H10 -> 0.7837837838 | D10: ='CV Rotina <2A - procedência'!P10 -> 0.9594594595 | E10: ='CV Rotina <2A - procedência'!J10 -> 0.8783783784 | F10: ='CV Rotina <2A - procedência'!L10 -> 0.8918918919 | G10: ='CV Rotina <2A - procedência'!N10 -> 0.9459459459 | H10: ='CV Rotina <2A - procedência'!X10 -> 1 | I10: ='CV Rotina <2A - procedência'!R10 -> 0.9189189189 | J10: ='CV Rotina <2A - procedência'!T10 -> 0.8378378378 | K10: ='CV Rotina <2A - procedência'!V10 -> 0.9189189189 | L10: ='CV Rotina <2A - procedência'!Z10 -> 0.2972972973 | M10: 1 | N10: 1 | O10: 2 | P10: 1
A11: Metropolitana | B11: Aracruz | C11: ='CV Rotina <2A - procedência'!H11 -> 0.9838827839 | D11: ='CV Rotina <2A - procedência'!P11 -> 0.9948717949 | E11: ='CV Rotina <2A - procedência'!J11 -> 0.9956043956 | F11: ='CV Rotina <2A - procedência'!L11 -> 0.9926739927 | G11: ='CV Rotina <2A - procedência'!N11 -> 1.013186813 | H11: ='CV Rotina <2A - procedência'!X11 -> 1.072527473 | I11: ='CV Rotina <2A - procedência'!R11 -> 0.9875457875 | J11: ='CV Rotina <2A - procedência'!T11 -> 0.8205128205 | K11: ='CV Rotina <2A - procedência'!V11 -> 1.075457875 | L11: ='CV Rotina <2A - procedência'!Z11 -> 0.6483516484 | M11: 2 | N11: 6 | O11: 8 | P11: 4
A12: Sul | B12: Atilio Vivacqua | C12: ='CV Rotina <2A - procedência'!H12 -> 0.05 | D12: ='CV Rotina <2A - procedência'!P12 -> 1 | E12: ='CV Rotina <2A - procedência'!J12 -> 0.9714285714 | F12: ='CV Rotina <2A - procedência'!L12 -> 0.9642857143 | G12: ='CV Rotina <2A - procedência'!N12 -> 1.014285714 | H12: ='CV Rotina <2A - procedência'!X12 -> 1.128571429 | I12: ='CV Rotina <2A - procedência'!R12 -> 0.9214285714 | J12: ='CV Rotina <2A - procedência'!T12 -> 0.7714285714 | K12: ='CV Rotina <2A - procedência'!V12 -> 1.078571429 | L12: ='CV Rotina <2A - procedência'!Z12 -> 0.6214285714 | M12: 1 | N12: 5 | O12: 6 | P12: 4
A13: Central | B13: Baixo Guandu | C13: ='CV Rotina <2A - procedência'!H13 -> 0.5507246377 | D13: ='CV Rotina <2A - procedência'!P13 -> 1.127536232 | E13: ='CV Rotina <2A - procedência'!J13 -> 1.171014493 | F13: ='CV Rotina <2A - procedência'!L13 -> 1.176811594 | G13: ='CV Rotina <2A - procedência'!N13 -> 1.168115942 | H13: ='CV Rotina <2A - procedência'!X13 -> 1.098550725 | I13: ='CV Rotina <2A - procedência'!R13 -> 1.165217391 | J13: ='CV Rotina <2A - procedência'!T13 -> 0.8724637681 | K13: ='CV Rotina <2A - procedência'!V13 -> 1.069565217 | L13: ='CV Rotina <2A - procedência'!Z13 -> 0.7101449275 | M13: 1 | N13: 6 | O13: 7 | P13: 4
A14: Norte | B14: Barra de São Francisco | C14: ='CV Rotina <2A - procedência'!H14 -> 0.8321917808 | D14: ='CV Rotina <2A - procedência'!P14 -> 0.9280821918 | E14: ='CV Rotina <2A - procedência'!J14 -> 0.8818493151 | F14: ='CV Rotina <2A - procedência'!L14 -> 0.8647260274 | G14: ='CV Rotina <2A - procedência'!N14 -> 0.9606164384 | H14: ='CV Rotina <2A - procedência'!X14 -> 0.9452054795 | I14: ='CV Rotina <2A - procedência'!R14 -> 0.9229452055 | J14: ='CV Rotina <2A - procedência'!T14 -> 0.7739726027 | K14: ='CV Rotina <2A - procedência'!V14 -> 0.8630136986 | L14: ='CV Rotina <2A - procedência'!Z14 -> 0.6695205479 | M14: 1 | N14: 1 | O14: 2 | P14: 1
A15: Norte | B15: Boa Esperança | C15: ='CV Rotina <2A - procedência'!H15 -> 0.3284313725 | D15: ='CV Rotina <2A - procedência'!P15 -> 1.019607843 | E15: ='CV Rotina <2A - procedência'!J15 -> 0.9166666667 | F15: ='CV Rotina <2A - procedência'!L15 -> 0.9362745098 | G15: ='CV Rotina <2A - procedência'!N15 -> 0.9901960784 | H15: ='CV Rotina <2A - procedência'!X15 -> 0.9901960784 | I15: ='CV Rotina <2A - procedência'!R15 -> 0.9460784314 | J15: ='CV Rotina <2A - procedência'!T15 -> 0.7696078431 | K15: ='CV Rotina <2A - procedência'!V15 -> 0.8480392157 | L15: ='CV Rotina <2A - procedência'!Z15 -> 0.6715686275 | M15: 1 | N15: 2 | O15: 3 | P15: 2
A16: Sul | B16: Bom Jesus do Norte | C16: ='CV Rotina <2A - procedência'!H16 -> 1.076923077 | D16: ='CV Rotina <2A - procedência'!P16 -> 1.423076923 | E16: ='CV Rotina <2A - procedência'!J16 -> 1.538461538 | F16: ='CV Rotina <2A - procedência'!L16 -> 1.538461538 | G16: ='CV Rotina <2A - procedência'!N16 -> 1.461538462 | H16: ='CV Rotina <2A - procedência'!X16 -> 1.807692308 | I16: ='CV Rotina <2A - procedência'!R16 -> 1.5 | J16: ='CV Rotina <2A - procedência'!T16 -> 1.08974359 | K16: ='CV Rotina <2A - procedência'!V16 -> 1.358974359 | L16: ='CV Rotina <2A - procedência'!Z16 -> 0.7820512821 | M16: 2 | N16: 7 | O16: 9 | P16: 4
A17: Metropolitana | B17: Brejetuba | C17: ='CV Rotina <2A - procedência'!H17 -> 0.7846889952 | D17: ='CV Rotina <2A - procedência'!P17 -> 0.9473684211 | E17: ='CV Rotina <2A - procedência'!J17 -> 0.966507177 | F17: ='CV Rotina <2A - procedência'!L17 -> 0.966507177 | G17: ='CV Rotina <2A - procedência'!N17 -> 0.9138755981 | H17: ='CV Rotina <2A - procedência'!X17 -> 0.9282296651 | I17: ='CV Rotina <2A - procedência'!R17 -> 0.8947368421 | J17: ='CV Rotina <2A - procedência'!T17 -> 0.971291866 | K17: ='CV Rotina <2A - procedência'!V17 -> 0.9043062201 | L17: ='CV Rotina <2A - procedência'!Z17 -> 0.5454545455 | M17: 1 | N17: 3 | O17: 4 | P17: 2
A18: Sul | B18: Cachoeiro de Itapemirim | C18: ='CV Rotina <2A - procedência'!H18 -> 2.392623716 | D18: ='CV Rotina <2A - procedência'!P18 -> 1.050420168 | E18: ='CV Rotina <2A - procedência'!J18 -> 1.06162465 | F18: ='CV Rotina <2A - procedência'!L18 -> 1.050887021 | G18: ='CV Rotina <2A - procedência'!N18 -> 1.0821662 | H18: ='CV Rotina <2A - procedência'!X18 -> 1.019607843 | I18: ='CV Rotina <2A - procedência'!R18 -> 1.038748833 | J18: ='CV Rotina <2A - procedência'!T18 -> 0.7320261438 | K18: ='CV Rotina <2A - procedência'!V18 -> 0.9785247432 | L18: ='CV Rotina <2A - procedência'!Z18 -> 0.5966386555 | M18: 2 | N18: 6 | O18: 8 | P18: 4
A19: Metropolitana | B19: Cariacica | C19: ='CV Rotina <2A - procedência'!H19 -> 0.516603615 | D19: ='CV Rotina <2A - procedência'!P19 -> 0.89407314 | E19: ='CV Rotina <2A - procedência'!J19 -> 0.8736864229 | F19: ='CV Rotina <2A - procedência'!L19 -> 0.8671710803 | G19: ='CV Rotina <2A - procedência'!N19 -> 0.9262295082 | H19: ='CV Rotina <2A - procedência'!X19 -> 0.8976460698 | I19: ='CV Rotina <2A - procedência'!R19 -> 0.8839848676 | J19: ='CV Rotina <2A - procedência'!T19 -> 0.6740226986 | K19: ='CV Rotina <2A - procedência'!V19 -> 0.7515762926 | L19: ='CV Rotina <2A - procedência'!Z19 -> 0.5243799916 | M19: 0 | N19: 0 | O19: 0 | P19: 0
A20: Sul | B20: Castelo | C20: ='CV Rotina <2A - procedência'!H20 -> 0.6256410256 | D20: ='CV Rotina <2A - procedência'!P20 -> 1.084615385 | E20: ='CV Rotina <2A - procedência'!J20 -> 1.11025641 | F20: ='CV Rotina <2A - procedência'!L20 -> 1.115384615 | G20: ='CV Rotina <2A - procedência'!N20 -> 1.102564103 | H20: ='CV Rotina <2A - procedência'!X20 -> 1.179487179 | I20: ='CV Rotina <2A - procedência'!R20 -> 1.064102564 | J20: ='CV Rotina <2A - procedência'!T20 -> 0.9641025641 | K20: ='CV Rotina <2A - procedência'!V20 -> 1.028205128 | L20: ='CV Rotina <2A - procedência'!Z20 -> 0.7974358974 | M20: 1 | N20: 7 | O20: 8 | P20: 4
A21: Central | B21: Colatina | C21: ='CV Rotina <2A - procedência'!H21 -> 2.141051231 | D21: ='CV Rotina <2A - procedência'!P21 -> 0.9873586161 | E21: ='CV Rotina <2A - procedência'!J21 -> 1.005322688 | F21: ='CV Rotina <2A - procedência'!L21 -> 0.994677312 | G21: ='CV Rotina <2A - procedência'!N21 -> 1.044577512 | H21: ='CV Rotina <2A - procedência'!X21 -> 1.005988024 | I21: ='CV Rotina <2A - procedência'!R21 -> 0.9374584165 | J21: ='CV Rotina <2A - procedência'!T21 -> 0.7804391218 | K21: ='CV Rotina <2A - procedência'!V21 -> 0.8576180971 | L21: ='CV Rotina <2A - procedência'!Z21 -> 0.7345309381 | M21: 2 | N21: 4 | O21: 6 | P21: 4
A22: Norte | B22: Conceição da Barra | C22: ='CV Rotina <2A - procedência'!H22 -> 0.05042016807 | D22: ='CV Rotina <2A - procedência'!P22 -> 1.078431373 | E22: ='CV Rotina <2A - procedência'!J22 -> 1.053221289 | F22: ='CV Rotina <2A - procedência'!L22 -> 1.053221289 | G22: ='CV Rotina <2A - procedência'!N22 -> 1.098039216 | H22: ='CV Rotina <2A - procedência'!X22 -> 1.025210084 | I22: ='CV Rotina <2A - procedência'!R22 -> 1.070028011 | J22: ='CV Rotina <2A - procedência'!T22 -> 0.9411764706 | K22: ='CV Rotina <2A - procedência'!V22 -> 0.9467787115 | L22: ='CV Rotina <2A - procedência'!Z22 -> 0.7675070028 | M22: 1 | N22: 5 | O22: 6 | P22: 4
A23: Metropolitana | B23: Conceição do Castelo | C23: ='CV Rotina <2A - procedência'!H23 -> 0 | D23: ='CV Rotina <2A - procedência'!P23 -> 0.7426900585 | E23: ='CV Rotina <2A - procedência'!J23 -> 0.783625731 | F23: ='CV Rotina <2A - procedência'!L23 -> 0.7719298246 | G23: ='CV Rotina <2A - procedência'!N23 -> 0.7543859649 | H23: ='CV Rotina <2A - procedência'!X23 -> 0.8538011696 | I23: ='CV Rotina <2A - procedência'!R23 -> 0.783625731 | J23: ='CV Rotina <2A - procedência'!T23 -> 0.6900584795 | K23: ='CV Rotina <2A - procedência'!V23 -> 0.9122807018 | L23: ='CV Rotina <2A - procedência'!Z23 -> 0.5555555556 | M23: 0 | N23: 0 | O23: 0 | P23: 0
A24: Sul | B24: Divino de São Lourenço | C24: ='CV Rotina <2A - procedência'!H24 -> 0.8596491228 | D24: ='CV Rotina <2A - procedência'!P24 -> 1.456140351 | E24: ='CV Rotina <2A - procedência'!J24 -> 1.526315789 | F24: ='CV Rotina <2A - procedência'!L24 -> 1.50877193 | G24: ='CV Rotina <2A - procedência'!N24 -> 1.473684211 | H24: ='CV Rotina <2A - procedência'!X24 -> 1.070175439 | I24: ='CV Rotina <2A - procedência'!R24 -> 1.473684211 | J24: ='CV Rotina <2A - procedência'!T24 -> 1.070175439 | K24: ='CV Rotina <2A - procedência'!V24 -> 0.9824561404 | L24: ='CV Rotina <2A - procedência'!Z24 -> 0.8070175439 | M24: 1 | N24: 7 | O24: 8 | P24: 4
A25: Metropolitana | B25: Domingos Martins | C25: ='CV Rotina <2A - procedência'!H25 -> 0.1839622642 | D25: ='CV Rotina <2A - procedência'!P25 -> 0.9669811321 | E25: ='CV Rotina <2A - procedência'!J25 -> 0.9080188679 | F25: ='CV Rotina <2A - procedência'!L25 -> 0.9150943396 | G25: ='CV Rotina <2A - procedência'!N25 -> 0.9646226415 | H25: ='CV Rotina <2A - procedência'!X25 -> 0.9504716981 | I25: ='CV Rotina <2A - procedência'!R25 -> 0.9268867925 | J25: ='CV Rotina <2A - procedência'!T25 -> 0.8301886792 | K25: ='CV Rotina <2A - procedência'!V25 -> 0.929245283 | L25: ='CV Rotina <2A - procedência'!Z25 -> 0.7382075472 | M25: 1 | N25: 2 | O25: 3 | P25: 2
A26: Sul | B26: Dores do Rio Preto | C26: ='CV Rotina <2A - procedência'!H26 -> 0.6914893617 | D26: ='CV Rotina <2A - procedência'!P26 -> 1.14893617 | E26: ='CV Rotina <2A - procedência'!J26 -> 1.085106383 | F26: ='CV Rotina <2A - procedência'!L26 -> 1.117021277 | G26: ='CV Rotina <2A - procedência'!N26 -> 1.180851064 | H26: ='CV Rotina <2A - procedência'!X26 -> 1.223404255 | I26: ='CV Rotina <2A - procedência'!R26 -> 1.138297872 | J26: ='CV Rotina <2A - procedência'!T26 -> 0.8829787234 | K26: ='CV Rotina <2A - procedência'!V26 -> 1.010638298 | L26: ='CV Rotina <2A - procedência'!Z26 -> 0.5957446809 | M26: 1 | N26: 6 | O26: 7 | P26: 4
A27: Norte | B27: Ecoporanga | C27: ='CV Rotina <2A - procedência'!H27 -> 0.4904214559 | D27: ='CV Rotina <2A - procedência'!P27 -> 0.9578544061 | E27: ='CV Rotina <2A - procedência'!J27 -> 0.9655172414 | F27: ='CV Rotina <2A - procedência'!L27 -> 0.9578544061 | G27: ='CV Rotina <2A - procedência'!N27 -> 0.9961685824 | H27: ='CV Rotina <2A - procedência'!X27 -> 0.9655172414 | I27: ='CV Rotina <2A - procedência'!R27 -> 0.9846743295 | J27: ='CV Rotina <2A - procedência'!T27 -> 0.8045977011 | K27: ='CV Rotina <2A - procedência'!V27 -> 0.9770114943 | L27: ='CV Rotina <2A - procedência'!Z27 -> 0.7394636015 | M27: 1 | N27: 6 | O27: 7 | P27: 4
A28: Metropolitana | B28: Fundão | C28: ='CV Rotina <2A - procedência'!H28 -> 0.4484304933 | D28: ='CV Rotina <2A - procedência'!P28 -> 1.031390135 | E28: ='CV Rotina <2A - procedência'!J28 -> 1.022421525 | F28: ='CV Rotina <2A - procedência'!L28 -> 1.01793722 | G28: ='CV Rotina <2A - procedência'!N28 -> 1.022421525 | H28: ='CV Rotina <2A - procedência'!X28 -> 0.865470852 | I28: ='CV Rotina <2A - procedência'!R28 -> 0.9820627803 | J28: ='CV Rotina <2A - procedência'!T28 -> 0.798206278 | K28: ='CV Rotina <2A - procedência'!V28 -> 1.076233184 | L28: ='CV Rotina <2A - procedência'!Z28 -> 0.7892376682 | M28: 1 | N28: 5 | O28: 6 | P28: 3
A29: Central | B29: Governador Lindenberg | C29: ='CV Rotina <2A - procedência'!H29 -> 0.1965811966 | D29: ='CV Rotina <2A - procedência'!P29 -> 0.9572649573 | E29: ='CV Rotina <2A - procedência'!J29 -> 0.9487179487 | F29: ='CV Rotina <2A - procedência'!L29 -> 0.9230769231 | G29: ='CV Rotina <2A - procedência'!N29 -> 0.9316239316 | H29: ='CV Rotina <2A - procedência'!X29 -> 1.179487179 | I29: ='CV Rotina <2A - procedência'!R29 -> 1.034188034 | J29: ='CV Rotina <2A - procedência'!T29 -> 1.025641026 | K29: ='CV Rotina <2A - procedência'!V29 -> 1.222222222 | L29: ='CV Rotina <2A - procedência'!Z29 -> 0.7264957265 | M29: 1 | N29: 4 | O29: 5 | P29: 1
A30: Sul | B30: Guaçuí | C30: ='CV Rotina <2A - procedência'!H30 -> 0.6501305483 | D30: ='CV Rotina <2A - procedência'!P30 -> 0.8825065274 | E30: ='CV Rotina <2A - procedência'!J30 -> 0.9660574413 | F30: ='CV Rotina <2A - procedência'!L30 -> 0.9451697128 | G30: ='CV Rotina <2A - procedência'!N30 -> 0.9321148825 | H30: ='CV Rotina <2A - procedência'!X30 -> 1.054830287 | I30: ='CV Rotina <2A - procedência'!R30 -> 0.8929503916 | J30: ='CV Rotina <2A - procedência'!T30 -> 0.7519582245 | K30: ='CV Rotina <2A - procedência'!V30 -> 0.9791122715 | L30: ='CV Rotina <2A - procedência'!Z30 -> 0.5195822454 | M30: 0 | N30: 3 | O30: 3 | P30: 2
A31: Metropolitana | B31: Guarapari | C31: ='CV Rotina <2A - procedência'!H31 -> 0.8267992978 | D31: ='CV Rotina <2A - procedência'!P31 -> 0.8595669982 | E31: ='CV Rotina <2A - procedência'!J31 -> 0.8197776477 | F31: ='CV Rotina <2A - procedência'!L31 -> 0.8069046226 | G31: ='CV Rotina <2A - procedência'!N31 -> 0.8987712112 | H31: ='CV Rotina <2A - procedência'!X31 -> 0.8098303101 | I31: ='CV Rotina <2A - procedência'!R31 -> 0.8461088356 | J31: ='CV Rotina <2A - procedência'!T31 -> 0.5746050322 | K31: ='CV Rotina <2A - procedência'!V31 -> 0.7682855471 | L31: ='CV Rotina <2A - procedência'!Z31 -> 0.560561732 | M31: 0 | N31: 0 | O31: 0 | P31: 0
A32: Metropolitana | B32: Ibatiba | C32: ='CV Rotina <2A - procedência'!H32 -> 0.8394736842 | D32: ='CV Rotina <2A - procedência'!P32 -> 0.9921052632 | E32: ='CV Rotina <2A - procedência'!J32 -> 0.9973684211 | F32: ='CV Rotina <2A - procedência'!L32 -> 0.9947368421 | G32: ='CV Rotina <2A - procedência'!N32 -> 1.018421053 | H32: ='CV Rotina <2A - procedência'!X32 -> 1.007894737 | I32: ='CV Rotina <2A - procedência'!R32 -> 0.9868421053 | J32: ='CV Rotina <2A - procedência'!T32 -> 0.8736842105 | K32: ='CV Rotina <2A - procedência'!V32 -> 0.9736842105 | L32: ='CV Rotina <2A - procedência'!Z32 -> 0.2368421053 | M32: 1 | N32: 6 | O32: 7 | P32: 4
A33: Metropolitana | B33: Ibiraçu | C33: ='CV Rotina <2A - procedência'!H33 -> 0.1708860759 | D33: ='CV Rotina <2A - procedência'!P33 -> 0.8544303797 | E33: ='CV Rotina <2A - procedência'!J33 -> 0.8481012658 | F33: ='CV Rotina <2A - procedência'!L33 -> 0.8417721519 | G33: ='CV Rotina <2A - procedência'!N33 -> 0.8607594937 | H33: ='CV Rotina <2A - procedência'!X33 -> 0.8670886076 | I33: ='CV Rotina <2A - procedência'!R33 -> 0.9050632911 | J33: ='CV Rotina <2A - procedência'!T33 -> 0.7848101266 | K33: ='CV Rotina <2A - procedência'!V33 -> 0.7848101266 | L33: ='CV Rotina <2A - procedência'!Z33 -> 0.664556962 | M33: 0 | N33: 0 | O33: 0 | P33: 0
A34: Sul | B34: Ibitirama | C34: ='CV Rotina <2A - procedência'!H34 -> 0.6666666667 | D34: ='CV Rotina <2A - procedência'!P34 -> 0.8958333333 | E34: ='CV Rotina <2A - procedência'!J34 -> 0.8888888889 | F34: ='CV Rotina <2A - procedência'!L34 -> 0.9236111111 | G34: ='CV Rotina <2A - procedência'!N34 -> 0.9027777778 | H34: ='CV Rotina <2A - procedência'!X34 -> 1.027777778 | I34: ='CV Rotina <2A - procedência'!R34 -> 0.6875 | J34: ='CV Rotina <2A - procedência'!T34 -> 0.7013888889 | K34: ='CV Rotina <2A - procedência'!V34 -> 0.9652777778 | L34: ='CV Rotina <2A - procedência'!Z34 -> 0.6388888889 | M34: 0 | N34: 2 | O34: 2 | P34: 1
A35: Sul | B35: Iconha | C35: ='CV Rotina <2A - procedência'!H35 -> 0.3482142857 | D35: ='CV Rotina <2A - procedência'!P35 -> 1.017857143 | E35: ='CV Rotina <2A - procedência'!J35 -> 0.9285714286 | F35: ='CV Rotina <2A - procedência'!L35 -> 0.9107142857 | G35: ='CV Rotina <2A - procedência'!N35 -> 0.9642857143 | H35: ='CV Rotina <2A - procedência'!X35 -> 1.223214286 | I35: ='CV Rotina <2A - procedência'!R35 -> 0.9285714286 | J35: ='CV Rotina <2A - procedência'!T35 -> 1.035714286 | K35: ='CV Rotina <2A - procedência'!V35 -> 1.258928571 | L35: ='CV Rotina <2A - procedência'!Z35 -> 0.6339285714 | M35: =COUNTIF(C35:D35,">=0,9") -> 1 | N35: =COUNTIFS(E35:L35,">=0,95") -> 4 | O35: 5 | P35: 2
A36: Sul | B36: Irupi | C36: ='CV Rotina <2A - procedência'!H36 -> 0.724137931 | D36: ='CV Rotina <2A - procedência'!P36 -> 1.252873563 | E36: ='CV Rotina <2A - procedência'!J36 -> 1.183908046 | F36: ='CV Rotina <2A - procedência'!L36 -> 1.172413793 | G36: ='CV Rotina <2A - procedência'!N36 -> 1.24137931 | H36: ='CV Rotina <2A - procedência'!X36 -> 1.298850575 | I36: ='CV Rotina <2A - procedência'!R36 -> 1.235632184 | J36: ='CV Rotina <2A - procedência'!T36 -> 0.9712643678 | K36: ='CV Rotina <2A - procedência'!V36 -> 1.172413793 | L36: ='CV Rotina <2A - procedência'!Z36 -> 0.4770114943 | M36: 1 | N36: 7 | O36: 8 | P36: 4
A37: Metropolitana | B37: Itaguaçu | C37: ='CV Rotina <2A - procedência'!H37 -> 0.6717557252 | D37: ='CV Rotina <2A - procedência'!P37 -> 1.091603053 | E37: ='CV Rotina <2A - procedência'!J37 -> 1.030534351 | F37: ='CV Rotina <2A - procedência'!L37 -> 1.030534351 | G37: ='CV Rotina <2A - procedência'!N37 -> 1.083969466 | H37: ='CV Rotina <2A - procedência'!X37 -> 1.099236641 | I37: ='CV Rotina <2A - procedência'!R37 -> 1.06870229 | J37: ='CV Rotina <2A - procedência'!T37 -> 1.015267176 | K37: ='CV Rotina <2A - procedência'!V37 -> 1.175572519 | L37: ='CV Rotina <2A - procedência'!Z37 -> 0.9923664122 | M37: 1 | N37: 8 | O37: 9 | P37: 4
A38: Sul | B38: Itapemirim | C38: ='CV Rotina <2A - procedência'!H38 -> 0.4852320675 | D38: ='CV Rotina <2A - procedência'!P38 -> 0.8945147679 | E38: ='CV Rotina <2A - procedência'!J38 -> 0.9514767932 | F38: ='CV Rotina <2A - procedência'!L38 -> 0.9451476793 | G38: ='CV Rotina <2A - procedência'!N38 -> 0.9936708861 | H38: ='CV Rotina <2A - procedência'!X38 -> 0.9641350211 | I38: ='CV Rotina <2A - procedência'!R38 -> 0.9029535865 | J38: ='CV Rotina <2A - procedência'!T38 -> 0.5907172996 | K38: ='CV Rotina <2A - procedência'!V38 -> 0.8818565401 | L38: ='CV Rotina <2A - procedência'!Z38 -> 0.5485232068 | M38: 0 | N38: 3 | O38: 3 | P38: 3
A39: Metropolitana | B39: Itarana | C39: ='CV Rotina <2A - procedência'!H39 -> 0.8880597015 | D39: ='CV Rotina <2A - procedência'!P39 -> 0.9626865672 | E39: ='CV Rotina <2A - procedência'!J39 -> 0.9552238806 | F39: ='CV Rotina <2A - procedência'!L39 -> 0.9626865672 | G39: ='CV Rotina <2A - procedência'!N39 -> 0.9552238806 | H39: ='CV Rotina <2A - procedência'!X39 -> 1.059701493 | I39: ='CV Rotina <2A - procedência'!R39 -> 0.9552238806 | J39: ='CV Rotina <2A - procedência'!T39 -> 0.9850746269 | K39: ='CV Rotina <2A - procedência'!V39 -> 0.9328358209 | L39: ='CV Rotina <2A - procedência'!Z39 -> 0.9328358209 | M39: 1 | N39: 6 | O39: 7 | P39: 4
A40: Sul | B40: Iúna | C40: ='CV Rotina <2A - procedência'!H40 -> 0.7 | D40: ='CV Rotina <2A - procedência'!P40 -> 0.9666666667 | E40: ='CV Rotina <2A - procedência'!J40 -> 0.969047619 | F40: ='CV Rotina <2A - procedência'!L40 -> 0.969047619 | G40: ='CV Rotina <2A - procedência'!N40 -> 0.9761904762 | H40: ='CV Rotina <2A - procedência'!X40 -> 1.021428571 | I40: ='CV Rotina <2A - procedência'!R40 -> 0.9571428571 | J40: ='CV Rotina <2A - procedência'!T40 -> 0.9166666667 | K40: ='CV Rotina <2A - procedência'!V40 -> 0.8666666667 | L40: ='CV Rotina <2A - procedência'!Z40 -> 0.6714285714 | M40: 1 | N40: 5 | O40: 6 | P40: 4
A41: Norte | B41: Jaguaré | C41: ='CV Rotina <2A - procedência'!H41 -> 0.7408207343 | D41: ='CV Rotina <2A - procedência'!P41 -> 0.9524838013 | E41: ='CV Rotina <2A - procedência'!J41 -> 1.002159827 | F41: ='CV Rotina <2A - procedência'!L41 -> 0.9870410367 | G41: ='CV Rotina <2A - procedência'!N41 -> 0.9676025918 | H41: ='CV Rotina <2A - procedência'!X41 -> 1.010799136 | I41: ='CV Rotina <2A - procedência'!R41 -> 0.9632829374 | J41: ='CV Rotina <2A - procedência'!T41 -> 0.8056155508 | K41: ='CV Rotina <2A - procedência'!V41 -> 0.9114470842 | L41: ='CV Rotina <2A - procedência'!Z41 -> 0.56587473 | M41: 1 | N41: 5 | O41: 6 | P41: 4
A42: Sul | B42: Jerônimo Monteiro | C42: ='CV Rotina <2A - procedência'!H42 -> 0.1162790698 | D42: ='CV Rotina <2A - procedência'!P42 -> 1.124031008 | E42: ='CV Rotina <2A - procedência'!J42 -> 1.201550388 | F42: ='CV Rotina <2A - procedência'!L42 -> 1.209302326 | G42: ='CV Rotina <2A - procedência'!N42 -> 1.131782946 | H42: ='CV Rotina <2A - procedência'!X42 -> 1.178294574 | I42: ='CV Rotina <2A - procedência'!R42 -> 1.131782946 | J42: ='CV Rotina <2A - procedência'!T42 -> 1.124031008 | K42: ='CV Rotina <2A - procedência'!V42 -> 1.271317829 | L42: ='CV Rotina <2A - procedência'!Z42 -> 0.6666666667 | M42: 1 | N42: 7 | O42: 8 | P42: 4
A43: Metropolitana | B43: João Neiva | C43: ='CV Rotina <2A - procedência'!H43 -> 0.2594936709 | D43: ='CV Rotina <2A - procedência'!P43 -> 1.03164557 | E43: ='CV Rotina <2A - procedência'!J43 -> 1 | F43: ='CV Rotina <2A - procedência'!L43 -> 1.006329114 | G43: ='CV Rotina <2A - procedência'!N43 -> 1.018987342 | H43: ='CV Rotina <2A - procedência'!X43 -> 1.164556962 | I43: ='CV Rotina <2A - procedência'!R43 -> 0.9810126582 | J43: ='CV Rotina <2A - procedência'!T43 -> 0.9240506329 | K43: ='CV Rotina <2A - procedência'!V43 -> 1.069620253 | L43: ='CV Rotina <2A - procedência'!Z43 -> 0.8101265823 | M43: 1 | N43: 6 | O43: 7 | P43: 4
A44: Metropolitana | B44: Laranja da Terra | C44: ='CV Rotina <2A - procedência'!H44 -> 0.9587628866 | D44: ='CV Rotina <2A - procedência'!P44 -> 0.9690721649 | E44: ='CV Rotina <2A - procedência'!J44 -> 1.041237113 | F44: ='CV Rotina <2A - procedência'!L44 -> 1.041237113 | G44: ='CV Rotina <2A - procedência'!N44 -> 0.9690721649 | H44: ='CV Rotina <2A - procedência'!X44 -> 1.340206186 | I44: ='CV Rotina <2A - procedência'!R44 -> 0.9793814433 | J44: ='CV Rotina <2A - procedência'!T44 -> 1.103092784 | K44: ='CV Rotina <2A - procedência'!V44 -> 1.329896907 | L44: ='CV Rotina <2A - procedência'!Z44 -> 1.072164948 | M44: 2 | N44: 8 | O44: 10 | P44: 4
A45: Central | B45: Linhares | C45: ='CV Rotina <2A - procedência'!H45 -> 1.005709935 | D45: ='CV Rotina <2A - procedência'!P45 -> 0.8976018272 | E45: ='CV Rotina <2A - procedência'!J45 -> 0.8427864484 | F45: ='CV Rotina <2A - procedência'!L45 -> 0.8378378378 | G45: ='CV Rotina <2A - procedência'!N45 -> 0.913589646 | H45: ='CV Rotina <2A - procedência'!X45 -> 0.8633422155 | I45: ='CV Rotina <2A - procedência'!R45 -> 0.8774267225 | J45: ='CV Rotina <2A - procedência'!T45 -> 0.6802436239 | K45: ='CV Rotina <2A - procedência'!V45 -> 0.8446897602 | L45: ='CV Rotina <2A - procedência'!Z45 -> 0.6041111534 | M45: 1 | N45: 0 | O45: 1 | P45: 0
A46: Central | B46: Mantenópolis | C46: ='CV Rotina <2A - procedência'!H46 -> 0.4710144928 | D46: ='CV Rotina <2A - procedência'!P46 -> 0.9855072464 | E46: ='CV Rotina <2A - procedência'!J46 -> 1.094202899 | F46: ='CV Rotina <2A - procedência'!L46 -> 1.108695652 | G46: ='CV Rotina <2A - procedência'!N46 -> 1.02173913 | H46: ='CV Rotina <2A - procedência'!X46 -> 1.152173913 | I46: ='CV Rotina <2A - procedência'!R46 -> 0.9927536232 | J46: ='CV Rotina <2A - procedência'!T46 -> 0.9492753623 | K46: ='CV Rotina <2A - procedência'!V46 -> 1.130434783 | L46: ='CV Rotina <2A - procedência'!Z46 -> 0.6086956522 | M46: 1 | N46: 6 | O46: 7 | P46: 4
A47: Sul | B47: Marataízes | C47: ='CV Rotina <2A - procedência'!H47 -> 0.4384328358 | D47: ='CV Rotina <2A - procedência'!P47 -> 1.02238806 | E47: ='CV Rotina <2A - procedência'!J47 -> 1.059701493 | F47: ='CV Rotina <2A - procedência'!L47 -> 1.061567164 | G47: ='CV Rotina <2A - procedência'!N47 -> 1.054104478 | H47: ='CV Rotina <2A - procedência'!X47 -> 0.9944029851 | I47: ='CV Rotina <2A - procedência'!R47 -> 1.061567164 | J47: ='CV Rotina <2A - procedência'!T47 -> 0.6828358209 | K47: ='CV Rotina <2A - procedência'!V47 -> 1.026119403 | L47: ='CV Rotina <2A - procedência'!Z47 -> 0.6436567164 | M47: 1 | N47: 6 | O47: 7 | P47: 4
A48: Metropolitana | B48: Marechal Floriano | C48: ='CV Rotina <2A - procedência'!H48 -> 0.2081218274 | D48: ='CV Rotina <2A - procedência'!P48 -> 1.096446701 | E48: ='CV Rotina <2A - procedência'!J48 -> 1.030456853 | F48: ='CV Rotina <2A - procedência'!L48 -> 1.030456853 | G48: ='CV Rotina <2A - procedência'!N48 -> 1.106598985 | H48: ='CV Rotina <2A - procedência'!X48 -> 1.157360406 | I48: ='CV Rotina <2A - procedência'!R48 -> 1.055837563 | J48: ='CV Rotina <2A - procedência'!T48 -> 0.8680203046 | K48: ='CV Rotina <2A - procedência'!V48 -> 1.086294416 | L48: ='CV Rotina <2A - procedência'!Z48 -> 0.847715736 | M48: 1 | N48: 6 | O48: 7 | P48: 4
A49: Central | B49: Marilândia | C49: ='CV Rotina <2A - procedência'!H49 -> 0.5 | D49: ='CV Rotina <2A - procedência'!P49 -> 0.9583333333 | E49: ='CV Rotina <2A - procedência'!J49 -> 0.9236111111 | F49: ='CV Rotina <2A - procedência'!L49 -> 0.9305555556 | G49: ='CV Rotina <2A - procedência'!N49 -> 0.8541666667 | H49: ='CV Rotina <2A - procedência'!X49 -> 0.9930555556 | I49: ='CV Rotina <2A - procedência'!R49 -> 0.8958333333 | J49: ='CV Rotina <2A - procedência'!T49 -> 0.9236111111 | K49: ='CV Rotina <2A - procedência'!V49 -> 1.027777778 | L49: ='CV Rotina <2A - procedência'!Z49 -> 0.9305555556 | M49: 1 | N49: 2 | O49: 3 | P49: 1
A50: Sul | B50: Mimoso do Sul | C50: ='CV Rotina <2A - procedência'!H50 -> 0.1845493562 | D50: ='CV Rotina <2A - procedência'!P50 -> 0.8283261803 | E50: ='CV Rotina <2A - procedência'!J50 -> 0.8369098712 | F50: ='CV Rotina <2A - procedência'!L50 -> 0.8283261803 | G50: ='CV Rotina <2A - procedência'!N50 -> 0.8497854077 | H50: ='CV Rotina <2A - procedência'!X50 -> 0.9012875536 | I50: ='CV Rotina <2A - procedência'!R50 -> 0.8111587983 | J50: ='CV Rotina <2A - procedência'!T50 -> 0.7038626609 | K50: ='CV Rotina <2A - procedência'!V50 -> 0.7982832618 | L50: ='CV Rotina <2A - procedência'!Z50 -> 0.6652360515 | M50: 0 | N50: 0 | O50: 0 | P50: 0
A51: Norte | B51: Montanha | C51: ='CV Rotina <2A - procedência'!H51 -> 0.449339207 | D51: ='CV Rotina <2A - procedência'!P51 -> 1.105726872 | E51: ='CV Rotina <2A - procedência'!J51 -> 1.22907489 | F51: ='CV Rotina <2A - procedência'!L51 -> 1.242290749 | G51: ='CV Rotina <2A - procedência'!N51 -> 1.145374449 | H51: ='CV Rotina <2A - procedência'!X51 -> 1.211453744 | I51: ='CV Rotina <2A - procedência'!R51 -> 1.13215859 | J51: ='CV Rotina <2A - procedência'!T51 -> 1.0969163 | K51: ='CV Rotina <2A - procedência'!V51 -> 1.246696035 | L51: ='CV Rotina <2A - procedência'!Z51 -> 0.9471365639 | M51: 1 | N51: 7 | O51: 8 | P51: 4
A52: Norte | B52: Mucurici | C52: ='CV Rotina <2A - procedência'!H52 -> 0.1449275362 | D52: ='CV Rotina <2A - procedência'!P52 -> 1.130434783 | E52: ='CV Rotina <2A - procedência'!J52 -> 1.144927536 | F52: ='CV Rotina <2A - procedência'!L52 -> 1.130434783 | G52: ='CV Rotina <2A - procedência'!N52 -> 1.144927536 | H52: ='CV Rotina <2A - procedência'!X52 -> 1.231884058 | I52: ='CV Rotina <2A - procedência'!R52 -> 1.101449275 | J52: ='CV Rotina <2A - procedência'!T52 -> 1.115942029 | K52: ='CV Rotina <2A - procedência'!V52 -> 0.9420289855 | L52: ='CV Rotina <2A - procedência'!Z52 -> 0.8695652174 | M52: 1 | N52: 6 | O52: 7 | P52: 4
A53: Sul | B53: Muniz Freire | C53: ='CV Rotina <2A - procedência'!H53 -> 0.6038647343 | D53: ='CV Rotina <2A - procedência'!P53 -> 1.115942029 | E53: ='CV Rotina <2A - procedência'!J53 -> 1.106280193 | F53: ='CV Rotina <2A - procedência'!L53 -> 1.082125604 | G53: ='CV Rotina <2A - procedência'!N53 -> 1.111111111 | H53: ='CV Rotina <2A - procedência'!X53 -> 1.193236715 | I53: ='CV Rotina <2A - procedência'!R53 -> 1.09178744 | J53: ='CV Rotina <2A - procedência'!T53 -> 1.024154589 | K53: ='CV Rotina <2A - procedência'!V53 -> 1.164251208 | L53: ='CV Rotina <2A - procedência'!Z53 -> 0.7729468599 | M53: 1 | N53: 7 | O53: 8 | P53: 4
A54: Sul | B54: Muqui | C54: ='CV Rotina <2A - procedência'!H54 -> 0.1679389313 | D54: ='CV Rotina <2A - procedência'!P54 -> 1.213740458 | E54: ='CV Rotina <2A - procedência'!J54 -> 1.34351145 | F54: ='CV Rotina <2A - procedência'!L54 -> 1.34351145 | G54: ='CV Rotina <2A - procedência'!N54 -> 1.20610687 | H54: ='CV Rotina <2A - procedência'!X54 -> 1.27480916 | I54: ='CV Rotina <2A - procedência'!R54 -> 1.290076336 | J54: ='CV Rotina <2A - procedência'!T54 -> 1.122137405 | K54: ='CV Rotina <2A - procedência'!V54 -> 1.190839695 | L54: ='CV Rotina <2A - procedência'!Z54 -> 0.9160305344 | M54: 1 | N54: 7 | O54: 8 | P54: 4
A55: Norte | B55: Nova Venécia | C55: ='CV Rotina <2A - procedência'!H55 -> 0.6519756839 | D55: ='CV Rotina <2A - procedência'!P55 -> 0.8996960486 | E55: ='CV Rotina <2A - procedência'!J55 -> 0.9650455927 | F55: ='CV Rotina <2A - procedência'!L55 -> 0.9604863222 | G55: ='CV Rotina <2A - procedência'!N55 -> 0.8875379939 | H55: ='CV Rotina <2A - procedência'!X55 -> 1.012158055 | I55: ='CV Rotina <2A - procedência'!R55 -> 0.9468085106 | J55: ='CV Rotina <2A - procedência'!T55 -> 0.8708206687 | K55: ='CV Rotina <2A - procedência'!V55 -> 0.9285714286 | L55: ='CV Rotina <2A - procedência'!Z55 -> 0.6291793313 | M55: 0 | N55: 3 | O55: 3 | P55: 3
A56: Central | B56: Pancas | C56: ='CV Rotina <2A - procedência'!H56 -> 0.565 | D56: ='CV Rotina <2A - procedência'!P56 -> 1.015 | E56: ='CV Rotina <2A - procedência'!J56 -> 1.035 | F56: ='CV Rotina <2A - procedência'!L56 -> 1.035 | G56: ='CV Rotina <2A - procedência'!N56 -> 1.02 | H56: ='CV Rotina <2A - procedência'!X56 -> 1.045 | I56: ='CV Rotina <2A - procedência'!R56 -> 1.01 | J56: ='CV Rotina <2A - procedência'!T56 -> 1.01 | K56: ='CV Rotina <2A - procedência'!V56 -> 1.04 | L56: ='CV Rotina <2A - procedência'!Z56 -> 0.97 | M56: 1 | N56: 8 | O56: 9 | P56: 4
A57: Norte | B57: Pedro Canário | C57: ='CV Rotina <2A - procedência'!H57 -> 0.08841463415 | D57: ='CV Rotina <2A - procedência'!P57 -> 0.9512195122 | E57: ='CV Rotina <2A - procedência'!J57 -> 0.9573170732 | F57: ='CV Rotina <2A - procedência'!L57 -> 0.9481707317 | G57: ='CV Rotina <2A - procedência'!N57 -> 0.9573170732 | H57: ='CV Rotina <2A - procedência'!X57 -> 1.024390244 | I57: ='CV Rotina <2A - procedência'!R57 -> 0.9603658537 | J57: ='CV Rotina <2A - procedência'!T57 -> 0.8384146341 | K57: ='CV Rotina <2A - procedência'!V57 -> 0.7835365854 | L57: ='CV Rotina <2A - procedência'!Z57 -> 0.7469512195 | M57: 1 | N57: 4 | O57: 5 | P57: 3
A58: Norte | B58: Pinheiros | C58: ='CV Rotina <2A - procedência'!H58 -> 0.05732484076 | D58: ='CV Rotina <2A - procedência'!P58 -> 0.9936305732 | E58: ='CV Rotina <2A - procedência'!J58 -> 1.041401274 | F58: ='CV Rotina <2A - procedência'!L58 -> 1.038216561 | G58: ='CV Rotina <2A - procedência'!N58 -> 1 | H58: ='CV Rotina <2A - procedência'!X58 -> 1.047770701 | I58: ='CV Rotina <2A - procedência'!R58 -> 0.9840764331 | J58: ='CV Rotina <2A - procedência'!T58 -> 0.8248407643 | K58: ='CV Rotina <2A - procedência'!V58 -> 0.9203821656 | L58: ='CV Rotina <2A - procedência'!Z58 -> 0.5318471338 | M58: 1 | N58: 5 | O58: 6 | P58: 4
A59: Sul | B59: Piúma | C59: ='CV Rotina <2A - procedência'!H59 -> 0.5920577617 | D59: ='CV Rotina <2A - procedência'!P59 -> 0.9314079422 | E59: ='CV Rotina <2A - procedência'!J59 -> 0.9602888087 | F59: ='CV Rotina <2A - procedência'!L59 -> 0.9566787004 | G59: ='CV Rotina <2A - procedência'!N59 -> 0.9819494585 | H59: ='CV Rotina <2A - procedência'!X59 -> 0.9241877256 | I59: ='CV Rotina <2A - procedência'!R59 -> 0.8953068592 | J59: ='CV Rotina <2A - procedência'!T59 -> 0.6028880866 | K59: ='CV Rotina <2A - procedência'!V59 -> 0.7761732852 | L59: ='CV Rotina <2A - procedência'!Z59 -> 0.5306859206 | M59: 1 | N59: 3 | O59: 4 | P59: 3
A60: Norte | B60: Ponto Belo | C60: ='CV Rotina <2A - procedência'!H60 -> 0.1481481481 | D60: ='CV Rotina <2A - procedência'!P60 -> 0.975308642 | E60: ='CV Rotina <2A - procedência'!J60 -> 0.8888888889 | F60: ='CV Rotina <2A - procedência'!L60 -> 0.8765432099 | G60: ='CV Rotina <2A - procedência'!N60 -> 0.975308642 | H60: ='CV Rotina <2A - procedência'!X60 -> 1.148148148 | I60: ='CV Rotina <2A - procedência'!R60 -> 0.987654321 | J60: ='CV Rotina <2A - procedência'!T60 -> 0.8395061728 | K60: ='CV Rotina <2A - procedência'!V60 -> 0.9135802469 | L60: ='CV Rotina <2A - procedência'!Z60 -> 0.7777777778 | M60: 1 | N60: 3 | O60: 4 | P60: 2
A61: Sul | B61: Presidente Kennedy | C61: ='CV Rotina <2A - procedência'!H61 -> 0.08108108108 | D61: ='CV Rotina <2A - procedência'!P61 -> 0.9513513514 | E61: ='CV Rotina <2A - procedência'!J61 -> 0.9675675676 | F61: ='CV Rotina <2A - procedência'!L61 -> 0.9783783784 | G61: ='CV Rotina <2A - procedência'!N61 -> 0.9621621622 | H61: ='CV Rotina <2A - procedência'!X61 -> 1.059459459 | I61: ='CV Rotina <2A - procedência'!R61 -> 1.010810811 | J61: ='CV Rotina <2A - procedência'!T61 -> 0.827027027 | K61: ='CV Rotina <2A - procedência'!V61 -> 1.108108108 | L61: ='CV Rotina <2A - procedência'!Z61 -> 0.7675675676 | M61: 1 | N61: 6 | O61: 7 | P61: 4
A62: Central | B62: Rio Bananal | C62: ='CV Rotina <2A - procedência'!H62 -> 0.1782178218 | D62: ='CV Rotina <2A - procedência'!P62 -> 0.897689769 | E62: ='CV Rotina <2A - procedência'!J62 -> 0.9240924092 | F62: ='CV Rotina <2A - procedência'!L62 -> 0.9207920792 | G62: ='CV Rotina <2A - procedência'!N62 -> 0.8778877888 | H62: ='CV Rotina <2A - procedência'!X62 -> 1.02310231 | I62: ='CV Rotina <2A - procedência'!R62 -> 0.8283828383 | J62: ='CV Rotina <2A - procedência'!T62 -> 0.8943894389 | K62: ='CV Rotina <2A - procedência'!V62 -> 1.02640264 | L62: ='CV Rotina <2A - procedência'!Z62 -> 0.6732673267 | M62: 0 | N62: 2 | O62: 2 | P62: 1
A63: Sul | B63: Rio Novo do Sul | C63: ='CV Rotina <2A - procedência'!H63 -> 0.3541666667 | D63: ='CV Rotina <2A - procedência'!P63 -> 1.0625 | E63: ='CV Rotina <2A - procedência'!J63 -> 1.09375 | F63: ='CV Rotina <2A - procedência'!L63 -> 1.072916667 | G63: ='CV Rotina <2A - procedência'!N63 -> 1.041666667 | H63: ='CV Rotina <2A - procedência'!X63 -> 1.239583333 | I63: ='CV Rotina <2A - procedência'!R63 -> 1.083333333 | J63: ='CV Rotina <2A - procedência'!T63 -> 0.96875 | K63: ='CV Rotina <2A - procedência'!V63 -> 1.395833333 | L63: ='CV Rotina <2A - procedência'!Z63 -> 1.145833333 | M63: 1 | N63: 8 | O63: 9 | P63: 4
A64: Metropolitana | B64: Santa Leopoldina | C64: ='CV Rotina <2A - procedência'!H64 -> 0.2839506173 | D64: ='CV Rotina <2A - procedência'!P64 -> 1.234567901 | E64: ='CV Rotina <2A - procedência'!J64 -> 1.395061728 | F64: ='CV Rotina <2A - procedência'!L64 -> 1.407407407 | G64: ='CV Rotina <2A - procedência'!N64 -> 1.197530864 | H64: ='CV Rotina <2A - procedência'!X64 -> 1.432098765 | I64: ='CV Rotina <2A - procedência'!R64 -> 1.283950617 | J64: ='CV Rotina <2A - procedência'!T64 -> 1.135802469 | K64: ='CV Rotina <2A - procedência'!V64 -> 1.456790123 | L64: ='CV Rotina <2A - procedência'!Z64 -> 0.4197530864 | M64: 1 | N64: 7 | O64: 8 | P64: 4
A65: Metropolitana | B65: Santa Maria de Jetibá | C65: ='CV Rotina <2A - procedência'!H65 -> 0.7919762259 | D65: ='CV Rotina <2A - procedência'!P65 -> 0.8811292719 | E65: ='CV Rotina <2A - procedência'!J65 -> 0.8469539376 | F65: ='CV Rotina <2A - procedência'!L65 -> 0.8424962853 | G65: ='CV Rotina <2A - procedência'!N65 -> 0.8603268945 | H65: ='CV Rotina <2A - procedência'!X65 -> 0.9034175334 | I65: ='CV Rotina <2A - procedência'!R65 -> 0.8603268945 | J65: ='CV Rotina <2A - procedência'!T65 -> 0.7369985141 | K65: ='CV Rotina <2A - procedência'!V65 -> 0.9316493314 | L65: ='CV Rotina <2A - procedência'!Z65 -> 0.5794947994 | M65: 0 | N65: 0 | O65: 0 | P65: 0
A66: Metropolitana | B66: Santa Teresa | C66: ='CV Rotina <2A - procedência'!H66 -> 0.7244897959 | D66: ='CV Rotina <2A - procedência'!P66 -> 0.9489795918 | E66: ='CV Rotina <2A - procedência'!J66 -> 0.9829931973 | F66: ='CV Rotina <2A - procedência'!L66 -> 0.9829931973 | G66: ='CV Rotina <2A - procedência'!N66 -> 1 | H66: ='CV Rotina <2A - procedência'!X66 -> 0.8979591837 | I66: ='CV Rotina <2A - procedência'!R66 -> 0.9081632653 | J66: ='CV Rotina <2A - procedência'!T66 -> 0.7823129252 | K66: ='CV Rotina <2A - procedência'!V66 -> 0.8605442177 | L66: ='CV Rotina <2A - procedência'!Z66 -> 0.7619047619 | M66: 1 | N66: 3 | O66: 4 | P66: 3
A67: Central | B67: São Domingos do Norte | C67: ='CV Rotina <2A - procedência'!H67 -> 0.4102564103 | D67: ='CV Rotina <2A - procedência'!P67 -> 0.9572649573 | E67: ='CV Rotina <2A - procedência'!J67 -> 0.9145299145 | F67: ='CV Rotina <2A - procedência'!L67 -> 0.9145299145 | G67: ='CV Rotina <2A - procedência'!N67 -> 0.9572649573 | H67: ='CV Rotina <2A - procedência'!X67 -> 0.9572649573 | I67: ='CV Rotina <2A - procedência'!R67 -> 0.9743589744 | J67: ='CV Rotina <2A - procedência'!T67 -> 0.9145299145 | K67: ='CV Rotina <2A - procedência'!V67 -> 0.7777777778 | L67: ='CV Rotina <2A - procedência'!Z67 -> 0.5982905983 | M67: =COUNTIF(C67:D67,">=0,9") -> 1 | N67: =COUNTIFS(E67:L67,">=0,95") -> 3 | O67: 4 | P67: 2
A68: Central | B68: São Gabriel da Palha | C68: ='CV Rotina <2A - procedência'!H68 -> 0.6096385542 | D68: ='CV Rotina <2A - procedência'!P68 -> 1.03373494 | E68: ='CV Rotina <2A - procedência'!J68 -> 1.043373494 | F68: ='CV Rotina <2A - procedência'!L68 -> 1.045783133 | G68: ='CV Rotina <2A - procedência'!N68 -> 1.084337349 | H68: ='CV Rotina <2A - procedência'!X68 -> 0.9734939759 | I68: ='CV Rotina <2A - procedência'!R68 -> 1.053012048 | J68: ='CV Rotina <2A - procedência'!T68 -> 0.8289156627 | K68: ='CV Rotina <2A - procedência'!V68 -> 0.8939759036 | L68: ='CV Rotina <2A - procedência'!Z68 -> 0.6987951807 | M68: 1 | N68: 5 | O68: =SUM(M68:N68) -> 6 | P68: =COUNTIF(E68:H68,">=0,95") -> 4
A69: Sul | B69: São José do Calçado | C69: ='CV Rotina <2A - procedência'!H69 -> 0.8269230769 | D69: ='CV Rotina <2A - procedência'!P69 -> 0.9807692308 | E69: ='CV Rotina <2A - procedência'!J69 -> 1.105769231 | F69: ='CV Rotina <2A - procedência'!L69 -> 1.105769231 | G69: ='CV Rotina <2A - procedência'!N69 -> 1.076923077 | H69: ='CV Rotina <2A - procedência'!X69 -> 1.230769231 | I69: ='CV Rotina <2A - procedência'!R69 -> 1.144230769 | J69: ='CV Rotina <2A - procedência'!T69 -> 0.9134615385 | K69: ='CV Rotina <2A - procedência'!V69 -> 1.028846154 | L69: ='CV Rotina <2A - procedência'!Z69 -> 0.6634615385 | M69: 1 | N69: 6 | O69: 7 | P69: 4
A70: Norte | B70: São Mateus | C70: ='CV Rotina <2A - procedência'!H70 -> 1.508223684 | D70: ='CV Rotina <2A - procedência'!P70 -> 0.9035087719 | E70: ='CV Rotina <2A - procedência'!J70 -> 0.9292763158 | F70: ='CV Rotina <2A - procedência'!L70 -> 0.9177631579 | G70: ='CV Rotina <2A - procedência'!N70 -> 0.9660087719 | H70: ='CV Rotina <2A - procedência'!X70 -> 0.8656798246 | I70: ='CV Rotina <2A - procedência'!R70 -> 0.8865131579 | J70: ='CV Rotina <2A - procedência'!T70 -> 0.6551535088 | K70: ='CV Rotina <2A - procedência'!V70 -> 0.8020833333 | L70: ='CV Rotina <2A - procedência'!Z70 -> 0.5542763158 | M70: 2 | N70: 1 | O70: 3 | P70: 1
A71: Central | B71: São Roque do Canaã | C71: ='CV Rotina <2A - procedência'!H71 -> 0.2954545455 | D71: ='CV Rotina <2A - procedência'!P71 -> 0.8636363636 | E71: ='CV Rotina <2A - procedência'!J71 -> 0.8409090909 | F71: ='CV Rotina <2A - procedência'!L71 -> 0.8484848485 | G71: ='CV Rotina <2A - procedência'!N71 -> 0.7727272727 | H71: ='CV Rotina <2A - procedência'!X71 -> 0.9696969697 | I71: ='CV Rotina <2A - procedência'!R71 -> 0.8712121212 | J71: ='CV Rotina <2A - procedência'!T71 -> 0.9015151515 | K71: ='CV Rotina <2A - procedência'!V71 -> 1.015151515 | L71: ='CV Rotina <2A - procedência'!Z71 -> 0.7272727273 | M71: 0 | N71: 2 | O71: 2 | P71: 1
A72: Metropolitana | B72: Serra | C72: ='CV Rotina <2A - procedência'!H72 -> 1.150675583 | D72: ='CV Rotina <2A - procedência'!P72 -> 0.8609253446 | E72: ='CV Rotina <2A - procedência'!J72 -> 0.8434557118 | F72: ='CV Rotina <2A - procedência'!L72 -> 0.8374505255 | G72: ='CV Rotina <2A - procedência'!N72 -> 0.8857649788 | H72: ='CV Rotina <2A - procedência'!X72 -> 0.8340384878 | I72: ='CV Rotina <2A - procedência'!R72 -> 0.84782312 | J72: ='CV Rotina <2A - procedência'!T72 -> 0.6354578955 | K72: ='CV Rotina <2A - procedência'!V72 -> 0.5930121469 | L72: ='CV Rotina <2A - procedência'!Z72 -> 0.4484782312 | M72: 1 | N72: 0 | O72: 1 | P72: 0
A73: Central | B73: Sooretama | C73: ='CV Rotina <2A - procedência'!H73 -> 0.08928571429 | D73: ='CV Rotina <2A - procedência'!P73 -> 0.9330357143 | E73: ='CV Rotina <2A - procedência'!J73 -> 0.9397321429 | F73: ='CV Rotina <2A - procedência'!L73 -> 0.9441964286 | G73: ='CV Rotina <2A - procedência'!N73 -> 0.9419642857 | H73: ='CV Rotina <2A - procedência'!X73 -> 0.9151785714 | I73: ='CV Rotina <2A - procedência'!R73 -> 0.8303571429 | J73: ='CV Rotina <2A - procedência'!T73 -> 0.7946428571 | K73: ='CV Rotina <2A - procedência'!V73 -> 0.9196428571 | L73: ='CV Rotina <2A - procedência'!Z73 -> 0.5491071429 | M73: 1 | N73: 0 | O73: 1 | P73: 0
A74: Sul | B74: Vargem Alta | C74: ='CV Rotina <2A - procedência'!H74 -> 0.1115879828 | D74: ='CV Rotina <2A - procedência'!P74 -> 1.055793991 | E74: ='CV Rotina <2A - procedência'!J74 -> 1.021459227 | F74: ='CV Rotina <2A - procedência'!L74 -> 1.021459227 | G74: ='CV Rotina <2A - procedência'!N74 -> 1.017167382 | H74: ='CV Rotina <2A - procedência'!X74 -> 1.137339056 | I74: ='CV Rotina <2A - procedência'!R74 -> 0.9785407725 | J74: ='CV Rotina <2A - procedência'!T74 -> 0.9227467811 | K74: ='CV Rotina <2A - procedência'!V74 -> 1.068669528 | L74: ='CV Rotina <2A - procedência'!Z74 -> 0.7725321888 | M74: 1 | N74: 6 | O74: 7 | P74: 4
A75: Metropolitana | B75: Venda Nova do Imigrante | C75: ='CV Rotina <2A - procedência'!H75 -> 1.243478261 | D75: ='CV Rotina <2A - procedência'!P75 -> 0.9449275362 | E75: ='CV Rotina <2A - procedência'!J75 -> 1.063768116 | F75: ='CV Rotina <2A - procedência'!L75 -> 1.063768116 | G75: ='CV Rotina <2A - procedência'!N75 -> 0.9623188406 | H75: ='CV Rotina <2A - procedência'!X75 -> 1.28115942 | I75: ='CV Rotina <2A - procedência'!R75 -> 1.011594203 | J75: ='CV Rotina <2A - procedência'!T75 -> 1.046376812 | K75: ='CV Rotina <2A - procedência'!V75 -> 1.011594203 | L75: ='CV Rotina <2A - procedência'!Z75 -> 0.8231884058 | M75: 2 | N75: 7 | O75: 9 | P75: 4
A76: Metropolitana | B76: Viana | C76: ='CV Rotina <2A - procedência'!H76 -> 0.1909492274 | D76: ='CV Rotina <2A - procedência'!P76 -> 0.9735099338 | E76: ='CV Rotina <2A - procedência'!J76 -> 0.9514348786 | F76: ='CV Rotina <2A - procedência'!L76 -> 0.93598234 | G76: ='CV Rotina <2A - procedência'!N76 -> 1.01214128 | H76: ='CV Rotina <2A - procedência'!X76 -> 0.9326710817 | I76: ='CV Rotina <2A - procedência'!R76 -> 0.9922737307 | J76: ='CV Rotina <2A - procedência'!T76 -> 0.642384106 | K76: ='CV Rotina <2A - procedência'!V76 -> 0.908388521 | L76: ='CV Rotina <2A - procedência'!Z76 -> 0.4613686534 | M76: 1 | N76: 3 | O76: 4 | P76: 2
A77: Norte | B77: Vila Pavão | C77: ='CV Rotina <2A - procedência'!H77 -> 0.5288461538 | D77: ='CV Rotina <2A - procedência'!P77 -> 1.038461538 | E77: ='CV Rotina <2A - procedência'!J77 -> 0.9711538462 | F77: ='CV Rotina <2A - procedência'!L77 -> 0.9519230769 | G77: ='CV Rotina <2A - procedência'!N77 -> 1.019230769 | H77: ='CV Rotina <2A - procedência'!X77 -> 1.144230769 | I77: ='CV Rotina <2A - procedência'!R77 -> 1 | J77: ='CV Rotina <2A - procedência'!T77 -> 0.9615384615 | K77: ='CV Rotina <2A - procedência'!V77 -> 1.259615385 | L77: ='CV Rotina <2A - procedência'!Z77 -> 0.7596153846 | M77: 1 | N77: 7 | O77: 8 | P77: 4
A78: Central | B78: Vila Valério | C78: ='CV Rotina <2A - procedência'!H78 -> 0.2827004219 | D78: ='CV Rotina <2A - procedência'!P78 -> 1.012658228 | E78: ='CV Rotina <2A - procedência'!J78 -> 0.9915611814 | F78: ='CV Rotina <2A - procedência'!L78 -> 0.970464135 | G78: ='CV Rotina <2A - procedência'!N78 -> 1.008438819 | H78: ='CV Rotina <2A - procedência'!X78 -> 1.054852321 | I78: ='CV Rotina <2A - procedência'!R78 -> 1.021097046 | J78: ='CV Rotina <2A - procedência'!T78 -> 0.8396624473 | K78: ='CV Rotina <2A - procedência'!V78 -> 0.9873417722 | L78: ='CV Rotina <2A - procedência'!Z78 -> 0.5611814346 | M78: 1 | N78: 6 | O78: 7 | P78: 4
A79: Metropolitana | B79: Vila Velha | C79: ='CV Rotina <2A - procedência'!H79 -> 0.7618609783 | D79: ='CV Rotina <2A - procedência'!P79 -> 0.8823096727 | E79: ='CV Rotina <2A - procedência'!J79 -> 0.8321073924 | F79: ='CV Rotina <2A - procedência'!L79 -> 0.8332107392 | G79: ='CV Rotina <2A - procedência'!N79 -> 0.9045605002 | H79: ='CV Rotina <2A - procedência'!X79 -> 0.8707245311 | I79: ='CV Rotina <2A - procedência'!R79 -> 0.8687017286 | J79: ='CV Rotina <2A - procedência'!T79 -> 0.6546524458 | K79: ='CV Rotina <2A - procedência'!V79 -> 0.8131666054 | L79: ='CV Rotina <2A - procedência'!Z79 -> 0.5663847003 | M79: 0 | N79: 0 | O79: 0 | P79: 0
A80: Metropolitana | B80: Vitória | C80: ='CV Rotina <2A - procedência'!H80 -> 2.068649886 | D80: ='CV Rotina <2A - procedência'!P80 -> 1.106693364 | E80: ='CV Rotina <2A - procedência'!J80 -> 1.195652174 | F80: ='CV Rotina <2A - procedência'!L80 -> 1.195652174 | G80: ='CV Rotina <2A - procedência'!N80 -> 1.183638444 | H80: ='CV Rotina <2A - procedência'!X80 -> 1.090961098 | I80: ='CV Rotina <2A - procedência'!R80 -> 1.13215103 | J80: ='CV Rotina <2A - procedência'!T80 -> 0.6856407323 | K80: ='CV Rotina <2A - procedência'!V80 -> 1.138443936 | L80: ='CV Rotina <2A - procedência'!Z80 -> 0.817791762 | M80: 2 | N80: 6 | O80: 8 | P80: 4
B82: Total Norte | C82: ='CV Rotina <2A - procedência'!H82 -> 0.8076512456 | D82: ='CV Rotina <2A - procedência'!P82 -> 0.9583629893 | E82: ='CV Rotina <2A - procedência'!J82 -> 0.9741992883 | F82: ='CV Rotina <2A - procedência'!L82 -> 0.9658362989 | G82: ='CV Rotina <2A - procedência'!N82 -> 0.9866548043 | H82: ='CV Rotina <2A - procedência'!X82 -> 0.9729537367 | I82: ='CV Rotina <2A - procedência'!R82 -> 0.9548042705 | J82: ='CV Rotina <2A - procedência'!T82 -> 0.7914590747 | K82: ='CV Rotina <2A - procedência'!V82 -> 0.8923487544 | L82: ='CV Rotina <2A - procedência'!Z82 -> 0.6393238434 | M82: =COUNTIF(C82:D82,">=0,9") -> 1 | N82: =COUNTIFS(E82:L82,">=0,95") -> 5 | O82: =SUM(M82:N82) -> 6 | P82: =COUNTIF(E82:H82,">=0,95") -> 4
B83: Total Central | C83: ='CV Rotina <2A - procedência'!H83 -> 0.9925799087 | D83: ='CV Rotina <2A - procedência'!P83 -> 0.9514840183 | E83: ='CV Rotina <2A - procedência'!J83 -> 0.9377853881 | F83: ='CV Rotina <2A - procedência'!L83 -> 0.9332191781 | G83: ='CV Rotina <2A - procedência'!N83 -> 0.9697488584 | H83: ='CV Rotina <2A - procedência'!X83 -> 0.9513413242 | I83: ='CV Rotina <2A - procedência'!R83 -> 0.926369863 | J83: ='CV Rotina <2A - procedência'!T83 -> 0.7788242009 | K83: ='CV Rotina <2A - procedência'!V83 -> 0.9026826484 | L83: ='CV Rotina <2A - procedência'!Z83 -> 0.6602454338 | M83: =COUNTIF(C83:D83,">=0,9") -> 2 | N83: =COUNTIFS(E83:L83,">=0,95") -> 2 | O83: =SUM(M83:N83) -> 4 | P83: =COUNTIF(E83:H83,">=0,95") -> 2
B84: Total Metropolitana | C84: ='CV Rotina <2A - procedência'!H84 -> 0.9564947814 | D84: ='CV Rotina <2A - procedência'!P84 -> 0.9233577899 | E84: ='CV Rotina <2A - procedência'!J84 -> 0.9141262788 | F84: ='CV Rotina <2A - procedência'!L84 -> 0.9102338879 | G84: ='CV Rotina <2A - procedência'!N84 -> 0.9531879715 | H84: ='CV Rotina <2A - procedência'!X84 -> 0.9201198719 | I84: ='CV Rotina <2A - procedência'!R84 -> 0.91674417 | J84: ='CV Rotina <2A - procedência'!T84 -> 0.6894009852 | K84: ='CV Rotina <2A - procedência'!V84 -> 0.8233267886 | L84: ='CV Rotina <2A - procedência'!Z84 -> 0.5759016224 | M84: =COUNTIF(C84:D84,">=0,9") -> 2 | N84: =COUNTIFS(E84:L84,">=0,95") -> 1 | O84: =SUM(M84:N84) -> 3 | P84: =COUNTIF(E84:H84,">=0,95") -> 1
B85: Total Sul | C85: ='CV Rotina <2A - procedência'!H85 -> 1.044250132 | D85: ='CV Rotina <2A - procedência'!P85 -> 1.032193959 | E85: ='CV Rotina <2A - procedência'!J85 -> 1.055246423 | F85: ='CV Rotina <2A - procedência'!L85 -> 1.050609433 | G85: ='CV Rotina <2A - procedência'!N85 -> 1.058161102 | H85: ='CV Rotina <2A - procedência'!X85 -> 1.074589295 | I85: ='CV Rotina <2A - procedência'!R85 -> 1.025967144 | J85: ='CV Rotina <2A - procedência'!T85 -> 0.8155802862 | K85: ='CV Rotina <2A - procedência'!V85 -> 1.015765766 | L85: ='CV Rotina <2A - procedência'!Z85 -> 0.6478537361 | M85: =COUNTIF(C85:D85,">=0,9") -> 2 | N85: =COUNTIFS(E85:L85,">=0,95") -> 6 | O85: =SUM(M85:N85) -> 8 | P85: =COUNTIF(E85:H85,">=0,95") -> 4
B86: Total Espírito Santo | C86: ='CV Rotina <2A - procedência'!H86 -> 0.9580953929 | D86: ='CV Rotina <2A - procedência'!P86 -> 0.9480561709 | E86: ='CV Rotina <2A - procedência'!J86 -> 0.9460036174 | F86: ='CV Rotina <2A - procedência'!L86 -> 0.9413904526 | G86: ='CV Rotina <2A - procedência'!N86 -> 0.9754709696 | H86: ='CV Rotina <2A - procedência'!X86 -> 0.9542951206 | I86: ='CV Rotina <2A - procedência'!R86 -> 0.9392159652 | J86: ='CV Rotina <2A - procedência'!T86 -> 0.7331477229 | K86: ='CV Rotina <2A - procedência'!V86 -> 0.8720304022 | L86: ='CV Rotina <2A - procedência'!Z86 -> 0.6061942407 | M86: =COUNTIF(C86:D86,">=0,9") -> 2 | N86: =COUNTIFS(E86:L86,">=0,95") -> 2 | O86: =SUM(M86:N86) -> 4 | P86: =COUNTIF(E86:H86,">=0,95") -> 2
A89: Fonte: SIPNI/DATASUS, em 09 de junho de 2023.*
A90: Vacina e Confia, em 12 de junho de 2023.**
A91: *Dados referentes às doses aplicadas pelas clínicas particulares de janeiro a maio de 2023
A92: **Dados referente às doses aplicadas no período de janeiro a maio de 2023
A93: Cobertura Calculada por município de vacinação
A94: 1 População proporcional extraída do MS/SVS/DASIS - Sistema de Informações sobre Nascidos Vivos - SINASC
A95: 2000 a 2021 – Estimativas preliminares elaboradas pelo Ministério da Saúde/SVS/DASNT/CGIAE
A96: Nota: Dados preliminares 2021

Sheet cálculos2 (hidden)
C1: 0.9 | E1: 0.95
A2: Regional | B2: Município | C2: Cobertura Vacinal BCG | D2: Cobertura Vacinal Rotavírus | E2: Cobertura Vacinal Pentavalente | F2: Cobertura Vacinal Poliomielite | G2: Cobertura Vacinal Pneumo 10 | H2: Cobertura Vacinal Tríplice Viral | I2: Cobertura Vacinal Meningo C | J2: Cobertura Vacinal Febre Amarela | K2: Cobertura Vacinal Hepatite A | L2: Cobertura Varicela | M2: META 90% | N2: META 95% | O2: ATINGIRAM META | P2: PQA-VS
A3: Metropolitana | B3: Afonso Cláudio | C3: ='CV Rotina <2A - residência'!H3 -> 0.9635854342 | D3: ='CV Rotina <2A - residência'!P3 -> 1.016806723 | E3: ='CV Rotina <2A - residência'!J3 -> 1.036414566 | F3: ='CV Rotina <2A - residência'!L3 -> 1.030812325 | G3: ='CV Rotina <2A - residência'!N3 -> 1.039215686 | H3: ='CV Rotina <2A - residência'!X3 -> 1.1232493 | I3: ='CV Rotina <2A - residência'!R3 -> 1.011204482 | J3: ='CV Rotina <2A - residência'!T3 -> 0.9943977591 | K3: ='CV Rotina <2A - residência'!V3 -> 1.078431373 | L3: ='CV Rotina <2A - residência'!Z3 -> 0.731092437 | M3: =COUNTIF(C3:D3,">=0,9") -> 2 | N3: =COUNTIFS(E3:L3,">=0,95") -> 7 | O3: =SUM(M3:N3) -> 9 | P3: =COUNTIF(E3:H3,">=0,95") -> 4
A4: Norte | B4: Água Doce do Norte | C4: ='CV Rotina <2A - residência'!H4 -> 1.219178082 | D4: ='CV Rotina <2A - residência'!P4 -> 1.239726027 | E4: ='CV Rotina <2A - residência'!J4 -> 1.219178082 | F4: ='CV Rotina <2A - residência'!L4 -> 1.198630137 | G4: ='CV Rotina <2A - residência'!N4 -> 1.267123288 | H4: ='CV Rotina <2A - residência'!X4 -> 0.9931506849 | I4: ='CV Rotina <2A - residência'!R4 -> 1.150684932 | J4: ='CV Rotina <2A - residência'!T4 -> 0.8424657534 | K4: ='CV Rotina <2A - residência'!V4 -> 0.9520547945 | L4: ='CV Rotina <2A - residência'!Z4 -> 0.5342465753 | M4: 2 | N4: 6 | O4: =SUM(M4:N4) -> 8 | P4: =COUNTIF(E4:H4,">=0,95") -> 4
A5: Central | B5: Águia Branca | C5: ='CV Rotina <2A - residência'!H5 -> 0.7823834197 | D5: ='CV Rotina <2A - residência'!P5 -> 0.8652849741 | E5: ='CV Rotina <2A - residência'!J5 -> 0.8549222798 | F5: ='CV Rotina <2A - residência'!L5 -> 0.8497409326 | G5: ='CV Rotina <2A - residência'!N5 -> 0.8756476684 | H5: ='CV Rotina <2A - residência'!X5 -> 0.7772020725 | I5: ='CV Rotina <2A - residência'!R5 -> 0.8497409326 | J5: ='CV Rotina <2A - residência'!T5 -> 0.6994818653 | K5: ='CV Rotina <2A - residência'!V5 -> 0.7150259067 | L5: ='CV Rotina <2A - residência'!Z5 -> 0.4507772021 | M5: 0 | N5: 0 | O5: 0 | P5: 0
A6: Sul | B6: Alegre | C6: ='CV Rotina <2A - residência'!H6 -> 1.035971223 | D6: ='CV Rotina <2A - residência'!P6 -> 1.107913669 | E6: ='CV Rotina <2A - residência'!J6 -> 1.172661871 | F6: ='CV Rotina <2A - residência'!L6 -> 1.169064748 | G6: ='CV Rotina <2A - residência'!N6 -> 1.136690647 | H6: ='CV Rotina <2A - residência'!X6 -> 1.115107914 | I6: ='CV Rotina <2A - residência'!R6 -> 1.107913669 | J6: ='CV Rotina <2A - residência'!T6 -> 1.075539568 | K6: ='CV Rotina <2A - residência'!V6 -> 1.032374101 | L6: ='CV Rotina <2A - residência'!Z6 -> 0.5683453237 | M6: 2 | N6: 7 | O6: 9 | P6: 4
A7: Sul | B7: Alfredo Chaves | C7: ='CV Rotina <2A - residência'!H7 -> 0.9327731092 | D7: ='CV Rotina <2A - residência'!P7 -> 1.218487395 | E7: ='CV Rotina <2A - residência'!J7 -> 1.168067227 | F7: ='CV Rotina <2A - residência'!L7 -> 1.151260504 | G7: ='CV Rotina <2A - residência'!N7 -> 1.210084034 | H7: ='CV Rotina <2A - residência'!X7 -> 1.176470588 | I7: ='CV Rotina <2A - residência'!R7 -> 1.18487395 | J7: ='CV Rotina <2A - residência'!T7 -> 1.100840336 | K7: ='CV Rotina <2A - residência'!V7 -> 1.142857143 | L7: ='CV Rotina <2A - residência'!Z7 -> 0.9243697479 | M7: 2 | N7: 7 | O7: 9 | P7: 4
A8: Central | B8: Alto Rio Novo | C8: ='CV Rotina <2A - residência'!H8 -> 0.9775280899 | D8: ='CV Rotina <2A - residência'!P8 -> 1.011235955 | E8: ='CV Rotina <2A - residência'!J8 -> 1.02247191 | F8: ='CV Rotina <2A - residência'!L8 -> 1.011235955 | G8: ='CV Rotina <2A - residência'!N8 -> 1.011235955 | H8: ='CV Rotina <2A - residência'!X8 -> 1 | I8: ='CV Rotina <2A - residência'!R8 -> 1 | J8: ='CV Rotina <2A - residência'!T8 -> 0.8426966292 | K8: ='CV Rotina <2A - residência'!V8 -> 0.9550561798 | L8: ='CV Rotina <2A - residência'!Z8 -> 0.6629213483 | M8: 2 | N8: 6 | O8: 8 | P8: 4
A9: Sul | B9: Anchieta | C9: ='CV Rotina <2A - residência'!H9 -> 1.068047337 | D9: ='CV Rotina <2A - residência'!P9 -> 1.118343195 | E9: ='CV Rotina <2A - residência'!J9 -> 1.153846154 | F9: ='CV Rotina <2A - residência'!L9 -> 1.165680473 | G9: ='CV Rotina <2A - residência'!N9 -> 1.147928994 | H9: ='CV Rotina <2A - residência'!X9 -> 1.207100592 | I9: ='CV Rotina <2A - residência'!R9 -> 1.139053254 | J9: ='CV Rotina <2A - residência'!T9 -> 0.875739645 | K9: ='CV Rotina <2A - residência'!V9 -> 1.198224852 | L9: ='CV Rotina <2A - residência'!Z9 -> 0.775147929 | M9: 2 | N9: 6 | O9: 8 | P9: 4
A10: Sul | B10: Apiacá | C10: ='CV Rotina <2A - residência'!H10 -> 0.9189189189 | D10: ='CV Rotina <2A - residência'!P10 -> 0.9324324324 | E10: ='CV Rotina <2A - residência'!J10 -> 0.9054054054 | F10: ='CV Rotina <2A - residência'!L10 -> 0.9054054054 | G10: ='CV Rotina <2A - residência'!N10 -> 0.9324324324 | H10: ='CV Rotina <2A - residência'!X10 -> 0.8918918919 | I10: ='CV Rotina <2A - residência'!R10 -> 0.9324324324 | J10: ='CV Rotina <2A - residência'!T10 -> 0.8108108108 | K10: ='CV Rotina <2A - residência'!V10 -> 0.8513513514 | L10: ='CV Rotina <2A - residência'!Z10 -> 0.2972972973 | M10: 2 | N10: 0 | O10: 2 | P10: 0
A11: Metropolitana | B11: Aracruz | C11: ='CV Rotina <2A - residência'!H11 -> 0.9714285714 | D11: ='CV Rotina <2A - residência'!P11 -> 0.9963369963 | E11: ='CV Rotina <2A - residência'!J11 -> 0.9912087912 | F11: ='CV Rotina <2A - residência'!L11 -> 0.9882783883 | G11: ='CV Rotina <2A - residência'!N11 -> 1.020512821 | H11: ='CV Rotina <2A - residência'!X11 -> 1.03003663 | I11: ='CV Rotina <2A - residência'!R11 -> 0.9897435897 | J11: ='CV Rotina <2A - residência'!T11 -> 0.7992673993 | K11: ='CV Rotina <2A - residência'!V11 -> 1.025641026 | L11: ='CV Rotina <2A - residência'!Z11 -> 0.6271062271 | M11: 2 | N11: 6 | O11: 8 | P11: 4
A12: Sul | B12: Atilio Vivacqua | C12: ='CV Rotina <2A - residência'!H12 -> 1.078571429 | D12: ='CV Rotina <2A - residência'!P12 -> 1.042857143 | E12: ='CV Rotina <2A - residência'!J12 -> 1.014285714 | F12: ='CV Rotina <2A - residência'!L12 -> 1.014285714 | G12: ='CV Rotina <2A - residência'!N12 -> 1.064285714 | H12: ='CV Rotina <2A - residência'!X12 -> 1.057142857 | I12: ='CV Rotina <2A - residência'!R12 -> 1 | J12: ='CV Rotina <2A - residência'!T12 -> 0.7642857143 | K12: ='CV Rotina <2A - residência'!V12 -> 1.078571429 | L12: ='CV Rotina <2A - residência'!Z12 -> 0.6357142857 | M12: 2 | N12: 6 | O12: 8 | P12: 4
A13: Central | B13: Baixo Guandu | C13: ='CV Rotina <2A - residência'!H13 -> 1 | D13: ='CV Rotina <2A - residência'!P13 -> 1.095652174 | E13: ='CV Rotina <2A - residência'!J13 -> 1.12173913 | F13: ='CV Rotina <2A - residência'!L13 -> 1.127536232 | G13: ='CV Rotina <2A - residência'!N13 -> 1.12173913 | H13: ='CV Rotina <2A - residência'!X13 -> 1.052173913 | I13: ='CV Rotina <2A - residência'!R13 -> 1.115942029 | J13: ='CV Rotina <2A - residência'!T13 -> 0.8637681159 | K13: ='CV Rotina <2A - residência'!V13 -> 1.04057971 | L13: ='CV Rotina <2A - residência'!Z13 -> 0.7217391304 | M13: 2 | N13: 6 | O13: 8 | P13: 4
A14: Norte | B14: Barra de São Francisco | C14: ='CV Rotina <2A - residência'!H14 -> 0.9383561644 | D14: ='CV Rotina <2A - residência'!P14 -> 0.904109589 | E14: ='CV Rotina <2A - residência'!J14 -> 0.8835616438 | F14: ='CV Rotina <2A - residência'!L14 -> 0.8647260274 | G14: ='CV Rotina <2A - residência'!N14 -> 0.9434931507 | H14: ='CV Rotina <2A - residência'!X14 -> 0.9212328767 | I14: ='CV Rotina <2A - residência'!R14 -> 0.9280821918 | J14: ='CV Rotina <2A - residência'!T14 -> 0.7705479452 | K14: ='CV Rotina <2A - residência'!V14 -> 0.8613013699 | L14: ='CV Rotina <2A - residência'!Z14 -> 0.654109589 | M14: 2 | N14: 0 | O14: 2 | P14: 0
A15: Norte | B15: Boa Esperança | C15: ='CV Rotina <2A - residência'!H15 -> 0.8431372549 | D15: ='CV Rotina <2A - residência'!P15 -> 1.044117647 | E15: ='CV Rotina <2A - residência'!J15 -> 0.9460784314 | F15: ='CV Rotina <2A - residência'!L15 -> 0.9705882353 | G15: ='CV Rotina <2A - residência'!N15 -> 1.053921569 | H15: ='CV Rotina <2A - residência'!X15 -> 0.9656862745 | I15: ='CV Rotina <2A - residência'!R15 -> 0.9754901961 | J15: ='CV Rotina <2A - residência'!T15 -> 0.8039215686 | K15: ='CV Rotina <2A - residência'!V15 -> 0.8382352941 | L15: ='CV Rotina <2A - residência'!Z15 -> 0.6911764706 | M15: 1 | N15: 4 | O15: 5 | P15: 3
A16: Sul | B16: Bom Jesus do Norte | C16: ='CV Rotina <2A - residência'!H16 -> 0.9615384615 | D16: ='CV Rotina <2A - residência'!P16 -> 1.230769231 | E16: ='CV Rotina <2A - residência'!J16 -> 1.346153846 | F16: ='CV Rotina <2A - residência'!L16 -> 1.333333333 | G16: ='CV Rotina <2A - residência'!N16 -> 1.256410256 | H16: ='CV Rotina <2A - residência'!X16 -> 1.346153846 | I16: ='CV Rotina <2A - residência'!R16 -> 1.294871795 | J16: ='CV Rotina <2A - residência'!T16 -> 1.025641026 | K16: ='CV Rotina <2A - residência'!V16 -> 0.9743589744 | L16: ='CV Rotina <2A - residência'!Z16 -> 0.5641025641 | M16: 2 | N16: 7 | O16: 9 | P16: 4
A17: Metropolitana | B17: Brejetuba | C17: ='CV Rotina <2A - residência'!H17 -> 0.9473684211 | D17: ='CV Rotina <2A - residência'!P17 -> 0.9473684211 | E17: ='CV Rotina <2A - residência'!J17 -> 0.966507177 | F17: ='CV Rotina <2A - residência'!L17 -> 0.966507177 | G17: ='CV Rotina <2A - residência'!N17 -> 0.9186602871 | H17: ='CV Rotina <2A - residência'!X17 -> 0.9043062201 | I17: ='CV Rotina <2A - residência'!R17 -> 0.9138755981 | J17: ='CV Rotina <2A - residência'!T17 -> 0.971291866 | K17: ='CV Rotina <2A - residência'!V17 -> 0.8995215311 | L17: ='CV Rotina <2A - residência'!Z17 -> 0.5502392344 | M17: 2 | N17: 3 | O17: 5 | P17: 2
A18: Sul | B18: Cachoeiro de Itapemirim | C18: ='CV Rotina <2A - residência'!H18 -> 1.263772176 | D18: ='CV Rotina <2A - residência'!P18 -> 1.040149393 | E18: ='CV Rotina <2A - residência'!J18 -> 1.051820728 | F18: ='CV Rotina <2A - residência'!L18 -> 1.039215686 | G18: ='CV Rotina <2A - residência'!N18 -> 1.062091503 | H18: ='CV Rotina <2A - residência'!X18 -> 1.022875817 | I18: ='CV Rotina <2A - residência'!R18 -> 1.020074697 | J18: ='CV Rotina <2A - residência'!T18 -> 0.746031746 | K18: ='CV Rotina <2A - residência'!V18 -> 0.9967320261 | L18: ='CV Rotina <2A - residência'!Z18 -> 0.6022408964 | M18: 2 | N18: 6 | O18: 8 | P18: 4
A19: Metropolitana | B19: Cariacica | C19: ='CV Rotina <2A - residência'!H19 -> 0.9245481295 | D19: ='CV Rotina <2A - residência'!P19 -> 0.9007986549 | E19: ='CV Rotina <2A - residência'!J19 -> 0.895334174 | F19: ='CV Rotina <2A - residência'!L19 -> 0.8892391761 | G19: ='CV Rotina <2A - residência'!N19 -> 0.9434636402 | H19: ='CV Rotina <2A - residência'!X19 -> 0.8949138293 | I19: ='CV Rotina <2A - residência'!R19 -> 0.8894493485 | J19: ='CV Rotina <2A - residência'!T19 -> 0.6628835645 | K19: ='CV Rotina <2A - residência'!V19 -> 0.7784783522 | L19: ='CV Rotina <2A - residência'!Z19 -> 0.5388818831 | M19: 2 | N19: 0 | O19: 2 | P19: 0
A20: Sul | B20: Castelo | C20: ='CV Rotina <2A - residência'!H20 -> 0.9128205128 | D20: ='CV Rotina <2A - residência'!P20 -> 1.066666667 | E20: ='CV Rotina <2A - residência'!J20 -> 1.094871795 | F20: ='CV Rotina <2A - residência'!L20 -> 1.1 | G20: ='CV Rotina <2A - residência'!N20 -> 1.087179487 | H20: ='CV Rotina <2A - residência'!X20 -> 1.11025641 | I20: ='CV Rotina <2A - residência'!R20 -> 1.038461538 | J20: ='CV Rotina <2A - residência'!T20 -> 0.9487179487 | K20: ='CV Rotina <2A - residência'!V20 -> 1.005128205 | L20: ='CV Rotina <2A - residência'!Z20 -> 0.7538461538 | M20: 2 | N20: 6 | O20: 8 | P20: 4
A21: Central | B21: Colatina | C21: ='CV Rotina <2A - residência'!H21 -> 0.998669328 | D21: ='CV Rotina <2A - residência'!P21 -> 0.9607451763 | E21: ='CV Rotina <2A - residência'!J21 -> 0.9527611444 | F21: ='CV Rotina <2A - residência'!L21 -> 0.9421157685 | G21: ='CV Rotina <2A - residência'!N21 -> 0.9753825682 | H21: ='CV Rotina <2A - residência'!X21 -> 0.9920159681 | I21: ='CV Rotina <2A - residência'!R21 -> 0.9121756487 | J21: ='CV Rotina <2A - residência'!T21 -> 0.7817697937 | K21: ='CV Rotina <2A - residência'!V21 -> 0.8835662009 | L21: ='CV Rotina <2A - residência'!Z21 -> 0.7159015303 | M21: 2 | N21: 3 | O21: 5 | P21: 3
A22: Norte | B22: Conceição da Barra | C22: ='CV Rotina <2A - residência'!H22 -> 0.7927170868 | D22: ='CV Rotina <2A - residência'!P22 -> 1.1232493 | E22: ='CV Rotina <2A - residência'!J22 -> 1.098039216 | F22: ='CV Rotina <2A - residência'!L22 -> 1.106442577 | G22: ='CV Rotina <2A - residência'!N22 -> 1.156862745 | H22: ='CV Rotina <2A - residência'!X22 -> 1.050420168 | I22: ='CV Rotina <2A - residência'!R22 -> 1.120448179 | J22: ='CV Rotina <2A - residência'!T22 -> 0.9635854342 | K22: ='CV Rotina <2A - residência'!V22 -> 0.9887955182 | L22: ='CV Rotina <2A - residência'!Z22 -> 0.8067226891 | M22: 1 | N22: 7 | O22: 8 | P22: 4
A23: Metropolitana | B23: Conceição do Castelo | C23: ='CV Rotina <2A - residência'!H23 -> 0.8596491228 | D23: ='CV Rotina <2A - residência'!P23 -> 0.6959064327 | E23: ='CV Rotina <2A - residência'!J23 -> 0.6959064327 | F23: ='CV Rotina <2A - residência'!L23 -> 0.6783625731 | G23: ='CV Rotina <2A - residência'!N23 -> 0.701754386 | H23: ='CV Rotina <2A - residência'!X23 -> 0.7894736842 | I23: ='CV Rotina <2A - residência'!R23 -> 0.7076023392 | J23: ='CV Rotina <2A - residência'!T23 -> 0.6140350877 | K23: ='CV Rotina <2A - residência'!V23 -> 0.7953216374 | L23: ='CV Rotina <2A - residência'!Z23 -> 0.5263157895 | M23: 0 | N23: 0 | O23: 0 | P23: 0
A24: Sul | B24: Divino de São Lourenço | C24: ='CV Rotina <2A - residência'!H24 -> 1.01754386 | D24: ='CV Rotina <2A - residência'!P24 -> 1.333333333 | E24: ='CV Rotina <2A - residência'!J24 -> 1.438596491 | F24: ='CV Rotina <2A - residência'!L24 -> 1.438596491 | G24: ='CV Rotina <2A - residência'!N24 -> 1.350877193 | H24: ='CV Rotina <2A - residência'!X24 -> 1.052631579 | I24: ='CV Rotina <2A - residência'!R24 -> 1.385964912 | J24: ='CV Rotina <2A - residência'!T24 -> 1.01754386 | K24: ='CV Rotina <2A - residência'!V24 -> 0.8771929825 | L24: ='CV Rotina <2A - residência'!Z24 -> 0.6666666667 | M24: 2 | N24: 6 | O24: 8 | P24: 4
A25: Metropolitana | B25: Domingos Martins | C25: ='CV Rotina <2A - residência'!H25 -> 0.9410377358 | D25: ='CV Rotina <2A - residência'!P25 -> 0.9905660377 | E25: ='CV Rotina <2A - residência'!J25 -> 0.9174528302 | F25: ='CV Rotina <2A - residência'!L25 -> 0.9198113208 | G25: ='CV Rotina <2A - residência'!N25 -> 1 | H25: ='CV Rotina <2A - residência'!X25 -> 0.9174528302 | I25: ='CV Rotina <2A - residência'!R25 -> 0.9504716981 | J25: ='CV Rotina <2A - residência'!T25 -> 0.7924528302 | K25: ='CV Rotina <2A - residência'!V25 -> 0.9080188679 | L25: ='CV Rotina <2A - residência'!Z25 -> 0.7429245283 | M25: 2 | N25: 2 | O25: 4 | P25: 1
A26: Sul | B26: Dores do Rio Preto | C26: ='CV Rotina <2A - residência'!H26 -> 0.7127659574 | D26: ='CV Rotina <2A - residência'!P26 -> 1.031914894 | E26: ='CV Rotina <2A - residência'!J26 -> 0.9255319149 | F26: ='CV Rotina <2A - residência'!L26 -> 0.9574468085 | G26: ='CV Rotina <2A - residência'!N26 -> 1.074468085 | H26: ='CV Rotina <2A - residência'!X26 -> 0.8936170213 | I26: ='CV Rotina <2A - residência'!R26 -> 1.021276596 | J26: ='CV Rotina <2A - residência'!T26 -> 0.7446808511 | K26: ='CV Rotina <2A - residência'!V26 -> 0.8936170213 | L26: ='CV Rotina <2A - residência'!Z26 -> 0.5 | M26: 1 | N26: 3 | O26: 4 | P26: 2
A27: Norte | B27: Ecoporanga | C27: ='CV Rotina <2A - residência'!H27 -> 1.068965517 | D27: ='CV Rotina <2A - residência'!P27 -> 1 | E27: ='CV Rotina <2A - residência'!J27 -> 1.011494253 | F27: ='CV Rotina <2A - residência'!L27 -> 1.007662835 | G27: ='CV Rotina <2A - residência'!N27 -> 1.042145594 | H27: ='CV Rotina <2A - residência'!X27 -> 0.9501915709 | I27: ='CV Rotina <2A - residência'!R27 -> 1.022988506 | J27: ='CV Rotina <2A - residência'!T27 -> 0.846743295 | K27: ='CV Rotina <2A - residência'!V27 -> 1 | L27: ='CV Rotina <2A - residência'!Z27 -> 0.7739463602 | M27: 2 | N27: 6 | O27: 8 | P27: 4
A28: Metropolitana | B28: Fundão | C28: ='CV Rotina <2A - residência'!H28 -> 0.9147982063 | D28: ='CV Rotina <2A - residência'!P28 -> 0.9686098655 | E28: ='CV Rotina <2A - residência'!J28 -> 1 | F28: ='CV Rotina <2A - residência'!L28 -> 0.9910313901 | G28: ='CV Rotina <2A - residência'!N28 -> 0.9641255605 | H28: ='CV Rotina <2A - residência'!X28 -> 0.8878923767 | I28: ='CV Rotina <2A - residência'!R28 -> 0.932735426 | J28: ='CV Rotina <2A - residência'!T28 -> 0.7578475336 | K28: ='CV Rotina <2A - residência'!V28 -> 1.013452915 | L28: ='CV Rotina <2A - residência'!Z28 -> 0.7802690583 | M28: 2 | N28: 4 | O28: 6 | P28: 3
A29: Central | B29: Governador Lindenberg | C29: ='CV Rotina <2A - residência'!H29 -> 0.8974358974 | D29: ='CV Rotina <2A - residência'!P29 -> 1.034188034 | E29: ='CV Rotina <2A - residência'!J29 -> 0.9914529915 | F29: ='CV Rotina <2A - residência'!L29 -> 0.9743589744 | G29: ='CV Rotina <2A - residência'!N29 -> 1.042735043 | H29: ='CV Rotina <2A - residência'!X29 -> 1.170940171 | I29: ='CV Rotina <2A - residência'!R29 -> 1.025641026 | J29: ='CV Rotina <2A - residência'!T29 -> 1.051282051 | K29: ='CV Rotina <2A - residência'!V29 -> 1.205128205 | L29: ='CV Rotina <2A - residência'!Z29 -> 0.8290598291 | M29: 1 | N29: 7 | O29: 8 | P29: 4
A30: Sul | B30: Guaçuí | C30: ='CV Rotina <2A - residência'!H30 -> 0.8772845953 | D30: ='CV Rotina <2A - residência'!P30 -> 0.908616188 | E30: ='CV Rotina <2A - residência'!J30 -> 1.018276762 | F30: ='CV Rotina <2A - residência'!L30 -> 1.005221932 | G30: ='CV Rotina <2A - residência'!N30 -> 0.9634464752 | H30: ='CV Rotina <2A - residência'!X30 -> 0.817232376 | I30: ='CV Rotina <2A - residência'!R30 -> 0.9347258486 | J30: ='CV Rotina <2A - residência'!T30 -> 0.7702349869 | K30: ='CV Rotina <2A - residência'!V30 -> 1.018276762 | L30: ='CV Rotina <2A - residência'!Z30 -> 0.5822454308 | M30: 1 | N30: 4 | O30: 5 | P30: 3
A31: Metropolitana | B31: Guarapari | C31: ='CV Rotina <2A - residência'!H31 -> 0.957284962 | D31: ='CV Rotina <2A - residência'!P31 -> 0.8958455237 | E31: ='CV Rotina <2A - residência'!J31 -> 0.8513750731 | F31: ='CV Rotina <2A - residência'!L31 -> 0.838502048 | G31: ='CV Rotina <2A - residência'!N31 -> 0.9309537741 | H31: ='CV Rotina <2A - residência'!X31 -> 0.8326506729 | I31: ='CV Rotina <2A - residência'!R31 -> 0.8753657109 | J31: ='CV Rotina <2A - residência'!T31 -> 0.60093622 | K31: ='CV Rotina <2A - residência'!V31 -> 0.7928613224 | L31: ='CV Rotina <2A - residência'!Z31 -> 0.5728496197 | M31: 1 | N31: 0 | O31: 1 | P31: 0
A32: Metropolitana | B32: Ibatiba | C32: ='CV Rotina <2A - residência'!H32 -> 0.9973684211 | D32: ='CV Rotina <2A - residência'!P32 -> 0.9684210526 | E32: ='CV Rotina <2A - residência'!J32 -> 0.9684210526 | F32: ='CV Rotina <2A - residência'!L32 -> 0.9631578947 | G32: ='CV Rotina <2A - residência'!N32 -> 0.9973684211 | H32: ='CV Rotina <2A - residência'!X32 -> 0.95 | I32: ='CV Rotina <2A - residência'!R32 -> 0.9710526316 | J32: ='CV Rotina <2A - residência'!T32 -> 0.85 | K32: ='CV Rotina <2A - residência'!V32 -> 0.9394736842 | L32: ='CV Rotina <2A - residência'!Z32 -> 0.2789473684 | M32: 2 | N32: 5 | O32: 7 | P32: 4
A33: Metropolitana | B33: Ibiraçu | C33: ='CV Rotina <2A - residência'!H33 -> 0.8987341772 | D33: ='CV Rotina <2A - residência'!P33 -> 0.8670886076 | E33: ='CV Rotina <2A - residência'!J33 -> 0.8670886076 | F33: ='CV Rotina <2A - residência'!L33 -> 0.8607594937 | G33: ='CV Rotina <2A - residência'!N33 -> 0.8797468354 | H33: ='CV Rotina <2A - residência'!X33 -> 0.8101265823 | I33: ='CV Rotina <2A - residência'!R33 -> 0.8607594937 | J33: ='CV Rotina <2A - residência'!T33 -> 0.753164557 | K33: ='CV Rotina <2A - residência'!V33 -> 0.7594936709 | L33: ='CV Rotina <2A - residência'!Z33 -> 0.5886075949 | M33: 0 | N33: 0 | O33: 0 | P33: 0
A34: Sul | B34: Ibitirama | C34: ='CV Rotina <2A - residência'!H34 -> 1.027777778 | D34: ='CV Rotina <2A - residência'!P34 -> 0.9722222222 | E34: ='CV Rotina <2A - residência'!J34 -> 0.9583333333 | F34: ='CV Rotina <2A - residência'!L34 -> 0.9722222222 | G34: ='CV Rotina <2A - residência'!N34 -> 0.9791666667 | H34: ='CV Rotina <2A - residência'!X34 -> 0.9652777778 | I34: ='CV Rotina <2A - residência'!R34 -> 0.7916666667 | J34: ='CV Rotina <2A - residência'!T34 -> 0.7569444444 | K34: ='CV Rotina <2A - residência'!V34 -> 0.9166666667 | L34: ='CV Rotina <2A - residência'!Z34 -> 0.5763888889 | M34: 2 | N34: 4 | O34: 6 | P34: 4
A35: Sul | B35: Iconha | C35: ='CV Rotina <2A - residência'!H35 -> 0.8214285714 | D35: ='CV Rotina <2A - residência'!P35 -> 1 | E35: ='CV Rotina <2A - residência'!J35 -> 0.9910714286 | F35: ='CV Rotina <2A - residência'!L35 -> 0.9553571429 | G35: ='CV Rotina <2A - residência'!N35 -> 0.9910714286 | H35: ='CV Rotina <2A - residência'!X35 -> 1.241071429 | I35: ='CV Rotina <2A - residência'!R35 -> 0.9107142857 | J35: ='CV Rotina <2A - residência'!T35 -> 0.9642857143 | K35: ='CV Rotina <2A - residência'!V35 -> 1.223214286 | L35: ='CV Rotina <2A - residência'!Z35 -> 0.8303571429 | M35: =COUNTIF(C35:D35,">=0,9") -> 1 | N35: 6 | O35: =SUM(M35:N35) -> 7 | P35: 4
A36: Sul | B36: Irupi | C36: ='CV Rotina <2A - residência'!H36 -> 0.8505747126 | D36: ='CV Rotina <2A - residência'!P36 -> 1.183908046 | E36: ='CV Rotina <2A - residência'!J36 -> 1.137931034 | F36: ='CV Rotina <2A - residência'!L36 -> 1.114942529 | G36: ='CV Rotina <2A - residência'!N36 -> 1.183908046 | H36: ='CV Rotina <2A - residência'!X36 -> 1.218390805 | I36: ='CV Rotina <2A - residência'!R36 -> 1.166666667 | J36: ='CV Rotina <2A - residência'!T36 -> 0.9540229885 | K36: ='CV Rotina <2A - residência'!V36 -> 1.120689655 | L36: ='CV Rotina <2A - residência'!Z36 -> 0.5114942529 | M36: 1 | N36: 7 | O36: 8 | P36: 4
A37: Metropolitana | B37: Itaguaçu | C37: ='CV Rotina <2A - residência'!H37 -> 1.045801527 | D37: ='CV Rotina <2A - residência'!P37 -> 1.099236641 | E37: ='CV Rotina <2A - residência'!J37 -> 1.099236641 | F37: ='CV Rotina <2A - residência'!L37 -> 1.091603053 | G37: ='CV Rotina <2A - residência'!N37 -> 1.099236641 | H37: ='CV Rotina <2A - residência'!X37 -> 1.083969466 | I37: ='CV Rotina <2A - residência'!R37 -> 1.122137405 | J37: ='CV Rotina <2A - residência'!T37 -> 0.9770992366 | K37: ='CV Rotina <2A - residência'!V37 -> 1.152671756 | L37: ='CV Rotina <2A - residência'!Z37 -> 0.9694656489 | M37: 2 | N37: 8 | O37: 10 | P37: 4
A38: Sul | B38: Itapemirim | C38: ='CV Rotina <2A - residência'!H38 -> 0.9514767932 | D38: ='CV Rotina <2A - residência'!P38 -> 0.8818565401 | E38: ='CV Rotina <2A - residência'!J38 -> 0.9578059072 | F38: ='CV Rotina <2A - residência'!L38 -> 0.9578059072 | G38: ='CV Rotina <2A - residência'!N38 -> 0.9894514768 | H38: ='CV Rotina <2A - residência'!X38 -> 0.9578059072 | I38: ='CV Rotina <2A - residência'!R38 -> 0.9071729958 | J38: ='CV Rotina <2A - residência'!T38 -> 0.611814346 | K38: ='CV Rotina <2A - residência'!V38 -> 0.9219409283 | L38: ='CV Rotina <2A - residência'!Z38 -> 0.5738396624 | M38: 1 | N38: 4 | O38: 5 | P38: 4
A39: Metropolitana | B39: Itarana | C39: ='CV Rotina <2A - residência'!H39 -> 1.089552239 | D39: ='CV Rotina <2A - residência'!P39 -> 1.067164179 | E39: ='CV Rotina <2A - residência'!J39 -> 1.052238806 | F39: ='CV Rotina <2A - residência'!L39 -> 1.059701493 | G39: ='CV Rotina <2A - residência'!N39 -> 1.134328358 | H39: ='CV Rotina <2A - residência'!X39 -> 1.014925373 | I39: ='CV Rotina <2A - residência'!R39 -> 1.067164179 | J39: ='CV Rotina <2A - residência'!T39 -> 1 | K39: ='CV Rotina <2A - residência'!V39 -> 0.947761194 | L39: ='CV Rotina <2A - residência'!Z39 -> 0.9029850746 | M39: 2 | N39: 6 | O39: 8 | P39: 4
A40: Sul | B40: Iúna | C40: ='CV Rotina <2A - residência'!H40 -> 0.7785714286 | D40: ='CV Rotina <2A - residência'!P40 -> 0.9642857143 | E40: ='CV Rotina <2A - residência'!J40 -> 0.9595238095 | F40: ='CV Rotina <2A - residência'!L40 -> 0.9619047619 | G40: ='CV Rotina <2A - residência'!N40 -> 0.9738095238 | H40: ='CV Rotina <2A - residência'!X40 -> 1.038095238 | I40: ='CV Rotina <2A - residência'!R40 -> 0.95 | J40: ='CV Rotina <2A - residência'!T40 -> 0.8952380952 | K40: ='CV Rotina <2A - residência'!V40 -> 0.9142857143 | L40: ='CV Rotina <2A - residência'!Z40 -> 0.6452380952 | M40: 1 | N40: 5 | O40: 6 | P40: 4
A41: Norte | B41: Jaguaré | C41: ='CV Rotina <2A - residência'!H41 -> 0.9244060475 | D41: ='CV Rotina <2A - residência'!P41 -> 1.021598272 | E41: ='CV Rotina <2A - residência'!J41 -> 1.051835853 | F41: ='CV Rotina <2A - residência'!L41 -> 1.032397408 | G41: ='CV Rotina <2A - residência'!N41 -> 1.05399568 | H41: ='CV Rotina <2A - residência'!X41 -> 1.017278618 | I41: ='CV Rotina <2A - residência'!R41 -> 0.9935205184 | J41: ='CV Rotina <2A - residência'!T41 -> 0.8207343413 | K41: ='CV Rotina <2A - residência'!V41 -> 0.9352051836 | L41: ='CV Rotina <2A - residência'!Z41 -> 0.6090712743 | M41: 2 | N41: 5 | O41: 7 | P41: 4
A42: Sul | B42: Jerônimo Monteiro | C42: ='CV Rotina <2A - residência'!H42 -> 0.992248062 | D42: ='CV Rotina <2A - residência'!P42 -> 1.15503876 | E42: ='CV Rotina <2A - residência'!J42 -> 1.240310078 | F42: ='CV Rotina <2A - residência'!L42 -> 1.240310078 | G42: ='CV Rotina <2A - residência'!N42 -> 1.186046512 | H42: ='CV Rotina <2A - residência'!X42 -> 1.108527132 | I42: ='CV Rotina <2A - residência'!R42 -> 1.162790698 | J42: ='CV Rotina <2A - residência'!T42 -> 1.15503876 | K42: ='CV Rotina <2A - residência'!V42 -> 1.217054264 | L42: ='CV Rotina <2A - residência'!Z42 -> 0.6899224806 | M42: 2 | N42: 7 | O42: 9 | P42: 4
A43: Metropolitana | B43: João Neiva | C43: ='CV Rotina <2A - residência'!H43 -> 0.9810126582 | D43: ='CV Rotina <2A - residência'!P43 -> 0.9936708861 | E43: ='CV Rotina <2A - residência'!J43 -> 0.9620253165 | F43: ='CV Rotina <2A - residência'!L43 -> 0.9430379747 | G43: ='CV Rotina <2A - residência'!N43 -> 0.9873417722 | H43: ='CV Rotina <2A - residência'!X43 -> 1.139240506 | I43: ='CV Rotina <2A - residência'!R43 -> 0.9493670886 | J43: ='CV Rotina <2A - residência'!T43 -> 0.8797468354 | K43: ='CV Rotina <2A - residência'!V43 -> 1.056962025 | L43: ='CV Rotina <2A - residência'!Z43 -> 0.7974683544 | M43: 2 | N43: 4 | O43: 6 | P43: 3
A44: Metropolitana | B44: Laranja da Terra | C44: ='CV Rotina <2A - residência'!H44 -> 1.12371134 | D44: ='CV Rotina <2A - residência'!P44 -> 0.9278350515 | E44: ='CV Rotina <2A - residência'!J44 -> 0.9587628866 | F44: ='CV Rotina <2A - residência'!L44 -> 0.9587628866 | G44: ='CV Rotina <2A - residência'!N44 -> 0.9381443299 | H44: ='CV Rotina <2A - residência'!X44 -> 1.226804124 | I44: ='CV Rotina <2A - residência'!R44 -> 0.9175257732 | J44: ='CV Rotina <2A - residência'!T44 -> 0.9587628866 | K44: ='CV Rotina <2A - residência'!V44 -> 1.206185567 | L44: ='CV Rotina <2A - residência'!Z44 -> 0.9793814433 | M44: 2 | N44: 6 | O44: 8 | P44: 3
A45: Central | B45: Linhares | C45: ='CV Rotina <2A - residência'!H45 -> 0.7906357061 | D45: ='CV Rotina <2A - residência'!P45 -> 0.8880852684 | E45: ='CV Rotina <2A - residência'!J45 -> 0.8450704225 | F45: ='CV Rotina <2A - residência'!L45 -> 0.8405024743 | G45: ='CV Rotina <2A - residência'!N45 -> 0.8949371907 | H45: ='CV Rotina <2A - residência'!X45 -> 0.8549676437 | I45: ='CV Rotina <2A - residência'!R45 -> 0.8663875143 | J45: ='CV Rotina <2A - residência'!T45 -> 0.6821469357 | K45: ='CV Rotina <2A - residência'!V45 -> 0.8488770461 | L45: ='CV Rotina <2A - residência'!Z45 -> 0.5930719452 | M45: 0 | N45: 0 | O45: 0 | P45: 0
A46: Central | B46: Mantenópolis | C46: ='CV Rotina <2A - residência'!H46 -> 1.028985507 | D46: ='CV Rotina <2A - residência'!P46 -> 1.014492754 | E46: ='CV Rotina <2A - residência'!J46 -> 1.086956522 | F46: ='CV Rotina <2A - residência'!L46 -> 1.086956522 | G46: ='CV Rotina <2A - residência'!N46 -> 1.065217391 | H46: ='CV Rotina <2A - residência'!X46 -> 1.137681159 | I46: ='CV Rotina <2A - residência'!R46 -> 0.9927536232 | J46: ='CV Rotina <2A - residência'!T46 -> 0.9492753623 | K46: ='CV Rotina <2A - residência'!V46 -> 1.086956522 | L46: ='CV Rotina <2A - residência'!Z46 -> 0.6014492754 | M46: 2 | N46: 6 | O46: 8 | P46: 4
A47: Sul | B47: Marataízes | C47: ='CV Rotina <2A - residência'!H47 -> 0.9645522388 | D47: ='CV Rotina <2A - residência'!P47 -> 1.01119403 | E47: ='CV Rotina <2A - residência'!J47 -> 1.029850746 | F47: ='CV Rotina <2A - residência'!L47 -> 1.031716418 | G47: ='CV Rotina <2A - residência'!N47 -> 1.037313433 | H47: ='CV Rotina <2A - residência'!X47 -> 0.9664179104 | I47: ='CV Rotina <2A - residência'!R47 -> 1.037313433 | J47: ='CV Rotina <2A - residência'!T47 -> 0.6679104478 | K47: ='CV Rotina <2A - residência'!V47 -> 0.9608208955 | L47: ='CV Rotina <2A - residência'!Z47 -> 0.6063432836 | M47: 2 | N47: 6 | O47: 8 | P47: 4
A48: Metropolitana | B48: Marechal Floriano | C48: ='CV Rotina <2A - residência'!H48 -> 0.9441624365 | D48: ='CV Rotina <2A - residência'!P48 -> 1.091370558 | E48: ='CV Rotina <2A - residência'!J48 -> 1.045685279 | F48: ='CV Rotina <2A - residência'!L48 -> 1.045685279 | G48: ='CV Rotina <2A - residência'!N48 -> 1.111675127 | H48: ='CV Rotina <2A - residência'!X48 -> 1.101522843 | I48: ='CV Rotina <2A - residência'!R48 -> 1.045685279 | J48: ='CV Rotina <2A - residência'!T48 -> 0.8324873096 | K48: ='CV Rotina <2A - residência'!V48 -> 1.065989848 | L48: ='CV Rotina <2A - residência'!Z48 -> 0.8020304569 | M48: 2 | N48: 6 | O48: 8 | P48: 4
A49: Central | B49: Marilândia | C49: ='CV Rotina <2A - residência'!H49 -> 1 | D49: ='CV Rotina <2A - residência'!P49 -> 1 | E49: ='CV Rotina <2A - residência'!J49 -> 1.118055556 | F49: ='CV Rotina <2A - residência'!L49 -> 1.111111111 | G49: ='CV Rotina <2A - residência'!N49 -> 0.9930555556 | H49: ='CV Rotina <2A - residência'!X49 -> 1.048611111 | I49: ='CV Rotina <2A - residência'!R49 -> 1.055555556 | J49: ='CV Rotina <2A - residência'!T49 -> 0.9513888889 | K49: ='CV Rotina <2A - residência'!V49 -> 1.083333333 | L49: ='CV Rotina <2A - residência'!Z49 -> 0.9791666667 | M49: 2 | N49: 8 | O49: 10 | P49: 4
A50: Sul | B50: Mimoso do Sul | C50: ='CV Rotina <2A - residência'!H50 -> 1.042918455 | D50: ='CV Rotina <2A - residência'!P50 -> 0.9613733906 | E50: ='CV Rotina <2A - residência'!J50 -> 0.9785407725 | F50: ='CV Rotina <2A - residência'!L50 -> 0.9699570815 | G50: ='CV Rotina <2A - residência'!N50 -> 0.974248927 | H50: ='CV Rotina <2A - residência'!X50 -> 0.991416309 | I50: ='CV Rotina <2A - residência'!R50 -> 0.9527896996 | J50: ='CV Rotina <2A - residência'!T50 -> 0.7639484979 | K50: ='CV Rotina <2A - residência'!V50 -> 0.8798283262 | L50: ='CV Rotina <2A - residência'!Z50 -> 0.6909871245 | M50: 2 | N50: 5 | O50: 7 | P50: 4
A51: Norte | B51: Montanha | C51: ='CV Rotina <2A - residência'!H51 -> 0.9118942731 | D51: ='CV Rotina <2A - residência'!P51 -> 1.088105727 | E51: ='CV Rotina <2A - residência'!J51 -> 1.127753304 | F51: ='CV Rotina <2A - residência'!L51 -> 1.136563877 | G51: ='CV Rotina <2A - residência'!N51 -> 1.092511013 | H51: ='CV Rotina <2A - residência'!X51 -> 1.13215859 | I51: ='CV Rotina <2A - residência'!R51 -> 1.057268722 | J51: ='CV Rotina <2A - residência'!T51 -> 1.030837004 | K51: ='CV Rotina <2A - residência'!V51 -> 1.211453744 | L51: ='CV Rotina <2A - residência'!Z51 -> 0.8986784141 | M51: 2 | N51: 7 | O51: 9 | P51: 4
A52: Norte | B52: Mucurici | C52: ='CV Rotina <2A - residência'!H52 -> 0.768115942 | D52: ='CV Rotina <2A - residência'!P52 -> 1.101449275 | E52: ='CV Rotina <2A - residência'!J52 -> 1.144927536 | F52: ='CV Rotina <2A - residência'!L52 -> 1.130434783 | G52: ='CV Rotina <2A - residência'!N52 -> 1.115942029 | H52: ='CV Rotina <2A - residência'!X52 -> 1.115942029 | I52: ='CV Rotina <2A - residência'!R52 -> 1.130434783 | J52: ='CV Rotina <2A - residência'!T52 -> 1.086956522 | K52: ='CV Rotina <2A - residência'!V52 -> 0.9130434783 | L52: ='CV Rotina <2A - residência'!Z52 -> 0.8260869565 | M52: 1 | N52: 6 | O52: 7 | P52: 4
A53: Sul | B53: Muniz Freire | C53: ='CV Rotina <2A - residência'!H53 -> 1.082125604 | D53: ='CV Rotina <2A - residência'!P53 -> 1.086956522 | E53: ='CV Rotina <2A - residência'!J53 -> 1.096618357 | F53: ='CV Rotina <2A - residência'!L53 -> 1.077294686 | G53: ='CV Rotina <2A - residência'!N53 -> 1.106280193 | H53: ='CV Rotina <2A - residência'!X53 -> 1.101449275 | I53: ='CV Rotina <2A - residência'!R53 -> 1.086956522 | J53: ='CV Rotina <2A - residência'!T53 -> 0.9951690821 | K53: ='CV Rotina <2A - residência'!V53 -> 1.082125604 | L53: ='CV Rotina <2A - residência'!Z53 -> 0.7342995169 | M53: 2 | N53: 7 | O53: 9 | P53: 4
A54: Sul | B54: Muqui | C54: ='CV Rotina <2A - residência'!H54 -> 1.015267176 | D54: ='CV Rotina <2A - residência'!P54 -> 1.053435115 | E54: ='CV Rotina <2A - residência'!J54 -> 1.167938931 | F54: ='CV Rotina <2A - residência'!L54 -> 1.167938931 | G54: ='CV Rotina <2A - residência'!N54 -> 1.045801527 | H54: ='CV Rotina <2A - residência'!X54 -> 1.083969466 | I54: ='CV Rotina <2A - residência'!R54 -> 1.122137405 | J54: ='CV Rotina <2A - residência'!T54 -> 1.038167939 | K54: ='CV Rotina <2A - residência'!V54 -> 1.198473282 | L54: ='CV Rotina <2A - residência'!Z54 -> 0.9236641221 | M54: 2 | N54: 7 | O54: 9 | P54: 4
A55: Norte | B55: Nova Venécia | C55: ='CV Rotina <2A - residência'!H55 -> 0.9452887538 | D55: ='CV Rotina <2A - residência'!P55 -> 0.9224924012 | E55: ='CV Rotina <2A - residência'!J55 -> 1.006079027 | F55: ='CV Rotina <2A - residência'!L55 -> 1.001519757 | G55: ='CV Rotina <2A - residência'!N55 -> 0.9544072948 | H55: ='CV Rotina <2A - residência'!X55 -> 0.9984802432 | I55: ='CV Rotina <2A - residência'!R55 -> 0.9756838906 | J55: ='CV Rotina <2A - residência'!T55 -> 0.8541033435 | K55: ='CV Rotina <2A - residência'!V55 -> 0.9072948328 | L55: ='CV Rotina <2A - residência'!Z55 -> 0.6534954407 | M55: 2 | N55: 5 | O55: 7 | P55: 4
A56: Central | B56: Pancas | C56: ='CV Rotina <2A - residência'!H56 -> 1.02 | D56: ='CV Rotina <2A - residência'!P56 -> 1.07 | E56: ='CV Rotina <2A - residência'!J56 -> 1.12 | F56: ='CV Rotina <2A - residência'!L56 -> 1.12 | G56: ='CV Rotina <2A - residência'!N56 -> 1.075 | H56: ='CV Rotina <2A - residência'!X56 -> 1.115 | I56: ='CV Rotina <2A - residência'!R56 -> 1.06 | J56: ='CV Rotina <2A - residência'!T56 -> 1.005 | K56: ='CV Rotina <2A - residência'!V56 -> 1.09 | L56: ='CV Rotina <2A - residência'!Z56 -> 0.985 | M56: 2 | N56: 8 | O56: 10 | P56: 4
A57: Norte | B57: Pedro Canário | C57: ='CV Rotina <2A - residência'!H57 -> 0.7164634146 | D57: ='CV Rotina <2A - residência'!P57 -> 0.8536585366 | E57: ='CV Rotina <2A - residência'!J57 -> 0.8932926829 | F57: ='CV Rotina <2A - residência'!L57 -> 0.881097561 | G57: ='CV Rotina <2A - residência'!N57 -> 0.862804878 | H57: ='CV Rotina <2A - residência'!X57 -> 1.042682927 | I57: ='CV Rotina <2A - residência'!R57 -> 0.8597560976 | J57: ='CV Rotina <2A - residência'!T57 -> 0.8201219512 | K57: ='CV Rotina <2A - residência'!V57 -> 0.8292682927 | L57: ='CV Rotina <2A - residência'!Z57 -> 0.7591463415 | M57: 0 | N57: 1 | O57: 1 | P57: 1
A58: Norte | B58: Pinheiros | C58: ='CV Rotina <2A - residência'!H58 -> 0.8343949045 | D58: ='CV Rotina <2A - residência'!P58 -> 1.108280255 | E58: ='CV Rotina <2A - residência'!J58 -> 1.181528662 | F58: ='CV Rotina <2A - residência'!L58 -> 1.178343949 | G58: ='CV Rotina <2A - residência'!N58 -> 1.127388535 | H58: ='CV Rotina <2A - residência'!X58 -> 1.191082803 | I58: ='CV Rotina <2A - residência'!R58 -> 1.117834395 | J58: ='CV Rotina <2A - residência'!T58 -> 0.9171974522 | K58: ='CV Rotina <2A - residência'!V58 -> 1.060509554 | L58: ='CV Rotina <2A - residência'!Z58 -> 0.6687898089 | M58: 1 | N58: 6 | O58: 7 | P58: 4
A59: Sul | B59: Piúma | C59: ='CV Rotina <2A - residência'!H59 -> 0.8989169675 | D59: ='CV Rotina <2A - residência'!P59 -> 0.9314079422 | E59: ='CV Rotina <2A - residência'!J59 -> 0.963898917 | F59: ='CV Rotina <2A - residência'!L59 -> 0.9602888087 | G59: ='CV Rotina <2A - residência'!N59 -> 0.9819494585 | H59: ='CV Rotina <2A - residência'!X59 -> 0.9530685921 | I59: ='CV Rotina <2A - residência'!R59 -> 0.9133574007 | J59: ='CV Rotina <2A - residência'!T59 -> 0.6137184116 | K59: ='CV Rotina <2A - residência'!V59 -> 0.7942238267 | L59: ='CV Rotina <2A - residência'!Z59 -> 0.5631768953 | M59: 1 | N59: 4 | O59: 5 | P59: 4
A60: Norte | B60: Ponto Belo | C60: ='CV Rotina <2A - residência'!H60 -> 0.8024691358 | D60: ='CV Rotina <2A - residência'!P60 -> 1.012345679 | E60: ='CV Rotina <2A - residência'!J60 -> 0.950617284 | F60: ='CV Rotina <2A - residência'!L60 -> 0.950617284 | G60: ='CV Rotina <2A - residência'!N60 -> 1.024691358 | H60: ='CV Rotina <2A - residência'!X60 -> 1.049382716 | I60: ='CV Rotina <2A - residência'!R60 -> 1.037037037 | J60: ='CV Rotina <2A - residência'!T60 -> 0.8518518519 | K60: ='CV Rotina <2A - residência'!V60 -> 1.024691358 | L60: ='CV Rotina <2A - residência'!Z60 -> 0.8271604938 | M60: 1 | N60: 6 | O60: 7 | P60: 4
A61: Sul | B61: Presidente Kennedy | C61: ='CV Rotina <2A - residência'!H61 -> 1.124324324 | D61: ='CV Rotina <2A - residência'!P61 -> 1.037837838 | E61: ='CV Rotina <2A - residência'!J61 -> 1.048648649 | F61: ='CV Rotina <2A - residência'!L61 -> 1.064864865 | G61: ='CV Rotina <2A - residência'!N61 -> 1.048648649 | H61: ='CV Rotina <2A - residência'!X61 -> 1.091891892 | I61: ='CV Rotina <2A - residência'!R61 -> 1.043243243 | J61: ='CV Rotina <2A - residência'!T61 -> 0.8162162162 | K61: ='CV Rotina <2A - residência'!V61 -> 1.151351351 | L61: ='CV Rotina <2A - residência'!Z61 -> 0.7945945946 | M61: 2 | N61: 6 | O61: 8 | P61: 4
A62: Central | B62: Rio Bananal | C62: ='CV Rotina <2A - residência'!H62 -> 0.8448844884 | D62: ='CV Rotina <2A - residência'!P62 -> 0.9207920792 | E62: ='CV Rotina <2A - residência'!J62 -> 0.8943894389 | F62: ='CV Rotina <2A - residência'!L62 -> 0.8877887789 | G62: ='CV Rotina <2A - residência'!N62 -> 0.9306930693 | H62: ='CV Rotina <2A - residência'!X62 -> 0.9900990099 | I62: ='CV Rotina <2A - residência'!R62 -> 0.8646864686 | J62: ='CV Rotina <2A - residência'!T62 -> 0.8811881188 | K62: ='CV Rotina <2A - residência'!V62 -> 0.99669967 | L62: ='CV Rotina <2A - residência'!Z62 -> 0.7656765677 | M62: 1 | N62: 2 | O62: 3 | P62: 1
A63: Sul | B63: Rio Novo do Sul | C63: ='CV Rotina <2A - residência'!H63 -> 0.8333333333 | D63: ='CV Rotina <2A - residência'!P63 -> 1.125 | E63: ='CV Rotina <2A - residência'!J63 -> 1.03125 | F63: ='CV Rotina <2A - residência'!L63 -> 1 | G63: ='CV Rotina <2A - residência'!N63 -> 1.104166667 | H63: ='CV Rotina <2A - residência'!X63 -> 1.21875 | I63: ='CV Rotina <2A - residência'!R63 -> 1.083333333 | J63: ='CV Rotina <2A - residência'!T63 -> 1 | K63: ='CV Rotina <2A - residência'!V63 -> 1.25 | L63: ='CV Rotina <2A - residência'!Z63 -> 0.96875 | M63: 1 | N63: 8 | O63: 9 | P63: 4
A64: Metropolitana | B64: Santa Leopoldina | C64: ='CV Rotina <2A - residência'!H64 -> 0.8641975309 | D64: ='CV Rotina <2A - residência'!P64 -> 1.160493827 | E64: ='CV Rotina <2A - residência'!J64 -> 1.296296296 | F64: ='CV Rotina <2A - residência'!L64 -> 1.296296296 | G64: ='CV Rotina <2A - residência'!N64 -> 1.172839506 | H64: ='CV Rotina <2A - residência'!X64 -> 1.50617284 | I64: ='CV Rotina <2A - residência'!R64 -> 1.197530864 | J64: ='CV Rotina <2A - residência'!T64 -> 1.086419753 | K64: ='CV Rotina <2A - residência'!V64 -> 1.395061728 | L64: ='CV Rotina <2A - residência'!Z64 -> 0.4691358025 | M64: 1 | N64: 7 | O64: 8 | P64: 4
A65: Metropolitana | B65: Santa Maria de Jetibá | C65: ='CV Rotina <2A - residência'!H65 -> 0.9078751857 | D65: ='CV Rotina <2A - residência'!P65 -> 0.8692421991 | E65: ='CV Rotina <2A - residência'!J65 -> 0.8216939079 | F65: ='CV Rotina <2A - residência'!L65 -> 0.8187221397 | G65: ='CV Rotina <2A - residência'!N65 -> 0.8707280832 | H65: ='CV Rotina <2A - residência'!X65 -> 0.8722139673 | I65: ='CV Rotina <2A - residência'!R65 -> 0.8365527489 | J65: ='CV Rotina <2A - residência'!T65 -> 0.7117384844 | K65: ='CV Rotina <2A - residência'!V65 -> 0.8945022288 | L65: ='CV Rotina <2A - residência'!Z65 -> 0.5839524517 | M65: 1 | N65: 0 | O65: 1 | P65: 0
A66: Metropolitana | B66: Santa Teresa | C66: ='CV Rotina <2A - residência'!H66 -> 0.9455782313 | D66: ='CV Rotina <2A - residência'!P66 -> 1.030612245 | E66: ='CV Rotina <2A - residência'!J66 -> 1.037414966 | F66: ='CV Rotina <2A - residência'!L66 -> 1.037414966 | G66: ='CV Rotina <2A - residência'!N66 -> 1.037414966 | H66: ='CV Rotina <2A - residência'!X66 -> 0.9421768707 | I66: ='CV Rotina <2A - residência'!R66 -> 0.9863945578 | J66: ='CV Rotina <2A - residência'!T66 -> 0.8775510204 | K66: ='CV Rotina <2A - residência'!V66 -> 0.9115646259 | L66: ='CV Rotina <2A - residência'!Z66 -> 0.7653061224 | M66: 2 | N66: 4 | O66: 6 | P66: 3
A67: Central | B67: São Domingos do Norte | C67: ='CV Rotina <2A - residência'!H67 -> 1.076923077 | D67: ='CV Rotina <2A - residência'!P67 -> 1.068376068 | E67: ='CV Rotina <2A - residência'!J67 -> 1.094017094 | F67: ='CV Rotina <2A - residência'!L67 -> 1.094017094 | G67: ='CV Rotina <2A - residência'!N67 -> 1.102564103 | H67: ='CV Rotina <2A - residência'!X67 -> 1 | I67: ='CV Rotina <2A - residência'!R67 -> 1.094017094 | J67: ='CV Rotina <2A - residência'!T67 -> 1 | K67: ='CV Rotina <2A - residência'!V67 -> 0.8632478632 | L67: ='CV Rotina <2A - residência'!Z67 -> 0.6837606838 | M67: =COUNTIF(C67:D67,">=0,9") -> 2 | N67: =COUNTIFS(E67:L67,">=0,95") -> 6 | O67: 8 | P67: 4
A68: Central | B68: São Gabriel da Palha | C68: ='CV Rotina <2A - residência'!H68 -> 0.9638554217 | D68: ='CV Rotina <2A - residência'!P68 -> 1.014457831 | E68: ='CV Rotina <2A - residência'!J68 -> 1 | F68: ='CV Rotina <2A - residência'!L68 -> 0.9975903614 | G68: ='CV Rotina <2A - residência'!N68 -> 1.043373494 | H68: ='CV Rotina <2A - residência'!X68 -> 0.9493975904 | I68: ='CV Rotina <2A - residência'!R68 -> 1.009638554 | J68: ='CV Rotina <2A - residência'!T68 -> 0.8 | K68: ='CV Rotina <2A - residência'!V68 -> 0.8530120482 | L68: ='CV Rotina <2A - residência'!Z68 -> 0.6457831325 | M68: 2 | N68: 4 | O68: =SUM(M68:N68) -> 6 | P68: =COUNTIF(E68:H68,">=0,95") -> 3
A69: Sul | B69: São José do Calçado | C69: ='CV Rotina <2A - residência'!H69 -> 1.038461538 | D69: ='CV Rotina <2A - residência'!P69 -> 0.9423076923 | E69: ='CV Rotina <2A - residência'!J69 -> 1.028846154 | F69: ='CV Rotina <2A - residência'!L69 -> 1.028846154 | G69: ='CV Rotina <2A - residência'!N69 -> 1.038461538 | H69: ='CV Rotina <2A - residência'!X69 -> 1.163461538 | I69: ='CV Rotina <2A - residência'!R69 -> 1.096153846 | J69: ='CV Rotina <2A - residência'!T69 -> 0.8846153846 | K69: ='CV Rotina <2A - residência'!V69 -> 1.057692308 | L69: ='CV Rotina <2A - residência'!Z69 -> 0.6826923077 | M69: 2 | N69: 6 | O69: 8 | P69: 4
A70: Norte | B70: São Mateus | C70: ='CV Rotina <2A - residência'!H70 -> 0.9895833333 | D70: ='CV Rotina <2A - residência'!P70 -> 0.9067982456 | E70: ='CV Rotina <2A - residência'!J70 -> 0.9259868421 | F70: ='CV Rotina <2A - residência'!L70 -> 0.913377193 | G70: ='CV Rotina <2A - residência'!N70 -> 0.9550438596 | H70: ='CV Rotina <2A - residência'!X70 -> 0.8322368421 | I70: ='CV Rotina <2A - residência'!R70 -> 0.8963815789 | J70: ='CV Rotina <2A - residência'!T70 -> 0.6600877193 | K70: ='CV Rotina <2A - residência'!V70 -> 0.7839912281 | L70: ='CV Rotina <2A - residência'!Z70 -> 0.5180921053 | M70: 2 | N70: 1 | O70: 3 | P70: 1
